Workbook

Sheet Contents
A1: 80 | M1: ESC USE ONLY
D2: ESSENTIAL SERVICES COMMISSION
D3: Water Price Review - 2023
D4: Financial Model Template
B7: Table of Contents | F7: Water Business: | H7: =+N24 -> South Gippsland Water | I7: =+O24 -> SGW
B8: Section & Sheet Titles | F8: Regulatory Period: | H8: 2023-24 to 2027-28 (Fifth) | N8: [Decision] | O8: [Month] | P8: [Year] | Q8: [Version]
F9: Model Name: | H9: =I7&"_Price Review Template_"&O9&P9&Q9 -> SGW_Price Review Template_Oct2021 - v1 | N9: Draft | O9: Oct | P9: 2021 | Q9: - v1 | R9: << Select
B10: 1 | C10: Model Quality Check | F10: Decision type: | H10: =+N9&" Decision" -> Draft Decision | N10: Draft | O10: Jan | P10: 2016 | Q10: - v1
B11: 2 | C11: =+KeyAssumptionsPriceControl_FO!B1 -> Key Assumptions Price Control | N11: Final | O11: Feb | P11: 2017
B12: 3 | C12: =+Expenditure_Detail!B1 -> Expenditure - Detail | F12: Model Key: | O12: Mar | P12: 2018
B13: 4 | C13: =Opex_FO!B1 -> Operating Expenditure - Forecast | O13: Apr | P13: 2019
B14: 5 | C14: =Opex_Breakdown!B1 -> Operating Expenditure - Breakdown | G14: BLUE | H14: =+I7&" - DATA INPUT CELL" -> SGW - DATA INPUT CELL | O14: May | P14: 2020
B15: 6 | C15: =+'Capex_FO input'!B1 -> Capital Expenditure - Forecast Input | O15: Jun | P15: 2021
B16: 7 | C16: =Capex_FO_AC!B1 -> Capital Expenditure - Asset Category Breakdown | G16: PURPLE | H16: NOTES / INSTRUCTIONS | O16: Jul | P16: 2022
B17: 8 | C17: =ExpSummary_FO!B1 -> Expenditure Summary | O17: Aug | P17: 2023
B18: 9 | C18: =RollForward_FO!B1 -> Rolled forward regulatory asset base (RAB) | G18: GREY | H18: MODEL PARAMETERS / ASSUMPTIONS | O18: Sep
B19: 10 | C19: =PrevPerAdj_FO!B1 -> Previous period adjustments | O19: Oct
B20: 11 | C20: =RevenuePriceCap_FO!C1 -> Revenue forecast (price caps) | G20: WHITE | H20: FORMULA / HARDCODED VALUES | O20: Nov
B21: 12 | C21: Revenue forecast (tariff basket) | O21: Dec
B22: 13 | C22: =NotPres_FO!B1 -> Non Prescribed Services | G22: ORANGE | H22: FORMULA DIFFERENT TO ADJACENT CELL
B23: 14 | C23: ='Finance&Tax_FO'!B1 -> Cash, debt and tax assumptions | N23: [Business]
B24: 15 | C24: ='Rev&RAV_FO'!B1 -> Revenue requirement detail | G24: GREEN | H24: DATA FROM 2018 DECISION OR PERFORMANCE REPORT | N24: South Gippsland Water | O24: =+VLOOKUP(N24,N25:O42,2,FALSE) -> SGW
B25: 16 | C25: =Indicators_FO!B1 -> Financial indicators | N25: Barwon Water | O25: BW
B26: 17 | C26: =Outcomes!B1 -> Outcomes | G26: RED | H26: ERROR CHECK | N26: Central Highlands Water | O26: CHW
B27: 18 | C27: =GSL!B1 -> Guaranteed Service Levels (GSL) | N27: Greater Western Water | O27: GWW
B28: 19 | C28: Dashboard - Pricing | N28: Coliban Water | O28: CW
B29: 20 | C29: Dashboard - Opex | N29: East Gippsland Water | O29: EGW
B30: 21 | C30: Dashboard - Capex | N30: Gippsland Water | O30: CGW
B31: 22 | C31: Dashboard - Data | N31: Goulburn Valley Water | O31: GVW
B32: 23 | C32: Household Bill | N32: GWM Water | O32: GWMW | P32: diff model
N33: Lower Murray Water - Urban | O33: LMW-U | P33: diff model
N34: Lower Murray Water - Rural | O34: LMW-R
N35: North East Water | O35: NEW
N36: South East Water | O36: SEW
N37: South Gippsland Water | O37: SGW
N38: Southern Rural Water | O38: SRW | P38: diff model
N39: Wannon Water | O39: WNW
N40: Westernport Water | O40: WPW
N41: Yarra Valley Water | O41: YVW

Sheet Adjustments log (hidden)
A3: 1 | B3: Operating expenditure
B4: $m 2022-23
C6: 2023-24 | D6: 2024-25 | E6: 2025-26 | F6: 2026-27 | G6: 2027-28 | H6: Total
B7: Proposed - controllable operating expenditure | H7: =SUM(C7:G7) -> 0
B8: DD adjustments
B9: xx | H9: =SUM(C9:G9) -> 0
B10: xx | H10: =SUM(C10:G10) -> 0
B11: xx | H11: =SUM(C11:G11) -> 0
B12: xx | H12: =SUM(C12:G12) -> 0
B13: xx | H13: =SUM(C13:G13) -> 0
B14: FD adjustments
B15: xx | H15: =SUM(C15:G15) -> 0
B16: xx | H16: =SUM(C16:G16) -> 0
B17: xx | H17: =SUM(C17:G17) -> 0
B18: xx | H18: =SUM(C18:G18) -> 0
B19: xx | H19: 0
B20: Total adjustments | C20: =SUM(C8:C19) -> 0 | D20: 0 | E20: 0 | F20: 0 | G20: 0 | H20: 0
B21: Final decision - controllable operating expenditure | C21: =C7+C20 -> 0 | D21: 0 | E21: 0 | F21: 0 | G21: 0 | H21: 0
B23: Proposed - non-controllable operating expenditure | H23: =SUM(C23:G23) -> 0
B24: DD adjustments
B25: xx | H25: =SUM(C25:G25) -> 0
B26: xx | H26: =SUM(C26:G26) -> 0
B27: xx | H27: =SUM(C27:G27) -> 0
B28: xx | H28: =SUM(C28:G28) -> 0
B29: FD adjustments
B30: xx | H30: =SUM(C30:G30) -> 0
B31: xx | H31: =SUM(C31:G31) -> 0
B32: Total adjustments | C32: =SUM(C24:C31) -> 0 | D32: 0 | E32: 0 | F32: 0 | G32: 0 | H32: 0
B33: Final decision - non-controllable operating expenditure | C33: =C23+C32 -> 0 | D33: 0 | E33: 0 | F33: 0 | G33: 0 | H33: 0
B35: Proposed - total operating expenditure | C35: =C7+C23 -> 0 | D35: 0 | E35: 0 | F35: 0 | G35: 0 | H35: 0
B36: Total adjustments | C36: =C20+C32 -> 0 | D36: 0 | E36: 0 | F36: 0 | G36: 0 | H36: 0
B37: Final decision - total operating expenditure | C37: =SUM(C35:C36) -> 0 | D37: 0 | E37: 0 | F37: 0 | G37: 0 | H37: 0
B39: Check
A42: 2 | B42: Capital expenditure
B43: $m 2022-23
C45: 2023-24 | D45: 2024-25 | E45: 2025-26 | F45: 2026-27 | G45: 2027-28 | H45: Total
B46: Proposed - capital expenditure | H46: =SUM(C46:G46) -> 0
B47: DD adjustments
B48: xx | H48: =SUM(C48:G48) -> 0
B49: xx | H49: =SUM(C49:G49) -> 0
B50: xx | H50: =SUM(C50:G50) -> 0
B51: xx | H51: =SUM(C51:G51) -> 0
B52: FD adjustments
B53: xx | H53: =SUM(C53:G53) -> 0
B54: xx
B55: Total adjustments | C55: =SUM(C47:C54) -> 0 | D55: 0 | E55: 0 | F55: 0 | G55: 0 | H55: 0
B56: Draft decision - capital expenditure | C56: =C46+C55 -> 0 | D56: 0 | E56: 0 | F56: 0 | G56: 0 | H56: 0
B58: Check

Sheet Model Quality Check
A1: 80 | B1: Model Quality Check
B2: =+Contents!H7 -> South Gippsland Water
B3: Go to Table of Contents
K4: FIRST REG PERIOD | O4: SECOND REG PERIOD | T4: THIRD REG PERIOD | W4: FOURTH REG PERIOD (A) | Z4: FOURTH REG PERIOD (B) | AD4: FIFTH REG PERIOD | AI4: SIXTH REG PERIOD
F6: Straight Line | J6: 2006 | K6: 2007 | L6: 2008 | M6: 2009 | N6: 2010 | O6: 2011 | P6: 2012 | Q6: 2013 | R6: 2014 | S6: 2015 | T6: 2016 | U6: 2017 | V6: 2018 | W6: 2019 | X6: 2020 | Y6: 2021 | Z6: 2022 | AA6: 2023 | AB6: 2024 | AC6: 2025 | AD6: 2026 | AE6: 2027 | AF6: 2028 | AG6: 2029 | AH6: 2030 | AI6: 2031 | AJ6: 2032 | AK6: 2033
F7: Declining Balance | J7: =+CONCATENATE(J6-1,"-",RIGHT(J6,2)) -> 2005-06 | K7: 2006-07 | L7: 2007-08 | M7: 2008-09 | N7: 2009-10 | O7: 2010-11 | P7: 2011-12 | Q7: 2012-13 | R7: 2013-14 | S7: 2014-15 | T7: 2015-16 | U7: 2016-17 | V7: 2017-18 | W7: =+CONCATENATE(W6-1,"-",RIGHT(W6,2)) -> 2018-19 | X7: 2019-20 | Y7: 2020-21 | Z7: 2021-22 | AA7: 2022-23 | AB7: 2023-24 | AC7: 2024-25 | AD7: 2025-26 | AE7: 2026-27 | AF7: =+CONCATENATE(AF6-1,"-",RIGHT(AF6,2)) -> 2027-28 | AG7: 2028-29 | AH7: 2029-30 | AI7: 2030-31 | AJ7: 2031-32 | AK7: 2032-33
D9: Model ready for submission: | I9: =SUM(AA15:AK49) -> 1 | R9: (If No, please ensure that the error check is corrected at the source)
D11: All financial indicators satisfied: | I11: =SUM(AB54:AK59) -> 15
E14: 1. | F14: Opex_FO
G15: Reconciliation to 'Opex_Breakdown' tab row 37 | AB15: =Opex_FO!AC100 -> 0 | AC15: =Opex_FO!AD100 -> 0 | AD15: =Opex_FO!AE100 -> 0 | AE15: =Opex_FO!AF100 -> 0 | AF15: =Opex_FO!AG100 -> 0 | AG15: =Opex_FO!AH100 -> 0 | AH15: =Opex_FO!AI100 -> 0 | AI15: =Opex_FO!AJ100 -> 0 | AJ15: =Opex_FO!AK100 -> 0 | AK15: =Opex_FO!AL100 -> 0
E17: 2. | F17: Opex_Breakdown
G18: Reconciliation to 'Opex_FO' tab row 95 | AB18: =Opex_Breakdown!AC42 -> 0 | AC18: =Opex_Breakdown!AD42 -> 0 | AD18: =Opex_Breakdown!AE42 -> 0 | AE18: =Opex_Breakdown!AF42 -> 0 | AF18: =Opex_Breakdown!AG42 -> 0 | AG18: =Opex_Breakdown!AH42 -> 0 | AH18: =Opex_Breakdown!AI42 -> 0 | AI18: =Opex_Breakdown!AJ42 -> 0 | AJ18: =Opex_Breakdown!AK42 -> 0 | AK18: =Opex_Breakdown!AL42 -> 0
G20: Reconciliation of Opex by service and function | AB20: =Opex_Breakdown!AC27 -> 0 | AC20: =Opex_Breakdown!AD27 -> 0 | AD20: =Opex_Breakdown!AE27 -> 0 | AE20: =Opex_Breakdown!AF27 -> 0 | AF20: =Opex_Breakdown!AG27 -> 0 | AG20: =Opex_Breakdown!AH27 -> 0 | AH20: =Opex_Breakdown!AI27 -> 0 | AI20: =Opex_Breakdown!AJ27 -> 0 | AJ20: =Opex_Breakdown!AK27 -> 0 | AK20: =Opex_Breakdown!AL27 -> 0
E22: 3. | F22: Capex_FO input
G23: Reconciliation of total prescribed capex between cost driver and capital type | AB23: ='Capex_FO input'!D26 -> 0 | AC23: ='Capex_FO input'!E26 -> 0 | AD23: ='Capex_FO input'!F26 -> 0 | AE23: ='Capex_FO input'!G26 -> 0 | AF23: ='Capex_FO input'!H26 -> 0 | AG23: ='Capex_FO input'!I26 -> 0 | AH23: ='Capex_FO input'!J26 -> 0 | AI23: ='Capex_FO input'!K26 -> 0 | AJ23: ='Capex_FO input'!L26 -> 0 | AK23: ='Capex_FO input'!M26 -> 0
E25: 4. | F25: Capex_FO_AC
G26: Reconciliation to 'Capex_FO input' tab row 29 | AA26: =Capex_FO_AC!AB30 -> 0 | AB26: =Capex_FO_AC!AC30 -> 0 | AC26: =Capex_FO_AC!AD30 -> 0 | AD26: =Capex_FO_AC!AE30 -> 0 | AE26: =Capex_FO_AC!AF30 -> 0 | AF26: =Capex_FO_AC!AG30 -> 0 | AG26: =Capex_FO_AC!AH30 -> 0 | AH26: =Capex_FO_AC!AI30 -> 0 | AI26: =Capex_FO_AC!AJ30 -> 0 | AJ26: =Capex_FO_AC!AK30 -> 0 | AK26: =Capex_FO_AC!AL30 -> 0
E28: 5. | F28: RollForward_FO
G29: Reconciliation of existing assets book value to RAB | AB29: =IF(ROUND(RollForward_FO!G84,2)=ROUND(RollForward_FO!G82,2),0,1) -> 0
E31: 6. | F31: RevenuePriceCap_FO
G32: Price control - Fifth period | AB32: =IF(KeyAssumptionsPriceControl_FO!I48=1,IF(RevenuePriceCap_FO!AD34="PRICE CONTROL OK",0,1),0) -> 1 | AC32: =IF(KeyAssumptionsPriceControl_FO!I48=1,RevenuePriceCap_FO!AD34,"") -> INSUFFICIENT REVENUE
G34: Price control - Sixth period | AB34: =IF(KeyAssumptionsPriceControl_FO!I48=1,IF(RevenuePriceCap_FO!AI34="PRICE CONTROL OK",0,1),0) -> 0 | AC34: =IF(KeyAssumptionsPriceControl_FO!I48=1,RevenuePriceCap_FO!AI34,"") -> PRICE CONTROL OK
G36: Tariff revenue reconciliation | AB36: =RevenuePriceCap_FO!AC458 -> 0 | AC36: =RevenuePriceCap_FO!AD458 -> 0 | AD36: =RevenuePriceCap_FO!AE458 -> 0 | AE36: =RevenuePriceCap_FO!AF458 -> 0 | AF36: =RevenuePriceCap_FO!AG458 -> 0 | AG36: =RevenuePriceCap_FO!AH458 -> 0 | AH36: =RevenuePriceCap_FO!AI458 -> 0 | AI36: =RevenuePriceCap_FO!AJ458 -> 0 | AJ36: =RevenuePriceCap_FO!AK458 -> 0 | AK36: =RevenuePriceCap_FO!AL458 -> 0
E38: 7. | F38: RevenueTariffBasket_FO
G39: Price control - Fifth period | AB39: =IF(KeyAssumptionsPriceControl_FO!I48=2,IF(RevenueTariffBasket_FO!AD34="PRICE CONTROL OK",0,1),0) -> 0 | AC39: =IF(KeyAssumptionsPriceControl_FO!I48=2,RevenueTariffBasket_FO!AD34,"") -> 
G41: Price control - Sixth period | AB41: =IF(KeyAssumptionsPriceControl_FO!I48=2,IF(RevenueTariffBasket_FO!AI41="PRICE CONTROL OK",0,1),0) -> 0 | AC41: =IF(KeyAssumptionsPriceControl_FO!I48=2,RevenueTariffBasket_FO!AI34,"") -> 
G43: Tariff revenue reconciliation | AB43: =RevenueTariffBasket_FO!AC458 -> 0 | AC43: =RevenueTariffBasket_FO!AD458 -> 0 | AD43: =RevenueTariffBasket_FO!AE458 -> 0 | AE43: =RevenueTariffBasket_FO!AF458 -> 0 | AF43: =RevenueTariffBasket_FO!AG458 -> 0 | AG43: =RevenueTariffBasket_FO!AH458 -> 0 | AH43: =RevenueTariffBasket_FO!AI458 -> 0 | AI43: =RevenueTariffBasket_FO!AJ458 -> 0 | AJ43: =RevenueTariffBasket_FO!AK458 -> 0 | AK43: =RevenueTariffBasket_FO!AL458 -> 0
E45: 8. | F45: Rev&RAV_FO
G46: Rolled forward RAV reconciliation | AB46: ='Rev&RAV_FO'!AC80 -> 0 | AC46: ='Rev&RAV_FO'!AD80 -> 0 | AD46: ='Rev&RAV_FO'!AE80 -> 0 | AE46: ='Rev&RAV_FO'!AF80 -> 0 | AF46: ='Rev&RAV_FO'!AG80 -> 0 | AG46: ='Rev&RAV_FO'!AH80 -> 0 | AH46: ='Rev&RAV_FO'!AI80 -> 0 | AI46: ='Rev&RAV_FO'!AJ80 -> 0 | AJ46: ='Rev&RAV_FO'!AK80 -> 0 | AK46: ='Rev&RAV_FO'!AL80 -> 0
E48: 9. | F48: GSL
G49: Reconciliation to 'Opex_Breakdown' tab row 23 | AB49: =IF(ROUND(GSL!AC40,2)=ROUND(GSL!AC39,2),0,1) -> 0 | AC49: =IF(ROUND(GSL!AD40,2)=ROUND(GSL!AD39,2),0,1) -> 0 | AD49: =IF(ROUND(GSL!AE40,2)=ROUND(GSL!AE39,2),0,1) -> 0 | AE49: =IF(ROUND(GSL!AF40,2)=ROUND(GSL!AF39,2),0,1) -> 0 | AF49: =IF(ROUND(GSL!AG40,2)=ROUND(GSL!AG39,2),0,1) -> 0 | AG49: =IF(ROUND(GSL!AH40,2)=ROUND(GSL!AH39,2),0,1) -> 0 | AH49: =IF(ROUND(GSL!AI40,2)=ROUND(GSL!AI39,2),0,1) -> 0 | AI49: =IF(ROUND(GSL!AJ40,2)=ROUND(GSL!AJ39,2),0,1) -> 0 | AJ49: =IF(ROUND(GSL!AK40,2)=ROUND(GSL!AK39,2),0,1) -> 0 | AK49: =IF(ROUND(GSL!AL40,2)=ROUND(GSL!AL39,2),0,1) -> 0
E53: 1. | F53: Primary Indicator
G54: FFO interest cover | AB54: =Indicators_FO!AC$226 -> 0 | AC54: =Indicators_FO!AD$226 -> 0 | AD54: =Indicators_FO!AE$226 -> 0 | AE54: =Indicators_FO!AF$226 -> 0 | AF54: =Indicators_FO!AG$226 -> 0 | AG54: =Indicators_FO!AH$226 -> 0 | AH54: =Indicators_FO!AI$226 -> 0 | AI54: =Indicators_FO!AJ$226 -> 0 | AJ54: =Indicators_FO!AK$226 -> 0 | AK54: =Indicators_FO!AL$226 -> 0
E56: 2. | F56: Secondary indicators
G57: Net debt / RAV | AB57: =Indicators_FO!AC$235 -> 0 | AC57: =Indicators_FO!AD$235 -> 0 | AD57: =Indicators_FO!AE$235 -> 0 | AE57: =Indicators_FO!AF$235 -> 0 | AF57: =Indicators_FO!AG$235 -> 0 | AG57: =Indicators_FO!AH$235 -> 0 | AH57: =Indicators_FO!AI$235 -> 0 | AI57: =Indicators_FO!AJ$235 -> 0 | AJ57: =Indicators_FO!AK$235 -> 0 | AK57: =Indicators_FO!AL$235 -> 0
G58: FFO / Net debt | AB58: =Indicators_FO!AC$243 -> 1 | AC58: =Indicators_FO!AD$243 -> 1 | AD58: =Indicators_FO!AE$243 -> 1 | AE58: =Indicators_FO!AF$243 -> 1 | AF58: =Indicators_FO!AG$243 -> 1 | AG58: =Indicators_FO!AH$243 -> 1 | AH58: =Indicators_FO!AI$243 -> 1 | AI58: =Indicators_FO!AJ$243 -> 1 | AJ58: =Indicators_FO!AK$243 -> 1 | AK58: =Indicators_FO!AL$243 -> 1
G59: Internal financing ratio | AB59: =Indicators_FO!AC$252 -> 1 | AC59: =Indicators_FO!AD$252 -> 1 | AD59: =Indicators_FO!AE$252 -> 0 | AE59: =Indicators_FO!AF$252 -> 0 | AF59: =Indicators_FO!AG$252 -> 0 | AG59: =Indicators_FO!AH$252 -> 1 | AH59: =Indicators_FO!AI$252 -> 1 | AI59: =Indicators_FO!AJ$252 -> 1 | AJ59: =Indicators_FO!AK$252 -> 0 | AK59: =Indicators_FO!AL$252 -> 0

Sheet KeyAssumptionsPriceControl_FO
A1: 80 | B1: Key Assumptions Price Control
B2: =+Contents!H7 -> South Gippsland Water
B3: Go to Table of Contents
L4: FIRST REG PERIOD | P4: SECOND REG PERIOD | U4: THIRD REG PERIOD | X4: FOURTH REG PERIOD (A) | AA4: FOURTH REG PERIOD (B) | AE4: FIFTH REG PERIOD | AJ4: SIXTH REG PERIOD
F6: Straight Line | K6: 2006 | L6: 2007 | M6: 2008 | N6: 2009 | O6: 2010 | P6: 2011 | Q6: 2012 | R6: 2013 | S6: 2014 | T6: 2015 | U6: 2016 | V6: 2017 | W6: 2018 | X6: 2019 | Y6: 2020 | Z6: 2021 | AA6: 2022 | AB6: 2023 | AC6: 2024 | AD6: 2025 | AE6: 2026 | AF6: 2027 | AG6: 2028 | AH6: 2029 | AI6: 2030 | AJ6: 2031 | AK6: 2032 | AL6: 2033
F7: Declining Balance | I7: 2003-04 | J7: 2004-05 | K7: =+CONCATENATE(K6-1,"-",RIGHT(K6,2)) -> 2005-06 | L7: =+CONCATENATE(L6-1,"-",RIGHT(L6,2)) -> 2006-07 | M7: 2007-08 | N7: 2008-09 | O7: 2009-10 | P7: 2010-11 | Q7: 2011-12 | R7: 2012-13 | S7: 2013-14 | T7: 2014-15 | U7: 2015-16 | V7: 2016-17 | W7: 2017-18 | X7: 2018-19 | Y7: 2019-20 | Z7: 2020-21 | AA7: 2021-22 | AB7: 2022-23 | AC7: 2023-24 | AD7: 2024-25 | AE7: 2025-26 | AF7: 2026-27 | AG7: 2027-28 | AH7: =+CONCATENATE(AH6-1,"-",RIGHT(AH6,2)) -> 2028-29 | AI7: =+CONCATENATE(AI6-1,"-",RIGHT(AI6,2)) -> 2029-30 | AJ7: =+CONCATENATE(AJ6-1,"-",RIGHT(AJ6,2)) -> 2030-31 | AK7: =+CONCATENATE(AK6-1,"-",RIGHT(AK6,2)) -> 2031-32 | AL7: =+CONCATENATE(AL6-1,"-",RIGHT(AL6,2)) -> 2032-33
E11: Inflation assumptions
AB12: Estimate
F13: March quarter annual CPI | I13: 141.3 | J13: 144.1 | K13: 147.5 | L13: 151.9 | M13: 155.6 | N13: 162.2 | O13: 166.2 | P13: 171 | Q13: 176.7 | R13: 99.9 | S13: 102.4 | T13: 105.4 | U13: 106.8 | V13: 108.2 | W13: 110.5 | X13: 112.6 | Y13: 114.1 | Z13: 116.6 | AA13: 117.9 | AB13: =[2]KeyAssumptionsPriceControl_FO!$AB$13 -> 123.9
F14: Inflation | J14: =+J13/I13-1 -> 0.01981599434 | K14: 0.02359472588 | L14: 0.02983050847 | M14: 0.02435813035 | N14: 0.04241645244 | O14: 0.02466091245 | P14: 0.02888086643 | Q14: 0.03333333333 | R14: 0.01584606678 | S14: =+IF(S13=0,$Z$44,S13/R13-1) -> 0.02502502503 | T14: 0.029296875 | U14: 0.01328273245 | V14: 0.01310861423 | W14: 0.02125693161 | X14: 0.01900452489 | Y14: 0.01332149201 | Z14: 0.02191060473 | AA14: 0.01114922813 | AB14: 0.05089058524 | AC14: =+IF(AC13=0,$AC$44,AC13/AB13-1) -> 0.03 | AD14: 0.03 | AE14: 0.03 | AF14: 0.03 | AG14: 0.03 | AH14: 0.03 | AI14: 0.03 | AJ14: 0.03 | AK14: 0.03 | AL14: 0.03
F15: Inflation factor | I15: 0.7871866295 | J15: 0.8027855153 | K15: 0.8217270195 | L15: 0.8462395543 | M15: 0.8668523677 | N15: 0.9036211699 | O15: 0.9259052925 | P15: 0.9526462396 | Q15: 0.9844011142 | R15: =+R13/$AB$13 -> 0.8062953995 | S15: 0.8264729621 | T15: 0.8506860371 | U15: 0.8619854722 | V15: 0.8732849072 | W15: 0.8918482647 | X15: 0.9087974173 | Y15: 0.9209039548 | Z15: 0.9410815174 | AA15: 0.9515738499 | AB15: 1 | AC15: =+AB15*(1+AC14) -> 1.03 | AD15: 1.0609 | AE15: 1.092727 | AF15: 1.12550881 | AG15: 1.159274074 | AH15: 1.194052297 | AI15: 1.229873865 | AJ15: 1.266770081 | AK15: 1.304773184 | AL15: 1.343916379
I16: CPI index re-referenced in 2012-13, shaded values have been hardcoded to lock in RAB value.
E21: Cost of debt - 10 year trailing average (Nominal)
AA22: Estimate | AB22: Estimate | AC22: Estimate | AD22: Estimate | AE22: Estimate | AF22: Estimate | AG22: Estimate | AH22: Estimate | AI22: Estimate | AJ22: Estimate | AK22: Estimate | AL22: Estimate
E23: Cost of debt | L23: 0.06981666667 | M23: 0.07414 | N23: 0.0691525788 | O23: 0.07361870984 | P23: 0.07046784142 | Q23: 0.06308887941 | R23: 0.0526945046 | S23: 0.070525 | T23: 0.05360833333 | U23: 0.05270138413 | V23: 0.04908333333 | W23: 0.045283 | X23: 0.046133 | Y23: 0.03305833333 | Z23: 0.03045 | AA23: =[2]KeyAssumptionsPriceControl_FO!$AA$23 -> 0.037533 | AB23: =AA23 -> 0.037533 | AC23: 0.037533 | AD23: 0.037533 | AE23: 0.037533 | AF23: 0.037533 | AG23: 0.037533 | AH23: 0.037533 | AI23: 0.037533 | AJ23: 0.037533 | AK23: 0.037533 | AL23: 0.037533
E24: Re-financing weightings - average 10 yrs | L24: =1/10 -> 0.1 | M24: =1/10 -> 0.1 | N24: =1/10 -> 0.1 | O24: =1/10 -> 0.1 | P24: =1/10 -> 0.1 | Q24: 0.1 | R24: 0.1 | S24: 0.1 | T24: 0.1 | U24: 0.1 | V24: 0.1 | W24: 0.1 | X24: 0.1 | Y24: 0.1 | Z24: 0.1 | AA24: 0.1 | AB24: 0.1 | AC24: 0.1 | AD24: 0.1 | AE24: 0.1 | AF24: 0.1 | AG24: 0.1 | AH24: 0.1 | AI24: 0.1 | AJ24: 0.1 | AK24: 0.1 | AL24: 0.1
E26: Cost of debt - 10 year trailing average | V26: =IF(U23<>"",SUMPRODUCT(L23:U23,L24:U24),"") -> 0.06498138982 | W26: 0.06290805649 | X26: 0.06002235649 | Y26: 0.05772039861 | Z26: 0.05366436096 | AA26: 0.04966257681 | AB26: =IF(AA23<>"",SUMPRODUCT(R23:AA23,R24:AA24),"") -> 0.04710698887 | AC26: =IF(AB23<>"",SUMPRODUCT(S23:AB23,S24:AB24),"") -> 0.04559083841 | AD26: =IF(AC23<>"",SUMPRODUCT(T23:AC23,T24:AC24),"") -> 0.04229163841 | AE26: 0.04068410508 | AF26: 0.03916726667 | AG26: 0.03801223333 | AH26: 0.03723723333 | AI26: 0.03637723333 | AJ26: 0.0368247 | AK26: 0.037533 | AL26: 0.037533
E30: WACC assumptions (retained for historical purposes only) | Z30: Regulatory Rate of Return (RRR) - Nominal
K32: 1st period | M32: 2nd period | O32: 3rd period | Z32: Cost of Debt | AC32: =+AC26 -> 0.04559083841 | AD32: 0.04229163841 | AE32: 0.04068410508 | AF32: 0.03916726667 | AG32: 0.03801223333 | AH32: 0.03723723333 | AI32: 0.03637723333 | AJ32: 0.0368247 | AK32: 0.037533 | AL32: 0.037533
E33: Parameters
F34: Risk Free Rate (Real) | K34: =Determination_Lookup!W8 -> 0.0267 | M34: =Determination_Lookup!X8 -> 0.0323 | O34: =Determination_Lookup!Y8 -> 0.005959
F35: Debt Premium | K35: =Determination_Lookup!W9 -> 0.0116 | M35: =Determination_Lookup!X9 -> 0.0175 | O35: =Determination_Lookup!Y9 -> 0.0399
F36: Equity Premium | K36: =Determination_Lookup!W10 -> 0.06 | M36: =Determination_Lookup!X10 -> 0.06 | O36: =Determination_Lookup!Y10 -> 0.06 | Z36: Regulatory Rate of Return (RRR) - Real
F37: Equity Beta | K37: =Determination_Lookup!W11 -> 0.75 | M37: =Determination_Lookup!X11 -> 0.65 | O37: =Determination_Lookup!Y11 -> 0.65
F38: Gearing (Debt/Assets) | K38: =Determination_Lookup!W12 -> 0.6 | M38: =Determination_Lookup!X12 -> 0.6 | O38: =Determination_Lookup!Y12 -> 0.6 | Z38: Cost of Debt | AC38: =(1+AC32)/(1+AC44)-1 -> 0.01513673632 | AD38: =(1+AD32)/(1+AD44)-1 -> 0.01193362953 | AE38: 0.01037291755 | AF38: 0.0089002589 | AG38: 0.007778867314 | AH38: 0.007026440129 | AI38: 0.006191488673 | AJ38: 0.00662592233 | AK38: 0.007313592233 | AL38: 0.007313592233
F39: Forecast Inflation | K39: =Determination_Lookup!W13 -> 0.0255 | M39: =Determination_Lookup!X13 -> 0.029 | O39: =Determination_Lookup!Y13 -> 0.0275
F40: Franking credit value | K40: =Determination_Lookup!W14 -> 0.5 | M40: =Determination_Lookup!X14 -> 0.5 | O40: =Determination_Lookup!Y14 -> 0.5 | Z40: Return on Equity | AC40: =IF(AE64<>0,(AE64/100),IF(AE62<>0,(AE62/100),(AE60/100))) -> 0.041 | AD40: =+$AC$40 -> 0.041 | AE40: 0.041 | AF40: 0.041 | AG40: 0.041 | AH40: 0.041 | AI40: 0.041 | AJ40: 0.041 | AK40: 0.041 | AL40: 0.041
E42: 'Vanilla' After Tax WACC (Real) | K42: =ROUND(((K34+K36*K37)*(1-K38))+((K34+K35)*K38),3) -> 0.052 | M42: =ROUND(((M34+M36*M37)*(1-M38))+((M34+M35)*M38),3) -> 0.058 | O42: =ROUND(((O34+O36*O37)*(1-O38))+((O34+O35)*O38),3) -> 0.045 | Z42: RRR (real) | AC42: =ROUND((AC40*(1-AC43)+AC38*AC43),4) -> 0.0255 | AD42: =ROUND((AD40*(1-AD43)+AD38*AD43),4) -> 0.0236 | AE42: 0.0226 | AF42: 0.0217 | AG42: 0.0211 | AH42: 0.0206 | AI42: 0.0201 | AJ42: 0.0204 | AK42: 0.0208 | AL42: 0.0208
Z43: Gearing | AC43: 0.6 | AD43: =+AC43 -> 0.6 | AE43: 0.6 | AF43: 0.6 | AG43: 0.6 | AH43: 0.6 | AI43: 0.6 | AJ43: 0.6 | AK43: 0.6 | AL43: 0.6
Z44: Forecast Inflation | AC44: =[2]KeyAssumptionsPriceControl_FO!$AC$44 -> 0.03 | AD44: 0.03 | AE44: 0.03 | AF44: 0.03 | AG44: 0.03 | AH44: 0.03 | AI44: 0.03 | AJ44: 0.03 | AK44: 0.03 | AL44: 0.03
L45: Regulatory Rate of Return (RRR) [retained for historical purposes only]
E46: Form of price control selected
O47: 4th period (A) | Q47: 4th period (B)
E48: Price caps | I48: 1 | L48: Cost of Debt | O48: =Determination_Lookup!W25 -> 0.03618998679 | Q48: =Determination_Lookup!X25 -> 0.0360514857 | Z48: PREMO Assessment Matrix (linked to Regulatory Rate of Return calculation above)
L49: Return on Equity | O49: =Determination_Lookup!W26 -> 0.045 | Q49: =Determination_Lookup!X26 -> 0.045 | U49: PREMO Graded Scoring System (for reference only)
E50: Revenue cap / Hybrid Tariff Basket | L50: Gearing | O50: =Determination_Lookup!W27 -> 0.6 | Q50: =Determination_Lookup!X27 -> 0.6
L51: Forecast Inflation | O51: =Determination_Lookup!W28 -> 0.023 | Q51: =Determination_Lookup!X28 -> 0.017 | AB51: Water business self-assessment
L52: RRR (real) | O52: =Determination_Lookup!W29 -> 0.0397 | Q52: =Determination_Lookup!X29 -> 0.0396
AB53: Leading | AC53: Advanced | AD53: Standard | AE53: Basic
Z54: ESC assessment of submission | AA54: Leading | AB54: 4.9
U55: Risk | AA55: Advanced | AB55: 4.3 | AC55: 4.5
U56: Engagement | V56: [Select] | AA56: Standard | AB56: 3.7 | AC56: 3.9 | AD56: 4.1
U57: Management | V57: [Select] | AA57: Basic | AD57: 3.5 | AE57: 3.7
U58: Outcomes | V58: [Select]
U60: Total Score | Z60: Water business self-assessment (Maximum allowable ROE) | AD60: Standard | AE60: =+VLOOKUP(AD60,$AD$71:$AE$75,2,FALSE) -> 4.1
Z62: ROE Override (Must be less than Maximum allowable ROE) | AE62: =+IF(AD62<=AE60,AD62,"CHECK") -> 0
U64: Rating | Z64: ESC assessment of submission | AD64: Standard | AE64: =IFERROR(IF(AD64=AD60,AE60,VLOOKUP(AD60&AD64,AD78:AE82,2,FALSE)),0) -> 4.1
AD66: Difference | AE66: =IFERROR(IF(AE64=0,"",AE64-AE60),"") -> 0
U70: ESC USE ONLY | AD70: Business self assessment
AD71: [Select]
AD72: Leading | AE72: =+AB54 -> 4.9
AD73: Advanced | AE73: =+AC55 -> 4.5
AD74: Standard | AE74: =+AD56 -> 4.1
AD75: Basic | AE75: =+AE57 -> 3.7
AD77: downgrading
AD78: =AD53&AA57 -> StandardBasic | AE78: =+AD57 -> 3.5
AD79: =+AC53&AA56 -> AdvancedStandard | AE79: =+AC56 -> 3.9
AD80: =+AB53&AA55 -> LeadingAdvanced | AE80: =+AB55 -> 4.3
AD81: =+AB53&AA56 -> LeadingStandard | AE81: =+AB56 -> 3.7
AD82: =+AD60&"Basic" -> StandardBasic | AE82: CHECK

Sheet Expenditure_Detail
A1: 80 | B1: Expenditure - Detail
B2: =Model_Name -> South Gippsland Water
B3: Go to Table of Contents
L4: FIRST REG PERIOD | P4: SECOND REG PERIOD | U4: THIRD REG PERIOD | X4: FOURTH REG PERIOD (A) | AA4: FOURTH REG PERIOD (B) | AE4: FIFTH REG PERIOD | AJ4: SIXTH REG PERIOD
K5: 2006 | L5: 2007 | M5: 2008 | N5: 2009 | O5: 2010 | P5: 2011 | Q5: 2012 | R5: 2013 | S5: 2014 | T5: 2015 | U5: 2016 | V5: 2017 | W5: 2018 | X5: 2019 | Y5: 2020 | Z5: 2021 | AA5: 2022 | AB5: 2023 | AC5: 2024 | AD5: 2025 | AE5: 2026 | AF5: 2027 | AG5: 2028 | AH5: 2029 | AI5: 2030 | AJ5: 2031 | AK5: 2032 | AL5: 2033
B6: $m, 01/01/23 | K6: =+CONCATENATE(K5-1,"-",RIGHT(K5,2)) -> 2005-06 | L6: =+CONCATENATE(L5-1,"-",RIGHT(L5,2)) -> 2006-07 | M6: 2007-08 | N6: 2008-09 | O6: 2009-10 | P6: 2010-11 | Q6: 2011-12 | R6: 2012-13 | S6: 2013-14 | T6: 2014-15 | U6: 2015-16 | V6: 2016-17 | W6: 2017-18 | X6: 2018-19 | Y6: 2019-20 | Z6: 2020-21 | AA6: 2021-22 | AB6: 2022-23 | AC6: 2023-24 | AD6: 2024-25 | AE6: 2025-26 | AF6: 2026-27 | AG6: 2027-28 | AH6: =+CONCATENATE(AH5-1,"-",RIGHT(AH5,2)) -> 2028-29 | AI6: =+CONCATENATE(AI5-1,"-",RIGHT(AI5,2)) -> 2029-30 | AJ6: =+CONCATENATE(AJ5-1,"-",RIGHT(AJ5,2)) -> 2030-31 | AK6: =+CONCATENATE(AK5-1,"-",RIGHT(AK5,2)) -> 2031-32 | AL6: =+CONCATENATE(AL5-1,"-",RIGHT(AL5,2)) -> 2032-33
B8: This worksheet outlines the key cost drivers of operating expenditure - capitalised costs are excluded. This tab does not link to the Rev&RAV_FO worksheet
C11: Expenditure Summary
D13: Total Labour costs | W13: =W34 -> 10.46366335 | X13: 10.93533037 | Y13: 11.62010429 | Z13: 12.29436535 | AA13: 12.20566301 | AB13: 12.40754402 | AC13: 12.46232622 | AD13: 12.50720196 | AE13: 12.5467189 | AF13: 12.56441854 | AG13: 12.56468752 | AH13: =AH34 -> 12.55907347 | AI13: =AI34 -> 12.56463255 | AJ13: =AJ34 -> 12.57041711 | AK13: =AK34 -> 12.55301862 | AL13: =AL34 -> 12.53578871
D14: Total Energy costs | W14: =W92 -> 0.9079997484 | X14: 1.197831595 | Y14: 1.148834137 | Z14: 1.155247709 | AA14: 0.9 | AB14: 0.81 | AC14: 0.81 | AD14: 0.9498009558 | AE14: 1.012497655 | AF14: =AF92 -> 1.026947608 | AG14: 1.03148656 | AH14: =AH92 -> 1.045878291 | AI14: =AI92 -> 1.060795857 | AJ14: =AJ92 -> 1.060795857 | AK14: =AK92 -> 1.060795857 | AL14: =AL92 -> 1.060795857
D15: Total IT costs | W15: =W103 -> 1.966615209 | X15: 2.2112765 | Y15: 2.176122699 | Z15: 2.623499457 | AA15: 2.792629872 | AB15: 2.681478114 | AC15: 2.882662362 | AD15: 2.888404302 | AE15: 2.893460574 | AF15: 2.895725277 | AG15: 2.895759693 | AH15: =AH103 -> 2.895041365 | AI15: =AI103 -> 2.895752661 | AJ15: =AJ103 -> 2.896492807 | AK15: =AK103 -> 2.894266634 | AL15: =AL103 -> 2.892062033
D16: Total Chemical costs | W16: =W114 -> 1.267031674 | X16: 0.9253987567 | Y16: 0.9762147239 | Z16: 1.100861063 | AA16: 0.94 | AB16: 1.07 | AC16: 1.08 | AD16: 1.08 | AE16: 1.09 | AF16: 1.09 | AG16: 1.09 | AH16: =AH114 -> 1.09 | AI16: =AI114 -> 1.09 | AJ16: =AJ114 -> 1.09 | AK16: =AK114 -> 1.09 | AL16: =AL114 -> 1.09
C21: Labour assumptions
D23: Current FTEs (at 30 June) | W23: =[2]Expenditure_Detail!W23 -> 89.72479757 | X23: =[2]Expenditure_Detail!X23 -> 94.37771592 | Y23: =[2]Expenditure_Detail!Y23 -> 118.6 | Z23: =[2]Expenditure_Detail!Z23 -> 125.2 | AA23: =[2]Expenditure_Detail!AA23 -> 123.82
D24: Actual and forecast labour costs for current FTEs ($m) | W24: =[2]Expenditure_Detail!W24 -> 10.46366335 | X24: =[2]Expenditure_Detail!X24 -> 10.93533037 | Y24: =[2]Expenditure_Detail!Y24 -> 11.62010429 | Z24: =[2]Expenditure_Detail!Z24 -> 12.29436535 | AA24: =[2]Expenditure_Detail!AA24 -> 12.20566301 | AB24: =[2]Expenditure_Detail!AB24 -> 12.40754402 | AC24: =[2]Expenditure_Detail!AC24 -> 12.46232622 | AD24: =[2]Expenditure_Detail!AD24 -> 12.50720196 | AE24: =[2]Expenditure_Detail!AE24 -> 12.5467189 | AF24: =[2]Expenditure_Detail!AF24 -> 12.56441854 | AG24: =[2]Expenditure_Detail!AG24 -> 12.56468752 | AH24: =[2]Expenditure_Detail!AH24 -> 12.55907347 | AI24: =[2]Expenditure_Detail!AI24 -> 12.56463255 | AJ24: =[2]Expenditure_Detail!AJ24 -> 12.57041711 | AK24: =[2]Expenditure_Detail!AK24 -> 12.55301862 | AL24: =[2]Expenditure_Detail!AL24 -> 12.53578871
D25: Cost per FTE ($000) | W25: =+W24/W23*10^3 -> 116.6195258 | X25: =+X24/X23*10^3 -> 115.8677159 | Y25: =+Y24/Y23*10^3 -> 97.97727061 | Z25: =+Z24/Z23*10^3 -> 98.19780632 | AA25: =+AA24/AA23*10^3 -> 98.57586017 | AB25: =+AB24/$AA$23*10^3 -> 100.2062996 | AC25: 100.6487338 | AD25: 101.011161 | AE25: 101.3303094 | AF25: 101.4732559 | AG25: 101.4754282 | AH25: 101.4300878 | AI25: 101.4749843 | AJ25: 101.5217018 | AK25: 101.3811873 | AL25: 101.2420345
D26: Annual growth in labour costs for current FTEs | X26: =+X25/W25-1 -> -0.006446690315 | Y26: -0.1544040557 | Z26: 0.00225088646 | AA26: 0.003849921497 | AB26: 0.01653994675 | AC26: 0.004415232707 | AD26: 0.003600912211 | AE26: 0.003159535283 | AF26: 0.001410698368 | AG26: 2.14077818e-05 | AH26: =+AH25/AG25-1 -> -0.0004468115124 | AI26: =+AI25/AH25-1 -> 0.0004426349432 | AJ26: =+AJ25/AI25-1 -> 0.0004603842944 | AK26: =+AK25/AJ25-1 -> -0.001384082825 | AL26: =+AL25/AK25-1 -> -0.001372570884
D28: Change in FTEs in future periods (net no. annual change) | AB28: =[2]Expenditure_Detail!AB28 -> 0 | AC28: =[2]Expenditure_Detail!AC28 -> 0 | AD28: =[2]Expenditure_Detail!AD28 -> 0 | AE28: =[2]Expenditure_Detail!AE28 -> 0 | AF28: =[2]Expenditure_Detail!AF28 -> 0 | AG28: =[2]Expenditure_Detail!AG28 -> 0 | AH28: =[2]Expenditure_Detail!AH28 -> 0 | AI28: =[2]Expenditure_Detail!AI28 -> 0 | AJ28: =[2]Expenditure_Detail!AJ28 -> 0 | AK28: =[2]Expenditure_Detail!AK28 -> 0 | AL28: =[2]Expenditure_Detail!AL28 -> 0
D29: Increase or decrease in labour costs ($m) | AB29: =[2]Expenditure_Detail!AB29 -> 0 | AC29: =[2]Expenditure_Detail!AC29 -> 0 | AD29: =[2]Expenditure_Detail!AD29 -> 0 | AE29: =[2]Expenditure_Detail!AE29 -> 0 | AF29: =[2]Expenditure_Detail!AF29 -> 0 | AG29: =[2]Expenditure_Detail!AG29 -> 0 | AH29: =[2]Expenditure_Detail!AH29 -> 0 | AI29: =[2]Expenditure_Detail!AI29 -> 0 | AJ29: =[2]Expenditure_Detail!AJ29 -> 0 | AK29: =[2]Expenditure_Detail!AK29 -> 0 | AL29: =[2]Expenditure_Detail!AL29 -> 0
D33: Total FTEs | W33: =+W23 -> 89.72479757 | X33: 94.37771592 | Y33: 118.6 | Z33: 125.2 | AA33: 123.82 | AB33: =+$AA$23+SUM($AB28:AB28) -> 123.82 | AC33: =+$AA$23+SUM($AB28:AC28) -> 123.82 | AD33: =+$AA$23+SUM($AB28:AD28) -> 123.82 | AE33: =+$AA$23+SUM($AB28:AE28) -> 123.82 | AF33: =+$AA$23+SUM($AB28:AF28) -> 123.82 | AG33: =+$AA$23+SUM($AB28:AG28) -> 123.82 | AH33: =+$AA$23+SUM($AB28:AH28) -> 123.82 | AI33: =+$AA$23+SUM($AB28:AI28) -> 123.82 | AJ33: =+$AA$23+SUM($AB28:AJ28) -> 123.82 | AK33: =+$AA$23+SUM($AB28:AK28) -> 123.82 | AL33: =+$AA$23+SUM($AB28:AL28) -> 123.82
D34: Total labour costs ($m) | W34: 10.46366335 | X34: 10.93533037 | Y34: 11.62010429 | Z34: 12.29436535 | AA34: 12.20566301 | AB34: =+AB29+AB24 -> 12.40754402 | AC34: 12.46232622 | AD34: 12.50720196 | AE34: 12.5467189 | AF34: 12.56441854 | AG34: 12.56468752 | AH34: 12.55907347 | AI34: 12.56463255 | AJ34: 12.57041711 | AK34: 12.55301862 | AL34: 12.53578871
D35: Cost per FTE | W35: =+W34/W33 -> 0.1166195258 | X35: 0.1158677159 | Y35: 0.09797727061 | Z35: 0.09819780632 | AA35: 0.09857586017 | AB35: 0.1002062996 | AC35: 0.1006487338 | AD35: 0.101011161 | AE35: 0.1013303094 | AF35: 0.1014732559 | AG35: 0.1014754282 | AH35: =+AH34/AH33 -> 0.1014300878 | AI35: =+AI34/AI33 -> 0.1014749843 | AJ35: =+AJ34/AJ33 -> 0.1015217018 | AK35: =+AK34/AK33 -> 0.1013811873 | AL35: =+AL34/AL33 -> 0.1012420345
D36: Annual growth in total labour costs | X36: =+X34/W34-1 -> 0.04507666282 | Y36: 0.06262032313 | Z36: 0.05802538773 | AA36: -0.007214877957 | AB36: 0.01653994675 | AC36: 0.004415232707 | AD36: 0.003600912211 | AE36: 0.003159535283 | AF36: 0.001410698368 | AG36: 2.14077818e-05 | AH36: =+AH34/AG34-1 -> -0.0004468115124 | AI36: 0.0004426349432 | AJ36: 0.0004603842944 | AK36: -0.001384082825 | AL36: -0.001372570884
D37: Annual growth in total labour costs per FTE | X37: =+X35/W35-1 -> -0.006446690315 | Y37: -0.1544040557 | Z37: 0.00225088646 | AA37: 0.003849921497 | AB37: 0.01653994675 | AC37: 0.004415232707 | AD37: 0.003600912211 | AE37: 0.003159535283 | AF37: 0.001410698368 | AG37: 2.14077818e-05 | AH37: -0.0004468115124 | AI37: 0.0004426349432 | AJ37: 0.0004603842944 | AK37: -0.001384082825 | AL37: -0.001372570884
C42: Energy assumptions
D44: Electricity - traditional sources
D46: BASE LOAD
D48: Large sites
D49: Total kWh | W49: =[2]Expenditure_Detail!W49 -> 3068501 | X49: =[2]Expenditure_Detail!X49 -> 3370332.919 | Y49: =[2]Expenditure_Detail!Y49 -> 3531109.47 | Z49: =[2]Expenditure_Detail!Z49 -> 3071244.831 | AA49: =[2]Expenditure_Detail!AA49 -> 3131658.687 | AB49: =[2]Expenditure_Detail!AB49 -> 3192040.808 | AC49: =[2]Expenditure_Detail!AC49 -> 3253587.168 | AD49: =[2]Expenditure_Detail!AD49 -> 3316320.216 | AE49: =[2]Expenditure_Detail!AE49 -> 3380262.832 | AF49: =[2]Expenditure_Detail!AF49 -> 3435481.702 | AG49: =[2]Expenditure_Detail!AG49 -> 3491602.609 | AH49: =[2]Expenditure_Detail!AH49 -> 3548640.29 | AI49: =[2]Expenditure_Detail!AI49 -> 3606609.719 | AJ49: =[2]Expenditure_Detail!AJ49 -> 3665526.118 | AK49: =[2]Expenditure_Detail!AK49 -> 3717585.848 | AL49: =[2]Expenditure_Detail!AL49 -> 3770384.957
D50: Total electricity costs ($m) | W50: =[2]Expenditure_Detail!W50 -> 0.5278263339 | X50: =[2]Expenditure_Detail!X50 -> 0.7814573265 | Y50: =[2]Expenditure_Detail!Y50 -> 0.7379336753 | Z50: =[2]Expenditure_Detail!Z50 -> 0.7352477094 | AA50: =[2]Expenditure_Detail!AA50 -> 0.58 | AB50: =[2]Expenditure_Detail!AB50 -> 0.5 | AC50: =[2]Expenditure_Detail!AC50 -> 0.51 | AD50: =[2]Expenditure_Detail!AD50 -> 0.51 | AE50: =[2]Expenditure_Detail!AE50 -> 0.51 | AF50: =[2]Expenditure_Detail!AF50 -> 0.52 | AG50: =[2]Expenditure_Detail!AG50 -> 0.52 | AH50: =[2]Expenditure_Detail!AH50 -> 0.52 | AI50: =[2]Expenditure_Detail!AI50 -> 0.53 | AJ50: =[2]Expenditure_Detail!AJ50 -> 0.53 | AK50: =[2]Expenditure_Detail!AK50 -> 0.54 | AL50: =[2]Expenditure_Detail!AL50 -> 0.54
D51: Average c/kWh | W51: =+W50/W49*100*10^6 -> 17.2014392 | X51: 23.18635415 | Y51: 20.89806849 | Z51: 23.93972965 | AA51: 18.52053681 | AB51: 15.66396015 | AC51: =+AC50/AC49*100*10^6 -> 15.6750065 | AD51: 15.37849082 | AE51: 15.08758417 | AF51: 15.13615979 | AG51: 14.89287465 | AH51: 14.65349986 | AI51: 14.69524127 | AJ51: 14.45904307 | AK51: 14.52555562 | AL51: 14.32214498
D52: % increase p.a. | X52: =+X51/W51-1 -> 0.3479310581 | Y52: =+Y51/X51-1 -> -0.09869105101 | Z52: =+Z51/Y51-1 -> 0.145547478 | AA52: =+AA51/Z51-1 -> -0.2263681719 | AB52: =+AB51/AA51-1 -> -0.1542383299 | AC52: =+AC51/AB51-1 -> 0.0007052080385 | AD52: -0.01891646271 | AE52: -0.01891646271 | AF52: 0.003219575665 | AG52: -0.01607310848 | AH52: -0.01607310848 | AI52: 0.002848562508 | AJ52: -0.01607310848 | AK52: 0.004600066019 | AL52: -0.01400363891
D54: Medium sites
D55: Total kWh | W55: =[2]Expenditure_Detail!W55 -> 0 | X55: =[2]Expenditure_Detail!X55 -> 0 | Y55: =[2]Expenditure_Detail!Y55 -> 0 | Z55: =[2]Expenditure_Detail!Z55 -> 0 | AA55: =[2]Expenditure_Detail!AA55 -> 0 | AB55: =[2]Expenditure_Detail!AB55 -> 0 | AC55: =[2]Expenditure_Detail!AC55 -> 0 | AD55: =[2]Expenditure_Detail!AD55 -> 0 | AE55: =[2]Expenditure_Detail!AE55 -> 0 | AF55: =[2]Expenditure_Detail!AF55 -> 0 | AG55: =[2]Expenditure_Detail!AG55 -> 0 | AH55: =[2]Expenditure_Detail!AH55 -> 0 | AI55: =[2]Expenditure_Detail!AI55 -> 0 | AJ55: =[2]Expenditure_Detail!AJ55 -> 0 | AK55: =[2]Expenditure_Detail!AK55 -> 0 | AL55: =[2]Expenditure_Detail!AL55 -> 0
D56: Total electricity costs ($m) | W56: =[2]Expenditure_Detail!W56 -> 0 | X56: =[2]Expenditure_Detail!X56 -> 0 | Y56: =[2]Expenditure_Detail!Y56 -> 0 | Z56: =[2]Expenditure_Detail!Z56 -> 0 | AA56: =[2]Expenditure_Detail!AA56 -> 0 | AB56: =[2]Expenditure_Detail!AB56 -> 0 | AC56: =[2]Expenditure_Detail!AC56 -> 0 | AD56: =[2]Expenditure_Detail!AD56 -> 0 | AE56: =[2]Expenditure_Detail!AE56 -> 0 | AF56: =[2]Expenditure_Detail!AF56 -> 0 | AG56: =[2]Expenditure_Detail!AG56 -> 0 | AH56: =[2]Expenditure_Detail!AH56 -> 0 | AI56: =[2]Expenditure_Detail!AI56 -> 0 | AJ56: =[2]Expenditure_Detail!AJ56 -> 0 | AK56: =[2]Expenditure_Detail!AK56 -> 0 | AL56: =[2]Expenditure_Detail!AL56 -> 0
D57: Average c/kWh | W57: =+W56/W55*100*10^6 ->  | AC57: =+AC56/AC55*100*10^6 -> 
D58: % increase p.a. | X58: =+X57/W57-1 ->  | Y58: =+Y57/X57-1 ->  | Z58: =+Z57/Y57-1 ->  | AA58: =+AA57/Z57-1 ->  | AB58: =+AB57/AA57-1 ->  | AC58: =+AC57/AB57-1 -> 
D60: Small sites
D61: Total kWh | W61: =[2]Expenditure_Detail!W61 -> 1626111 | X61: =[2]Expenditure_Detail!X61 -> 1490775.05 | Y61: =[2]Expenditure_Detail!Y61 -> 1510469.661 | Z61: =[2]Expenditure_Detail!Z61 -> 1465878.845 | AA61: =[2]Expenditure_Detail!AA61 -> 1580910.206 | AB61: =[2]Expenditure_Detail!AB61 -> 1611392.044 | AC61: =[2]Expenditure_Detail!AC61 -> 1642461.608 | AD61: =[2]Expenditure_Detail!AD61 -> 1674130.23 | AE61: =[2]Expenditure_Detail!AE61 -> 1706409.461 | AF61: =[2]Expenditure_Detail!AF61 -> 1734284.809 | AG61: =[2]Expenditure_Detail!AG61 -> 1762615.519 | AH61: =[2]Expenditure_Detail!AH61 -> 1791409.031 | AI61: =[2]Expenditure_Detail!AI61 -> 1820672.904 | AJ61: =[2]Expenditure_Detail!AJ61 -> 1850414.822 | AK61: =[2]Expenditure_Detail!AK61 -> 1876695.386 | AL61: =[2]Expenditure_Detail!AL61 -> 1903349.201
D62: Total electricity costs ($m) | W62: =[2]Expenditure_Detail!W62 -> 0.3801734145 | X62: =[2]Expenditure_Detail!X62 -> 0.4163742687 | Y62: =[2]Expenditure_Detail!Y62 -> 0.4109004615 | Z62: =[2]Expenditure_Detail!Z62 -> 0.42 | AA62: =[2]Expenditure_Detail!AA62 -> 0.32 | AB62: =[2]Expenditure_Detail!AB62 -> 0.31 | AC62: =[2]Expenditure_Detail!AC62 -> 0.3 | AD62: =[2]Expenditure_Detail!AD62 -> 0.29 | AE62: =[2]Expenditure_Detail!AE62 -> 0.28 | AF62: =[2]Expenditure_Detail!AF62 -> 0.28 | AG62: =[2]Expenditure_Detail!AG62 -> 0.28 | AH62: =[2]Expenditure_Detail!AH62 -> 0.28 | AI62: =[2]Expenditure_Detail!AI62 -> 0.28 | AJ62: =[2]Expenditure_Detail!AJ62 -> 0.28 | AK62: =[2]Expenditure_Detail!AK62 -> 0.27 | AL62: =[2]Expenditure_Detail!AL62 -> 0.27
D63: Average c/kWh | W63: =+W62/W61*100*10^6 -> 23.3793028 | X63: 27.93005348 | Y63: 27.20348989 | Z63: 28.65175396 | AA63: 20.24150383 | AB63: 19.23802474 | AC63: =+AC62/AC61*100*10^6 -> 18.26526712 | AD63: 17.32242778 | AE63: 16.4087229 | AF63: 16.14498372 | AG63: 15.88548365 | AH63: 15.63015454 | AI63: 15.37892937 | AJ63: 15.13174217 | AK63: 14.38699119 | AL63: 14.18552097
D64: % increase p.a. | X64: =+X63/W63-1 -> 0.1946486908 | Y64: =+Y63/X63-1 -> -0.02601368418 | Z64: =+Z63/Y63-1 -> 0.05323817194 | AA64: =+AA63/Z63-1 -> -0.2935335177 | AB64: =+AB63/AA63-1 -> -0.04957532325 | AC64: =+AC63/AB63-1 -> -0.05056431875 | AD64: -0.05161924728 | AE64: -0.05274692951 | AF64: -0.01607310848 | AG64: -0.01607310848 | AH64: -0.01607310848 | AI64: -0.01607310848 | AJ64: -0.01607310848 | AK64: -0.04921779466 | AL64: -0.01400363891
D67: NEW PROJECTS
D69: Large sites
D70: Total kWh | W70: =[2]Expenditure_Detail!W70 -> 0 | X70: =[2]Expenditure_Detail!X70 -> 0 | Y70: =[2]Expenditure_Detail!Y70 -> 0 | Z70: =[2]Expenditure_Detail!Z70 -> 0 | AA70: =[2]Expenditure_Detail!AA70 -> 0 | AB70: =[2]Expenditure_Detail!AB70 -> 0 | AC70: =[2]Expenditure_Detail!AC70 -> 0 | AD70: =[2]Expenditure_Detail!AD70 -> 0 | AE70: =[2]Expenditure_Detail!AE70 -> 0 | AF70: =[2]Expenditure_Detail!AF70 -> 0 | AG70: =[2]Expenditure_Detail!AG70 -> 0 | AH70: =[2]Expenditure_Detail!AH70 -> 0 | AI70: =[2]Expenditure_Detail!AI70 -> 0 | AJ70: =[2]Expenditure_Detail!AJ70 -> 0 | AK70: =[2]Expenditure_Detail!AK70 -> 0 | AL70: =[2]Expenditure_Detail!AL70 -> 0
D71: Total electricity costs ($m) | W71: =[2]Expenditure_Detail!W71 -> 0 | X71: =[2]Expenditure_Detail!X71 -> 0 | Y71: =[2]Expenditure_Detail!Y71 -> 0 | Z71: =[2]Expenditure_Detail!Z71 -> 0 | AA71: =[2]Expenditure_Detail!AA71 -> 0 | AB71: =[2]Expenditure_Detail!AB71 -> 0 | AC71: =[2]Expenditure_Detail!AC71 -> 0 | AD71: =[2]Expenditure_Detail!AD71 -> 0 | AE71: =[2]Expenditure_Detail!AE71 -> 0 | AF71: =[2]Expenditure_Detail!AF71 -> 0 | AG71: =[2]Expenditure_Detail!AG71 -> 0 | AH71: =[2]Expenditure_Detail!AH71 -> 0 | AI71: =[2]Expenditure_Detail!AI71 -> 0 | AJ71: =[2]Expenditure_Detail!AJ71 -> 0 | AK71: =[2]Expenditure_Detail!AK71 -> 0 | AL71: =[2]Expenditure_Detail!AL71 -> 0
D72: Average c/kWh | W72: =+W71/W70*100*10^6 ->  | AC72: =+AC71/AC70*100*10^6 -> 
D73: % increase p.a. | X73: =+X72/W72-1 ->  | Y73: =+Y72/X72-1 ->  | Z73: =+Z72/Y72-1 ->  | AA73: =+AA72/Z72-1 ->  | AB73: =+AB72/AA72-1 ->  | AC73: =+AC72/AB72-1 -> 
D75: Medium sites
D76: Total kWh | W76: =[2]Expenditure_Detail!W76 -> 0 | X76: =[2]Expenditure_Detail!X76 -> 0 | Y76: =[2]Expenditure_Detail!Y76 -> 0 | Z76: =[2]Expenditure_Detail!Z76 -> 0 | AA76: =[2]Expenditure_Detail!AA76 -> 0 | AB76: =[2]Expenditure_Detail!AB76 -> 0 | AC76: =[2]Expenditure_Detail!AC76 -> 0 | AD76: =[2]Expenditure_Detail!AD76 -> 0 | AE76: =[2]Expenditure_Detail!AE76 -> 0 | AF76: =[2]Expenditure_Detail!AF76 -> 0 | AG76: =[2]Expenditure_Detail!AG76 -> 0 | AH76: =[2]Expenditure_Detail!AH76 -> 0 | AI76: =[2]Expenditure_Detail!AI76 -> 0 | AJ76: =[2]Expenditure_Detail!AJ76 -> 0 | AK76: =[2]Expenditure_Detail!AK76 -> 0 | AL76: =[2]Expenditure_Detail!AL76 -> 0
D77: Total electricity costs ($m) | W77: =[2]Expenditure_Detail!W77 -> 0 | X77: =[2]Expenditure_Detail!X77 -> 0 | Y77: =[2]Expenditure_Detail!Y77 -> 0 | Z77: =[2]Expenditure_Detail!Z77 -> 0 | AA77: =[2]Expenditure_Detail!AA77 -> 0 | AB77: =[2]Expenditure_Detail!AB77 -> 0 | AC77: =[2]Expenditure_Detail!AC77 -> 0 | AD77: =[2]Expenditure_Detail!AD77 -> 0 | AE77: =[2]Expenditure_Detail!AE77 -> 0 | AF77: =[2]Expenditure_Detail!AF77 -> 0 | AG77: =[2]Expenditure_Detail!AG77 -> 0 | AH77: =[2]Expenditure_Detail!AH77 -> 0 | AI77: =[2]Expenditure_Detail!AI77 -> 0 | AJ77: =[2]Expenditure_Detail!AJ77 -> 0 | AK77: =[2]Expenditure_Detail!AK77 -> 0 | AL77: =[2]Expenditure_Detail!AL77 -> 0
D78: Average c/kWh | W78: =+W77/W76*100*10^6 ->  | AC78: =+AC77/AC76*100*10^6 -> 
D79: % increase p.a. | X79: =+X78/W78-1 ->  | Y79: =+Y78/X78-1 ->  | Z79: =+Z78/Y78-1 ->  | AA79: =+AA78/Z78-1 ->  | AB79: =+AB78/AA78-1 ->  | AC79: =+AC78/AB78-1 -> 
D81: Small sites
D82: Total kWh | W82: =[2]Expenditure_Detail!W82 -> 0 | X82: =[2]Expenditure_Detail!X82 -> 0 | Y82: =[2]Expenditure_Detail!Y82 -> 0 | Z82: =[2]Expenditure_Detail!Z82 -> 0 | AA82: =[2]Expenditure_Detail!AA82 -> 0 | AB82: =[2]Expenditure_Detail!AB82 -> 0 | AC82: =[2]Expenditure_Detail!AC82 -> 0 | AD82: =[2]Expenditure_Detail!AD82 -> 0 | AE82: =[2]Expenditure_Detail!AE82 -> 0 | AF82: =[2]Expenditure_Detail!AF82 -> 0 | AG82: =[2]Expenditure_Detail!AG82 -> 0 | AH82: =[2]Expenditure_Detail!AH82 -> 0 | AI82: =[2]Expenditure_Detail!AI82 -> 0 | AJ82: =[2]Expenditure_Detail!AJ82 -> 0 | AK82: =[2]Expenditure_Detail!AK82 -> 0 | AL82: =[2]Expenditure_Detail!AL82 -> 0
D83: Total electricity costs ($m) | W83: =[2]Expenditure_Detail!W83 -> 0 | X83: =[2]Expenditure_Detail!X83 -> 0 | Y83: =[2]Expenditure_Detail!Y83 -> 0 | Z83: =[2]Expenditure_Detail!Z83 -> 0 | AA83: =[2]Expenditure_Detail!AA83 -> 0 | AB83: =[2]Expenditure_Detail!AB83 -> 0 | AC83: =[2]Expenditure_Detail!AC83 -> 0 | AD83: =[2]Expenditure_Detail!AD83 -> 0 | AE83: =[2]Expenditure_Detail!AE83 -> 0 | AF83: =[2]Expenditure_Detail!AF83 -> 0 | AG83: =[2]Expenditure_Detail!AG83 -> 0 | AH83: =[2]Expenditure_Detail!AH83 -> 0 | AI83: =[2]Expenditure_Detail!AI83 -> 0 | AJ83: =[2]Expenditure_Detail!AJ83 -> 0 | AK83: =[2]Expenditure_Detail!AK83 -> 0 | AL83: =[2]Expenditure_Detail!AL83 -> 0
D84: Average c/kWh | W84: =+W83/W82*100*10^6 ->  | X84: =+X83/X82*100*10^6 ->  | AH84: =+AH83/AH82*100*10^6 ->  | AI84: =+AI83/AI82*100*10^6 ->  | AJ84: =+AJ83/AJ82*100*10^6 ->  | AK84: =+AK83/AK82*100*10^6 ->  | AL84: =+AL83/AL82*100*10^6 -> 
D85: % increase p.a. | X85: =+X84/W84-1 ->  | Y85: =+Y84/X84-1 ->  | Z85: =+Z84/Y84-1 ->  | AA85: =+AA84/Z84-1 ->  | AB85: =+AB84/AA84-1 ->  | AC85: =+AC84/AB84-1 -> 
D88: Greenhouse Gas Offsets | W88: =[2]Expenditure_Detail!W88 -> 0 | X88: =[2]Expenditure_Detail!X88 -> 0 | Y88: =[2]Expenditure_Detail!Y88 -> 0 | Z88: =[2]Expenditure_Detail!Z88 -> 0 | AA88: =[2]Expenditure_Detail!AA88 -> 0 | AB88: =[2]Expenditure_Detail!AB88 -> 0 | AC88: =[2]Expenditure_Detail!AC88 -> 0 | AD88: =[2]Expenditure_Detail!AD88 -> 0.1498009558 | AE88: =[2]Expenditure_Detail!AE88 -> 0.222497655 | AF88: =[2]Expenditure_Detail!AF88 -> 0.2269476081 | AG88: =[2]Expenditure_Detail!AG88 -> 0.2314865602 | AH88: =[2]Expenditure_Detail!AH88 -> 0.2458782914 | AI88: =[2]Expenditure_Detail!AI88 -> 0.2507958572 | AJ88: =[2]Expenditure_Detail!AJ88 -> 0.2507958572 | AK88: =[2]Expenditure_Detail!AK88 -> 0.2507958572 | AL88: =[2]Expenditure_Detail!AL88 -> 0.2507958572
D89: % increase p.a. | X89: =X88/W88-1 ->  | AE89: 0.4852886199 | AF89: 0.02 | AG89: 0.02 | AH89: =AH88/AG88-1 -> 0.06217091476 | AI89: =AI88/AH88-1 -> 0.02 | AJ89: =AJ88/AI88-1 -> 0 | AK89: =AK88/AJ88-1 -> 0 | AL89: =AL88/AK88-1 -> 0
D92: TOTAL ENERGY COSTS | W92: =+SUM(W50,W56,W62,W71,W77,W83,W88) -> 0.9079997484 | X92: 1.197831595 | Y92: 1.148834137 | Z92: 1.155247709 | AA92: 0.9 | AB92: 0.81 | AC92: 0.81 | AD92: 0.9498009558 | AE92: 1.012497655 | AF92: 1.026947608 | AG92: =+SUM(AG50,AG56,AG62,AG71,AG77,AG83,AG88) -> 1.03148656 | AH92: 1.045878291 | AI92: 1.060795857 | AJ92: 1.060795857 | AK92: 1.060795857 | AL92: 1.060795857
D93: % increase p.a. | W93: =W92/V92-1 ->  | X93: 0.3191981575 | Y93: -0.04090513102 | Z93: 0.005582679338 | AA93: -0.2209463021 | AB93: -0.1 | AC93: 0 | AD93: 0.1725937726 | AE93: 0.06601035589 | AF93: 0.01427159167 | AG93: 0.004419847834 | AH93: =AH92/AG92-1 -> 0.01395241757 | AI93: =AI92/AH92-1 -> 0.01426319482 | AJ93: =AJ92/AI92-1 -> 0 | AK93: =AK92/AJ92-1 -> 0 | AL93: =AL92/AK92-1 -> 0
C98: IT cost assumptions
D100: Water related IT costs | W100: =[2]Expenditure_Detail!W100 -> 0 | X100: =[2]Expenditure_Detail!X100 -> 0 | Y100: =[2]Expenditure_Detail!Y100 -> 0 | Z100: =[2]Expenditure_Detail!Z100 -> 0 | AA100: =[2]Expenditure_Detail!AA100 -> 0 | AB100: =[2]Expenditure_Detail!AB100 -> 0 | AC100: =[2]Expenditure_Detail!AC100 -> 0 | AD100: =[2]Expenditure_Detail!AD100 -> 0 | AE100: =[2]Expenditure_Detail!AE100 -> 0 | AF100: =[2]Expenditure_Detail!AF100 -> 0 | AG100: =[2]Expenditure_Detail!AG100 -> 0 | AH100: =[2]Expenditure_Detail!AH100 -> 0 | AI100: =[2]Expenditure_Detail!AI100 -> 0 | AJ100: =[2]Expenditure_Detail!AJ100 -> 0 | AK100: =[2]Expenditure_Detail!AK100 -> 0 | AL100: =[2]Expenditure_Detail!AL100 -> 0
D101: Sewerage and trade waste related IT costs | W101: =[2]Expenditure_Detail!W101 -> 0 | X101: =[2]Expenditure_Detail!X101 -> 0 | Y101: =[2]Expenditure_Detail!Y101 -> 0 | Z101: =[2]Expenditure_Detail!Z101 -> 0 | AA101: =[2]Expenditure_Detail!AA101 -> 0 | AB101: =[2]Expenditure_Detail!AB101 -> 0 | AC101: =[2]Expenditure_Detail!AC101 -> 0 | AD101: =[2]Expenditure_Detail!AD101 -> 0 | AE101: =[2]Expenditure_Detail!AE101 -> 0 | AF101: =[2]Expenditure_Detail!AF101 -> 0 | AG101: =[2]Expenditure_Detail!AG101 -> 0 | AH101: =[2]Expenditure_Detail!AH101 -> 0 | AI101: =[2]Expenditure_Detail!AI101 -> 0 | AJ101: =[2]Expenditure_Detail!AJ101 -> 0 | AK101: =[2]Expenditure_Detail!AK101 -> 0 | AL101: =[2]Expenditure_Detail!AL101 -> 0
D102: Other IT costs | W102: =[2]Expenditure_Detail!W102 -> 1.966615209 | X102: =[2]Expenditure_Detail!X102 -> 2.2112765 | Y102: =[2]Expenditure_Detail!Y102 -> 2.176122699 | Z102: =[2]Expenditure_Detail!Z102 -> 2.623499457 | AA102: =[2]Expenditure_Detail!AA102 -> 2.792629872 | AB102: =[2]Expenditure_Detail!AB102 -> 2.681478114 | AC102: =[2]Expenditure_Detail!AC102 -> 2.882662362 | AD102: =[2]Expenditure_Detail!AD102 -> 2.888404302 | AE102: =[2]Expenditure_Detail!AE102 -> 2.893460574 | AF102: =[2]Expenditure_Detail!AF102 -> 2.895725277 | AG102: =[2]Expenditure_Detail!AG102 -> 2.895759693 | AH102: =[2]Expenditure_Detail!AH102 -> 2.895041365 | AI102: =[2]Expenditure_Detail!AI102 -> 2.895752661 | AJ102: =[2]Expenditure_Detail!AJ102 -> 2.896492807 | AK102: =[2]Expenditure_Detail!AK102 -> 2.894266634 | AL102: =[2]Expenditure_Detail!AL102 -> 2.892062033
D103: Total IT costs | W103: =SUM(W100:W102) -> 1.966615209 | X103: 2.2112765 | Y103: 2.176122699 | Z103: 2.623499457 | AA103: 2.792629872 | AB103: 2.681478114 | AC103: =SUM(AC100:AC102) -> 2.882662362 | AD103: 2.888404302 | AE103: 2.893460574 | AF103: 2.895725277 | AG103: 2.895759693 | AH103: 2.895041365 | AI103: 2.895752661 | AJ103: 2.896492807 | AK103: 2.894266634 | AL103: 2.892062033
D104: % increase p.a. | X104: =X103/W103-1 -> 0.1244073013 | Y104: -0.01589751478 | Z104: 0.2055843441 | AA104: 0.06446748625 | AB104: -0.03980182257 | AC104: 0.07502736897 | AD104: 0.00199188794 | AE104: 0.001750541536 | AF104: 0.0007826972252 | AG104: 1.188512458e-05 | AH104: =AH103/AG103-1 -> -0.0002480621816 | AI104: =AI103/AH103-1 -> 0.0002456945677 | AJ104: =AJ103/AI103-1 -> 0.0002555970629 | AK104: =AK103/AJ103-1 -> -0.0007685751615 | AL104: =AL103/AK103-1 -> -0.000761713141
C109: Chemical cost assumptions
D111: Water related chemical costs | W111: =[2]Expenditure_Detail!W111 -> 0 | X111: =[2]Expenditure_Detail!X111 -> 0 | Y111: =[2]Expenditure_Detail!Y111 -> 0 | Z111: =[2]Expenditure_Detail!Z111 -> 0 | AA111: =[2]Expenditure_Detail!AA111 -> 0 | AB111: =[2]Expenditure_Detail!AB111 -> 0 | AC111: =[2]Expenditure_Detail!AC111 -> 0 | AD111: =[2]Expenditure_Detail!AD111 -> 0 | AE111: =[2]Expenditure_Detail!AE111 -> 0 | AF111: =[2]Expenditure_Detail!AF111 -> 0 | AG111: =[2]Expenditure_Detail!AG111 -> 0 | AH111: =[2]Expenditure_Detail!AH111 -> 0 | AI111: =[2]Expenditure_Detail!AI111 -> 0 | AJ111: =[2]Expenditure_Detail!AJ111 -> 0 | AK111: =[2]Expenditure_Detail!AK111 -> 0 | AL111: =[2]Expenditure_Detail!AL111 -> 0
D112: Sewerage and trade waste related chemical costs | W112: =[2]Expenditure_Detail!W112 -> 0 | X112: =[2]Expenditure_Detail!X112 -> 0 | Y112: =[2]Expenditure_Detail!Y112 -> 0 | Z112: =[2]Expenditure_Detail!Z112 -> 0 | AA112: =[2]Expenditure_Detail!AA112 -> 0 | AB112: =[2]Expenditure_Detail!AB112 -> 0 | AC112: =[2]Expenditure_Detail!AC112 -> 0 | AD112: =[2]Expenditure_Detail!AD112 -> 0 | AE112: =[2]Expenditure_Detail!AE112 -> 0 | AF112: =[2]Expenditure_Detail!AF112 -> 0 | AG112: =[2]Expenditure_Detail!AG112 -> 0 | AH112: =[2]Expenditure_Detail!AH112 -> 0 | AI112: =[2]Expenditure_Detail!AI112 -> 0 | AJ112: =[2]Expenditure_Detail!AJ112 -> 0 | AK112: =[2]Expenditure_Detail!AK112 -> 0 | AL112: =[2]Expenditure_Detail!AL112 -> 0
D113: Other chemical costs | W113: =[2]Expenditure_Detail!W113 -> 1.267031674 | X113: =[2]Expenditure_Detail!X113 -> 0.9253987567 | Y113: =[2]Expenditure_Detail!Y113 -> 0.9762147239 | Z113: =[2]Expenditure_Detail!Z113 -> 1.100861063 | AA113: =[2]Expenditure_Detail!AA113 -> 0.94 | AB113: =[2]Expenditure_Detail!AB113 -> 1.07 | AC113: =[2]Expenditure_Detail!AC113 -> 1.08 | AD113: =[2]Expenditure_Detail!AD113 -> 1.08 | AE113: =[2]Expenditure_Detail!AE113 -> 1.09 | AF113: =[2]Expenditure_Detail!AF113 -> 1.09 | AG113: =[2]Expenditure_Detail!AG113 -> 1.09 | AH113: =[2]Expenditure_Detail!AH113 -> 1.09 | AI113: =[2]Expenditure_Detail!AI113 -> 1.09 | AJ113: =[2]Expenditure_Detail!AJ113 -> 1.09 | AK113: =[2]Expenditure_Detail!AK113 -> 1.09 | AL113: =[2]Expenditure_Detail!AL113 -> 1.09
D114: Total chemical costs | W114: =SUM(W111:W113) -> 1.267031674 | X114: 0.9253987567 | Y114: 0.9762147239 | Z114: 1.100861063 | AA114: 0.94 | AB114: 1.07 | AC114: =SUM(AC111:AC113) -> 1.08 | AD114: 1.08 | AE114: 1.09 | AF114: 1.09 | AG114: 1.09 | AH114: 1.09 | AI114: 1.09 | AJ114: 1.09 | AK114: 1.09 | AL114: 1.09
D115: % increase p.a. | X115: =X114/W114-1 -> -0.2696324997 | Y115: 0.05491250869 | Z115: 0.1276833226 | AA115: -0.1461229476 | AB115: 0.1382978723 | AC115: 0.009345794393 | AD115: 0 | AE115: 0.009259259259 | AF115: 0 | AG115: 0 | AH115: =AH114/AG114-1 -> 0 | AI115: =AI114/AH114-1 -> 0 | AJ115: =AJ114/AI114-1 -> 0 | AK115: =AK114/AJ114-1 -> 0 | AL115: =AL114/AK114-1 -> 0

Sheet Opex_FO
A1: 80 | B1: Operating Expenditure - Forecast
B2: =Model_Name -> South Gippsland Water
B3: Go to Table of Contents
L4: FIRST REG PERIOD | P4: SECOND REG PERIOD | U4: THIRD REG PERIOD | X4: FOURTH REG PERIOD (A) | AA4: FOURTH REG PERIOD (B) | AE4: FIFTH REG PERIOD | AJ4: SIXTH REG PERIOD
K5: 2006 | L5: 2007 | M5: 2008 | N5: 2009 | O5: 2010 | P5: 2011 | Q5: 2012 | R5: 2013 | S5: 2014 | T5: 2015 | U5: 2016 | V5: 2017 | W5: 2018 | X5: 2019 | Y5: 2020 | Z5: 2021 | AA5: 2022 | AB5: 2023 | AC5: 2024 | AD5: 2025 | AE5: 2026 | AF5: 2027 | AG5: 2028 | AH5: 2029 | AI5: 2030 | AJ5: 2031 | AK5: 2032 | AL5: 2033
B6: =Expenditure_Detail!$B$6 -> $m, 01/01/23 | K6: =+CONCATENATE(K5-1,"-",RIGHT(K5,2)) -> 2005-06 | L6: =+CONCATENATE(L5-1,"-",RIGHT(L5,2)) -> 2006-07 | M6: 2007-08 | N6: 2008-09 | O6: 2009-10 | P6: 2010-11 | Q6: 2011-12 | R6: 2012-13 | S6: 2013-14 | T6: 2014-15 | U6: 2015-16 | V6: 2016-17 | W6: 2017-18 | X6: 2018-19 | Y6: 2019-20 | Z6: 2020-21 | AA6: 2021-22 | AB6: 2022-23 | AC6: 2023-24 | AD6: 2024-25 | AE6: 2025-26 | AF6: 2026-27 | AG6: 2027-28 | AH6: =+CONCATENATE(AH5-1,"-",RIGHT(AH5,2)) -> 2028-29 | AI6: =+CONCATENATE(AI5-1,"-",RIGHT(AI5,2)) -> 2029-30 | AJ6: =+CONCATENATE(AJ5-1,"-",RIGHT(AJ5,2)) -> 2030-31 | AK6: =+CONCATENATE(AK5-1,"-",RIGHT(AK5,2)) -> 2031-32 | AL6: =+CONCATENATE(AL5-1,"-",RIGHT(AL5,2)) -> 2032-33
C9: Parameters | G9: 4th period (A) | H9: 4th period (B) | I9: 5th period
D11: Cost efficiency improvement rate (% per annum) | G11: =Determination_Lookup!W33 -> 0.0152 | H11: =Determination_Lookup!X33 -> 0.01 | I11: =IFERROR(AVERAGE(AC11:AG11),"-") -> 0.014 | AC11: =[2]Opex_FO!AC11 -> 0.014 | AD11: =[2]Opex_FO!AD11 -> 0.014 | AE11: =[2]Opex_FO!AE11 -> 0.014 | AF11: =[2]Opex_FO!AF11 -> 0.014 | AG11: =[2]Opex_FO!AG11 -> 0.014 | AH11: =[2]Opex_FO!AH11 -> 0.014 | AI11: =[2]Opex_FO!AI11 -> 0.014 | AJ11: =[2]Opex_FO!AJ11 -> 0.014 | AK11: =[2]Opex_FO!AK11 -> 0.014 | AL11: =[2]Opex_FO!AL11 -> 0.014
D13: Customer growth forecast (% per annum) | G13: =Determination_Lookup!W34 -> 0.01604704633 | H13: =Determination_Lookup!X34 -> 0.01638625838 | I13: =IFERROR(AVERAGE(AC13:AG13),"-") -> 0.01601577595 | Y13: =IF(Y15="","",Y15/X15-1) -> 0.01275855403 | Z13: =IF(Z15="","",Z15/Y15-1) -> 0.06914487498 | AA13: =IF(AA15="","",AA15/Z15-1) -> 0.01397009596 | AB13: =[2]Opex_FO!AB13 -> 0.01689868764 | AC13: =[2]Opex_FO!AC13 -> 0.01696701126 | AD13: =[2]Opex_FO!AD13 -> 0.01700023484 | AE13: =[2]Opex_FO!AE13 -> 0.01703300368 | AF13: =[2]Opex_FO!AF13 -> 0.01452836761 | AG13: =[2]Opex_FO!AG13 -> 0.01455026238 | AH13: =[2]Opex_FO!AH13 -> 0.01457188803 | AI13: =[2]Opex_FO!AI13 -> 0.01459324786 | AJ13: =[2]Opex_FO!AJ13 -> 0.01461434513 | AK13: =[2]Opex_FO!AK13 -> 0.01278189079 | AL13: =[2]Opex_FO!AL13 -> 0.01279679886
F14: Net baseline opex growth | G14: =IFERROR(G13-G11,"-") -> 0.0008470463327 | H14: =IFERROR(H13-H11,"-") -> 0.006386258383 | I14: =IFERROR(I13-I11,"-") -> 0.002015775954
D15: Water customers (No.) - Residential & Non-Residential - [BED 1] | W15: =+Determination_Lookup!M20 -> 20372 | X15: =+Determination_Lookup!N20 -> 20692 | Y15: =+Determination_Lookup!O20 -> 20956 | Z15: =[2]Opex_FO!Z15 -> 22405 | AA15: =[2]Opex_FO!AA15 -> 22718 | AB15: =+AA$15*(1+AB$13) -> 23101.90439 | AC15: 23493.87466 | AD15: 23893.27604 | AE15: 24300.2503 | AF15: 24653.29327 | AG15: 25012.00516 | AH15: =+AG$15*(1+AH$13) -> 25376.4773 | AI15: =+AH$15*(1+AI$13) -> 25746.80252 | AJ15: =+AI$15*(1+AJ$13) -> 26123.07518 | AK15: =+AJ$15*(1+AK$13) -> 26456.97747 | AL15: =+AK$15*(1+AL$13) -> 26795.54209
D17: Sewer customers (No.) - Residential & Non-Residential - [BED 2] | W17: =+Determination_Lookup!M21 -> 17954 | X17: =+Determination_Lookup!N21 -> 18257 | Y17: =+Determination_Lookup!O21 -> 18517 | Z17: =[2]Opex_FO!Z17 -> 20171 | AA17: =[2]Opex_FO!AA17 -> 20242 | AB17: =+AA$17*(1+AB$13) -> 20584.06324 | AC17: 20933.31327 | AD17: 21289.18451 | AE17: 21651.80327 | AF17: 21966.36862 | AG17: 22285.98505 | AH17: =+AG$17*(1+AH$13) -> 22610.73393 | AI17: =+AH$17*(1+AI$13) -> 22940.69798 | AJ17: =+AI$17*(1+AJ$13) -> 23275.96125 | AK17: =+AJ$17*(1+AK$13) -> 23573.47205 | AL17: =+AK$17*(1+AL$13) -> 23875.13703
D19: Total metered volume of water delivered to customers (ML) - [BED 10] | W19: =+Determination_Lookup!M22 -> 4530 | X19: =+Determination_Lookup!N22 -> 4642 | Y19: =+Determination_Lookup!O22 -> 4726 | Z19: =[2]Opex_FO!Z19 -> 4585.558 | AA19: =[2]Opex_FO!AA19 -> 4848.679322 | AB19: =[2]Opex_FO!AB19 -> 4887.700668 | AC19: =[2]Opex_FO!AC19 -> 4934.823811 | AD19: =[2]Opex_FO!AD19 -> 4982.801198 | AE19: =[2]Opex_FO!AE19 -> 5031.649035 | AF19: =[2]Opex_FO!AF19 -> 5074.372633 | AG19: =[2]Opex_FO!AG19 -> 5117.750316 | AH19: =[2]Opex_FO!AH19 -> 5161.792556 | AI19: =[2]Opex_FO!AI19 -> 5206.509995 | AJ19: =[2]Opex_FO!AJ19 -> 5251.913448 | AK19: =[2]Opex_FO!AK19 -> 5292.50889 | AL19: =[2]Opex_FO!AL19 -> 5333.643361
D20: Residential, Non-Residential & Recycled (Residential & Non-Residential)
C24: Baseline Forecast
D26: Baseline year - total prescribed operating expenditure in 2021-22: | AA26: =+Opex_Breakdown!AA37 -> 24.25806999
D28: Less non-controllable expenditure items incurred in 2021-22:
E29: External bulk water charges (excl. temporary purchases) | AA29: =+Opex_Breakdown!AA29 -> 0.5311106438
E30: External temporary water purchases | AA30: =+Opex_Breakdown!AA30 -> 0 | AC30: Comparison with approved 2021-22 total controllable opex
E31: Licence fees | AA31: =+Opex_Breakdown!AA31 -> 0.1423791963 | AC31: per 2020 determination model
E32: Environment Contribution | AA32: =+Opex_Breakdown!AA32 -> 1.438460084
E33: Other non-controllable | AA33: =+Opex_Breakdown!AA33 -> 0
AA34: =SUM(AA29:AA33) -> 2.111949924 | AD34: 2021-22 | AE34: Difference | AF34: %
D36: Baseline year - total controllable operating expenditure in 2021-22: | AA36: =+AA26-AA34 -> 22.14612006 | AD36: =Determination_Lookup!Q18 -> 22.4980584 | AE36: =+AA52-AD36 -> -0.05744218855 | AF36: =+AE36/AD36 -> -0.002553206482
D38: Adjustments for non-recurring expenditure items incurred in 2021-22 and any efficiency savings to be realised from 2021-22: | AC38: ($, 2022-23)
D40: 1 | E40: =[2]Opex_FO!E40 -> Chemical costs (Earthtec) annual spend not spent in FY21-22 [timing of spend] | AA40: =[2]Opex_FO!AA40 -> -0.1371925259
D41: 2 | E41: =[2]Opex_FO!E41 -> Consultancy relating to PS2023 $350k & $50k Organisation structure review | AA41: =[2]Opex_FO!AA41 -> 0.4034636373
D42: 3 | E42: =[2]Opex_FO!E42 -> Repairs and Maintenance [Contractors backfill; Emergency storm event and Road & Trailer repairs] | AA42: =[2]Opex_FO!AA42 -> 0.576397507
D43: 4 | E43: =[2]Opex_FO!E43 -> Utilities - Delay in solar projects completion & ZEW initial investment | AA43: =[2]Opex_FO!AA43 -> 0.1868419189
D44: 5 | E44: =[2]Opex_FO!E44 -> Communications and Technology - COVID 19 | AA44: =[2]Opex_FO!AA44 -> 0.1289505513
D45: 6 | E45: =[2]Opex_FO!E45 -> Covid 19 - cleaning & safety | AA45: =[2]Opex_FO!AA45 -> 0.121727084
D46: 7 | E46: =[2]Opex_FO!E46 -> Compliance - internal audit; VGPB initiative | AA46: =[2]Opex_FO!AA46 -> 0.02751584557
D47: 8 | E47: =[2]Opex_FO!E47 -> Decommissioning Provision Reduction | AA47: =[2]Opex_FO!AA47 -> -1.602200166
D48: 9
D49: 10
AA50: =SUM(AA40:AA49) -> -0.2944961474
D52: Adjusted baseline controllable operating expenditure (2021-22) | AA52: =+AA36-AA50 -> 22.44061621
D54: Adjusted baseline controllable operating expenditure (Forecast) | AB54: =+AA52*(1+$AB$13-$H$11) -> 22.59542701 | AC54: =+AB$54*(1+AC$13-AC$11) -> 22.6624679 | AD54: 22.73046063 | AE54: 22.7994022 | AF54: 22.81144866 | AG54: 22.82400094 | AH54: 22.83705372 | AI54: 22.85060175 | AJ54: 22.86463991 | AK54: 22.83678828 | AL54: 22.80931103
C58: Operating expenditure - reconciliation
D61: Adjusted baseline controllable operating expenditure (Forecast) | AC61: =+AC54 -> 22.6624679 | AD61: 22.73046063 | AE61: 22.7994022 | AF61: 22.81144866 | AG61: 22.82400094 | AH61: 22.83705372 | AI61: 22.85060175 | AJ61: 22.86463991 | AK61: 22.83678828 | AL61: 22.80931103
H62: Controllable
D63: Forecast variations to baseline operating expenditure (above or below baseline) | H63: only
D65: 1 | E65: =[2]Opex_FO!E65 -> Urban water strategy consultancy | H65: =[2]Opex_FO!H65 -> Water | AC65: =[2]Opex_FO!AC65 -> 0 | AD65: =[2]Opex_FO!AD65 -> 0 | AE65: =[2]Opex_FO!AE65 -> 0 | AF65: =[2]Opex_FO!AF65 -> 0.25 | AG65: =[2]Opex_FO!AG65 -> 0 | AH65: =[2]Opex_FO!AH65 -> 0 | AI65: =[2]Opex_FO!AI65 -> 0 | AJ65: =[2]Opex_FO!AJ65 -> 0 | AK65: =[2]Opex_FO!AK65 -> 0 | AL65: =[2]Opex_FO!AL65 -> 0
D66: 2 | E66: =[2]Opex_FO!E66 -> Carbon Management Strategy | H66: =[2]Opex_FO!H66 -> Water | AC66: =[2]Opex_FO!AC66 -> 0 | AD66: =[2]Opex_FO!AD66 -> 0.08 | AE66: =[2]Opex_FO!AE66 -> 0.08 | AF66: =[2]Opex_FO!AF66 -> 0.08 | AG66: =[2]Opex_FO!AG66 -> 0.08 | AH66: =[2]Opex_FO!AH66 -> 0.08 | AI66: =[2]Opex_FO!AI66 -> 0.08 | AJ66: =[2]Opex_FO!AJ66 -> 0.08 | AK66: =[2]Opex_FO!AK66 -> 0.08 | AL66: =[2]Opex_FO!AL66 -> 0.08
D67: 3 | E67: =[2]Opex_FO!E67 -> Consultancy PS2028 Submission costs | H67: =[2]Opex_FO!H67 -> [Service] | AC67: =[2]Opex_FO!AC67 -> 0 | AD67: =[2]Opex_FO!AD67 -> 0 | AE67: =[2]Opex_FO!AE67 -> 0 | AF67: =[2]Opex_FO!AF67 -> 0 | AG67: =[2]Opex_FO!AG67 -> 0.1183404 | AH67: =[2]Opex_FO!AH67 -> 0 | AI67: =[2]Opex_FO!AI67 -> 0 | AJ67: =[2]Opex_FO!AJ67 -> 0 | AK67: =[2]Opex_FO!AK67 -> 0 | AL67: =[2]Opex_FO!AL67 -> 0
D68: 4 | E68: =[2]Opex_FO!E68 -> Consultancy PS2023 Submission costs | H68: =[2]Opex_FO!H68 -> [Service] | AC68: =[2]Opex_FO!AC68 -> -0.1183404 | AD68: =[2]Opex_FO!AD68 -> -0.1183404 | AE68: =[2]Opex_FO!AE68 -> -0.1183404 | AF68: =[2]Opex_FO!AF68 -> -0.1183404 | AG68: =[2]Opex_FO!AG68 -> -0.1183404 | AH68: =[2]Opex_FO!AH68 -> -0.1183404 | AI68: =[2]Opex_FO!AI68 -> -0.1183404 | AJ68: =[2]Opex_FO!AJ68 -> -0.1183404 | AK68: =[2]Opex_FO!AK68 -> -0.1183404 | AL68: =[2]Opex_FO!AL68 -> -0.1183404
D69: 5 | E69: =[2]Opex_FO!E69 -> Cyber security costs | H69: =[2]Opex_FO!H69 -> [Service] | AC69: =[2]Opex_FO!AC69 -> 0.2 | AD69: =[2]Opex_FO!AD69 -> 0.2 | AE69: =[2]Opex_FO!AE69 -> 0.2 | AF69: =[2]Opex_FO!AF69 -> 0.2 | AG69: =[2]Opex_FO!AG69 -> 0.2 | AH69: =[2]Opex_FO!AH69 -> 0.2 | AI69: =[2]Opex_FO!AI69 -> 0.2 | AJ69: =[2]Opex_FO!AJ69 -> 0.2 | AK69: =[2]Opex_FO!AK69 -> 0.2 | AL69: =[2]Opex_FO!AL69 -> 0.2
D70: 6 | E70: =[2]Opex_FO!E70 -> Victorian Public Sector Executive Reforms and Exec Remuneration | H70: =[2]Opex_FO!H70 -> [Service] | AC70: =[2]Opex_FO!AC70 -> 0.05 | AD70: =[2]Opex_FO!AD70 -> 0.05 | AE70: =[2]Opex_FO!AE70 -> 0.05 | AF70: =[2]Opex_FO!AF70 -> 0.05 | AG70: =[2]Opex_FO!AG70 -> 0.05 | AH70: =[2]Opex_FO!AH70 -> 0.05 | AI70: =[2]Opex_FO!AI70 -> 0.05 | AJ70: =[2]Opex_FO!AJ70 -> 0.05 | AK70: =[2]Opex_FO!AK70 -> 0.05 | AL70: =[2]Opex_FO!AL70 -> 0.05
D71: 7 | E71: =[2]Opex_FO!E71 -> 0 | H71: =[2]Opex_FO!H71 -> [Service] | AC71: =[2]Opex_FO!AC71 -> 0 | AD71: =[2]Opex_FO!AD71 -> 0 | AE71: =[2]Opex_FO!AE71 -> 0 | AF71: =[2]Opex_FO!AF71 -> 0 | AG71: =[2]Opex_FO!AG71 -> 0 | AH71: =[2]Opex_FO!AH71 -> 0 | AI71: =[2]Opex_FO!AI71 -> 0 | AJ71: =[2]Opex_FO!AJ71 -> 0 | AK71: =[2]Opex_FO!AK71 -> 0 | AL71: =[2]Opex_FO!AL71 -> 0
D72: 8 | H72: [Service]
D73: 9 | H73: [Service]
D74: 10 | H74: [Service]
D75: 11 | H75: [Service]
D76: 12 | H76: [Service]
D77: 13 | H77: [Service]
D78: 14 | H78: [Service]
D79: 15 | H79: [Service]
D81: Total changes required to baseline operating expenditure | AC81: =SUM(AC65:AC80) -> 0.1316596 | AD81: 0.2116596 | AE81: 0.2116596 | AF81: 0.4616596 | AG81: 0.33 | AH81: 0.2116596 | AI81: 0.2116596 | AJ81: 0.2116596 | AK81: 0.2116596 | AL81: 0.2116596
D84: Total controllable operating expenditure | AC84: =+AC81+AC61 -> 22.7941275 | AD84: 22.94212023 | AE84: 23.0110618 | AF84: 23.27310826 | AG84: 23.15400094 | AH84: 23.04871332 | AI84: 23.06226135 | AJ84: 23.07629951 | AK84: 23.04844788 | AL84: 23.02097063
D86: Non-controllable operating expenditure
D87: External bulk water charges (excl. temporary purchases) | AC87: =+Opex_Breakdown!AC29 -> 0.5937363664 | AD87: =+Opex_Breakdown!AD29 -> 1.415956528 | AE87: =+Opex_Breakdown!AE29 -> 1.415956528 | AF87: =+Opex_Breakdown!AF29 -> 1.415956528 | AG87: =+Opex_Breakdown!AG29 -> 1.415956528 | AH87: =+Opex_Breakdown!AH29 -> 1.415956528 | AI87: =+Opex_Breakdown!AI29 -> 1.415956528 | AJ87: =+Opex_Breakdown!AJ29 -> 1.415956528 | AK87: =+Opex_Breakdown!AK29 -> 1.415956528 | AL87: =+Opex_Breakdown!AL29 -> 1.415956528
D88: External temporary water purchases | AC88: =+Opex_Breakdown!AC30 -> 0 | AD88: =+Opex_Breakdown!AD30 -> 0 | AE88: =+Opex_Breakdown!AE30 -> 0 | AF88: =+Opex_Breakdown!AF30 -> 0 | AG88: =+Opex_Breakdown!AG30 -> 0 | AH88: =+Opex_Breakdown!AH30 -> 0 | AI88: =+Opex_Breakdown!AI30 -> 0 | AJ88: =+Opex_Breakdown!AJ30 -> 0 | AK88: =+Opex_Breakdown!AK30 -> 0 | AL88: =+Opex_Breakdown!AL30 -> 0
D89: Licence fees | AC89: =+Opex_Breakdown!AC31 -> 0.0838453044 | AD89: =+Opex_Breakdown!AD31 -> 0.0838453044 | AE89: =+Opex_Breakdown!AE31 -> 0.0838453044 | AF89: =+Opex_Breakdown!AF31 -> 0.0838453044 | AG89: =+Opex_Breakdown!AG31 -> 0.0838453044 | AH89: =+Opex_Breakdown!AH31 -> 0.0838453044 | AI89: =+Opex_Breakdown!AI31 -> 0.0838453044 | AJ89: =+Opex_Breakdown!AJ31 -> 0.0838453044 | AK89: =+Opex_Breakdown!AK31 -> 0.0838453044 | AL89: =+Opex_Breakdown!AL31 -> 0.0838453044
D90: Environment Contribution | AC90: =+Opex_Breakdown!AC32 -> 1.32893301 | AD90: =+Opex_Breakdown!AD32 -> 1.290226223 | AE90: =+Opex_Breakdown!AE32 -> 1.252646818 | AF90: =+Opex_Breakdown!AF32 -> 1.21616196 | AG90: =+Opex_Breakdown!AG32 -> 1.180739767 | AH90: =+Opex_Breakdown!AH32 -> 1.146349288 | AI90: =+Opex_Breakdown!AI32 -> 1.112960474 | AJ90: =+Opex_Breakdown!AJ32 -> 1.080544149 | AK90: =+Opex_Breakdown!AK32 -> 1.04907199 | AL90: =+Opex_Breakdown!AL32 -> 1.018516495
D91: Other non-controllable | AC91: =+Opex_Breakdown!AC33 -> 0 | AD91: =+Opex_Breakdown!AD33 -> 0 | AE91: =+Opex_Breakdown!AE33 -> 0 | AF91: =+Opex_Breakdown!AF33 -> 0 | AG91: =+Opex_Breakdown!AG33 -> 0 | AH91: =+Opex_Breakdown!AH33 -> 0 | AI91: =+Opex_Breakdown!AI33 -> 0 | AJ91: =+Opex_Breakdown!AJ33 -> 0 | AK91: =+Opex_Breakdown!AK33 -> 0 | AL91: =+Opex_Breakdown!AL33 -> 0
D92: Total non-controllable operating expenditure | AC92: =SUM(AC87:AC91) -> 2.006514681 | AD92: 2.790028056 | AE92: 2.752448651 | AF92: 2.715963792 | AG92: 2.680541599 | AH92: =SUM(AH87:AH91) -> 2.646151121 | AI92: =SUM(AI87:AI91) -> 2.612762307 | AJ92: =SUM(AJ87:AJ91) -> 2.580345982 | AK92: =SUM(AK87:AK91) -> 2.548873822 | AL92: =SUM(AL87:AL91) -> 2.518318327
D95: Total prescribed operating expenditure | AC95: =+AC92+AC84 -> 24.80064218 | AD95: 25.73214828 | AE95: 25.76351045 | AF95: 25.98907205 | AG95: 25.83454254 | AH95: 25.69486444 | AI95: 25.67502366 | AJ95: 25.65664549 | AK95: 25.5973217 | AL95: 25.53928896
AB98: To reconcile to 'Opex_Breakdown' tab row 37 >> | AC98: =+Opex_Breakdown!AC37 -> 24.80064218 | AD98: =+Opex_Breakdown!AD37 -> 25.73214729 | AE98: =+Opex_Breakdown!AE37 -> 25.76350886 | AF98: =+Opex_Breakdown!AF37 -> 25.98907149 | AG98: =+Opex_Breakdown!AG37 -> 25.83454343 | AH98: =+Opex_Breakdown!AH37 -> 25.69486725 | AI98: =+Opex_Breakdown!AI37 -> 25.67502887 | AJ98: =+Opex_Breakdown!AJ37 -> 25.6566536 | AK98: =+Opex_Breakdown!AK37 -> 25.59733412 | AL98: =+Opex_Breakdown!AL37 -> 25.53930624
AB99: Difference | AC99: =+AC98-AC95 -> 4.278533083e-11 | AD99: -9.949223063e-07 | AE99: -1.587642501e-06 | AF99: -5.693138334e-07 | AG99: 8.911424274e-07 | AH99: 2.811866057e-06 | AI99: 5.212987418e-06 | AJ99: 8.116815088e-06 | AK99: 1.24229374e-05 | AL99: 1.728596737e-05
AB100: Test | AC100: =IF(ROUND(AC98,2)=ROUND(AC95,2),0,1) -> 0 | AD100: =IF(ROUND(AD98,2)=ROUND(AD95,2),0,1) -> 0 | AE100: 0 | AF100: 0 | AG100: 0 | AH100: 0 | AI100: 0 | AJ100: 0 | AK100: 0 | AL100: 0
AC139: =+AC$160 -> 2023-24 | AD139: 2024-25 | AE139: 2025-26 | AF139: 2026-27 | AG139: 2027-28 | AH139: 2028-29 | AI139: 2029-30 | AJ139: 2030-31 | AK139: 2031-32 | AL139: 2032-33
AB140: Total controllable opex | AC140: =+AC84 -> 22.7941275 | AD140: 22.94212023 | AE140: 23.0110618 | AF140: 23.27310826 | AG140: 23.15400094 | AH140: 23.04871332 | AI140: 23.06226135 | AJ140: 23.07629951 | AK140: 23.04844788 | AL140: 23.02097063
AB141: Change - $ | AD141: =+AD140-AC140 -> 0.1479927257 | AE141: 0.06894157072 | AF141: 0.2620464657 | AG141: -0.119107318 | AH141: -0.1052876271 | AI141: 0.01354803329 | AJ141: 0.01403815586 | AK141: -0.02785162838 | AL141: -0.0274772497
AB142: Change - % | AC142: =IFERROR(AC141/AB140,"") ->  | AD142: 0.006492581289 | AE142: 0.00300502177 | AF142: 0.01138784764 | AG142: -0.005117808789 | AH142: -0.004547275752 | AI142: 0.0005877999826 | AJ142: 0.0006087068239 | AK142: -0.00120693651 | AL142: -0.001192151847
AC144: =+AC$160 -> 2023-24 | AD144: 2024-25 | AE144: 2025-26 | AF144: 2026-27 | AG144: 2027-28 | AH144: 2028-29 | AI144: 2029-30 | AJ144: 2030-31 | AK144: 2031-32 | AL144: 2032-33
AB145: Total non-controllable opex | AC145: =+AC92 -> 2.006514681 | AD145: 2.790028056 | AE145: 2.752448651 | AF145: 2.715963792 | AG145: 2.680541599 | AH145: 2.646151121 | AI145: 2.612762307 | AJ145: 2.580345982 | AK145: 2.548873822 | AL145: 2.518318327
AB146: Change - $ | AD146: =+AD145-AC145 -> 0.7835133752 | AE146: -0.03757940455 | AF146: -0.03648485879 | AG146: -0.035422193 | AH146: -0.03439047864 | AI146: -0.03338881421 | AJ146: -0.03241632448 | AK146: -0.03147215969 | AL146: -0.03055549484
AB147: Change - % | AC147: =IFERROR(AC146/AB145,"") ->  | AD147: 0.3904847459 | AE147: -0.01346918519 | AF147: -0.01325541851 | AG147: -0.01304221842 | AH147: -0.01282967541 | AI147: -0.01261787883 | AJ147: -0.01240691677 | AK147: -0.01219687589 | AL147: -0.01198784129
AC149: =+AC$160 -> 2023-24 | AD149: 2024-25 | AE149: 2025-26 | AF149: 2026-27 | AG149: 2027-28 | AH149: 2028-29 | AI149: 2029-30 | AJ149: 2030-31 | AK149: 2031-32 | AL149: 2032-33
AB150: Total prescribed opex | AC150: =+AC140+AC145 -> 24.80064218 | AD150: 25.73214828 | AE150: 25.76351045 | AF150: 25.98907205 | AG150: 25.83454254 | AH150: 25.69486444 | AI150: 25.67502366 | AJ150: 25.65664549 | AK150: 25.5973217 | AL150: 25.53928896
AB151: Change - $ | AD151: =+AD150-AC150 -> 0.9315061009 | AE151: 0.03136216617 | AF151: 0.2255616069 | AG151: -0.154529511 | AH151: -0.1396781057 | AI151: -0.01984078093 | AJ151: -0.01837816862 | AK151: -0.05932378807 | AL151: -0.05803274455
AB152: Change - % | AC152: =IFERROR(AC151/AB150,"") ->  | AD152: 0.03755975729 | AE152: 0.001218793154 | AF152: 0.008755080459 | AG152: -0.005945941844 | AH152: -0.005406641339 | AI152: -0.0007721691226 | AJ152: -0.0007157994815 | AK152: -0.002312219191 | AL152: -0.002267141275
AB155: Controllable vs. Non-controllable opex - % | AC155: =+AC$160 -> 2023-24 | AD155: 2024-25 | AE155: 2025-26 | AF155: 2026-27 | AG155: 2027-28 | AH155: 2028-29 | AI155: 2029-30 | AJ155: 2030-31 | AK155: 2031-32 | AL155: 2032-33
AB156: Controllable opex - % | AC156: =+AC84/AC95 -> 0.919094245 | AD156: 0.8915742275 | AE156: 0.8931648443 | AF156: 0.8954959305 | AG156: 0.8962419561 | AH156: 0.8970163424 | AI156: 0.8982371996 | AJ156: 0.8994277727 | AK156: 0.9004241986 | AL156: 0.9013943445
AB157: Non-controllable opex - % | AC157: =+AC92/AC95 -> 0.08090575502 | AD157: 0.1084257725 | AE157: 0.1068351557 | AF157: 0.1045040695 | AG157: 0.1037580439 | AH157: 0.1029836576 | AI157: 0.1017628004 | AJ157: 0.1005722273 | AK157: 0.09957580141 | AL157: 0.09860565546
AC158: =SUM(AC156:AC157) -> 1 | AD158: 1 | AE158: 1 | AF158: 1 | AG158: 1 | AH158: 1 | AI158: 1 | AJ158: 1 | AK158: 1 | AL158: 1
AA160: =+AA6 -> 2021-22 | AB160: 2022-23 | AC160: 2023-24 | AD160: 2024-25 | AE160: 2025-26 | AF160: 2026-27 | AG160: 2027-28 | AH160: =+AH6 -> 2028-29 | AI160: =+AI6 -> 2029-30 | AJ160: =+AJ6 -> 2030-31 | AK160: =+AK6 -> 2031-32 | AL160: =+AL6 -> 2032-33
Y161: Fourth reg period opex | Z161: Third Reg period Opex | AA161: =+AA169-SUM(AA162:AA168) -> 24.25806999 | AB161: =+AB169-SUM(AB162:AB168) -> 24.66026488
Z162: Adjusted baseline opex | AC162: =+AC61 -> 22.6624679 | AD162: 22.73046063 | AE162: 22.7994022 | AF162: 22.81144866 | AG162: 22.82400094 | AH162: 22.83705372 | AI162: 22.85060175 | AJ162: 22.86463991 | AK162: 22.83678828 | AL162: 22.80931103
Z163: Forecast variations to baseline operating expenditure | AC163: =+AC81 -> 0.1316596 | AD163: 0.2116596 | AE163: 0.2116596 | AF163: 0.4616596 | AG163: 0.33 | AH163: 0.2116596 | AI163: 0.2116596 | AJ163: 0.2116596 | AK163: 0.2116596 | AL163: 0.2116596
Z164: Licence fees | AA164: =+AA193 -> 0 | AB164: =+AB193 -> 0 | AC164: =+AC89 -> 0.0838453044 | AD164: 0.0838453044 | AE164: 0.0838453044 | AF164: 0.0838453044 | AG164: 0.0838453044 | AH164: =+AH89 -> 0.0838453044 | AI164: 0.0838453044 | AJ164: 0.0838453044 | AK164: 0.0838453044 | AL164: 0.0838453044
Z165: Environment Contribution | AA165: =+AA194 -> 0 | AB165: =+AB194 -> 0 | AC165: =+AC90 -> 1.32893301 | AD165: 1.290226223 | AE165: 1.252646818 | AF165: 1.21616196 | AG165: 1.180739767 | AH165: 1.146349288 | AI165: 1.112960474 | AJ165: 1.080544149 | AK165: 1.04907199 | AL165: 1.018516495
Z166: External bulk water charges | AA166: =+AA191 -> 0 | AB166: =+AB191 -> 0 | AC166: =+AC87 -> 0.5937363664 | AD166: 1.415956528 | AE166: 1.415956528 | AF166: 1.415956528 | AG166: 1.415956528 | AH166: =+AH87 -> 1.415956528 | AI166: 1.415956528 | AJ166: 1.415956528 | AK166: 1.415956528 | AL166: 1.415956528
Z167: External temporary water purchases | AA167: =+AA192 -> 0 | AB167: =+AB192 -> 0 | AC167: =+AC88 -> 0 | AD167: 0 | AE167: 0 | AF167: 0 | AG167: 0 | AH167: 0 | AI167: 0 | AJ167: 0 | AK167: 0 | AL167: 0
Z168: Other non-controllable | AA168: =+AA195 -> 0 | AB168: =+AB195 -> 0 | AC168: =+AC91 -> 0 | AD168: 0 | AE168: 0 | AF168: 0 | AG168: 0 | AH168: =+AH91 -> 0 | AI168: =+AI91 -> 0 | AJ168: =+AJ91 -> 0 | AK168: =+AK91 -> 0 | AL168: =+AL91 -> 0
Z169: Total prescribed opex | AA169: =+Opex_Breakdown!AA37 -> 24.25806999 | AB169: =+Opex_Breakdown!AB37 -> 24.66026488 | AC169: =SUM(AC162:AC168) -> 24.80064218 | AD169: 25.73214828 | AE169: 25.76351045 | AF169: 25.98907205 | AG169: 25.83454254 | AH169: =SUM(AH162:AH168) -> 25.69486444 | AI169: =SUM(AI162:AI168) -> 25.67502366 | AJ169: =SUM(AJ162:AJ168) -> 25.65664549 | AK169: =SUM(AK162:AK168) -> 25.5973217 | AL169: =SUM(AL162:AL168) -> 25.53928896
AC171: =+AC$160 -> 2023-24 | AD171: 2024-25 | AE171: 2025-26 | AF171: 2026-27 | AG171: 2027-28 | AH171: 2028-29 | AI171: 2029-30 | AJ171: 2030-31 | AK171: 2031-32 | AL171: 2032-33
AB172: Adjusted baseline opex | AC172: =+AC162/AC$169 -> 0.9137855276 | AD172: 0.8833487347 | AE172: 0.8849493644 | AF172: 0.8777323259 | AG172: 0.8834683605 | AH172: 0.8887789143 | AI172: 0.8899934059 | AJ172: 0.8911780738 | AK172: 0.8921553804 | AL172: 0.8931067371
AB173: Forecast variations to baseline operating expenditure | AC173: =+AC163/AC$169 -> 0.005308717373 | AD173: 0.008225492784 | AE173: 0.008215479813 | AF173: 0.0177636046 | AG173: 0.01277359564 | AH173: 0.008237428164 | AI173: 0.008243793767 | AJ173: 0.008249698898 | AK173: 0.008268818218 | AL173: 0.008287607395
AB174: Licence fees | AC174: =+AC164/AC$169 -> 0.003380771505 | AD174: 0.00325838727 | AE174: 0.003254420805 | AF174: 0.00322617538 | AG174: 0.003245472772 | AH174: 0.003263115266 | AI174: 0.00326563689 | AJ174: 0.003267976105 | AK174: 0.003275549895 | AL174: 0.003282992903
AB175: Environment Contribution | AC175: =+AC165/AC$169 -> 0.05358462092 | AD175: 0.05014063377 | AE175: 0.04862096806 | AF175: 0.04679512824 | AG175: 0.04570391617 | AH175: 0.04461394575 | AI175: 0.04334798241 | AJ175: 0.04211556611 | AK175: 0.04098366235 | AL175: 0.0398803779
AB176: External bulk water charges (excl. temporary purchases) | AC176: =+AC166/AC$169 -> 0.0239403626 | AD176: 0.05502675147 | AE176: 0.05495976688 | AF176: 0.05448276588 | AG176: 0.05480865496 | AH176: 0.05510659656 | AI176: 0.05514918106 | AJ176: 0.05518868509 | AK176: 0.05531658917 | AL176: 0.05544228466
AB177: External temporary water purchases | AC177: =+AC167/AC$169 -> 0 | AD177: 0 | AE177: 0 | AF177: 0 | AG177: 0 | AH177: 0 | AI177: 0 | AJ177: 0 | AK177: 0 | AL177: 0
AB178: Other non-controllable | AC178: =+AC168/AC$169 -> 0 | AD178: 0 | AE178: 0 | AF178: 0 | AG178: 0 | AH178: 0 | AI178: 0 | AJ178: 0 | AK178: 0 | AL178: 0
AB179: Total prescribed opex | AC179: =+AC169/AC$169 -> 1 | AD179: 1 | AE179: 1 | AF179: 1 | AG179: 1 | AH179: 1 | AI179: 1 | AJ179: 1 | AK179: 1 | AL179: 1
AC181: =+AC$160 -> 2023-24 | AD181: 2024-25 | AE181: 2025-26 | AF181: 2026-27 | AG181: 2027-28 | AH181: 2028-29 | AI181: 2029-30 | AJ181: 2030-31 | AK181: 2031-32 | AL181: 2032-33
AB182: Water | AC182: =+SUMIF($H$65:$H$80,$AB182,AC$65:AC$80) -> 0 | AD182: =+SUMIF($H$65:$H$80,$AB182,AD$65:AD$80) -> 0.08 | AE182: 0.08 | AF182: 0.33 | AG182: 0.08 | AH182: 0.08 | AI182: 0.08 | AJ182: 0.08 | AK182: 0.08 | AL182: 0.08
AB183: Sewerage | AC183: 0 | AD183: 0 | AE183: 0 | AF183: 0 | AG183: 0 | AH183: 0 | AI183: 0 | AJ183: 0 | AK183: 0 | AL183: 0
AB184: Recycled Water | AC184: 0 | AD184: 0 | AE184: 0 | AF184: 0 | AG184: 0 | AH184: 0 | AI184: 0 | AJ184: 0 | AK184: 0 | AL184: 0
AB185: Rural water | AC185: 0 | AD185: 0 | AE185: 0 | AF185: 0 | AG185: 0 | AH185: 0 | AI185: 0 | AJ185: 0 | AK185: 0 | AL185: 0
AB186: Bulk Water | AC186: 0 | AD186: 0 | AE186: 0 | AF186: 0 | AG186: 0 | AH186: 0 | AI186: 0 | AJ186: 0 | AK186: 0 | AL186: 0
AB187: Forecast variations to baseline operating expenditure | AC187: =SUM(AC182:AC186) -> 0 | AD187: 0.08 | AE187: 0.08 | AF187: 0.33 | AG187: 0.08 | AH187: 0.08 | AI187: 0.08 | AJ187: 0.08 | AK187: 0.08 | AL187: 0.08
AA190: =+AA6 -> 2021-22 | AB190: 2022-23 | AC190: 2023-24 | AD190: 2024-25 | AE190: 2025-26 | AF190: 2026-27 | AG190: 2027-28 | AH190: =+AH6 -> 2028-29 | AI190: =+AI6 -> 2029-30 | AJ190: =+AJ6 -> 2030-31 | AK190: =+AK6 -> 2031-32 | AL190: =+AL6 -> 2032-33
Z191: External bulk water charges (excl. temporary purchases) | AA191: =+AA87 -> 0 | AB191: 0 | AC191: 0.5937363664 | AD191: 1.415956528 | AE191: 1.415956528 | AF191: 1.415956528 | AG191: 1.415956528 | AH191: =+AH87 -> 1.415956528 | AI191: 1.415956528 | AJ191: 1.415956528 | AK191: 1.415956528 | AL191: 1.415956528
Z192: External temporary water purchases | AA192: =+AA88 -> 0 | AB192: 0 | AC192: 0 | AD192: 0 | AE192: 0 | AF192: 0 | AG192: 0 | AH192: 0 | AI192: 0 | AJ192: 0 | AK192: 0 | AL192: 0
Z193: Licence fees | AA193: =+AA89 -> 0 | AB193: 0 | AC193: 0.0838453044 | AD193: 0.0838453044 | AE193: 0.0838453044 | AF193: 0.0838453044 | AG193: 0.0838453044 | AH193: 0.0838453044 | AI193: 0.0838453044 | AJ193: 0.0838453044 | AK193: 0.0838453044 | AL193: 0.0838453044
Z194: Environment Contribution | AA194: =+AA90 -> 0 | AB194: 0 | AC194: 1.32893301 | AD194: 1.290226223 | AE194: 1.252646818 | AF194: 1.21616196 | AG194: 1.180739767 | AH194: 1.146349288 | AI194: 1.112960474 | AJ194: 1.080544149 | AK194: 1.04907199 | AL194: 1.018516495
Z195: Other non-controllable | AA195: =+AA91 -> 0 | AB195: 0 | AC195: 0 | AD195: 0 | AE195: 0 | AF195: 0 | AG195: 0 | AH195: 0 | AI195: 0 | AJ195: 0 | AK195: 0 | AL195: 0
Z196: Total Non-controllable operating expenditure | AA196: =SUM(AA191:AA195) -> 0 | AB196: 0 | AC196: 2.006514681 | AD196: 2.790028056 | AE196: 2.752448651 | AF196: 2.715963792 | AG196: 2.680541599 | AH196: =SUM(AH191:AH195) -> 2.646151121 | AI196: =SUM(AI191:AI195) -> 2.612762307 | AJ196: =SUM(AJ191:AJ195) -> 2.580345982 | AK196: =SUM(AK191:AK195) -> 2.548873822 | AL196: =SUM(AL191:AL195) -> 2.518318327
AB198: Check | AC198: =IF(ROUND(AC169,2)=ROUND(AC95,2),0,1) -> 0 | AD198: =IF(ROUND(AD169,2)=ROUND(AD95,2),0,1) -> 0 | AE198: 0 | AF198: 0 | AG198: 0 | AH198: 0 | AI198: 0 | AJ198: 0 | AK198: 0 | AL198: 0
AC199: =IF(ROUND(AC187,2)=ROUND(AC163,2),0,1) -> 1 | AD199: =IF(ROUND(AD187,2)=ROUND(AD163,2),0,1) -> 1 | AE199: 1 | AF199: 1 | AG199: 1 | AH199: 1 | AI199: 1 | AJ199: 1 | AK199: 1 | AL199: 1
AC200: =IF(ROUND(AC150,2)=ROUND(AC169,2),0,1) -> 0 | AD200: =IF(ROUND(AD150,2)=ROUND(AD169,2),0,1) -> 0 | AE200: 0 | AF200: 0 | AG200: 0 | AH200: 0 | AI200: 0 | AJ200: 0 | AK200: 0 | AL200: 0
AC201: =IF(ROUND(AC196,2)=ROUND(AC145,2),0,1) -> 0 | AD201: =IF(ROUND(AD196,2)=ROUND(AD145,2),0,1) -> 0 | AE201: 0 | AF201: 0 | AG201: 0 | AH201: 0 | AI201: 0 | AJ201: 0 | AK201: 0 | AL201: 0

Sheet Opex_Breakdown
A1: 80 | B1: Operating Expenditure - Breakdown
B2: =+Contents!H7 -> South Gippsland Water
B3: Go to Table of Contents
L4: FIRST REG PERIOD | P4: SECOND REG PERIOD | U4: THIRD REG PERIOD | X4: FOURTH REG PERIOD (A) | AA4: FOURTH REG PERIOD (B) | AE4: FIFTH REG PERIOD | AJ4: SIXTH REG PERIOD
K6: 2006 | L6: 2007 | M6: 2008 | N6: 2009 | O6: 2010 | P6: 2011 | Q6: 2012 | R6: 2013 | S6: 2014 | T6: 2015 | U6: 2016 | V6: 2017 | W6: 2018 | X6: 2019 | Y6: 2020 | Z6: 2021 | AA6: 2022 | AB6: 2023 | AC6: 2024 | AD6: 2025 | AE6: 2026 | AF6: 2027 | AG6: 2028 | AH6: 2029 | AI6: 2030 | AJ6: 2031 | AK6: 2032 | AL6: 2033
B7: =Expenditure_Detail!$B$6 -> $m, 01/01/23 | K7: =+CONCATENATE(K6-1,"-",RIGHT(K6,2)) -> 2005-06 | L7: =+CONCATENATE(L6-1,"-",RIGHT(L6,2)) -> 2006-07 | M7: 2007-08 | N7: 2008-09 | O7: 2009-10 | P7: 2010-11 | Q7: 2011-12 | R7: 2012-13 | S7: 2013-14 | T7: 2014-15 | U7: 2015-16 | V7: 2016-17 | W7: 2017-18 | X7: =+CONCATENATE(X6-1,"-",RIGHT(X6,2)) -> 2018-19 | Y7: 2019-20 | Z7: 2020-21 | AA7: 2021-22 | AB7: 2022-23 | AC7: 2023-24 | AD7: 2024-25 | AE7: 2025-26 | AF7: 2026-27 | AG7: 2027-28 | AH7: =+CONCATENATE(AH6-1,"-",RIGHT(AH6,2)) -> 2028-29 | AI7: =+CONCATENATE(AI6-1,"-",RIGHT(AI6,2)) -> 2029-30 | AJ7: =+CONCATENATE(AJ6-1,"-",RIGHT(AJ6,2)) -> 2030-31 | AK7: =+CONCATENATE(AK6-1,"-",RIGHT(AK6,2)) -> 2031-32 | AL7: =+CONCATENATE(AL6-1,"-",RIGHT(AL6,2)) -> 2032-33
D10: Operating Expenditure Summary
E12: =C48 -> Water | W12: =+W57-W50-W54 -> 10.60866408 | X12: 14.58449826 | Y12: 11.74389571 | Z12: 13.70843875 | AA12: 11.47967696 | AB12: 12.41938528 | AC12: =+AC57-AC50-AC54 -> 12.54879262 | AD12: 12.62760519 | AE12: 12.66450753 | AF12: 12.80284576 | AG12: 12.74011725 | AH12: 12.68440213 | AI12: 12.69154505 | AJ12: 12.6989478 | AK12: 12.6839701 | AL12: 12.66919078
E13: =C59 -> Sewerage | W13: =W68-W61-W65 -> 9.275402756 | X13: 9.253597652 | Y13: 9.971723926 | Z13: 10.05303591 | AA13: 10.6664431 | AB13: 10.19449693 | AC13: =AC68-AC61-AC65 -> 10.24533488 | AD13: 10.31451404 | AE13: 10.34655268 | AF13: 10.47026193 | AG13: 10.41388459 | AH13: 10.364314 | AI13: 10.37072151 | AJ13: 10.37735982 | AK13: 10.3644902 | AL13: 10.35179714
E14: =C70 -> Recycled Water | W14: =W79-W72-W76 -> 0 | X14: 0 | Y14: 0 | Z14: 0 | AA14: 0 | AB14: 0 | AC14: =AC79-AC72-AC76 -> 0 | AD14: 0 | AE14: 0 | AF14: 0 | AG14: 0 | AH14: 0 | AI14: 0 | AJ14: 0 | AK14: 0 | AL14: 0
E15: =C81 -> Rural Water | W15: =W90-W83-W87 -> 0 | X15: 0 | Y15: 0 | Z15: 0 | AA15: 0 | AB15: 0 | AC15: =AC90-AC83-AC87 -> 0 | AD15: 0 | AE15: 0 | AF15: 0 | AG15: 0 | AH15: 0 | AI15: 0 | AJ15: 0 | AK15: 0 | AL15: 0
E16: Bulk Water | W16: =W100-W97 -> 0 | X16: 0 | Y16: 0 | Z16: 0 | AA16: 0 | AB16: 0 | AC16: =AC100-AC97 -> 0 | AD16: 0 | AE16: 0 | AF16: 0 | AG16: 0 | AH16: 0 | AI16: 0 | AJ16: 0 | AK16: 0 | AL16: 0
E17: Total controllable operating expenditure | W17: =SUM(W12:W16) -> 19.88406683 | X17: 23.83809591 | Y17: 21.71561963 | Z17: 23.76147466 | AA17: 22.14612006 | AB17: 22.61388221 | AC17: 22.7941275 | AD17: 22.94211923 | AE17: 23.01106021 | AF17: 23.27310769 | AG17: 23.15400184 | AH17: =SUM(AH12:AH16) -> 23.04871613 | AI17: =SUM(AI12:AI16) -> 23.06226656 | AJ17: =SUM(AJ12:AJ16) -> 23.07630762 | AK17: =SUM(AK12:AK16) -> 23.0484603 | AL17: =SUM(AL12:AL16) -> 23.02098791
E20: Operations & Maintenance | W20: =W49+W60+W71+W82+W93 -> 4.251252842 | X20: 7.68818206 | Y20: 3.896171779 | Z20: 5.899100458 | AA20: 4.03614958 | AB20: 4.933503954 | AC20: 4.995418633 | AD20: 5.046137068 | AE20: 5.090799007 | AF20: 5.110803085 | AG20: 5.111107081 | AH20: =AH49+AH60+AH71+AH82+AH93 -> 5.104762101 | AI20: =AI49+AI60+AI71+AI82+AI93 -> 5.111044963 | AJ20: =AJ49+AJ60+AJ71+AJ82+AJ93 -> 5.117582655 | AK20: =AK49+AK60+AK71+AK82+AK93 -> 5.097918922 | AL20: =AL49+AL60+AL71+AL82+AL93 -> 5.07844573
E21: Treatment | W21: =W51+W62+W73+W84+W94 -> 4.265086574 | X21: 3.845741563 | Y21: 4.051453988 | Z21: 5.004318662 | AA21: 3.816963421 | AB21: 4.01485047 | AC21: 4.015956474 | AD21: 4.01577249 | AE21: 4.020433977 | AF21: 4.031207039 | AG21: 4.025474559 | AH21: =AH51+AH62+AH73+AH84+AH94 -> 4.028284388 | AI21: 4.032638159 | AJ21: 4.0371119 | AK21: 4.037465277 | AL21: 4.037916122
E22: Customer Service and billing | W22: =W52+W63+W74+W85+W95 -> 0.9487945691 | X22: 1.11706233 | Y22: 1.157558282 | Z22: 1.306942626 | AA22: 1.293237343 | AB22: 1.337943689 | AC22: 1.338283513 | AD22: 1.338561885 | AE22: 1.338807016 | AF22: 1.33891681 | AG22: 1.338918478 | AH22: 1.338883653 | AI22: 1.338918137 | AJ22: 1.33895402 | AK22: 1.338846094 | AL22: 1.338739214
E23: GSL Payments | W23: =W53+W64+W75+W86+W96 -> 0 | X23: 0 | Y23: 0 | Z23: 0 | AA23: 0 | AB23: 0 | AC23: 0 | AD23: 0 | AE23: 0 | AF23: 0 | AG23: 0 | AH23: 0 | AI23: 0 | AJ23: 0 | AK23: 0 | AL23: 0
E24: Corporate | W24: =W55+W66+W77+W88+W98 -> 6.414434065 | X24: 7.248938559 | Y24: 8.157202454 | Z24: 7.757651841 | AA24: 8.263931894 | AB24: 8.179455033 | AC24: 8.389076115 | AD24: 8.401683812 | AE24: 8.412986952 | AF24: 8.418411509 | AG24: 8.41824827 | AH24: =AH55+AH66+AH77+AH88+AH98 -> 8.416787138 | AI24: 8.418531302 | AJ24: 8.42034385 | AK24: 8.415467549 | AL24: 8.410642703
E25: Other operating expenditure | W25: =W56+W67+W78+W89+W99 -> 4.004498782 | X25: 3.938171403 | Y25: 4.453233129 | Z25: 3.793461074 | AA25: 4.735837826 | AB25: 4.148129068 | AC25: 4.055392765 | AD25: 4.139963975 | AE25: 4.148033258 | AF25: 4.37376925 | AG25: 4.260253447 | AH25: 4.159998848 | AI25: 4.161134002 | AJ25: 4.162315198 | AK25: 4.158762459 | AL25: 4.155244146
E26: Total controllable operating expenditure | W26: =SUM(W20:W25) -> 19.88406683 | X26: 23.83809591 | Y26: 21.71561963 | Z26: 23.76147466 | AA26: 22.14612006 | AB26: 22.61388221 | AC26: 22.7941275 | AD26: 22.94211923 | AE26: 23.01106021 | AF26: 23.27310769 | AG26: 23.15400184 | AH26: =SUM(AH20:AH25) -> 23.04871613 | AI26: =SUM(AI20:AI25) -> 23.06226656 | AJ26: =SUM(AJ20:AJ25) -> 23.07630762 | AK26: =SUM(AK20:AK25) -> 23.0484603 | AL26: =SUM(AL20:AL25) -> 23.02098791
AC27: =IF(ROUND(AC26,2)=ROUND(AC17,2),0,1) -> 0 | AD27: =IF(ROUND(AD26,2)=ROUND(AD17,2),0,1) -> 0 | AE27: 0 | AF27: 0 | AG27: 0 | AH27: 0 | AI27: 0 | AJ27: 0 | AK27: 0 | AL27: 0
E29: External bulk water charges (excl. temporary purchases) | W29: =W50+W61+W72+W83 -> 0 | X29: =X50+X61+X72+X83 -> 0.8923880995 | Y29: =Y50+Y61+Y72+Y83 -> 1.023993865 | Z29: 0.7788910806 | AA29: 0.5311106438 | AB29: 0.5937363664 | AC29: 0.5937363664 | AD29: 1.415956528 | AE29: 1.415956528 | AF29: 1.415956528 | AG29: 1.415956528 | AH29: =AH50+AH61+AH72+AH83 -> 1.415956528 | AI29: =AI50+AI61+AI72+AI83 -> 1.415956528 | AJ29: =AJ50+AJ61+AJ72+AJ83 -> 1.415956528 | AK29: =AK50+AK61+AK72+AK83 -> 1.415956528 | AL29: =AL50+AL61+AL72+AL83 -> 1.415956528
E30: External temporary water purchases | W30: =+W102 -> 0 | X30: 0 | Y30: 0 | Z30: 0 | AA30: 0 | AB30: 0 | AC30: 0 | AD30: 0 | AE30: 0 | AF30: 0 | AG30: 0 | AH30: =+AH102 -> 0 | AI30: =+AI102 -> 0 | AJ30: =+AJ102 -> 0 | AK30: =+AK102 -> 0 | AL30: =+AL102 -> 0
E31: Licence fees | W31: =+W109 -> 0.07736742081 | X31: 0.08802841918 | Y31: 0.02497546012 | Z31: 0.09882555154 | AA31: 0.1423791963 | AB31: 0.0838453044 | AC31: 0.0838453044 | AD31: 0.0838453044 | AE31: 0.0838453044 | AF31: 0.0838453044 | AG31: 0.0838453044 | AH31: =+AH109 -> 0.0838453044 | AI31: =+AI109 -> 0.0838453044 | AJ31: =+AJ109 -> 0.0838453044 | AK31: =+AK109 -> 0.0838453044 | AL31: =+AL109 -> 0.0838453044
E32: Environment Contribution | W32: =W111 -> 1.234514932 | X32: 1.353436945 | Y32: 1.335644172 | Z32: 1.454709262 | AA32: 1.438460084 | AB32: 1.368801 | AC32: 1.32893301 | AD32: 1.290226223 | AE32: 1.252646818 | AF32: 1.21616196 | AG32: 1.180739767 | AH32: =AH111 -> 1.146349288 | AI32: =AI111 -> 1.112960474 | AJ32: =AJ111 -> 1.080544149 | AK32: =AK111 -> 1.04907199 | AL32: =AL111 -> 1.018516495
E33: Other non-controllable | W33: =+W124 -> 0 | X33: 0 | Y33: 0 | Z33: 0 | AA33: 0 | AB33: 0 | AC33: 0 | AD33: 0 | AE33: 0 | AF33: 0 | AG33: =+AG124 -> 0 | AH33: 0 | AI33: 0 | AJ33: 0 | AK33: 0 | AL33: 0
E34: Total non-controllable operating expenditure | W34: =SUM(W29:W33) -> 1.311882353 | X34: 2.333853464 | Y34: 2.384613497 | Z34: 2.332425895 | AA34: 2.111949924 | AB34: 2.046382671 | AC34: 2.006514681 | AD34: 2.790028056 | AE34: 2.752448651 | AF34: 2.715963792 | AG34: 2.680541599 | AH34: =SUM(AH29:AH33) -> 2.646151121 | AI34: =SUM(AI29:AI33) -> 2.612762307 | AJ34: =SUM(AJ29:AJ33) -> 2.580345982 | AK34: =SUM(AK29:AK33) -> 2.548873822 | AL34: =SUM(AL29:AL33) -> 2.518318327
E37: Total prescribed operating expenditure | W37: =+W34+W17 -> 21.19594919 | X37: 26.17194938 | Y37: 24.10023313 | Z37: 26.09390056 | AA37: 24.25806999 | AB37: 24.66026488 | AC37: 24.80064218 | AD37: 25.73214729 | AE37: 25.76350886 | AF37: 25.98907149 | AG37: 25.83454343 | AH37: =+AH34+AH17 -> 25.69486725 | AI37: =+AI34+AI17 -> 25.67502887 | AJ37: =+AJ34+AJ17 -> 25.6566536 | AK37: =+AK34+AK17 -> 25.59733412 | AL37: =+AL34+AL17 -> 25.53930624
AB40: To reconcile to 'Opex_FO' tab row 95>> | AC40: =+Opex_FO!AC95 -> 24.80064218 | AD40: =+Opex_FO!AD95 -> 25.73214828 | AE40: =+Opex_FO!AE95 -> 25.76351045 | AF40: =+Opex_FO!AF95 -> 25.98907205 | AG40: =+Opex_FO!AG95 -> 25.83454254 | AH40: =+Opex_FO!AH95 -> 25.69486444 | AI40: =+Opex_FO!AI95 -> 25.67502366 | AJ40: =+Opex_FO!AJ95 -> 25.65664549 | AK40: =+Opex_FO!AK95 -> 25.5973217 | AL40: =+Opex_FO!AL95 -> 25.53928896
AB41: Difference | AC41: =+AC40-AC37 -> -4.278533083e-11 | AD41: 9.949223063e-07 | AE41: 1.587642501e-06 | AF41: 5.693138334e-07 | AG41: -8.911424274e-07 | AH41: =+AH40-AH37 -> -2.811866057e-06 | AI41: =+AI40-AI37 -> -5.212987418e-06 | AJ41: =+AJ40-AJ37 -> -8.116815088e-06 | AK41: =+AK40-AK37 -> -1.24229374e-05 | AL41: =+AL40-AL37 -> -1.728596737e-05
AB42: Test | AC42: =IF(ROUND(AC40,2)=ROUND(AC37,2),0,1) -> 0 | AD42: 0 | AE42: 0 | AF42: 0 | AG42: 0 | AH42: 0 | AI42: 0 | AJ42: 0 | AK42: 0 | AL42: 0
B46: Total operating expenditure
C48: Water
D49: Operations & Maintenance | W49: =[2]Opex_Breakdown!W49 -> 2.287011037 | X49: =[2]Opex_Breakdown!X49 -> 5.553492895 | Y49: =[2]Opex_Breakdown!Y49 -> 1.978490798 | Z49: =[2]Opex_Breakdown!Z49 -> 3.378741388 | AA49: =[2]Opex_Breakdown!AA49 -> 1.373470949 | AB49: =[2]Opex_Breakdown!AB49 -> 2.603684743 | AC49: =[2]Opex_Breakdown!AC49 -> 2.636360566 | AD49: =[2]Opex_Breakdown!AD49 -> 2.663127509 | AE49: =[2]Opex_Breakdown!AE49 -> 2.686698101 | AF49: =[2]Opex_Breakdown!AF49 -> 2.697255366 | AG49: =[2]Opex_Breakdown!AG49 -> 2.697415802 | AH49: =[2]Opex_Breakdown!AH49 -> 2.694067203 | AI49: =[2]Opex_Breakdown!AI49 -> 2.697383019 | AJ49: =[2]Opex_Breakdown!AJ49 -> 2.700833323 | AK49: =[2]Opex_Breakdown!AK49 -> 2.690455677 | AL49: =[2]Opex_Breakdown!AL49 -> 2.680178589
D50: External bulk charges (excl. temporary purchases) | W50: =+W131 -> 0 | X50: 0.8923880995 | Y50: 1.023993865 | Z50: 0.7788910806 | AA50: 0.5311106438 | AB50: 0.5937363664 | AC50: 0.5937363664 | AD50: 1.415956528 | AE50: 1.415956528 | AF50: 1.415956528 | AG50: 1.415956528 | AH50: =+AH131 -> 1.415956528 | AI50: 1.415956528 | AJ50: 1.415956528 | AK50: 1.415956528 | AL50: 1.415956528 | AM50: see reconciliation below
D51: Treatment | W51: =[2]Opex_Breakdown!W51 -> 2.251975012 | X51: =[2]Opex_Breakdown!X51 -> 2.496706039 | Y51: =[2]Opex_Breakdown!Y51 -> 2.495374233 | Z51: =[2]Opex_Breakdown!Z51 -> 3.854108047 | AA51: =[2]Opex_Breakdown!AA51 -> 2.707197138 | AB51: =[2]Opex_Breakdown!AB51 -> 2.762067094 | AC51: =[2]Opex_Breakdown!AC51 -> 2.76302738 | AD51: =[2]Opex_Breakdown!AD51 -> 2.763238768 | AE51: =[2]Opex_Breakdown!AE51 -> 2.765970544 | AF51: =[2]Opex_Breakdown!AF51 -> 2.77177776 | AG51: =[2]Opex_Breakdown!AG51 -> 2.76875426 | AH51: =[2]Opex_Breakdown!AH51 -> 2.770198571 | AI51: =[2]Opex_Breakdown!AI51 -> 2.772534513 | AJ51: =[2]Opex_Breakdown!AJ51 -> 2.77493532 | AK51: =[2]Opex_Breakdown!AK51 -> 2.775002215 | AL51: =[2]Opex_Breakdown!AL51 -> 2.775121708
D52: Customer Service and billing | W52: =[2]Opex_Breakdown!W52 -> 0.5009656015 | X52: =[2]Opex_Breakdown!X52 -> 0.5889910398 | Y52: =[2]Opex_Breakdown!Y52 -> 0.6102699387 | Z52: =[2]Opex_Breakdown!Z52 -> 0.7004271915 | AA52: =[2]Opex_Breakdown!AA52 -> 0.6996124194 | AB52: =[2]Opex_Breakdown!AB52 -> 0.7337678992 | AC52: =[2]Opex_Breakdown!AC52 -> 0.7340693707 | AD52: =[2]Opex_Breakdown!AD52 -> 0.7343163261 | AE52: =[2]Opex_Breakdown!AE52 -> 0.7345337915 | AF52: =[2]Opex_Breakdown!AF52 -> 0.7346311943 | AG52: =[2]Opex_Breakdown!AG52 -> 0.7346326745 | AH52: =[2]Opex_Breakdown!AH52 -> 0.7346017799 | AI52: =[2]Opex_Breakdown!AI52 -> 0.734632372 | AJ52: =[2]Opex_Breakdown!AJ52 -> 0.734664205 | AK52: =[2]Opex_Breakdown!AK52 -> 0.7345684594 | AL52: =[2]Opex_Breakdown!AL52 -> 0.7344736417
D53: GSL Payments | W53: =[2]Opex_Breakdown!W53 -> 0 | X53: =[2]Opex_Breakdown!X53 -> 0 | Y53: =[2]Opex_Breakdown!Y53 -> 0 | Z53: =[2]Opex_Breakdown!Z53 -> 0 | AA53: =[2]Opex_Breakdown!AA53 -> 0 | AB53: =[2]Opex_Breakdown!AB53 -> 0 | AC53: =[2]Opex_Breakdown!AC53 -> 0 | AD53: =[2]Opex_Breakdown!AD53 -> 0 | AE53: =[2]Opex_Breakdown!AE53 -> 0 | AF53: =[2]Opex_Breakdown!AF53 -> 0 | AG53: =[2]Opex_Breakdown!AG53 -> 0 | AH53: =[2]Opex_Breakdown!AH53 -> 0 | AI53: =[2]Opex_Breakdown!AI53 -> 0 | AJ53: =[2]Opex_Breakdown!AJ53 -> 0 | AK53: =[2]Opex_Breakdown!AK53 -> 0 | AL53: =[2]Opex_Breakdown!AL53 -> 0
D54: Licence Fees | W54: =[2]Opex_Breakdown!W54 -> 0.01906153846 | X54: =[2]Opex_Breakdown!X54 -> 0.02310746004 | Y54: =[2]Opex_Breakdown!Y54 -> 0.01248773006 | Z54: =[2]Opex_Breakdown!Z54 -> 0.02419645535 | AA54: =[2]Opex_Breakdown!AA54 -> 0.04786684236 | AB54: =[2]Opex_Breakdown!AB54 -> 0.01938984149 | AC54: =[2]Opex_Breakdown!AC54 -> 0.01938984149 | AD54: =[2]Opex_Breakdown!AD54 -> 0.01938984149 | AE54: =[2]Opex_Breakdown!AE54 -> 0.01938984149 | AF54: =[2]Opex_Breakdown!AF54 -> 0.01938984149 | AG54: =[2]Opex_Breakdown!AG54 -> 0.01938984149 | AH54: =[2]Opex_Breakdown!AH54 -> 0.01938984149 | AI54: =[2]Opex_Breakdown!AI54 -> 0.01938984149 | AJ54: =[2]Opex_Breakdown!AJ54 -> 0.01938984149 | AK54: =[2]Opex_Breakdown!AK54 -> 0.01938984149 | AL54: =[2]Opex_Breakdown!AL54 -> 0.01938984149
D55: Corporate | W55: =[2]Opex_Breakdown!W55 -> 3.386835174 | X55: =[2]Opex_Breakdown!X55 -> 3.822132164 | Y55: =[2]Opex_Breakdown!Y55 -> 4.296865031 | Z55: =[2]Opex_Breakdown!Z55 -> 4.206237537 | AA55: =[2]Opex_Breakdown!AA55 -> 4.464686117 | AB55: =[2]Opex_Breakdown!AB55 -> 4.389654782 | AC55: =[2]Opex_Breakdown!AC55 -> 4.534258857 | AD55: =[2]Opex_Breakdown!AD55 -> 4.541370652 | AE55: =[2]Opex_Breakdown!AE55 -> 4.547633199 | AF55: =[2]Opex_Breakdown!AF55 -> 4.550438192 | AG55: =[2]Opex_Breakdown!AG55 -> 4.550480819 | AH55: =[2]Opex_Breakdown!AH55 -> 4.549591119 | AI55: =[2]Opex_Breakdown!AI55 -> 4.550472109 | AJ55: =[2]Opex_Breakdown!AJ55 -> 4.551388831 | AK55: =[2]Opex_Breakdown!AK55 -> 4.548631561 | AL55: =[2]Opex_Breakdown!AL55 -> 4.545901008
D56: Other operating expenditure | W56: =[2]Opex_Breakdown!W56 -> 2.181877251 | X56: =[2]Opex_Breakdown!X56 -> 2.123176125 | Y56: =[2]Opex_Breakdown!Y56 -> 2.362895706 | Z56: =[2]Opex_Breakdown!Z56 -> 1.568924591 | AA56: =[2]Opex_Breakdown!AA56 -> 2.234710339 | AB56: =[2]Opex_Breakdown!AB56 -> 1.930210764 | AC56: =[2]Opex_Breakdown!AC56 -> 1.881076446 | AD56: =[2]Opex_Breakdown!AD56 -> 1.925551934 | AE56: =[2]Opex_Breakdown!AE56 -> 1.929671895 | AF56: =[2]Opex_Breakdown!AF56 -> 2.048743248 | AG56: =[2]Opex_Breakdown!AG56 -> 1.988833694 | AH56: =[2]Opex_Breakdown!AH56 -> 1.935943457 | AI56: =[2]Opex_Breakdown!AI56 -> 1.936523036 | AJ56: =[2]Opex_Breakdown!AJ56 -> 1.937126124 | AK56: =[2]Opex_Breakdown!AK56 -> 1.935312189 | AL56: =[2]Opex_Breakdown!AL56 -> 1.933515832
C57: =+CONCATENATE("Total ",C48) -> Total Water | K57: =+SUM(K49:K56) -> 0 | L57: =+SUM(L49:L56) -> 0 | M57: 0 | N57: 0 | O57: 0 | P57: 0 | Q57: 0 | R57: 0 | S57: 0 | T57: 0 | U57: 0 | V57: 0 | W57: =+SUM(W49:W56) -> 10.62772561 | X57: 15.49999382 | Y57: 12.7803773 | Z57: 14.51152629 | AA57: 12.05865445 | AB57: 13.03251149 | AC57: 13.16191883 | AD57: 14.06295156 | AE57: 14.0998539 | AF57: 14.23819213 | AG57: 14.17546362 | AH57: =+SUM(AH49:AH56) -> 14.1197485 | AI57: =+SUM(AI49:AI56) -> 14.12689142 | AJ57: =+SUM(AJ49:AJ56) -> 14.13429417 | AK57: =+SUM(AK49:AK56) -> 14.11931647 | AL57: =+SUM(AL49:AL56) -> 14.10453715
C59: Sewerage
D60: =+D49 -> Operations & Maintenance | W60: =[2]Opex_Breakdown!W60 -> 1.964241805 | X60: =[2]Opex_Breakdown!X60 -> 2.134689165 | Y60: =[2]Opex_Breakdown!Y60 -> 1.917680982 | Z60: =[2]Opex_Breakdown!Z60 -> 2.52035907 | AA60: =[2]Opex_Breakdown!AA60 -> 2.662678632 | AB60: =[2]Opex_Breakdown!AB60 -> 2.329819211 | AC60: =[2]Opex_Breakdown!AC60 -> 2.359058066 | AD60: =[2]Opex_Breakdown!AD60 -> 2.383009559 | AE60: =[2]Opex_Breakdown!AE60 -> 2.404100906 | AF60: =[2]Opex_Breakdown!AF60 -> 2.413547718 | AG60: =[2]Opex_Breakdown!AG60 -> 2.413691279 | AH60: =[2]Opex_Breakdown!AH60 -> 2.410694898 | AI60: =[2]Opex_Breakdown!AI60 -> 2.413661944 | AJ60: =[2]Opex_Breakdown!AJ60 -> 2.416749332 | AK60: =[2]Opex_Breakdown!AK60 -> 2.407463246 | AL60: =[2]Opex_Breakdown!AL60 -> 2.398267141
D61: =+D50 -> External bulk charges (excl. temporary purchases) | W61: =+W132 -> 0 | X61: 0 | Y61: 0 | Z61: 0 | AA61: 0 | AB61: 0 | AC61: 0 | AD61: 0 | AE61: 0 | AF61: 0 | AG61: 0 | AH61: =+AH132 -> 0 | AI61: 0 | AJ61: 0 | AK61: 0 | AL61: 0 | AM61: see reconciliation below
D62: Treatment | W62: =[2]Opex_Breakdown!W62 -> 2.013111562 | X62: =[2]Opex_Breakdown!X62 -> 1.349035524 | Y62: =[2]Opex_Breakdown!Y62 -> 1.556079755 | Z62: =[2]Opex_Breakdown!Z62 -> 1.150210615 | AA62: =[2]Opex_Breakdown!AA62 -> 1.109766283 | AB62: =[2]Opex_Breakdown!AB62 -> 1.252783376 | AC62: =[2]Opex_Breakdown!AC62 -> 1.252929094 | AD62: =[2]Opex_Breakdown!AD62 -> 1.252533722 | AE62: =[2]Opex_Breakdown!AE62 -> 1.254463433 | AF62: =[2]Opex_Breakdown!AF62 -> 1.259429279 | AG62: =[2]Opex_Breakdown!AG62 -> 1.256720299 | AH62: =[2]Opex_Breakdown!AH62 -> 1.258085817 | AI62: =[2]Opex_Breakdown!AI62 -> 1.260103646 | AJ62: =[2]Opex_Breakdown!AJ62 -> 1.26217658 | AK62: =[2]Opex_Breakdown!AK62 -> 1.262463062 | AL62: =[2]Opex_Breakdown!AL62 -> 1.262794413
D63: Customer Service and billing | W63: =[2]Opex_Breakdown!W63 -> 0.4478289676 | X63: =[2]Opex_Breakdown!X63 -> 0.5280712897 | Y63: =[2]Opex_Breakdown!Y63 -> 0.5472883436 | Z63: =[2]Opex_Breakdown!Z63 -> 0.606515435 | AA63: =[2]Opex_Breakdown!AA63 -> 0.5936249231 | AB63: =[2]Opex_Breakdown!AB63 -> 0.60417579 | AC63: =[2]Opex_Breakdown!AC63 -> 0.6042141422 | AD63: =[2]Opex_Breakdown!AD63 -> 0.6042455591 | AE63: =[2]Opex_Breakdown!AE63 -> 0.6042732243 | AF63: =[2]Opex_Breakdown!AF63 -> 0.6042856155 | AG63: =[2]Opex_Breakdown!AG63 -> 0.6042858038 | AH63: =[2]Opex_Breakdown!AH63 -> 0.6042818735 | AI63: =[2]Opex_Breakdown!AI63 -> 0.6042857654 | AJ63: =[2]Opex_Breakdown!AJ63 -> 0.6042898151 | AK63: =[2]Opex_Breakdown!AK63 -> 0.6042776346 | AL63: =[2]Opex_Breakdown!AL63 -> 0.6042655722
D64: GSL Payments | W64: =[2]Opex_Breakdown!W64 -> 0 | X64: =[2]Opex_Breakdown!X64 -> 0 | Y64: =[2]Opex_Breakdown!Y64 -> 0 | Z64: =[2]Opex_Breakdown!Z64 -> 0 | AA64: =[2]Opex_Breakdown!AA64 -> 0 | AB64: =[2]Opex_Breakdown!AB64 -> 0 | AC64: =[2]Opex_Breakdown!AC64 -> 0 | AD64: =[2]Opex_Breakdown!AD64 -> 0 | AE64: =[2]Opex_Breakdown!AE64 -> 0 | AF64: =[2]Opex_Breakdown!AF64 -> 0 | AG64: =[2]Opex_Breakdown!AG64 -> 0 | AH64: =[2]Opex_Breakdown!AH64 -> 0 | AI64: =[2]Opex_Breakdown!AI64 -> 0 | AJ64: =[2]Opex_Breakdown!AJ64 -> 0 | AK64: =[2]Opex_Breakdown!AK64 -> 0 | AL64: =[2]Opex_Breakdown!AL64 -> 0
D65: Licence Fees | W65: =[2]Opex_Breakdown!W65 -> 0.05830588235 | X65: =[2]Opex_Breakdown!X65 -> 0.06492095915 | Y65: =[2]Opex_Breakdown!Y65 -> 0.01248773006 | Z65: =[2]Opex_Breakdown!Z65 -> 0.0746290962 | AA65: =[2]Opex_Breakdown!AA65 -> 0.09451235397 | AB65: =[2]Opex_Breakdown!AB65 -> 0.06445546291 | AC65: =[2]Opex_Breakdown!AC65 -> 0.06445546291 | AD65: =[2]Opex_Breakdown!AD65 -> 0.06445546291 | AE65: =[2]Opex_Breakdown!AE65 -> 0.06445546291 | AF65: =[2]Opex_Breakdown!AF65 -> 0.06445546291 | AG65: =[2]Opex_Breakdown!AG65 -> 0.06445546291 | AH65: =[2]Opex_Breakdown!AH65 -> 0.06445546291 | AI65: =[2]Opex_Breakdown!AI65 -> 0.06445546291 | AJ65: =[2]Opex_Breakdown!AJ65 -> 0.06445546291 | AK65: =[2]Opex_Breakdown!AK65 -> 0.06445546291 | AL65: =[2]Opex_Breakdown!AL65 -> 0.06445546291
D66: Corporate | W66: =[2]Opex_Breakdown!W66 -> 3.027598891 | X66: =[2]Opex_Breakdown!X66 -> 3.426806394 | Y66: =[2]Opex_Breakdown!Y66 -> 3.860337423 | Z66: =[2]Opex_Breakdown!Z66 -> 3.551414305 | AA66: =[2]Opex_Breakdown!AA66 -> 3.799245777 | AB66: =[2]Opex_Breakdown!AB66 -> 3.789800251 | AC66: =[2]Opex_Breakdown!AC66 -> 3.854817258 | AD66: =[2]Opex_Breakdown!AD66 -> 3.86031316 | AE66: =[2]Opex_Breakdown!AE66 -> 3.865353753 | AF66: =[2]Opex_Breakdown!AF66 -> 3.867973317 | AG66: =[2]Opex_Breakdown!AG66 -> 3.867767451 | AH66: =[2]Opex_Breakdown!AH66 -> 3.867196019 | AI66: =[2]Opex_Breakdown!AI66 -> 3.868059193 | AJ66: =[2]Opex_Breakdown!AJ66 -> 3.868955019 | AK66: =[2]Opex_Breakdown!AK66 -> 3.866835988 | AL66: =[2]Opex_Breakdown!AL66 -> 3.864741695
D67: Other operating expenditure | W67: =[2]Opex_Breakdown!W67 -> 1.822621531 | X67: =[2]Opex_Breakdown!X67 -> 1.814995278 | Y67: =[2]Opex_Breakdown!Y67 -> 2.090337423 | Z67: =[2]Opex_Breakdown!Z67 -> 2.224536484 | AA67: =[2]Opex_Breakdown!AA67 -> 2.501127488 | AB67: =[2]Opex_Breakdown!AB67 -> 2.217918303 | AC67: =[2]Opex_Breakdown!AC67 -> 2.174316318 | AD67: =[2]Opex_Breakdown!AD67 -> 2.214412042 | AE67: =[2]Opex_Breakdown!AE67 -> 2.218361362 | AF67: =[2]Opex_Breakdown!AF67 -> 2.325026003 | AG67: =[2]Opex_Breakdown!AG67 -> 2.271419753 | AH67: =[2]Opex_Breakdown!AH67 -> 2.224055391 | AI67: =[2]Opex_Breakdown!AI67 -> 2.224610966 | AJ67: =[2]Opex_Breakdown!AJ67 -> 2.225189074 | AK67: =[2]Opex_Breakdown!AK67 -> 2.223450269 | AL67: =[2]Opex_Breakdown!AL67 -> 2.221728314
C68: =+CONCATENATE("Total ",C59) -> Total Sewerage | W68: =+SUM(W60:W67) -> 9.333708639 | X68: 9.318518611 | Y68: 9.984211656 | Z68: 10.12766501 | AA68: 10.76095546 | AB68: 10.25895239 | AC68: 10.30979034 | AD68: 10.3789695 | AE68: 10.41100814 | AF68: 10.53471739 | AG68: 10.47834005 | AH68: =+SUM(AH60:AH67) -> 10.42876946 | AI68: =+SUM(AI60:AI67) -> 10.43517698 | AJ68: =+SUM(AJ60:AJ67) -> 10.44181528 | AK68: =+SUM(AK60:AK67) -> 10.42894566 | AL68: =+SUM(AL60:AL67) -> 10.4162526
C70: Recycled Water
D71: =+D60 -> Operations & Maintenance | W71: =[2]Opex_Breakdown!W71 -> 0 | X71: =[2]Opex_Breakdown!X71 -> 0 | Y71: =[2]Opex_Breakdown!Y71 -> 0 | Z71: =[2]Opex_Breakdown!Z71 -> 0 | AA71: =[2]Opex_Breakdown!AA71 -> 0 | AB71: =[2]Opex_Breakdown!AB71 -> 0 | AC71: =[2]Opex_Breakdown!AC71 -> 0 | AD71: =[2]Opex_Breakdown!AD71 -> 0 | AE71: =[2]Opex_Breakdown!AE71 -> 0 | AF71: =[2]Opex_Breakdown!AF71 -> 0 | AG71: =[2]Opex_Breakdown!AG71 -> 0 | AH71: =[2]Opex_Breakdown!AH71 -> 0 | AI71: =[2]Opex_Breakdown!AI71 -> 0 | AJ71: =[2]Opex_Breakdown!AJ71 -> 0 | AK71: =[2]Opex_Breakdown!AK71 -> 0 | AL71: =[2]Opex_Breakdown!AL71 -> 0
D72: =+D61 -> External bulk charges (excl. temporary purchases) | W72: =+W133 -> 0 | X72: 0 | Y72: 0 | Z72: 0 | AA72: 0 | AB72: 0 | AC72: 0 | AD72: 0 | AE72: 0 | AF72: 0 | AG72: 0 | AH72: =+AH133 -> 0 | AI72: 0 | AJ72: 0 | AK72: 0 | AL72: 0 | AM72: see reconciliation below
D73: Treatment | W73: =[2]Opex_Breakdown!W73 -> 0 | X73: =[2]Opex_Breakdown!X73 -> 0 | Y73: =[2]Opex_Breakdown!Y73 -> 0 | Z73: =[2]Opex_Breakdown!Z73 -> 0 | AA73: =[2]Opex_Breakdown!AA73 -> 0 | AB73: =[2]Opex_Breakdown!AB73 -> 0 | AC73: =[2]Opex_Breakdown!AC73 -> 0 | AD73: =[2]Opex_Breakdown!AD73 -> 0 | AE73: =[2]Opex_Breakdown!AE73 -> 0 | AF73: =[2]Opex_Breakdown!AF73 -> 0 | AG73: =[2]Opex_Breakdown!AG73 -> 0 | AH73: =[2]Opex_Breakdown!AH73 -> 0 | AI73: =[2]Opex_Breakdown!AI73 -> 0 | AJ73: =[2]Opex_Breakdown!AJ73 -> 0 | AK73: =[2]Opex_Breakdown!AK73 -> 0 | AL73: =[2]Opex_Breakdown!AL73 -> 0
D74: Customer Service and billing | W74: =[2]Opex_Breakdown!W74 -> 0 | X74: =[2]Opex_Breakdown!X74 -> 0 | Y74: =[2]Opex_Breakdown!Y74 -> 0 | Z74: =[2]Opex_Breakdown!Z74 -> 0 | AA74: =[2]Opex_Breakdown!AA74 -> 0 | AB74: =[2]Opex_Breakdown!AB74 -> 0 | AC74: =[2]Opex_Breakdown!AC74 -> 0 | AD74: =[2]Opex_Breakdown!AD74 -> 0 | AE74: =[2]Opex_Breakdown!AE74 -> 0 | AF74: =[2]Opex_Breakdown!AF74 -> 0 | AG74: =[2]Opex_Breakdown!AG74 -> 0 | AH74: =[2]Opex_Breakdown!AH74 -> 0 | AI74: =[2]Opex_Breakdown!AI74 -> 0 | AJ74: =[2]Opex_Breakdown!AJ74 -> 0 | AK74: =[2]Opex_Breakdown!AK74 -> 0 | AL74: =[2]Opex_Breakdown!AL74 -> 0
D75: GSL Payments | W75: =[2]Opex_Breakdown!W75 -> 0 | X75: =[2]Opex_Breakdown!X75 -> 0 | Y75: =[2]Opex_Breakdown!Y75 -> 0 | Z75: =[2]Opex_Breakdown!Z75 -> 0 | AA75: =[2]Opex_Breakdown!AA75 -> 0 | AB75: =[2]Opex_Breakdown!AB75 -> 0 | AC75: =[2]Opex_Breakdown!AC75 -> 0 | AD75: =[2]Opex_Breakdown!AD75 -> 0 | AE75: =[2]Opex_Breakdown!AE75 -> 0 | AF75: =[2]Opex_Breakdown!AF75 -> 0 | AG75: =[2]Opex_Breakdown!AG75 -> 0 | AH75: =[2]Opex_Breakdown!AH75 -> 0 | AI75: =[2]Opex_Breakdown!AI75 -> 0 | AJ75: =[2]Opex_Breakdown!AJ75 -> 0 | AK75: =[2]Opex_Breakdown!AK75 -> 0 | AL75: =[2]Opex_Breakdown!AL75 -> 0
D76: Licence Fees | W76: =[2]Opex_Breakdown!W76 -> 0 | X76: =[2]Opex_Breakdown!X76 -> 0 | Y76: =[2]Opex_Breakdown!Y76 -> 0 | Z76: =[2]Opex_Breakdown!Z76 -> 0 | AA76: =[2]Opex_Breakdown!AA76 -> 0 | AB76: =[2]Opex_Breakdown!AB76 -> 0 | AC76: =[2]Opex_Breakdown!AC76 -> 0 | AD76: =[2]Opex_Breakdown!AD76 -> 0 | AE76: =[2]Opex_Breakdown!AE76 -> 0 | AF76: =[2]Opex_Breakdown!AF76 -> 0 | AG76: =[2]Opex_Breakdown!AG76 -> 0 | AH76: =[2]Opex_Breakdown!AH76 -> 0 | AI76: =[2]Opex_Breakdown!AI76 -> 0 | AJ76: =[2]Opex_Breakdown!AJ76 -> 0 | AK76: =[2]Opex_Breakdown!AK76 -> 0 | AL76: =[2]Opex_Breakdown!AL76 -> 0
D77: Corporate | W77: =[2]Opex_Breakdown!W77 -> 0 | X77: =[2]Opex_Breakdown!X77 -> 0 | Y77: =[2]Opex_Breakdown!Y77 -> 0 | Z77: =[2]Opex_Breakdown!Z77 -> 0 | AA77: =[2]Opex_Breakdown!AA77 -> 0 | AB77: =[2]Opex_Breakdown!AB77 -> 0 | AC77: =[2]Opex_Breakdown!AC77 -> 0 | AD77: =[2]Opex_Breakdown!AD77 -> 0 | AE77: =[2]Opex_Breakdown!AE77 -> 0 | AF77: =[2]Opex_Breakdown!AF77 -> 0 | AG77: =[2]Opex_Breakdown!AG77 -> 0 | AH77: =[2]Opex_Breakdown!AH77 -> 0 | AI77: =[2]Opex_Breakdown!AI77 -> 0 | AJ77: =[2]Opex_Breakdown!AJ77 -> 0 | AK77: =[2]Opex_Breakdown!AK77 -> 0 | AL77: =[2]Opex_Breakdown!AL77 -> 0
D78: Other operating expenditure | W78: =[2]Opex_Breakdown!W78 -> 0 | X78: =[2]Opex_Breakdown!X78 -> 0 | Y78: =[2]Opex_Breakdown!Y78 -> 0 | Z78: =[2]Opex_Breakdown!Z78 -> 0 | AA78: =[2]Opex_Breakdown!AA78 -> 0 | AB78: =[2]Opex_Breakdown!AB78 -> 0 | AC78: =[2]Opex_Breakdown!AC78 -> 0 | AD78: =[2]Opex_Breakdown!AD78 -> 0 | AE78: =[2]Opex_Breakdown!AE78 -> 0 | AF78: =[2]Opex_Breakdown!AF78 -> 0 | AG78: =[2]Opex_Breakdown!AG78 -> 0 | AH78: =[2]Opex_Breakdown!AH78 -> 0 | AI78: =[2]Opex_Breakdown!AI78 -> 0 | AJ78: =[2]Opex_Breakdown!AJ78 -> 0 | AK78: =[2]Opex_Breakdown!AK78 -> 0 | AL78: =[2]Opex_Breakdown!AL78 -> 0
C79: =+CONCATENATE("Total ",C70) -> Total Recycled Water | W79: =+SUM(W71:W78) -> 0 | X79: 0 | Y79: 0 | Z79: 0 | AA79: 0 | AB79: 0 | AC79: 0 | AD79: 0 | AE79: 0 | AF79: 0 | AG79: 0 | AH79: =+SUM(AH71:AH78) -> 0 | AI79: =+SUM(AI71:AI78) -> 0 | AJ79: =+SUM(AJ71:AJ78) -> 0 | AK79: =+SUM(AK71:AK78) -> 0 | AL79: =+SUM(AL71:AL78) -> 0
C81: Rural Water
D82: =+D60 -> Operations & Maintenance | W82: =[2]Opex_Breakdown!W82 -> 0 | X82: =[2]Opex_Breakdown!X82 -> 0 | Y82: =[2]Opex_Breakdown!Y82 -> 0 | Z82: =[2]Opex_Breakdown!Z82 -> 0 | AA82: =[2]Opex_Breakdown!AA82 -> 0 | AB82: =[2]Opex_Breakdown!AB82 -> 0 | AC82: =[2]Opex_Breakdown!AC82 -> 0 | AD82: =[2]Opex_Breakdown!AD82 -> 0 | AE82: =[2]Opex_Breakdown!AE82 -> 0 | AF82: =[2]Opex_Breakdown!AF82 -> 0 | AG82: =[2]Opex_Breakdown!AG82 -> 0 | AH82: =[2]Opex_Breakdown!AH82 -> 0 | AI82: =[2]Opex_Breakdown!AI82 -> 0 | AJ82: =[2]Opex_Breakdown!AJ82 -> 0 | AK82: =[2]Opex_Breakdown!AK82 -> 0 | AL82: =[2]Opex_Breakdown!AL82 -> 0
D83: =+D61 -> External bulk charges (excl. temporary purchases) | W83: =+W134 -> 0 | X83: 0 | Y83: 0 | Z83: 0 | AA83: 0 | AB83: 0 | AC83: 0 | AD83: 0 | AE83: 0 | AF83: 0 | AG83: 0 | AH83: =+AH134 -> 0 | AI83: 0 | AJ83: 0 | AK83: 0 | AL83: 0 | AM83: see reconciliation below
D84: Treatment | W84: =[2]Opex_Breakdown!W84 -> 0 | X84: =[2]Opex_Breakdown!X84 -> 0 | Y84: =[2]Opex_Breakdown!Y84 -> 0 | Z84: =[2]Opex_Breakdown!Z84 -> 0 | AA84: =[2]Opex_Breakdown!AA84 -> 0 | AB84: =[2]Opex_Breakdown!AB84 -> 0 | AC84: =[2]Opex_Breakdown!AC84 -> 0 | AD84: =[2]Opex_Breakdown!AD84 -> 0 | AE84: =[2]Opex_Breakdown!AE84 -> 0 | AF84: =[2]Opex_Breakdown!AF84 -> 0 | AG84: =[2]Opex_Breakdown!AG84 -> 0 | AH84: =[2]Opex_Breakdown!AH84 -> 0 | AI84: =[2]Opex_Breakdown!AI84 -> 0 | AJ84: =[2]Opex_Breakdown!AJ84 -> 0 | AK84: =[2]Opex_Breakdown!AK84 -> 0 | AL84: =[2]Opex_Breakdown!AL84 -> 0
D85: Customer Service and billing | W85: =[2]Opex_Breakdown!W85 -> 0 | X85: =[2]Opex_Breakdown!X85 -> 0 | Y85: =[2]Opex_Breakdown!Y85 -> 0 | Z85: =[2]Opex_Breakdown!Z85 -> 0 | AA85: =[2]Opex_Breakdown!AA85 -> 0 | AB85: =[2]Opex_Breakdown!AB85 -> 0 | AC85: =[2]Opex_Breakdown!AC85 -> 0 | AD85: =[2]Opex_Breakdown!AD85 -> 0 | AE85: =[2]Opex_Breakdown!AE85 -> 0 | AF85: =[2]Opex_Breakdown!AF85 -> 0 | AG85: =[2]Opex_Breakdown!AG85 -> 0 | AH85: =[2]Opex_Breakdown!AH85 -> 0 | AI85: =[2]Opex_Breakdown!AI85 -> 0 | AJ85: =[2]Opex_Breakdown!AJ85 -> 0 | AK85: =[2]Opex_Breakdown!AK85 -> 0 | AL85: =[2]Opex_Breakdown!AL85 -> 0
D86: GSL Payments | W86: =[2]Opex_Breakdown!W86 -> 0 | X86: =[2]Opex_Breakdown!X86 -> 0 | Y86: =[2]Opex_Breakdown!Y86 -> 0 | Z86: =[2]Opex_Breakdown!Z86 -> 0 | AA86: =[2]Opex_Breakdown!AA86 -> 0 | AB86: =[2]Opex_Breakdown!AB86 -> 0 | AC86: =[2]Opex_Breakdown!AC86 -> 0 | AD86: =[2]Opex_Breakdown!AD86 -> 0 | AE86: =[2]Opex_Breakdown!AE86 -> 0 | AF86: =[2]Opex_Breakdown!AF86 -> 0 | AG86: =[2]Opex_Breakdown!AG86 -> 0 | AH86: =[2]Opex_Breakdown!AH86 -> 0 | AI86: =[2]Opex_Breakdown!AI86 -> 0 | AJ86: =[2]Opex_Breakdown!AJ86 -> 0 | AK86: =[2]Opex_Breakdown!AK86 -> 0 | AL86: =[2]Opex_Breakdown!AL86 -> 0
D87: Licence Fees | W87: =[2]Opex_Breakdown!W87 -> 0 | X87: =[2]Opex_Breakdown!X87 -> 0 | Y87: =[2]Opex_Breakdown!Y87 -> 0 | Z87: =[2]Opex_Breakdown!Z87 -> 0 | AA87: =[2]Opex_Breakdown!AA87 -> 0 | AB87: =[2]Opex_Breakdown!AB87 -> 0 | AC87: =[2]Opex_Breakdown!AC87 -> 0 | AD87: =[2]Opex_Breakdown!AD87 -> 0 | AE87: =[2]Opex_Breakdown!AE87 -> 0 | AF87: =[2]Opex_Breakdown!AF87 -> 0 | AG87: =[2]Opex_Breakdown!AG87 -> 0 | AH87: =[2]Opex_Breakdown!AH87 -> 0 | AI87: =[2]Opex_Breakdown!AI87 -> 0 | AJ87: =[2]Opex_Breakdown!AJ87 -> 0 | AK87: =[2]Opex_Breakdown!AK87 -> 0 | AL87: =[2]Opex_Breakdown!AL87 -> 0
D88: Corporate | W88: =[2]Opex_Breakdown!W88 -> 0 | X88: =[2]Opex_Breakdown!X88 -> 0 | Y88: =[2]Opex_Breakdown!Y88 -> 0 | Z88: =[2]Opex_Breakdown!Z88 -> 0 | AA88: =[2]Opex_Breakdown!AA88 -> 0 | AB88: =[2]Opex_Breakdown!AB88 -> 0 | AC88: =[2]Opex_Breakdown!AC88 -> 0 | AD88: =[2]Opex_Breakdown!AD88 -> 0 | AE88: =[2]Opex_Breakdown!AE88 -> 0 | AF88: =[2]Opex_Breakdown!AF88 -> 0 | AG88: =[2]Opex_Breakdown!AG88 -> 0 | AH88: =[2]Opex_Breakdown!AH88 -> 0 | AI88: =[2]Opex_Breakdown!AI88 -> 0 | AJ88: =[2]Opex_Breakdown!AJ88 -> 0 | AK88: =[2]Opex_Breakdown!AK88 -> 0 | AL88: =[2]Opex_Breakdown!AL88 -> 0
D89: Other operating expenditure | W89: =[2]Opex_Breakdown!W89 -> 0 | X89: =[2]Opex_Breakdown!X89 -> 0 | Y89: =[2]Opex_Breakdown!Y89 -> 0 | Z89: =[2]Opex_Breakdown!Z89 -> 0 | AA89: =[2]Opex_Breakdown!AA89 -> 0 | AB89: =[2]Opex_Breakdown!AB89 -> 0 | AC89: =[2]Opex_Breakdown!AC89 -> 0 | AD89: =[2]Opex_Breakdown!AD89 -> 0 | AE89: =[2]Opex_Breakdown!AE89 -> 0 | AF89: =[2]Opex_Breakdown!AF89 -> 0 | AG89: =[2]Opex_Breakdown!AG89 -> 0 | AH89: =[2]Opex_Breakdown!AH89 -> 0 | AI89: =[2]Opex_Breakdown!AI89 -> 0 | AJ89: =[2]Opex_Breakdown!AJ89 -> 0 | AK89: =[2]Opex_Breakdown!AK89 -> 0 | AL89: =[2]Opex_Breakdown!AL89 -> 0
C90: =+CONCATENATE("Total ",C81) -> Total Rural Water | W90: =+SUM(W82:W89) -> 0 | X90: 0 | Y90: 0 | Z90: 0 | AA90: 0 | AB90: 0 | AC90: 0 | AD90: 0 | AE90: 0 | AF90: 0 | AG90: 0 | AH90: =+SUM(AH82:AH89) -> 0 | AI90: =+SUM(AI82:AI89) -> 0 | AJ90: =+SUM(AJ82:AJ89) -> 0 | AK90: =+SUM(AK82:AK89) -> 0 | AL90: =+SUM(AL82:AL89) -> 0
C92: Bulk Water
D93: Operations & Maintenance
D94: Treatment
D95: Customer Service and billing
D96: GSL Payments
D97: Licence Fees
D98: Corporate
D99: Other operating expenditure
C100: Total Bulk water | W100: =+SUM(W93:W99) -> 0 | X100: 0 | Y100: 0 | Z100: 0 | AA100: 0 | AB100: 0 | AC100: 0 | AD100: 0 | AE100: 0 | AF100: 0 | AG100: 0 | AH100: =+SUM(AH93:AH99) -> 0 | AI100: =+SUM(AI93:AI99) -> 0 | AJ100: =+SUM(AJ93:AJ99) -> 0 | AK100: =+SUM(AK93:AK99) -> 0 | AL100: =+SUM(AL93:AL99) -> 0
C102: External temporary water purchases
C105: Licence fees
D106: Essential Services Commission | W106: =[2]Opex_Breakdown!W106 -> 0.0246678733 | X106: =[2]Opex_Breakdown!X106 -> 0.02420781528 | Y106: =[2]Opex_Breakdown!Y106 -> 0.01303067485 | Z106: =[2]Opex_Breakdown!Z106 -> 0.03477913379 | AA106: =[2]Opex_Breakdown!AA106 -> 0.06095311468 | AB106: =[2]Opex_Breakdown!AB106 -> 0.0231195924 | AC106: =[2]Opex_Breakdown!AC106 -> 0.0231195924 | AD106: =[2]Opex_Breakdown!AD106 -> 0.0231195924 | AE106: =[2]Opex_Breakdown!AE106 -> 0.0231195924 | AF106: =[2]Opex_Breakdown!AF106 -> 0.0231195924 | AG106: =[2]Opex_Breakdown!AG106 -> 0.0231195924 | AH106: =[2]Opex_Breakdown!AH106 -> 0.0231195924 | AI106: =[2]Opex_Breakdown!AI106 -> 0.0231195924 | AJ106: =[2]Opex_Breakdown!AJ106 -> 0.0231195924 | AK106: =[2]Opex_Breakdown!AK106 -> 0.0231195924 | AL106: =[2]Opex_Breakdown!AL106 -> 0.0231195924
D107: Department of Human Services | W107: =[2]Opex_Breakdown!W107 -> 0 | X107: =[2]Opex_Breakdown!X107 -> 0.0110035524 | Y107: =[2]Opex_Breakdown!Y107 -> 0.01194478528 | Z107: =[2]Opex_Breakdown!Z107 -> 0.01106870107 | AA107: =[2]Opex_Breakdown!AA107 -> 0.02974575226 | AB107: =[2]Opex_Breakdown!AB107 -> 0.0136205928 | AC107: =[2]Opex_Breakdown!AC107 -> 0.0136205928 | AD107: =[2]Opex_Breakdown!AD107 -> 0.0136205928 | AE107: =[2]Opex_Breakdown!AE107 -> 0.0136205928 | AF107: =[2]Opex_Breakdown!AF107 -> 0.0136205928 | AG107: =[2]Opex_Breakdown!AG107 -> 0.0136205928 | AH107: =[2]Opex_Breakdown!AH107 -> 0.0136205928 | AI107: =[2]Opex_Breakdown!AI107 -> 0.0136205928 | AJ107: =[2]Opex_Breakdown!AJ107 -> 0.0136205928 | AK107: =[2]Opex_Breakdown!AK107 -> 0.0136205928 | AL107: =[2]Opex_Breakdown!AL107 -> 0.0136205928
D108: Environment Protection Authority | W108: =[2]Opex_Breakdown!W108 -> 0.05269954751 | X108: =[2]Opex_Breakdown!X108 -> 0.05281705151 | Y108: =[2]Opex_Breakdown!Y108 -> 0 | Z108: =[2]Opex_Breakdown!Z108 -> 0.05297771668 | AA108: =[2]Opex_Breakdown!AA108 -> 0.05168032939 | AB108: =[2]Opex_Breakdown!AB108 -> 0.0471051192 | AC108: =[2]Opex_Breakdown!AC108 -> 0.0471051192 | AD108: =[2]Opex_Breakdown!AD108 -> 0.0471051192 | AE108: =[2]Opex_Breakdown!AE108 -> 0.0471051192 | AF108: =[2]Opex_Breakdown!AF108 -> 0.0471051192 | AG108: =[2]Opex_Breakdown!AG108 -> 0.0471051192 | AH108: =[2]Opex_Breakdown!AH108 -> 0.0471051192 | AI108: =[2]Opex_Breakdown!AI108 -> 0.0471051192 | AJ108: =[2]Opex_Breakdown!AJ108 -> 0.0471051192 | AK108: =[2]Opex_Breakdown!AK108 -> 0.0471051192 | AL108: =[2]Opex_Breakdown!AL108 -> 0.0471051192
C109: =+CONCATENATE("Total ",C105) -> Total Licence fees | W109: =+SUM(W106:W108) -> 0.07736742081 | X109: 0.08802841918 | Y109: 0.02497546012 | Z109: 0.09882555154 | AA109: 0.1423791963 | AB109: 0.0838453044 | AC109: 0.0838453044 | AD109: 0.0838453044 | AE109: 0.0838453044 | AF109: 0.0838453044 | AG109: 0.0838453044 | AH109: =+SUM(AH106:AH108) -> 0.0838453044 | AI109: =+SUM(AI106:AI108) -> 0.0838453044 | AJ109: =+SUM(AJ106:AJ108) -> 0.0838453044 | AK109: =+SUM(AK106:AK108) -> 0.0838453044 | AL109: =+SUM(AL106:AL108) -> 0.0838453044
C111: Environment Contribution | W111: =[2]Opex_Breakdown!W111 -> 1.234514932 | X111: =[2]Opex_Breakdown!X111 -> 1.353436945 | Y111: =[2]Opex_Breakdown!Y111 -> 1.335644172 | Z111: =[2]Opex_Breakdown!Z111 -> 1.454709262 | AA111: =[2]Opex_Breakdown!AA111 -> 1.438460084 | AB111: =[2]Opex_Breakdown!AB111 -> 1.368801 | AC111: =[2]Opex_Breakdown!AC111 -> 1.32893301 | AD111: =[2]Opex_Breakdown!AD111 -> 1.290226223 | AE111: =[2]Opex_Breakdown!AE111 -> 1.252646818 | AF111: =[2]Opex_Breakdown!AF111 -> 1.21616196 | AG111: =[2]Opex_Breakdown!AG111 -> 1.180739767 | AH111: =[2]Opex_Breakdown!AH111 -> 1.146349288 | AI111: =[2]Opex_Breakdown!AI111 -> 1.112960474 | AJ111: =[2]Opex_Breakdown!AJ111 -> 1.080544149 | AK111: =[2]Opex_Breakdown!AK111 -> 1.04907199 | AL111: =[2]Opex_Breakdown!AL111 -> 1.018516495
C113: Other non-controllable
D114: [Non-controllable 1]
D115: [Non-controllable 2]
D116: [Non-controllable 3]
D117: [Non-controllable 4]
D118: [Non-controllable 5]
D119: [Non-controllable 6]
D120: [Non-controllable 7]
D121: [Non-controllable 8]
D122: [Non-controllable 9]
D123: [Non-controllable 10]
W124: =SUM(W114:W123) -> 0 | X124: 0 | Y124: 0 | Z124: 0 | AA124: 0 | AB124: 0 | AC124: 0 | AD124: 0 | AE124: 0 | AF124: 0 | AG124: 0 | AH124: =SUM(AH114:AH123) -> 0 | AI124: =SUM(AI114:AI123) -> 0 | AJ124: =SUM(AJ114:AJ123) -> 0 | AK124: =SUM(AK114:AK123) -> 0 | AL124: =SUM(AL114:AL123) -> 0
C127: External bulk charges (excl. temporary purchases)
C128: Reconciliation
C130: Service | W130: =+W7 -> 2017-18 | X130: =+X7 -> 2018-19 | Y130: 2019-20 | Z130: 2020-21 | AA130: 2021-22 | AB130: 2022-23 | AC130: 2023-24 | AD130: 2024-25 | AE130: 2025-26 | AF130: 2026-27 | AG130: 2027-28 | AH130: =+AH7 -> 2028-29 | AI130: =+AI7 -> 2029-30 | AJ130: =+AJ7 -> 2030-31 | AK130: =+AK7 -> 2031-32 | AL130: =+AL7 -> 2032-33
D131: Water | W131: =+SUMIF($I$138:$I$179,$D$131,W$138:W$179) -> 0 | X131: 0.8923880995 | Y131: 1.023993865 | Z131: 0.7788910806 | AA131: 0.5311106438 | AB131: 0.5937363664 | AC131: 0.5937363664 | AD131: 1.415956528 | AE131: 1.415956528 | AF131: 1.415956528 | AG131: 1.415956528 | AH131: 1.415956528 | AI131: 1.415956528 | AJ131: 1.415956528 | AK131: 1.415956528 | AL131: 1.415956528
D132: Sewerage | W132: =+SUMIF($I$138:$I$179,$D$132,W$138:W$179) -> 0 | X132: 0 | Y132: 0 | Z132: 0 | AA132: 0 | AB132: 0 | AC132: 0 | AD132: 0 | AE132: 0 | AF132: 0 | AG132: 0 | AH132: 0 | AI132: 0 | AJ132: 0 | AK132: 0 | AL132: 0
D133: Recycled Water | W133: =+SUMIF($I$138:$I$179,$D$133,W$138:W$179) -> 0 | X133: 0 | Y133: 0 | Z133: 0 | AA133: 0 | AB133: 0 | AC133: 0 | AD133: 0 | AE133: 0 | AF133: 0 | AG133: 0 | AH133: 0 | AI133: 0 | AJ133: 0 | AK133: 0 | AL133: 0
D134: Rural Water | W134: =+SUMIF($I$138:$I$179,$D$134,W$138:W$179) -> 0 | X134: 0 | Y134: 0 | Z134: 0 | AA134: 0 | AB134: 0 | AC134: 0 | AD134: 0 | AE134: 0 | AF134: 0 | AG134: 0 | AH134: 0 | AI134: 0 | AJ134: 0 | AK134: 0 | AL134: 0
C135: Total External Bulk Charges | W135: =SUM(W131:W134) -> 0 | X135: 0.8923880995 | Y135: 1.023993865 | Z135: 0.7788910806 | AA135: 0.5311106438 | AB135: 0.5937363664 | AC135: 0.5937363664 | AD135: 1.415956528 | AE135: 1.415956528 | AF135: 1.415956528 | AG135: 1.415956528 | AH135: =SUM(AH131:AH134) -> 1.415956528 | AI135: =SUM(AI131:AI134) -> 1.415956528 | AJ135: =SUM(AJ131:AJ134) -> 1.415956528 | AK135: =SUM(AK131:AK134) -> 1.415956528 | AL135: =SUM(AL131:AL134) -> 1.415956528
C137: Description | H137: Source | I137: Service | J137: Price
B138: 1 | C138: =[2]Opex_Breakdown!C138 -> Melbourne Water Bulk Entitlement | D138: =[2]Opex_Breakdown!D138 -> 0 | E138: =[2]Opex_Breakdown!E138 -> 0 | F138: =[2]Opex_Breakdown!F138 -> 0 | G138: =[2]Opex_Breakdown!G138 -> 0 | H138: =[2]Opex_Breakdown!H138 -> Melbourne Water | I138: =[2]Opex_Breakdown!I138 -> Water | J138: =[2]Opex_Breakdown!J138 -> Fixed | W138: =[2]Opex_Breakdown!W138 -> 0 | X138: =[2]Opex_Breakdown!X138 -> 0.8923880995 | Y138: =[2]Opex_Breakdown!Y138 -> 1.023993865 | Z138: =[2]Opex_Breakdown!Z138 -> 0.5886843911 | AA138: =[2]Opex_Breakdown!AA138 -> 0.3375250382 | AB138: =[2]Opex_Breakdown!AB138 -> 0.3809058015 | AC138: =[2]Opex_Breakdown!AC138 -> 0.3809058015 | AD138: =[2]Opex_Breakdown!AD138 -> 1.118629772 | AE138: =[2]Opex_Breakdown!AE138 -> 1.118629772 | AF138: =[2]Opex_Breakdown!AF138 -> 1.118629772 | AG138: =[2]Opex_Breakdown!AG138 -> 1.118629772 | AH138: =[2]Opex_Breakdown!AH138 -> 1.118629772 | AI138: =[2]Opex_Breakdown!AI138 -> 1.118629772 | AJ138: =[2]Opex_Breakdown!AJ138 -> 1.118629772 | AK138: =[2]Opex_Breakdown!AK138 -> 1.118629772 | AL138: =[2]Opex_Breakdown!AL138 -> 1.118629772 | AO138: ESC USE ONLY
B139: 2 | C139: =[2]Opex_Breakdown!C139 -> Melbourne Water Bulk Entitlement | D139: =[2]Opex_Breakdown!D139 -> 0 | E139: =[2]Opex_Breakdown!E139 -> 0 | F139: =[2]Opex_Breakdown!F139 -> 0 | G139: =[2]Opex_Breakdown!G139 -> 0 | H139: =[2]Opex_Breakdown!H139 -> Melbourne Water | I139: =[2]Opex_Breakdown!I139 -> Water | J139: =[2]Opex_Breakdown!J139 -> Variable | W139: =[2]Opex_Breakdown!W139 -> 0 | X139: =[2]Opex_Breakdown!X139 -> 0 | Y139: =[2]Opex_Breakdown!Y139 -> 0 | Z139: =[2]Opex_Breakdown!Z139 -> 0.1902066895 | AA139: =[2]Opex_Breakdown!AA139 -> 0.1935856056 | AB139: =[2]Opex_Breakdown!AB139 -> 0.2128305649 | AC139: =[2]Opex_Breakdown!AC139 -> 0.2128305649 | AD139: =[2]Opex_Breakdown!AD139 -> 0.2973267568 | AE139: =[2]Opex_Breakdown!AE139 -> 0.2973267568 | AF139: =[2]Opex_Breakdown!AF139 -> 0.2973267568 | AG139: =[2]Opex_Breakdown!AG139 -> 0.2973267568 | AH139: =[2]Opex_Breakdown!AH139 -> 0.2973267568 | AI139: =[2]Opex_Breakdown!AI139 -> 0.2973267568 | AJ139: =[2]Opex_Breakdown!AJ139 -> 0.2973267568 | AK139: =[2]Opex_Breakdown!AK139 -> 0.2973267568 | AL139: =[2]Opex_Breakdown!AL139 -> 0.2973267568
B140: 3 | C140: =[2]Opex_Breakdown!C140 -> Melbourne Water Bulk Entitlement | D140: =[2]Opex_Breakdown!D140 -> 0 | E140: =[2]Opex_Breakdown!E140 -> 0 | F140: =[2]Opex_Breakdown!F140 -> 0 | G140: =[2]Opex_Breakdown!G140 -> 0 | H140: =[2]Opex_Breakdown!H140 -> [Source] | I140: =[2]Opex_Breakdown!I140 -> [Service] | J140: =[2]Opex_Breakdown!J140 -> [Price] | W140: =[2]Opex_Breakdown!W140 -> 0 | X140: =[2]Opex_Breakdown!X140 -> 0 | Y140: =[2]Opex_Breakdown!Y140 -> 0 | Z140: =[2]Opex_Breakdown!Z140 -> 0 | AA140: =[2]Opex_Breakdown!AA140 -> 0 | AB140: =[2]Opex_Breakdown!AB140 -> 0 | AC140: =[2]Opex_Breakdown!AC140 -> 0 | AD140: =[2]Opex_Breakdown!AD140 -> 0 | AE140: =[2]Opex_Breakdown!AE140 -> 0 | AF140: =[2]Opex_Breakdown!AF140 -> 0 | AG140: =[2]Opex_Breakdown!AG140 -> 0 | AH140: =[2]Opex_Breakdown!AH140 -> 0 | AI140: =[2]Opex_Breakdown!AI140 -> 0 | AJ140: =[2]Opex_Breakdown!AJ140 -> 0 | AK140: =[2]Opex_Breakdown!AK140 -> 0 | AL140: =[2]Opex_Breakdown!AL140 -> 0 | AO140: [Service]
B141: 4 | C141: =[2]Opex_Breakdown!C141 -> 0 | D141: =[2]Opex_Breakdown!D141 -> 0 | E141: =[2]Opex_Breakdown!E141 -> 0 | F141: =[2]Opex_Breakdown!F141 -> 0 | G141: =[2]Opex_Breakdown!G141 -> 0 | H141: =[2]Opex_Breakdown!H141 -> [Source] | I141: =[2]Opex_Breakdown!I141 -> [Service] | J141: =[2]Opex_Breakdown!J141 -> [Price] | AO141: Water
B142: 5 | H142: [Source] | I142: [Service] | J142: [Price] | AO142: Sewerage
B143: 6 | H143: [Source] | I143: [Service] | J143: [Price] | AO143: Recycled Water
B144: 7 | H144: [Source] | I144: [Service] | J144: [Price] | AO144: Rural Water
B145: 8 | H145: [Source] | I145: [Service] | J145: [Price]
B146: 9 | H146: [Source] | I146: [Service] | J146: [Price] | AO146: [Source]
B147: 10 | H147: [Source] | I147: [Service] | J147: [Price] | AO147: Melbourne Water
B148: 11 | H148: [Source] | I148: [Service] | J148: [Price] | AO148: Goulburn-Murray Water
B149: 12 | H149: [Source] | I149: [Service] | J149: [Price] | AO149: Other Sources
B150: 13 | H150: [Source] | I150: [Service] | J150: [Price]
B151: 14 | H151: [Source] | I151: [Service] | J151: [Price]
B152: 15 | H152: [Source] | I152: [Service] | J152: [Price]
B153: 16 | H153: [Source] | I153: [Service] | J153: [Price]
B154: 17 | H154: [Source] | I154: [Service] | J154: [Price]
B155: 18 | H155: [Source] | I155: [Service] | J155: [Price]
B156: 19 | H156: [Source] | I156: [Service] | J156: [Price]
B157: 20 | H157: [Source] | I157: [Service] | J157: [Price]
B158: 21 | H158: [Source] | I158: [Service] | J158: [Price]
B159: 22 | H159: [Source] | I159: [Service] | J159: [Price]
B160: 23 | H160: [Source] | I160: [Service] | J160: [Price]
B161: 24 | H161: [Source] | I161: [Service] | J161: [Price]
B162: 25 | H162: [Source] | I162: [Service] | J162: [Price]
B163: 26 | H163: [Source] | I163: [Service] | J163: [Price]
B164: 27 | H164: [Source] | I164: [Service] | J164: [Price]
B165: 28 | H165: [Source] | I165: [Service] | J165: [Price]
B166: 29 | H166: [Source] | I166: [Service] | J166: [Price]
B167: 30 | H167: [Source] | I167: [Service] | J167: [Price]
B168: 31 | H168: [Source] | I168: [Service] | J168: [Price]
B169: 32 | H169: [Source] | I169: [Service] | J169: [Price]
B170: 33 | H170: [Source] | I170: [Service] | J170: [Price]
B171: 34 | H171: [Source] | I171: [Service] | J171: [Price]
B172: 35 | H172: [Source] | I172: [Service] | J172: [Price]
B173: 36 | H173: [Source] | I173: [Service] | J173: [Price]
B174: 37 | H174: [Source] | I174: [Service] | J174: [Price]
B175: 38 | H175: [Source] | I175: [Service] | J175: [Price]
B176: 39 | H176: [Source] | I176: [Service] | J176: [Price]
B177: 40 | H177: [Source] | I177: [Service] | J177: [Price]

Sheet Capex_FO input
B1: Capital Expenditure - Forecast Input | Q1: =Q36 -> Gross capital expenditure | AB1: =AB36 -> Government contributions | AM1: =AM36 -> Customer contributions | AX1: =AX36 -> Net capital expenditure | BI1: =BI36 -> Regulatory Depreciation | BT1: =BT36 -> Accumulated capex | CE1: =CE36 -> Gross capital expenditure | CP1: =CP36 -> Tax Depreciation
B2: =+Contents!H7 -> South Gippsland Water | Q2: =Q37 -> $m, 01/01/23 | AB2: =AB37 -> $m, 01/01/23 | AM2: =AM37 -> $m, 01/01/23 | AX2: =AX37 -> $m, 01/01/23 | BI2: =BI37 -> $m, 01/01/23 | BT2: =BT37 -> $m, 01/01/23 | CE2: =CE37 -> Nominal,$ | CP2: =CP37 -> Nominal,$
B3: Go to Table of Contents | Q3: =Q39 -> 2023-24 | R3: =R39 -> 2024-25 | S3: 2025-26 | T3: 2026-27 | U3: 2027-28 | V3: 2028-29 | W3: 2029-30 | X3: 2030-31 | Y3: =Y39 -> 2031-32 | Z3: =Z39 -> 2032-33 | AB3: 2023-24 | AC3: 2024-25 | AD3: 2025-26 | AE3: 2026-27 | AF3: 2027-28 | AG3: 2028-29 | AH3: 2029-30 | AI3: 2030-31 | AJ3: 2031-32 | AK3: 2032-33 | AM3: 2023-24 | AN3: 2024-25 | AO3: 2025-26 | AP3: 2026-27 | AQ3: 2027-28 | AR3: 2028-29 | AS3: 2029-30 | AT3: 2030-31 | AU3: 2031-32 | AV3: 2032-33 | AX3: 2023-24 | AY3: 2024-25 | AZ3: 2025-26 | BA3: 2026-27 | BB3: 2027-28 | BC3: 2028-29 | BD3: 2029-30 | BE3: 2030-31 | BF3: 2031-32 | BG3: 2032-33 | BI3: 2023-24 | BJ3: 2024-25 | BK3: 2025-26 | BL3: 2026-27 | BM3: 2027-28 | BN3: 2028-29 | BO3: 2029-30 | BP3: 2030-31 | BQ3: 2031-32 | BR3: 2032-33 | BT3: 2023-24 | BU3: 2024-25 | BV3: 2025-26 | BW3: 2026-27 | BX3: 2027-28 | BY3: 2028-29 | BZ3: 2029-30 | CA3: 2030-31 | CB3: =CB39 -> 2031-32 | CC3: =CC39 -> 2032-33 | CE3: 2023-24 | CF3: 2024-25 | CG3: 2025-26 | CH3: 2026-27 | CI3: 2027-28 | CJ3: 2028-29 | CK3: 2029-30 | CL3: 2030-31 | CM3: =CM39 -> 2031-32 | CN3: =CN39 -> 2032-33 | CP3: 2023-24 | CQ3: 2024-25 | CR3: =CR39 -> 2025-26 | CS3: 2026-27 | CT3: 2027-28 | CU3: 2028-29 | CV3: 2029-30 | CW3: 2030-31 | CX3: =CX39 -> 2031-32 | CY3: =CY39 -> 2032-33
C7: Input Summary | F7: FIFTH REG PERIOD | K7: SIXTH REG PERIOD
D9: =+Q39 -> 2023-24 | E9: =+R39 -> 2024-25 | F9: 2025-26 | G9: 2026-27 | H9: 2027-28 | I9: 2028-29 | J9: 2029-30 | K9: 2030-31 | L9: =+Y39 -> 2031-32 | M9: =+Z39 -> 2032-33
C10: By Cost Driver
C11: Net capital expenditure - Renewals | D11: =+SUMIF($F$42:$F$1016,"Renewals",AX$42:AX$1016) -> 14.8636 | E11: 19.7962 | F11: 9.5455 | G11: 6.8695 | H11: 7.1786 | I11: 10.0062 | J11: 6.8945 | K11: 8.9675 | L11: =+SUMIF($F$42:$F$1016,"Renewals",BF$42:BF$1016) -> 10.6586 | M11: =+SUMIF($F$42:$F$1016,"Renewals",BG$42:BG$1016) -> 11.2542
C12: Net capital expenditure - Growth | D12: =+SUMIF($F$42:$F$1016,"Growth",AX$42:AX$1016) -> 16.0116017 | E12: 11.53605542 | F12: 5.471695424 | G12: 6.279871191 | H12: 7.605771191 | I12: 20.39017119 | J12: 30.25836119 | K12: 19.05951119 | L12: =+SUMIF($F$42:$F$1016,"Growth",BF$42:BF$1016) -> 7.233161191 | M12: =+SUMIF($F$42:$F$1016,"Growth",BG$42:BG$1016) -> 16.22093119
C13: Net capital expenditure - Improvements / Compliance | D13: =+SUMIF($F$42:$F$1016,"Improvements / Compliance",AX$42:AX$1016) -> 3.212 | E13: 5.003 | F13: 3.699 | G13: 4.3 | H13: 1.064 | I13: 2.633 | J13: 5.291 | K13: 4.81 | L13: =+SUMIF($F$42:$F$1016,"Improvements / Compliance",BF$42:BF$1016) -> 11.148 | M13: =+SUMIF($F$42:$F$1016,"Improvements / Compliance",BG$42:BG$1016) -> 1.976
C14: Government Contributions | D14: =+AB41 -> 0 | E14: 0 | F14: 0 | G14: 0 | H14: 0 | I14: 0 | J14: 0 | K14: 0 | L14: =+AJ41 -> 0 | M14: =+AK41 -> 0
C15: Customer Contributions | D15: =+AM41 -> 3.019648545 | E15: 3.096914819 | F15: 3.096914819 | G15: 2.311084115 | H15: 2.311084115 | I15: 2.311084115 | J15: 2.311084115 | K15: 2.311084115 | L15: =+AU41 -> 2.311084115 | M15: =+AV41 -> 2.311084115
C16: Total prescribed capex | D16: =SUM(D11:D15) -> 37.10685024 | E16: 39.43217024 | F16: 21.81311024 | G16: 19.76045531 | H16: 18.15945531 | I16: 35.34045531 | J16: 44.75494531 | K16: 35.14809531 | L16: =SUM(L11:L15) -> 31.35084531 | M16: =SUM(M11:M15) -> 31.76221531
C18: By Capital Type
C19: Top 10 Major Projects | D19: =+SUMIF($H$42:$H$1016,$C$19,Q$42:Q$1016) -> 20.83341 | E19: 26.16556 | F19: 8.11405 | G19: 8.86207 | H19: 3.87842 | I19: 19.9672 | J19: 28.901 | K19: 21.89919 | L19: =+SUMIF($H$42:$H$1016,$C$19,Y$42:Y$1016) -> 13.44357 | M19: =+SUMIF($H$42:$H$1016,$C$19,Z$42:Z$1016) -> 11.13654
C20: Significant projects | D20: =+SUMIF($H$42:$H$1016,$C$20,Q$42:Q$1016) -> 5.96724 | E20: 2.44581 | F20: 4.53896 | G20: 2.587 | H20: 5.68555 | I20: 4.43417 | J20: 7.65456 | K20: 4.97652 | L20: =+SUMIF($H$42:$H$1016,$C$20,Y$42:Y$1016) -> 9.40379 | M20: =+SUMIF($H$42:$H$1016,$C$20,Z$42:Z$1016) -> 10.52659
C21: Capital Programs / Allocation | D21: =+SUMIF($H$42:$H$1016,$C$21,Q$42:Q$1016) -> 8.4286 | E21: 9.5612 | F21: 7.9025 | G21: 7.9625 | H21: 8.3446 | I21: 9.9522 | J21: 7.9735 | K21: 7.9735 | L21: =+SUMIF($H$42:$H$1016,$C$21,Y$42:Y$1016) -> 8.2776 | M21: =+SUMIF($H$42:$H$1016,$C$21,Z$42:Z$1016) -> 9.8002
C22: Other Capital expenditure | D22: =+SUMIF($H$42:$H$1016,$C$22,Q$42:Q$1016) -> 1.877600243 | E22: 1.259600243 | F22: 1.257600243 | G22: 0.3488853057 | H22: 0.2508853057 | I22: 0.9868853057 | J22: 0.2258853057 | K22: 0.2988853057 | L22: =+SUMIF($H$42:$H$1016,$C$22,Y$42:Y$1016) -> 0.2258853057 | M22: =+SUMIF($H$42:$H$1016,$C$22,Z$42:Z$1016) -> 0.2988853057
C23: Total prescribed capex | D23: =SUM(D19:D22) -> 37.10685024 | E23: 39.43217024 | F23: 21.81311024 | G23: 19.76045531 | H23: 18.15945531 | I23: 35.34045531 | J23: 44.75494531 | K23: 35.14809531 | L23: =SUM(L19:L22) -> 31.35084531 | M23: =SUM(M19:M22) -> 31.76221531
C25: Difference | D25: =+D23-D16 -> 0 | E25: 0 | F25: 0 | G25: 0 | H25: 0 | I25: 0 | J25: 0 | K25: 0 | L25: =+L23-L16 -> 0 | M25: =+M23-M16 -> 0
C26: Test | D26: =IF(+D23=D16,0,1) -> 0 | E26: 0 | F26: 0 | G26: 0 | H26: 0 | I26: 0 | J26: 0 | K26: 0 | L26: 0 | M26: 0
C29: Total prescribed capex | D29: =+D23 -> 37.10685024 | E29: 39.43217024 | F29: 21.81311024 | G29: 19.76045531 | H29: 18.15945531 | I29: 35.34045531 | J29: 44.75494531 | K29: 35.14809531 | L29: =+L23 -> 31.35084531 | M29: =+M23 -> 31.76221531
C32: Regulatory Depreciation | D32: =+BI41 -> 0.2690373068 | E32: 1.01916845 | F32: 1.773952816 | G32: 2.937025607 | H32: 4.072665331 | I32: 4.772376784 | J32: 5.74082083 | K32: 6.616489359 | L32: =+BQ41 -> 7.358085434 | M32: =+BR41 -> 8.007350222
B35: =Expenditure_Detail!$B$6 -> $m, 01/01/23
Q36: Gross capital expenditure | AB36: Government contributions | AM36: Customer contributions | AX36: Net capital expenditure | BI36: Regulatory Depreciation | BT36: Accumulated capex | CE36: Gross capital expenditure | CP36: Tax Depreciation
Q37: =Expenditure_Detail!$B$6 -> $m, 01/01/23 | AB37: =Expenditure_Detail!$B$6 -> $m, 01/01/23 | AM37: =Expenditure_Detail!$B$6 -> $m, 01/01/23 | AX37: =Expenditure_Detail!$B$6 -> $m, 01/01/23 | BI37: =Expenditure_Detail!$B$6 -> $m, 01/01/23 | BT37: =Expenditure_Detail!$B$6 -> $m, 01/01/23 | CE37: Nominal,$ | CP37: Nominal,$
Q39: 2023-24 | R39: 2024-25 | S39: 2025-26 | T39: 2026-27 | U39: 2027-28 | V39: 2028-29 | W39: 2029-30 | X39: 2030-31 | Y39: 2031-32 | Z39: 2032-33 | AB39: 2023-24 | AC39: 2024-25 | AD39: 2025-26 | AE39: 2026-27 | AF39: 2027-28 | AG39: 2028-29 | AH39: 2029-30 | AI39: 2030-31 | AJ39: 2031-32 | AK39: 2032-33 | AM39: 2023-24 | AN39: 2024-25 | AO39: 2025-26 | AP39: 2026-27 | AQ39: 2027-28 | AR39: 2028-29 | AS39: 2029-30 | AT39: 2030-31 | AU39: 2031-32 | AV39: 2032-33 | AX39: 2023-24 | AY39: 2024-25 | AZ39: 2025-26 | BA39: 2026-27 | BB39: 2027-28 | BC39: 2028-29 | BD39: 2029-30 | BE39: 2030-31 | BF39: 2031-32 | BG39: 2032-33 | BI39: 2023-24 | BJ39: 2024-25 | BK39: 2025-26 | BL39: 2026-27 | BM39: 2027-28 | BN39: 2028-29 | BO39: 2029-30 | BP39: 2030-31 | BQ39: 2031-32 | BR39: 2032-33 | BT39: 2023-24 | BU39: 2024-25 | BV39: 2025-26 | BW39: 2026-27 | BX39: 2027-28 | BY39: 2028-29 | BZ39: 2029-30 | CA39: 2030-31 | CB39: 2031-32 | CC39: 2032-33 | CE39: 2023-24 | CF39: 2024-25 | CG39: 2025-26 | CH39: 2026-27 | CI39: 2027-28 | CJ39: 2028-29 | CK39: 2029-30 | CL39: 2030-31 | CM39: 2031-32 | CN39: 2032-33 | CP39: 2023-24 | CQ39: 2024-25 | CR39: 2025-26 | CS39: 2026-27 | CT39: 2027-28 | CU39: 2028-29 | CV39: 2029-30 | CW39: 2030-31 | CX39: 2031-32 | CY39: 2032-33
BI40: 1 | BJ40: 2 | BK40: 3 | BL40: 4 | BM40: 5 | BN40: 6 | BO40: 7 | BP40: 8 | BQ40: 9 | BR40: 10 | CP40: 1 | CQ40: 2 | CR40: 3 | CS40: 4 | CT40: 5 | CU40: 6 | CV40: 7 | CW40: 8 | CX40: 9 | CY40: 10
C41: Project/program Name | E41: Service | F41: Major cost driver | G41: Asset category | H41: Capital type | J41: Reg Depreciation Method | K41: Year asset operational | L41: Asset life (Regulatory) | M41: Asset life (Tax) | Q41: =SUM(Q42:Q1016) -> 37.10685024 | R41: 39.43217024 | S41: 21.81311024 | T41: 19.76045531 | U41: 18.15945531 | V41: 35.34045531 | W41: 44.75494531 | X41: 35.14809531 | Y41: =SUM(Y42:Y1016) -> 31.35084531 | Z41: =SUM(Z42:Z1016) -> 31.76221531 | AB41: =SUM(AB42:AB1016) -> 0 | AC41: 0 | AD41: 0 | AE41: 0 | AF41: 0 | AG41: 0 | AH41: 0 | AI41: 0 | AJ41: 0 | AK41: 0 | AM41: =SUM(AM42:AM1016) -> 3.019648545 | AN41: 3.096914819 | AO41: 3.096914819 | AP41: 2.311084115 | AQ41: 2.311084115 | AR41: 2.311084115 | AS41: 2.311084115 | AT41: 2.311084115 | AU41: 2.311084115 | AV41: 2.311084115 | AX41: =SUM(AX42:AX1016) -> 34.0872017 | AY41: 36.33525542 | AZ41: 18.71619542 | BA41: 17.44937119 | BB41: 15.84837119 | BC41: 33.02937119 | BD41: 42.44386119 | BE41: 32.83701119 | BF41: 29.03976119 | BG41: 29.45113119 | BI41: =SUM(BI42:BI1016) -> 0.2690373068 | BJ41: 1.01916845 | BK41: 1.773952816 | BL41: 2.937025607 | BM41: 4.072665331 | BN41: 4.772376784 | BO41: 5.74082083 | BP41: 6.616489359 | BQ41: =SUM(BQ42:BQ1016) -> 7.358085434 | BR41: =SUM(BR42:BR1016) -> 8.007350222 | BT41: =SUM(BT42:BT1016) -> 12.6174617 | BU41: 19.28199542 | BV41: 16.18531542 | BW41: 39.77671119 | BX41: 20.23430119 | BY41: 39.26120119 | BZ41: 44.48864119 | CA41: 38.53501119 | CB41: =SUM(CB42:CB1016) -> 25.97576119 | CC41: =SUM(CC42:CC1016) -> 32.88113119 | CE41: =SUM(CE42:CE1016) -> 38.22005575 | CF41: 41.83358941 | CG41: 23.83577452 | CH41: 22.24056654 | CI41: 21.05178574 | CJ41: 42.19835182 | CK41: 55.04293758 | CL41: 44.52455555 | CM41: =SUM(CM42:CM1016) -> 40.90574225 | CN41: =SUM(CN42:CN1016) -> 42.68576139 | CP41: =SUM(CP42:CP1016) -> 0.6607381617 | CQ41: 2.118627701 | CR41: 3.362773296 | CS41: 3.990808332 | CT41: 4.416915753 | CU41: 5.192725975 | CV41: 5.969277369 | CW41: 6.596598847 | CX41: =SUM(CX42:CX1016) -> 7.771037977 | CY41: =SUM(CY42:CY1016) -> 9.382013008
C42: ='[2]Capex_FO input'!C42 -> Venus Bay Outfall Renewal | D42: ='[2]Capex_FO input'!D42 -> 0 | E42: ='[2]Capex_FO input'!E42 -> Sewerage | F42: ='[2]Capex_FO input'!F42 -> Renewals | G42: ='[2]Capex_FO input'!G42 -> Pipelines/network | H42: ='[2]Capex_FO input'!H42 -> Top 10 Major Projects | I42: ='[2]Capex_FO input'!I42 -> 0 | J42: Straight line | K42: ='[2]Capex_FO input'!K42 -> 2026-27 | L42: ='[2]Capex_FO input'!L42 -> 15 | M42: ='[2]Capex_FO input'!M42 -> 50 | Q42: ='[2]Capex_FO input'!Q42 -> 5 | R42: ='[2]Capex_FO input'!R42 -> 10 | S42: ='[2]Capex_FO input'!S42 -> 2.26 | T42: ='[2]Capex_FO input'!T42 -> 0 | U42: ='[2]Capex_FO input'!U42 -> 0 | V42: ='[2]Capex_FO input'!V42 -> 0 | W42: ='[2]Capex_FO input'!W42 -> 0 | X42: ='[2]Capex_FO input'!X42 -> 0 | Y42: ='[2]Capex_FO input'!Y42 -> 0 | Z42: ='[2]Capex_FO input'!Z42 -> 0 | AB42: ='[2]Capex_FO input'!AB42 -> 0 | AC42: ='[2]Capex_FO input'!AC42 -> 0 | AD42: ='[2]Capex_FO input'!AD42 -> 0 | AE42: ='[2]Capex_FO input'!AE42 -> 0 | AF42: ='[2]Capex_FO input'!AF42 -> 0 | AG42: ='[2]Capex_FO input'!AG42 -> 0 | AH42: ='[2]Capex_FO input'!AH42 -> 0 | AI42: ='[2]Capex_FO input'!AI42 -> 0 | AJ42: ='[2]Capex_FO input'!AJ42 -> 0 | AK42: ='[2]Capex_FO input'!AK42 -> 0 | AM42: ='[2]Capex_FO input'!AM42 -> 0 | AN42: ='[2]Capex_FO input'!AN42 -> 0 | AO42: ='[2]Capex_FO input'!AO42 -> 0 | AP42: ='[2]Capex_FO input'!AP42 -> 0 | AQ42: ='[2]Capex_FO input'!AQ42 -> 0 | AR42: ='[2]Capex_FO input'!AR42 -> 0 | AS42: ='[2]Capex_FO input'!AS42 -> 0 | AT42: ='[2]Capex_FO input'!AT42 -> 0 | AU42: ='[2]Capex_FO input'!AU42 -> 0 | AV42: ='[2]Capex_FO input'!AV42 -> 0 | AX42: =+Q42-AB42-AM42 -> 5 | AY42: =+R42-AC42-AN42 -> 10 | AZ42: =+S42-AD42-AO42 -> 2.26 | BA42: =+T42-AE42-AP42 -> 0 | BB42: =+U42-AF42-AQ42 -> 0 | BC42: =+V42-AG42-AR42 -> 0 | BD42: =+W42-AH42-AS42 -> 0 | BE42: =+X42-AI42-AT42 -> 0 | BF42: =+Y42-AJ42-AU42 -> 0 | BG42: =+Z42-AK42-AV42 -> 0 | BI42: =IF($L42=0,0, IF($L42<=0.5,BT42, IF($J42="straight line", IF((LEFT(BI$39,4)*1)-INT($L42)<LEFT($BI$39,4)*1,0,((OFFSET(BT42,0,-INT($L42+0.5),1,1))/$L42)*(IF($L42-INT($L42)>0.5,$L42-0.5-INT($L42),IF($L42-INT($L42)<=0.5,$L42-0.5-INT($L42)+1,0)))) +BT42/$L42*0.5, IF($J42="Declining Balance",-$BI$38,0)))) -> 0 | BJ42: =IF($L42=0,0, IF($L42<=0.5,BU42, IF(AND($J42="straight line",$L42<1.51),(BT42-((BT42/$L42)*0.5))+BU42/$L42*0.5, IF($J42="straight line", IF((LEFT(BJ$39,4)*1)-INT($L42)<LEFT($BI$39,4)*1,0,((OFFSET(BU42,0,-INT($L42+0.5),1,1))/$L42)*(IF($L42-INT($L42)>0.5,$L42-0.5-INT($L42),IF($L42-INT($L42)<=0.5,$L42-0.5-INT($L42)+1,0)))) +BU42/$L42*0.5 +SUM(OFFSET(BU42,0,MAX(-INT($L42+(0.5-(10^-12))),-BJ$40)+1,1,MIN(INT($L42+(0.5-(10^-12))),BJ$40)-1))*1/$L42, IF($J42="Declining Balance",-$BI$38,0))))) -> 0 | BK42: =IF($L42=0,0, IF($L42<=0.5,BV42, IF(AND($J42="straight line",$L42<1.51),(BU42-((BU42/$L42)*0.5))+BV42/$L42*0.5, IF($J42="straight line", IF((LEFT(BK$39,4)*1)-INT($L42)<LEFT($BI$39,4)*1,0,((OFFSET(BV42,0,-INT($L42+0.5),1,1))/$L42)*(IF($L42-INT($L42)>0.5,$L42-0.5-INT($L42),IF($L42-INT($L42)<=0.5,$L42-0.5-INT($L42)+1,0)))) +BV42/$L42*0.5 +SUM(OFFSET(BV42,0,MAX(-INT($L42+(0.5-(10^-12))),-BK$40)+1,1,MIN(INT($L42+(0.5-(10^-12))),BK$40)-1))*1/$L42, IF($J42="Declining Balance",-$BI$38,0))))) -> 0 | BL42: =IF($L42=0,0, IF($L42<=0.5,BW42, IF(AND($J42="straight line",$L42<1.51),(BV42-((BV42/$L42)*0.5))+BW42/$L42*0.5, IF($J42="straight line", IF((LEFT(BL$39,4)*1)-INT($L42)<LEFT($BI$39,4)*1,0,((OFFSET(BW42,0,-INT($L42+0.5),1,1))/$L42)*(IF($L42-INT($L42)>0.5,$L42-0.5-INT($L42),IF($L42-INT($L42)<=0.5,$L42-0.5-INT($L42)+1,0)))) +BW42/$L42*0.5 +SUM(OFFSET(BW42,0,MAX(-INT($L42+(0.5-(10^-12))),-BL$40)+1,1,MIN(INT($L42+(0.5-(10^-12))),BL$40)-1))*1/$L42, IF($J42="Declining Balance",-$BI$38,0))))) -> 0.5753333333 | BM42: =IF($L42=0,0, IF($L42<=0.5,BX42, IF(AND($J42="straight line",$L42<1.51),(BW42-((BW42/$L42)*0.5))+BX42/$L42*0.5, IF($J42="straight line", IF((LEFT(BM$39,4)*1)-INT($L42)<LEFT($BI$39,4)*1,0,((OFFSET(BX42,0,-INT($L42+0.5),1,1))/$L42)*(IF($L42-INT($L42)>0.5,$L42-0.5-INT($L42),IF($L42-INT($L42)<=0.5,$L42-0.5-INT($L42)+1,0)))) +BX42/$L42*0.5 +SUM(OFFSET(BX42,0,MAX(-INT($L42+(0.5-(10^-12))),-BM$40)+1,1,MIN(INT($L42+(0.5-(10^-12))),BM$40)-1))*1/$L42, IF($J42="Declining Balance",-$BI$38,0))))) -> 1.150666667 | BN42: =IF($L42=0,0, IF($L42<=0.5,BY42, IF(AND($J42="straight line",$L42<1.51),(BX42-((BX42/$L42)*0.5))+BY42/$L42*0.5, IF($J42="straight line", IF((LEFT(BN$39,4)*1)-INT($L42)<LEFT($BI$39,4)*1,0,((OFFSET(BY42,0,-INT($L42+0.5),1,1))/$L42)*(IF($L42-INT($L42)>0.5,$L42-0.5-INT($L42),IF($L42-INT($L42)<=0.5,$L42-0.5-INT($L42)+1,0)))) +BY42/$L42*0.5 +SUM(OFFSET(BY42,0,MAX(-INT($L42+(0.5-(10^-12))),-BN$40)+1,1,MIN(INT($L42+(0.5-(10^-12))),BN$40)-1))*1/$L42, IF($J42="Declining Balance",-$BI$38,0))))) -> 1.150666667 | BO42: =IF($L42=0,0, IF($L42<=0.5,BZ42, IF(AND($J42="straight line",$L42<1.51),(BY42-((BY42/$L42)*0.5))+BZ42/$L42*0.5, IF($J42="straight line", IF((LEFT(BO$39,4)*1)-INT($L42)<LEFT($BI$39,4)*1,0,((OFFSET(BZ42,0,-INT($L42+0.5),1,1))/$L42)*(IF($L42-INT($L42)>0.5,$L42-0.5-INT($L42),IF($L42-INT($L42)<=0.5,$L42-0.5-INT($L42)+1,0)))) +BZ42/$L42*0.5 +SUM(OFFSET(BZ42,0,MAX(-INT($L42+(0.5-(10^-12))),-BO$40)+1,1,MIN(INT($L42+(0.5-(10^-12))),BO$40)-1))*1/$L42, IF($J42="Declining Balance",-$BI$38,0))))) -> 1.150666667 | BP42: =IF($L42=0,0, IF($L42<=0.5,CA42, IF(AND($J42="straight line",$L42<1.51),(BZ42-((BZ42/$L42)*0.5))+CA42/$L42*0.5, IF($J42="straight line", IF((LEFT(BP$39,4)*1)-INT($L42)<LEFT($BI$39,4)*1,0,((OFFSET(CA42,0,-INT($L42+0.5),1,1))/$L42)*(IF($L42-INT($L42)>0.5,$L42-0.5-INT($L42),IF($L42-INT($L42)<=0.5,$L42-0.5-INT($L42)+1,0)))) +CA42/$L42*0.5 +SUM(OFFSET(CA42,0,MAX(-INT($L42+(0.5-(10^-12))),-BP$40)+1,1,MIN(INT($L42+(0.5-(10^-12))),BP$40)-1))*1/$L42, IF($J42="Declining Balance",-$BI$38,0))))) -> 1.150666667 | BQ42: =IF($L42=0,0, IF($L42<=0.5,CB42, IF(AND($J42="straight line",$L42<1.51),(CA42-((CA42/$L42)*0.5))+CB42/$L42*0.5, IF($J42="straight line", IF((LEFT(BQ$39,4)*1)-INT($L42)<LEFT($BI$39,4)*1,0,((OFFSET(CB42,0,-INT($L42+0.5),1,1))/$L42)*(IF($L42-INT($L42)>0.5,$L42-0.5-INT($L42),IF($L42-INT($L42)<=0.5,$L42-0.5-INT($L42)+1,0)))) +CB42/$L42*0.5 +SUM(OFFSET(CB42,0,MAX(-INT($L42+(0.5-(10^-12))),-BQ$40)+1,1,MIN(INT($L42+(0.5-(10^-12))),BQ$40)-1))*1/$L42, IF($J42="Declining Balance",-$BI$38,0))))) -> 1.150666667 | BR42: =IF($L42=0,0, IF($L42<=0.5,CC42, IF(AND($J42="straight line",$L42<1.51),(CB42-((CB42/$L42)*0.5))+CC42/$L42*0.5, IF($J42="straight line", IF((LEFT(BR$39,4)*1)-INT($L42)<LEFT($BI$39,4)*1,0,((OFFSET(CC42,0,-INT($L42+0.5),1,1))/$L42)*(IF($L42-INT($L42)>0.5,$L42-0.5-INT($L42),IF($L42-INT($L42)<=0.5,$L42-0.5-INT($L42)+1,0)))) +CC42/$L42*0.5 +SUM(OFFSET(CC42,0,MAX(-INT($L42+(0.5-(10^-12))),-BR$40)+1,1,MIN(INT($L42+(0.5-(10^-12))),BR$40)-1))*1/$L42, IF($J42="Declining Balance",-$BI$38,0))))) -> 1.150666667 | BT42: =+IF($K42="Ongoing",AX42,IF(RIGHT($K42,2)=RIGHT(BT$39,2),SUM($AX42:AX42),0)+IF(RIGHT(BT$39,2)>RIGHT($K42,2),AX42,0)) -> 0 | BU42: =+IF($K42="Ongoing",AY42,IF(RIGHT($K42,2)=RIGHT(BU$39,2),SUM($AX42:AY42),0)+IF(RIGHT(BU$39,2)>RIGHT($K42,2),AY42,0)) -> 0 | BV42: =+IF($K42="Ongoing",AZ42,IF(RIGHT($K42,2)=RIGHT(BV$39,2),SUM($AX42:AZ42),0)+IF(RIGHT(BV$39,2)>RIGHT($K42,2),AZ42,0)) -> 0 | BW42: =+IF($K42="Ongoing",BA42,IF(RIGHT($K42,2)=RIGHT(BW$39,2),SUM($AX42:BA42),0)+IF(RIGHT(BW$39,2)>RIGHT($K42,2),BA42,0)) -> 17.26 | BX42: =+IF($K42="Ongoing",BB42,IF(RIGHT($K42,2)=RIGHT(BX$39,2),SUM($AX42:BB42),0)+IF(RIGHT(BX$39,2)>RIGHT($K42,2),BB42,0)) -> 0 | BY42: =+IF($K42="Ongoing",BC42,IF(RIGHT($K42,2)=RIGHT(BY$39,2),SUM($AX42:BC42),0)+IF(RIGHT(BY$39,2)>RIGHT($K42,2),BC42,0)) -> 0 | BZ42: =+IF($K42="Ongoing",BD42,IF(RIGHT($K42,2)=RIGHT(BZ$39,2),SUM($AX42:BD42),0)+IF(RIGHT(BZ$39,2)>RIGHT($K42,2),BD42,0)) -> 0 | CA42: =+IF($K42="Ongoing",BE42,IF(RIGHT($K42,2)=RIGHT(CA$39,2),SUM($AX42:BE42),0)+IF(RIGHT(CA$39,2)>RIGHT($K42,2),BE42,0)) -> 0 | CB42: =+IF($K42="Ongoing",BF42,IF(RIGHT($K42,2)=RIGHT(CB$39,2),SUM($AX42:BF42),0)+IF(RIGHT(CB$39,2)>RIGHT($K42,2),BF42,0)) -> 0 | CC42: =+IF($K42="Ongoing",BG42,IF(RIGHT($K42,2)=RIGHT(CC$39,2),SUM($AX42:BG42),0)+IF(RIGHT(CC$39,2)>RIGHT($K42,2),BG42,0)) -> 0 | CE42: =+Q42*KeyAssumptionsPriceControl_FO!AC$15 -> 5.15 | CF42: =+R42*KeyAssumptionsPriceControl_FO!AD$15 -> 10.609 | CG42: =+S42*KeyAssumptionsPriceControl_FO!AE$15 -> 2.46956302 | CH42: =+T42*KeyAssumptionsPriceControl_FO!AF$15 -> 0 | CI42: =+U42*KeyAssumptionsPriceControl_FO!AG$15 -> 0 | CJ42: =+V42*KeyAssumptionsPriceControl_FO!AH$15 -> 0 | CK42: =+W42*KeyAssumptionsPriceControl_FO!AI$15 -> 0 | CL42: =+X42*KeyAssumptionsPriceControl_FO!AJ$15 -> 0 | CM42: =+Y42*KeyAssumptionsPriceControl_FO!AK$15 -> 0 | CN42: =+Z42*KeyAssumptionsPriceControl_FO!AL$15 -> 0 | CP42: =IF($M42=0,0, IF($M42<=0.5,CE42, IF($J42="straight line", IF((LEFT(CP$39,4)*1)-INT($M42)<LEFT($CP$39,4)*1,0,((OFFSET(CE42,0,-INT($M42+0.5),1,1))/$M42)*(IF($M42-INT($M42)>0.5,$M42-0.5-INT($M42),IF($M42-INT($M42)<=0.5,$M42-0.5-INT($M42)+1,0)))) +CE42/$M42*0.5, IF($J42="Declining Balance",-$CP$38,0)))) -> 0.0515 | CQ42: =IF($M42=0,0, IF($M42<=0.5,CF42, IF(AND($J42="straight line",$M42<1.51),(CE42-((CE42/$M42)*0.5))+CF42/$M42*0.5, IF($J42="straight line", IF((LEFT(CQ$39,4)*1)-INT($M42)<LEFT($CP$39,4)*1,0,((OFFSET(CF42,0,-INT($M42+0.5),1,1))/$M42)*(IF($M42-INT($M42)>0.5,$M42-0.5-INT($M42),IF($M42-INT($M42)<=0.5,$M42-0.5-INT($M42)+1,0)))) +CF42/$M42*0.5 +SUM(OFFSET(CF42,0,MAX(-INT($M42+(0.5-(10^-12))),-CQ$40)+1,1,MIN(INT($M42+(0.5-(10^-12))),CQ$40)-1))*1/$M42, IF($J42="Declining Balance",-$CP$38,0))))) -> 0.20909 | CR42: =IF($M42=0,0, IF($M42<=0.5,CG42, IF(AND($J42="straight line",$M42<1.51),(CF42-((CF42/$M42)*0.5))+CG42/$M42*0.5, IF($J42="straight line", IF((LEFT(CR$39,4)*1)-INT($M42)<LEFT($CP$39,4)*1,0,((OFFSET(CG42,0,-INT($M42+0.5),1,1))/$M42)*(IF($M42-INT($M42)>0.5,$M42-0.5-INT($M42),IF($M42-INT($M42)<=0.5,$M42-0.5-INT($M42)+1,0)))) +CG42/$M42*0.5 +SUM(OFFSET(CG42,0,MAX(-INT($M42+(0.5-(10^-12))),-CR$40)+1,1,MIN(INT($M42+(0.5-(10^-12))),CR$40)-1))*1/$M42, IF($J42="Declining Balance",-$CP$38,0))))) -> 0.3398756302 | CS42: =IF($M42=0,0, IF($M42<=0.5,CH42, IF(AND($J42="straight line",$M42<1.51),(CG42-((CG42/$M42)*0.5))+CH42/$M42*0.5, IF($J42="straight line", IF((LEFT(CS$39,4)*1)-INT($M42)<LEFT($CP$39,4)*1,0,((OFFSET(CH42,0,-INT($M42+0.5),1,1))/$M42)*(IF($M42-INT($M42)>0.5,$M42-0.5-INT($M42),IF($M42-INT($M42)<=0.5,$M42-0.5-INT($M42)+1,0)))) +CH42/$M42*0.5 +SUM(OFFSET(CH42,0,MAX(-INT($M42+(0.5-(10^-12))),-CS$40)+1,1,MIN(INT($M42+(0.5-(10^-12))),CS$40)-1))*1/$M42, IF($J42="Declining Balance",-$CP$38,0))))) -> 0.3645712604 | CT42: =IF($M42=0,0, IF($M42<=0.5,CI42, IF(AND($J42="straight line",$M42<1.51),(CH42-((CH42/$M42)*0.5))+CI42/$M42*0.5, IF($J42="straight line", IF((LEFT(CT$39,4)*1)-INT($M42)<LEFT($CP$39,4)*1,0,((OFFSET(CI42,0,-INT($M42+0.5),1,1))/$M42)*(IF($M42-INT($M42)>0.5,$M42-0.5-INT($M42),IF($M42-INT($M42)<=0.5,$M42-0.5-INT($M42)+1,0)))) +CI42/$M42*0.5 +SUM(OFFSET(CI42,0,MAX(-INT($M42+(0.5-(10^-12))),-CT$40)+1,1,MIN(INT($M42+(0.5-(10^-12))),CT$40)-1))*1/$M42, IF($J42="Declining Balance",-$CP$38,0))))) -> 0.3645712604 | CU42: =IF($M42=0,0, IF($M42<=0.5,CJ42, IF(AND($J42="straight line",$M42<1.51),(CI42-((CI42/$M42)*0.5))+CJ42/$M42*0.5, IF($J42="straight line", IF((LEFT(CU$39,4)*1)-INT($M42)<LEFT($CP$39,4)*1,0,((OFFSET(CJ42,0,-INT($M42+0.5),1,1))/$M42)*(IF($M42-INT($M42)>0.5,$M42-0.5-INT($M42),IF($M42-INT($M42)<=0.5,$M42-0.5-INT($M42)+1,0)))) +CJ42/$M42*0.5 +SUM(OFFSET(CJ42,0,MAX(-INT($M42+(0.5-(10^-12))),-CU$40)+1,1,MIN(INT($M42+(0.5-(10^-12))),CU$40)-1))*1/$M42, IF($J42="Declining Balance",-$CP$38,0))))) -> 0.3645712604 | CV42: =IF($M42=0,0, IF($M42<=0.5,CK42, IF(AND($J42="straight line",$M42<1.51),(CJ42-((CJ42/$M42)*0.5))+CK42/$M42*0.5, IF($J42="straight line", IF((LEFT(CV$39,4)*1)-INT($M42)<LEFT($CP$39,4)*1,0,((OFFSET(CK42,0,-INT($M42+0.5),1,1))/$M42)*(IF($M42-INT($M42)>0.5,$M42-0.5-INT($M42),IF($M42-INT($M42)<=0.5,$M42-0.5-INT($M42)+1,0)))) +CK42/$M42*0.5 +SUM(OFFSET(CK42,0,MAX(-INT($M42+(0.5-(10^-12))),-CV$40)+1,1,MIN(INT($M42+(0.5-(10^-12))),CV$40)-1))*1/$M42, IF($J42="Declining Balance",-$CP$38,0))))) -> 0.3645712604 | CW42: =IF($M42=0,0, IF($M42<=0.5,CL42, IF(AND($J42="straight line",$M42<1.51),(CK42-((CK42/$M42)*0.5))+CL42/$M42*0.5, IF($J42="straight line", IF((LEFT(CW$39,4)*1)-INT($M42)<LEFT($CP$39,4)*1,0,((OFFSET(CL42,0,-INT($M42+0.5),1,1))/$M42)*(IF($M42-INT($M42)>0.5,$M42-0.5-INT($M42),IF($M42-INT($M42)<=0.5,$M42-0.5-INT($M42)+1,0)))) +CL42/$M42*0.5 +SUM(OFFSET(CL42,0,MAX(-INT($M42+(0.5-(10^-12))),-CW$40)+1,1,MIN(INT($M42+(0.5-(10^-12))),CW$40)-1))*1/$M42, IF($J42="Declining Balance",-$CP$38,0))))) -> 0.3645712604 | CX42: =IF($M42=0,0, IF($M42<=0.5,CM42, IF(AND($J42="straight line",$M42<1.51),(CL42-((CL42/$M42)*0.5))+CM42/$M42*0.5, IF($J42="straight line", IF((LEFT(CX$39,4)*1)-INT($M42)<LEFT($CP$39,4)*1,0,((OFFSET(CM42,0,-INT($M42+0.5),1,1))/$M42)*(IF($M42-INT($M42)>0.5,$M42-0.5-INT($M42),IF($M42-INT($M42)<=0.5,$M42-0.5-INT($M42)+1,0)))) +CM42/$M42*0.5 +SUM(OFFSET(CM42,0,MAX(-INT($M42+(0.5-(10^-12))),-CX$40)+1,1,MIN(INT($M42+(0.5-(10^-12))),CX$40)-1))*1/$M42, IF($J42="Declining Balance",-$CP$38,0))))) -> 0.3645712604 | CY42: =IF($M42=0,0, IF($M42<=0.5,CN42, IF(AND($J42="straight line",$M42<1.51),(CM42-((CM42/$M42)*0.5))+CN42/$M42*0.5, IF($J42="straight line", IF((LEFT(CY$39,4)*1)-INT($M42)<LEFT($CP$39,4)*1,0,((OFFSET(CN42,0,-INT($M42+0.5),1,1))/$M42)*(IF($M42-INT($M42)>0.5,$M42-0.5-INT($M42),IF($M42-INT($M42)<=0.5,$M42-0.5-INT($M42)+1,0)))) +CN42/$M42*0.5 +SUM(OFFSET(CN42,0,MAX(-INT($M42+(0.5-(10^-12))),-CY$40)+1,1,MIN(INT($M42+(0.5-(10^-12))),CY$40)-1))*1/$M42, IF($J42="Declining Balance",-$CP$38,0))))) -> 0.3645712604
C43: ='[2]Capex_FO input'!C43 -> Lance Creek Distribution system augmentation | D43: ='[2]Capex_FO input'!D43 -> 0 | E43: ='[2]Capex_FO input'!E43 -> Water | F43: ='[2]Capex_FO input'!F43 -> Growth | G43: ='[2]Capex_FO input'!G43 -> Treatment | H43: ='[2]Capex_FO input'!H43 -> Top 10 Major Projects | I43: ='[2]Capex_FO input'!I43 -> 0 | J43: Straight line | K43: ='[2]Capex_FO input'!K43 -> 2026-27 | L43: ='[2]Capex_FO input'!L43 -> 50 | M43: ='[2]Capex_FO input'!M43 -> 65 | Q43: ='[2]Capex_FO input'!Q43 -> 0.5 | R43: ='[2]Capex_FO input'!R43 -> 7.16 | S43: ='[2]Capex_FO input'!S43 -> 1 | T43: ='[2]Capex_FO input'!T43 -> 0 | U43: ='[2]Capex_FO input'!U43 -> 0 | V43: ='[2]Capex_FO input'!V43 -> 0 | W43: ='[2]Capex_FO input'!W43 -> 0 | X43: ='[2]Capex_FO input'!X43 -> 0 | Y43: ='[2]Capex_FO input'!Y43 -> 0 | Z43: ='[2]Capex_FO input'!Z43 -> 0 | AB43: ='[2]Capex_FO input'!AB43 -> 0 | AC43: ='[2]Capex_FO input'!AC43 -> 0 | AD43: ='[2]Capex_FO input'!AD43 -> 0 | AE43: ='[2]Capex_FO input'!AE43 -> 0 | AF43: ='[2]Capex_FO input'!AF43 -> 0 | AG43: ='[2]Capex_FO input'!AG43 -> 0 | AH43: ='[2]Capex_FO input'!AH43 -> 0 | AI43: ='[2]Capex_FO input'!AI43 -> 0 | AJ43: ='[2]Capex_FO input'!AJ43 -> 0 | AK43: ='[2]Capex_FO input'!AK43 -> 0 | AM43: ='[2]Capex_FO input'!AM43 -> 0 | AN43: ='[2]Capex_FO input'!AN43 -> 0 | AO43: ='[2]Capex_FO input'!AO43 -> 0 | AP43: ='[2]Capex_FO input'!AP43 -> 0 | AQ43: ='[2]Capex_FO input'!AQ43 -> 0 | AR43: ='[2]Capex_FO input'!AR43 -> 0 | AS43: ='[2]Capex_FO input'!AS43 -> 0 | AT43: ='[2]Capex_FO input'!AT43 -> 0 | AU43: ='[2]Capex_FO input'!AU43 -> 0 | AV43: ='[2]Capex_FO input'!AV43 -> 0 | AX43: 0.5 | AY43: 7.16 | AZ43: 1 | BA43: 0 | BB43: 0 | BC43: 0 | BD43: 0 | BE43: 0 | BF43: 0 | BG43: 0 | BI43: =IF($L43=0,0, IF($L43<=0.5,BT43, IF($J43="straight line", IF((LEFT(BI$39,4)*1)-INT($L43)<LEFT($BI$39,4)*1,0,((OFFSET(BT43,0,-INT($L43+0.5),1,1))/$L43)*(IF($L43-INT($L43)>0.5,$L43-0.5-INT($L43),IF($L43-INT($L43)<=0.5,$L43-0.5-INT($L43)+1,0)))) +BT43/$L43*0.5, IF($J43="Declining Balance",-$BI$38,0)))) -> 0 | BJ43: =IF($L43=0,0, IF($L43<=0.5,BU43, IF(AND($J43="straight line",$L43<1.51),(BT43-((BT43/$L43)*0.5))+BU43/$L43*0.5, IF($J43="straight line", IF((LEFT(BJ$39,4)*1)-INT($L43)<LEFT($BI$39,4)*1,0,((OFFSET(BU43,0,-INT($L43+0.5),1,1))/$L43)*(IF($L43-INT($L43)>0.5,$L43-0.5-INT($L43),IF($L43-INT($L43)<=0.5,$L43-0.5-INT($L43)+1,0)))) +BU43/$L43*0.5 +SUM(OFFSET(BU43,0,MAX(-INT($L43+(0.5-(10^-12))),-BJ$40)+1,1,MIN(INT($L43+(0.5-(10^-12))),BJ$40)-1))*1/$L43, IF($J43="Declining Balance",-$BI$38,0))))) -> 0 | BK43: 0 | BL43: 0.0866 | BM43: 0.1732 | BN43: 0.1732 | BO43: 0.1732 | BP43: 0.1732 | BQ43: 0.1732 | BR43: 0.1732 | BT43: =+IF($K43="Ongoing",AX43,IF(RIGHT($K43,2)=RIGHT(BT$39,2),SUM($AX43:AX43),0)+IF(RIGHT(BT$39,2)>RIGHT($K43,2),AX43,0)) -> 0 | BU43: =+IF($K43="Ongoing",AY43,IF(RIGHT($K43,2)=RIGHT(BU$39,2),SUM($AX43:AY43),0)+IF(RIGHT(BU$39,2)>RIGHT($K43,2),AY43,0)) -> 0 | BV43: =+IF($K43="Ongoing",AZ43,IF(RIGHT($K43,2)=RIGHT(BV$39,2),SUM($AX43:AZ43),0)+IF(RIGHT(BV$39,2)>RIGHT($K43,2),AZ43,0)) -> 0 | BW43: =+IF($K43="Ongoing",BA43,IF(RIGHT($K43,2)=RIGHT(BW$39,2),SUM($AX43:BA43),0)+IF(RIGHT(BW$39,2)>RIGHT($K43,2),BA43,0)) -> 8.66 | BX43: =+IF($K43="Ongoing",BB43,IF(RIGHT($K43,2)=RIGHT(BX$39,2),SUM($AX43:BB43),0)+IF(RIGHT(BX$39,2)>RIGHT($K43,2),BB43,0)) -> 0 | BY43: =+IF($K43="Ongoing",BC43,IF(RIGHT($K43,2)=RIGHT(BY$39,2),SUM($AX43:BC43),0)+IF(RIGHT(BY$39,2)>RIGHT($K43,2),BC43,0)) -> 0 | BZ43: =+IF($K43="Ongoing",BD43,IF(RIGHT($K43,2)=RIGHT(BZ$39,2),SUM($AX43:BD43),0)+IF(RIGHT(BZ$39,2)>RIGHT($K43,2),BD43,0)) -> 0 | CA43: =+IF($K43="Ongoing",BE43,IF(RIGHT($K43,2)=RIGHT(CA$39,2),SUM($AX43:BE43),0)+IF(RIGHT(CA$39,2)>RIGHT($K43,2),BE43,0)) -> 0 | CB43: =+IF($K43="Ongoing",BF43,IF(RIGHT($K43,2)=RIGHT(CB$39,2),SUM($AX43:BF43),0)+IF(RIGHT(CB$39,2)>RIGHT($K43,2),BF43,0)) -> 0 | CC43: =+IF($K43="Ongoing",BG43,IF(RIGHT($K43,2)=RIGHT(CC$39,2),SUM($AX43:BG43),0)+IF(RIGHT(CC$39,2)>RIGHT($K43,2),BG43,0)) -> 0 | CE43: =+Q43*KeyAssumptionsPriceControl_FO!AC$15 -> 0.515 | CF43: =+R43*KeyAssumptionsPriceControl_FO!AD$15 -> 7.596044 | CG43: =+S43*KeyAssumptionsPriceControl_FO!AE$15 -> 1.092727 | CH43: =+T43*KeyAssumptionsPriceControl_FO!AF$15 -> 0 | CI43: =+U43*KeyAssumptionsPriceControl_FO!AG$15 -> 0 | CJ43: =+V43*KeyAssumptionsPriceControl_FO!AH$15 -> 0 | CK43: =+W43*KeyAssumptionsPriceControl_FO!AI$15 -> 0 | CL43: =+X43*KeyAssumptionsPriceControl_FO!AJ$15 -> 0 | CM43: =+Y43*KeyAssumptionsPriceControl_FO!AK$15 -> 0 | CN43: =+Z43*KeyAssumptionsPriceControl_FO!AL$15 -> 0 | CP43: 0.003961538462 | CQ43: 0.06635418462 | CR43: 0.1331908846 | CS43: 0.1415964769 | CT43: 0.1415964769 | CU43: 0.1415964769 | CV43: 0.1415964769 | CW43: 0.1415964769 | CX43: 0.1415964769 | CY43: 0.1415964769
C44: ='[2]Capex_FO input'!C44 -> Sewer System Expansion (Wonthaggi) | D44: ='[2]Capex_FO input'!D44 -> 0 | E44: ='[2]Capex_FO input'!E44 -> Sewerage | F44: ='[2]Capex_FO input'!F44 -> Growth | G44: ='[2]Capex_FO input'!G44 -> Pipelines/network | H44: ='[2]Capex_FO input'!H44 -> Top 10 Major Projects | I44: ='[2]Capex_FO input'!I44 -> 0 | J44: Straight line | K44: ='[2]Capex_FO input'!K44 -> 2024-25 | L44: ='[2]Capex_FO input'!L44 -> 70 | M44: ='[2]Capex_FO input'!M44 -> 50 | Q44: ='[2]Capex_FO input'!Q44 -> 6.1695 | R44: ='[2]Capex_FO input'!R44 -> 0 | S44: ='[2]Capex_FO input'!S44 -> 0 | T44: ='[2]Capex_FO input'!T44 -> 0.52467 | U44: ='[2]Capex_FO input'!U44 -> 0.29484 | V44: ='[2]Capex_FO input'!V44 -> 3.39066 | W44: ='[2]Capex_FO input'!W44 -> 1 | X44: ='[2]Capex_FO input'!X44 -> 2.89919 | Y44: ='[2]Capex_FO input'!Y44 -> 0 | Z44: ='[2]Capex_FO input'!Z44 -> 0.93654 | AB44: ='[2]Capex_FO input'!AB44 -> 0 | AC44: ='[2]Capex_FO input'!AC44 -> 0 | AD44: ='[2]Capex_FO input'!AD44 -> 0 | AE44: ='[2]Capex_FO input'!AE44 -> 0 | AF44: ='[2]Capex_FO input'!AF44 -> 0 | AG44: ='[2]Capex_FO input'!AG44 -> 0 | AH44: ='[2]Capex_FO input'!AH44 -> 0 | AI44: ='[2]Capex_FO input'!AI44 -> 0 | AJ44: ='[2]Capex_FO input'!AJ44 -> 0 | AK44: ='[2]Capex_FO input'!AK44 -> 0 | AM44: ='[2]Capex_FO input'!AM44 -> 0 | AN44: ='[2]Capex_FO input'!AN44 -> 0 | AO44: ='[2]Capex_FO input'!AO44 -> 0 | AP44: ='[2]Capex_FO input'!AP44 -> 0 | AQ44: ='[2]Capex_FO input'!AQ44 -> 0 | AR44: ='[2]Capex_FO input'!AR44 -> 0 | AS44: ='[2]Capex_FO input'!AS44 -> 0 | AT44: ='[2]Capex_FO input'!AT44 -> 0 | AU44: ='[2]Capex_FO input'!AU44 -> 0 | AV44: ='[2]Capex_FO input'!AV44 -> 0 | AX44: 6.1695 | AY44: 0 | AZ44: 0 | BA44: 0.52467 | BB44: 0.29484 | BC44: 3.39066 | BD44: 1 | BE44: 2.89919 | BF44: 0 | BG44: 0.93654 | BI44: 0 | BJ44: 0.04406785714 | BK44: 0.08813571429 | BL44: 0.09188335714 | BM44: 0.097737 | BN44: 0.124062 | BO44: 0.1554238571 | BP44: 0.1832752143 | BQ44: 0.2039837143 | BR44: 0.2106732857 | BT44: =+IF($K44="Ongoing",AX44,IF(RIGHT($K44,2)=RIGHT(BT$39,2),SUM($AX44:AX44),0)+IF(RIGHT(BT$39,2)>RIGHT($K44,2),AX44,0)) -> 0 | BU44: =+IF($K44="Ongoing",AY44,IF(RIGHT($K44,2)=RIGHT(BU$39,2),SUM($AX44:AY44),0)+IF(RIGHT(BU$39,2)>RIGHT($K44,2),AY44,0)) -> 6.1695 | BV44: =+IF($K44="Ongoing",AZ44,IF(RIGHT($K44,2)=RIGHT(BV$39,2),SUM($AX44:AZ44),0)+IF(RIGHT(BV$39,2)>RIGHT($K44,2),AZ44,0)) -> 0 | BW44: =+IF($K44="Ongoing",BA44,IF(RIGHT($K44,2)=RIGHT(BW$39,2),SUM($AX44:BA44),0)+IF(RIGHT(BW$39,2)>RIGHT($K44,2),BA44,0)) -> 0.52467 | BX44: =+IF($K44="Ongoing",BB44,IF(RIGHT($K44,2)=RIGHT(BX$39,2),SUM($AX44:BB44),0)+IF(RIGHT(BX$39,2)>RIGHT($K44,2),BB44,0)) -> 0.29484 | BY44: =+IF($K44="Ongoing",BC44,IF(RIGHT($K44,2)=RIGHT(BY$39,2),SUM($AX44:BC44),0)+IF(RIGHT(BY$39,2)>RIGHT($K44,2),BC44,0)) -> 3.39066 | BZ44: =+IF($K44="Ongoing",BD44,IF(RIGHT($K44,2)=RIGHT(BZ$39,2),SUM($AX44:BD44),0)+IF(RIGHT(BZ$39,2)>RIGHT($K44,2),BD44,0)) -> 1 | CA44: =+IF($K44="Ongoing",BE44,IF(RIGHT($K44,2)=RIGHT(CA$39,2),SUM($AX44:BE44),0)+IF(RIGHT(CA$39,2)>RIGHT($K44,2),BE44,0)) -> 2.89919 | CB44: =+IF($K44="Ongoing",BF44,IF(RIGHT($K44,2)=RIGHT(CB$39,2),SUM($AX44:BF44),0)+IF(RIGHT(CB$39,2)>RIGHT($K44,2),BF44,0)) -> 0 | CC44: =+IF($K44="Ongoing",BG44,IF(RIGHT($K44,2)=RIGHT(CC$39,2),SUM($AX44:BG44),0)+IF(RIGHT(CC$39,2)>RIGHT($K44,2),BG44,0)) -> 0.93654 | CE44: =+Q44*KeyAssumptionsPriceControl_FO!AC$15 -> 6.354585 | CF44: =+R44*KeyAssumptionsPriceControl_FO!AD$15 -> 0 | CG44: =+S44*KeyAssumptionsPriceControl_FO!AE$15 -> 0 | CH44: =+T44*KeyAssumptionsPriceControl_FO!AF$15 -> 0.5905207073 | CI44: =+U44*KeyAssumptionsPriceControl_FO!AG$15 -> 0.3418003681 | CJ44: =+V44*KeyAssumptionsPriceControl_FO!AH$15 -> 4.04862536 | CK44: =+W44*KeyAssumptionsPriceControl_FO!AI$15 -> 1.229873865 | CL44: =+X44*KeyAssumptionsPriceControl_FO!AJ$15 -> 3.672607152 | CM44: =+Y44*KeyAssumptionsPriceControl_FO!AK$15 -> 0 | CN44: =+Z44*KeyAssumptionsPriceControl_FO!AL$15 -> 1.258631446 | CP44: 0.06354585 | CQ44: 0.1270917 | CR44: 0.1270917 | CS44: 0.1329969071 | CT44: 0.1423201178 | CU44: 0.1862243751 | CV44: 0.2390093674 | CW44: 0.2880341775 | CX44: 0.3247602491 | CY44: 0.3373465635
C45: ='[2]Capex_FO input'!C45 -> Foster WWTP Compliance Upgrade | D45: ='[2]Capex_FO input'!D45 -> 0 | E45: ='[2]Capex_FO input'!E45 -> Sewerage | F45: ='[2]Capex_FO input'!F45 -> Improvements / Compliance | G45: ='[2]Capex_FO input'!G45 -> Treatment | H45: ='[2]Capex_FO input'!H45 -> Top 10 Major Projects | I45: ='[2]Capex_FO input'!I45 -> 0 | J45: Straight line | K45: ='[2]Capex_FO input'!K45 -> 2025-26 | L45: ='[2]Capex_FO input'!L45 -> 50 | M45: ='[2]Capex_FO input'!M45 -> 80 | Q45: ='[2]Capex_FO input'!Q45 -> 2.08 | R45: ='[2]Capex_FO input'!R45 -> 3.75 | S45: ='[2]Capex_FO input'!S45 -> 0 | T45: ='[2]Capex_FO input'!T45 -> 0 | U45: ='[2]Capex_FO input'!U45 -> 0 | V45: ='[2]Capex_FO input'!V45 -> 0 | W45: ='[2]Capex_FO input'!W45 -> 0.222 | X45: ='[2]Capex_FO input'!X45 -> 3.5 | Y45: ='[2]Capex_FO input'!Y45 -> 7.14 | Z45: ='[2]Capex_FO input'!Z45 -> 0 | AB45: ='[2]Capex_FO input'!AB45 -> 0 | AC45: ='[2]Capex_FO input'!AC45 -> 0 | AD45: ='[2]Capex_FO input'!AD45 -> 0 | AE45: ='[2]Capex_FO input'!AE45 -> 0 | AF45: ='[2]Capex_FO input'!AF45 -> 0 | AG45: ='[2]Capex_FO input'!AG45 -> 0 | AH45: ='[2]Capex_FO input'!AH45 -> 0 | AI45: ='[2]Capex_FO input'!AI45 -> 0 | AJ45: ='[2]Capex_FO input'!AJ45 -> 0 | AK45: ='[2]Capex_FO input'!AK45 -> 0 | AM45: ='[2]Capex_FO input'!AM45 -> 0 | AN45: ='[2]Capex_FO input'!AN45 -> 0 | AO45: ='[2]Capex_FO input'!AO45 -> 0 | AP45: ='[2]Capex_FO input'!AP45 -> 0 | AQ45: ='[2]Capex_FO input'!AQ45 -> 0 | AR45: ='[2]Capex_FO input'!AR45 -> 0 | AS45: ='[2]Capex_FO input'!AS45 -> 0 | AT45: ='[2]Capex_FO input'!AT45 -> 0 | AU45: ='[2]Capex_FO input'!AU45 -> 0 | AV45: ='[2]Capex_FO input'!AV45 -> 0 | AX45: 2.08 | AY45: 3.75 | AZ45: 0 | BA45: 0 | BB45: 0 | BC45: 0 | BD45: 0.222 | BE45: 3.5 | BF45: 7.14 | BG45: 0 | BI45: 0 | BJ45: 0 | BK45: 0.0583 | BL45: 0.1166 | BM45: 0.1166 | BN45: 0.1166 | BO45: 0.11882 | BP45: 0.15604 | BQ45: 0.26244 | BR45: 0.33384 | BT45: =+IF($K45="Ongoing",AX45,IF(RIGHT($K45,2)=RIGHT(BT$39,2),SUM($AX45:AX45),0)+IF(RIGHT(BT$39,2)>RIGHT($K45,2),AX45,0)) -> 0 | BU45: =+IF($K45="Ongoing",AY45,IF(RIGHT($K45,2)=RIGHT(BU$39,2),SUM($AX45:AY45),0)+IF(RIGHT(BU$39,2)>RIGHT($K45,2),AY45,0)) -> 0 | BV45: =+IF($K45="Ongoing",AZ45,IF(RIGHT($K45,2)=RIGHT(BV$39,2),SUM($AX45:AZ45),0)+IF(RIGHT(BV$39,2)>RIGHT($K45,2),AZ45,0)) -> 5.83 | BW45: =+IF($K45="Ongoing",BA45,IF(RIGHT($K45,2)=RIGHT(BW$39,2),SUM($AX45:BA45),0)+IF(RIGHT(BW$39,2)>RIGHT($K45,2),BA45,0)) -> 0 | BX45: =+IF($K45="Ongoing",BB45,IF(RIGHT($K45,2)=RIGHT(BX$39,2),SUM($AX45:BB45),0)+IF(RIGHT(BX$39,2)>RIGHT($K45,2),BB45,0)) -> 0 | BY45: =+IF($K45="Ongoing",BC45,IF(RIGHT($K45,2)=RIGHT(BY$39,2),SUM($AX45:BC45),0)+IF(RIGHT(BY$39,2)>RIGHT($K45,2),BC45,0)) -> 0 | BZ45: =+IF($K45="Ongoing",BD45,IF(RIGHT($K45,2)=RIGHT(BZ$39,2),SUM($AX45:BD45),0)+IF(RIGHT(BZ$39,2)>RIGHT($K45,2),BD45,0)) -> 0.222 | CA45: =+IF($K45="Ongoing",BE45,IF(RIGHT($K45,2)=RIGHT(CA$39,2),SUM($AX45:BE45),0)+IF(RIGHT(CA$39,2)>RIGHT($K45,2),BE45,0)) -> 3.5 | CB45: =+IF($K45="Ongoing",BF45,IF(RIGHT($K45,2)=RIGHT(CB$39,2),SUM($AX45:BF45),0)+IF(RIGHT(CB$39,2)>RIGHT($K45,2),BF45,0)) -> 7.14 | CC45: =+IF($K45="Ongoing",BG45,IF(RIGHT($K45,2)=RIGHT(CC$39,2),SUM($AX45:BG45),0)+IF(RIGHT(CC$39,2)>RIGHT($K45,2),BG45,0)) -> 0 | CE45: =+Q45*KeyAssumptionsPriceControl_FO!AC$15 -> 2.1424 | CF45: =+R45*KeyAssumptionsPriceControl_FO!AD$15 -> 3.978375 | CG45: =+S45*KeyAssumptionsPriceControl_FO!AE$15 -> 0 | CH45: =+T45*KeyAssumptionsPriceControl_FO!AF$15 -> 0 | CI45: =+U45*KeyAssumptionsPriceControl_FO!AG$15 -> 0 | CJ45: =+V45*KeyAssumptionsPriceControl_FO!AH$15 -> 0 | CK45: =+W45*KeyAssumptionsPriceControl_FO!AI$15 -> 0.2730319981 | CL45: =+X45*KeyAssumptionsPriceControl_FO!AJ$15 -> 4.433695285 | CM45: =+Y45*KeyAssumptionsPriceControl_FO!AK$15 -> 9.316080533 | CN45: =+Z45*KeyAssumptionsPriceControl_FO!AL$15 -> 0 | CP45: 0.01339 | CQ45: 0.05164484375 | CR45: 0.0765096875 | CS45: 0.0765096875 | CT45: 0.0765096875 | CU45: 0.0765096875 | CV45: 0.07821613749 | CW45: 0.107633183 | CX45: 0.1935692819 | CY45: 0.2517947852
C46: ='[2]Capex_FO input'!C46 -> PLN Water System Augmentation | D46: ='[2]Capex_FO input'!D46 -> 0 | E46: ='[2]Capex_FO input'!E46 -> Water | F46: ='[2]Capex_FO input'!F46 -> Growth | G46: ='[2]Capex_FO input'!G46 -> Pipelines/network | H46: ='[2]Capex_FO input'!H46 -> Top 10 Major Projects | I46: ='[2]Capex_FO input'!I46 -> 0 | J46: Straight line | K46: ='[2]Capex_FO input'!K46 -> Ongoing | L46: ='[2]Capex_FO input'!L46 -> 80 | M46: ='[2]Capex_FO input'!M46 -> 50 | Q46: ='[2]Capex_FO input'!Q46 -> 3.22491 | R46: ='[2]Capex_FO input'!R46 -> 0.5704 | S46: ='[2]Capex_FO input'!S46 -> 0.76213 | T46: ='[2]Capex_FO input'!T46 -> 1.00069 | U46: ='[2]Capex_FO input'!U46 -> 0.34358 | V46: ='[2]Capex_FO input'!V46 -> 3.42654 | W46: ='[2]Capex_FO input'!W46 -> 0.679 | X46: ='[2]Capex_FO input'!X46 -> 0 | Y46: ='[2]Capex_FO input'!Y46 -> 0 | Z46: ='[2]Capex_FO input'!Z46 -> 0 | AB46: ='[2]Capex_FO input'!AB46 -> 0 | AC46: ='[2]Capex_FO input'!AC46 -> 0 | AD46: ='[2]Capex_FO input'!AD46 -> 0 | AE46: ='[2]Capex_FO input'!AE46 -> 0 | AF46: ='[2]Capex_FO input'!AF46 -> 0 | AG46: ='[2]Capex_FO input'!AG46 -> 0 | AH46: ='[2]Capex_FO input'!AH46 -> 0 | AI46: ='[2]Capex_FO input'!AI46 -> 0 | AJ46: ='[2]Capex_FO input'!AJ46 -> 0 | AK46: ='[2]Capex_FO input'!AK46 -> 0 | AM46: ='[2]Capex_FO input'!AM46 -> 0 | AN46: ='[2]Capex_FO input'!AN46 -> 0 | AO46: ='[2]Capex_FO input'!AO46 -> 0 | AP46: ='[2]Capex_FO input'!AP46 -> 0 | AQ46: ='[2]Capex_FO input'!AQ46 -> 0 | AR46: ='[2]Capex_FO input'!AR46 -> 0 | AS46: ='[2]Capex_FO input'!AS46 -> 0 | AT46: ='[2]Capex_FO input'!AT46 -> 0 | AU46: ='[2]Capex_FO input'!AU46 -> 0 | AV46: ='[2]Capex_FO input'!AV46 -> 0 | AX46: 3.22491 | AY46: 0.5704 | AZ46: 0.76213 | BA46: 1.00069 | BB46: 0.34358 | BC46: 3.42654 | BD46: 0.679 | BE46: 0 | BF46: 0 | BG46: 0 | BI46: 0.0201556875 | BJ46: 0.043876375 | BK46: 0.0522046875 | BL46: 0.0632223125 | BM46: 0.071624 | BN46: 0.09518725 | BO46: 0.120846875 | BP46: 0.125090625 | BQ46: 0.125090625 | BR46: 0.125090625 | BT46: =+IF($K46="Ongoing",AX46,IF(RIGHT($K46,2)=RIGHT(BT$39,2),SUM($AX46:AX46),0)+IF(RIGHT(BT$39,2)>RIGHT($K46,2),AX46,0)) -> 3.22491 | BU46: =+IF($K46="Ongoing",AY46,IF(RIGHT($K46,2)=RIGHT(BU$39,2),SUM($AX46:AY46),0)+IF(RIGHT(BU$39,2)>RIGHT($K46,2),AY46,0)) -> 0.5704 | BV46: =+IF($K46="Ongoing",AZ46,IF(RIGHT($K46,2)=RIGHT(BV$39,2),SUM($AX46:AZ46),0)+IF(RIGHT(BV$39,2)>RIGHT($K46,2),AZ46,0)) -> 0.76213 | BW46: =+IF($K46="Ongoing",BA46,IF(RIGHT($K46,2)=RIGHT(BW$39,2),SUM($AX46:BA46),0)+IF(RIGHT(BW$39,2)>RIGHT($K46,2),BA46,0)) -> 1.00069 | BX46: =+IF($K46="Ongoing",BB46,IF(RIGHT($K46,2)=RIGHT(BX$39,2),SUM($AX46:BB46),0)+IF(RIGHT(BX$39,2)>RIGHT($K46,2),BB46,0)) -> 0.34358 | BY46: =+IF($K46="Ongoing",BC46,IF(RIGHT($K46,2)=RIGHT(BY$39,2),SUM($AX46:BC46),0)+IF(RIGHT(BY$39,2)>RIGHT($K46,2),BC46,0)) -> 3.42654 | BZ46: =+IF($K46="Ongoing",BD46,IF(RIGHT($K46,2)=RIGHT(BZ$39,2),SUM($AX46:BD46),0)+IF(RIGHT(BZ$39,2)>RIGHT($K46,2),BD46,0)) -> 0.679 | CA46: =+IF($K46="Ongoing",BE46,IF(RIGHT($K46,2)=RIGHT(CA$39,2),SUM($AX46:BE46),0)+IF(RIGHT(CA$39,2)>RIGHT($K46,2),BE46,0)) -> 0 | CB46: =+IF($K46="Ongoing",BF46,IF(RIGHT($K46,2)=RIGHT(CB$39,2),SUM($AX46:BF46),0)+IF(RIGHT(CB$39,2)>RIGHT($K46,2),BF46,0)) -> 0 | CC46: =+IF($K46="Ongoing",BG46,IF(RIGHT($K46,2)=RIGHT(CC$39,2),SUM($AX46:BG46),0)+IF(RIGHT(CC$39,2)>RIGHT($K46,2),BG46,0)) -> 0 | CE46: =+Q46*KeyAssumptionsPriceControl_FO!AC$15 -> 3.3216573 | CF46: =+R46*KeyAssumptionsPriceControl_FO!AD$15 -> 0.60513736 | CG46: =+S46*KeyAssumptionsPriceControl_FO!AE$15 -> 0.8328000285 | CH46: =+T46*KeyAssumptionsPriceControl_FO!AF$15 -> 1.126285411 | CI46: =+U46*KeyAssumptionsPriceControl_FO!AG$15 -> 0.3983033864 | CJ46: =+V46*KeyAssumptionsPriceControl_FO!AH$15 -> 4.091467956 | CK46: =+W46*KeyAssumptionsPriceControl_FO!AI$15 -> 0.8350843546 | CL46: =+X46*KeyAssumptionsPriceControl_FO!AJ$15 -> 0 | CM46: =+Y46*KeyAssumptionsPriceControl_FO!AK$15 -> 0 | CN46: =+Z46*KeyAssumptionsPriceControl_FO!AL$15 -> 0 | CP46: 0.033216573 | CQ46: 0.0724845196 | CR46: 0.08686389349 | CS46: 0.1064547479 | CT46: 0.1217006359 | CU46: 0.1665983493 | CV46: 0.2158638724 | CW46: 0.2242147159 | CX46: 0.2242147159 | CY46: 0.2242147159
C47: ='[2]Capex_FO input'!C47 -> Wonthaggi WWTP augmentation | D47: ='[2]Capex_FO input'!D47 -> 0 | E47: ='[2]Capex_FO input'!E47 -> Sewerage | F47: ='[2]Capex_FO input'!F47 -> Growth | G47: ='[2]Capex_FO input'!G47 -> Treatment | H47: ='[2]Capex_FO input'!H47 -> Top 10 Major Projects | I47: ='[2]Capex_FO input'!I47 -> 0 | J47: Straight line | K47: ='[2]Capex_FO input'!K47 -> Ongoing | L47: ='[2]Capex_FO input'!L47 -> 50 | M47: ='[2]Capex_FO input'!M47 -> 80 | Q47: ='[2]Capex_FO input'!Q47 -> 2.815 | R47: ='[2]Capex_FO input'!R47 -> 0.875 | S47: ='[2]Capex_FO input'!S47 -> 0.525 | T47: ='[2]Capex_FO input'!T47 -> 0.775 | U47: ='[2]Capex_FO input'!U47 -> 0.575 | V47: ='[2]Capex_FO input'!V47 -> 13.15 | W47: ='[2]Capex_FO input'!W47 -> 27 | X47: ='[2]Capex_FO input'!X47 -> 14.9 | Y47: ='[2]Capex_FO input'!Y47 -> 4 | Z47: ='[2]Capex_FO input'!Z47 -> 2.6 | AB47: ='[2]Capex_FO input'!AB47 -> 0 | AC47: ='[2]Capex_FO input'!AC47 -> 0 | AD47: ='[2]Capex_FO input'!AD47 -> 0 | AE47: ='[2]Capex_FO input'!AE47 -> 0 | AF47: ='[2]Capex_FO input'!AF47 -> 0 | AG47: ='[2]Capex_FO input'!AG47 -> 0 | AH47: ='[2]Capex_FO input'!AH47 -> 0 | AI47: ='[2]Capex_FO input'!AI47 -> 0 | AJ47: ='[2]Capex_FO input'!AJ47 -> 0 | AK47: ='[2]Capex_FO input'!AK47 -> 0 | AM47: ='[2]Capex_FO input'!AM47 -> 0 | AN47: ='[2]Capex_FO input'!AN47 -> 0 | AO47: ='[2]Capex_FO input'!AO47 -> 0 | AP47: ='[2]Capex_FO input'!AP47 -> 0 | AQ47: ='[2]Capex_FO input'!AQ47 -> 0 | AR47: ='[2]Capex_FO input'!AR47 -> 0 | AS47: ='[2]Capex_FO input'!AS47 -> 0 | AT47: ='[2]Capex_FO input'!AT47 -> 0 | AU47: ='[2]Capex_FO input'!AU47 -> 0 | AV47: ='[2]Capex_FO input'!AV47 -> 0 | AX47: 2.815 | AY47: 0.875 | AZ47: 0.525 | BA47: 0.775 | BB47: 0.575 | BC47: 13.15 | BD47: 27 | BE47: 14.9 | BF47: 4 | BG47: 2.6 | BI47: 0.02815 | BJ47: 0.06505 | BK47: 0.07905 | BL47: 0.09205 | BM47: 0.10555 | BN47: 0.2428 | BO47: 0.6443 | BP47: 1.0633 | BQ47: 1.2523 | BR47: 1.3183 | BT47: =+IF($K47="Ongoing",AX47,IF(RIGHT($K47,2)=RIGHT(BT$39,2),SUM($AX47:AX47),0)+IF(RIGHT(BT$39,2)>RIGHT($K47,2),AX47,0)) -> 2.815 | BU47: =+IF($K47="Ongoing",AY47,IF(RIGHT($K47,2)=RIGHT(BU$39,2),SUM($AX47:AY47),0)+IF(RIGHT(BU$39,2)>RIGHT($K47,2),AY47,0)) -> 0.875 | BV47: =+IF($K47="Ongoing",AZ47,IF(RIGHT($K47,2)=RIGHT(BV$39,2),SUM($AX47:AZ47),0)+IF(RIGHT(BV$39,2)>RIGHT($K47,2),AZ47,0)) -> 0.525 | BW47: =+IF($K47="Ongoing",BA47,IF(RIGHT($K47,2)=RIGHT(BW$39,2),SUM($AX47:BA47),0)+IF(RIGHT(BW$39,2)>RIGHT($K47,2),BA47,0)) -> 0.775 | BX47: =+IF($K47="Ongoing",BB47,IF(RIGHT($K47,2)=RIGHT(BX$39,2),SUM($AX47:BB47),0)+IF(RIGHT(BX$39,2)>RIGHT($K47,2),BB47,0)) -> 0.575 | BY47: =+IF($K47="Ongoing",BC47,IF(RIGHT($K47,2)=RIGHT(BY$39,2),SUM($AX47:BC47),0)+IF(RIGHT(BY$39,2)>RIGHT($K47,2),BC47,0)) -> 13.15 | BZ47: =+IF($K47="Ongoing",BD47,IF(RIGHT($K47,2)=RIGHT(BZ$39,2),SUM($AX47:BD47),0)+IF(RIGHT(BZ$39,2)>RIGHT($K47,2),BD47,0)) -> 27 | CA47: =+IF($K47="Ongoing",BE47,IF(RIGHT($K47,2)=RIGHT(CA$39,2),SUM($AX47:BE47),0)+IF(RIGHT(CA$39,2)>RIGHT($K47,2),BE47,0)) -> 14.9 | CB47: =+IF($K47="Ongoing",BF47,IF(RIGHT($K47,2)=RIGHT(CB$39,2),SUM($AX47:BF47),0)+IF(RIGHT(CB$39,2)>RIGHT($K47,2),BF47,0)) -> 4 | CC47: =+IF($K47="Ongoing",BG47,IF(RIGHT($K47,2)=RIGHT(CC$39,2),SUM($AX47:BG47),0)+IF(RIGHT(CC$39,2)>RIGHT($K47,2),BG47,0)) -> 2.6 | CE47: =+Q47*KeyAssumptionsPriceControl_FO!AC$15 -> 2.89945 | CF47: =+R47*KeyAssumptionsPriceControl_FO!AD$15 -> 0.9282875 | CG47: =+S47*KeyAssumptionsPriceControl_FO!AE$15 -> 0.573681675 | CH47: =+T47*KeyAssumptionsPriceControl_FO!AF$15 -> 0.8722693278 | CI47: =+U47*KeyAssumptionsPriceControl_FO!AG$15 -> 0.6665825927 | CJ47: =+V47*KeyAssumptionsPriceControl_FO!AH$15 -> 15.7017877 | CK47: =+W47*KeyAssumptionsPriceControl_FO!AI$15 -> 33.20659437 | CL47: =+X47*KeyAssumptionsPriceControl_FO!AJ$15 -> 18.87487421 | CM47: =+Y47*KeyAssumptionsPriceControl_FO!AK$15 -> 5.219092735 | CN47: =+Z47*KeyAssumptionsPriceControl_FO!AL$15 -> 3.494182586 | CP47: 0.0181215625 | CQ47: 0.04204492188 | CR47: 0.05143222922 | CS47: 0.06046942299 | CT47: 0.07008724749 | CU47: 0.1723895618 | CV47: 0.4780669497 | CW47: 0.8035761283 | CX47: 0.9541634218 | CY47: 1.008621393
C48: ='[2]Capex_FO input'!C48 -> Leongatha WWTP Augmentation | D48: ='[2]Capex_FO input'!D48 -> 0 | E48: ='[2]Capex_FO input'!E48 -> Sewerage | F48: ='[2]Capex_FO input'!F48 -> Growth | G48: ='[2]Capex_FO input'!G48 -> Treatment | H48: ='[2]Capex_FO input'!H48 -> Top 10 Major Projects | I48: ='[2]Capex_FO input'!I48 -> 0 | J48: Straight line | K48: ='[2]Capex_FO input'!K48 -> 2027-28 | L48: ='[2]Capex_FO input'!L48 -> 50 | M48: ='[2]Capex_FO input'!M48 -> 80 | Q48: ='[2]Capex_FO input'!Q48 -> 0.5 | R48: ='[2]Capex_FO input'!R48 -> 1.04616 | S48: ='[2]Capex_FO input'!S48 -> 1.58792 | T48: ='[2]Capex_FO input'!T48 -> 1.36871 | U48: ='[2]Capex_FO input'!U48 -> 0 | V48: ='[2]Capex_FO input'!V48 -> 0 | W48: ='[2]Capex_FO input'!W48 -> 0 | X48: ='[2]Capex_FO input'!X48 -> 0.6 | Y48: ='[2]Capex_FO input'!Y48 -> 1.80357 | Z48: ='[2]Capex_FO input'!Z48 -> 0.6 | AB48: ='[2]Capex_FO input'!AB48 -> 0 | AC48: ='[2]Capex_FO input'!AC48 -> 0 | AD48: ='[2]Capex_FO input'!AD48 -> 0 | AE48: ='[2]Capex_FO input'!AE48 -> 0 | AF48: ='[2]Capex_FO input'!AF48 -> 0 | AG48: ='[2]Capex_FO input'!AG48 -> 0 | AH48: ='[2]Capex_FO input'!AH48 -> 0 | AI48: ='[2]Capex_FO input'!AI48 -> 0 | AJ48: ='[2]Capex_FO input'!AJ48 -> 0 | AK48: ='[2]Capex_FO input'!AK48 -> 0 | AM48: ='[2]Capex_FO input'!AM48 -> 0 | AN48: ='[2]Capex_FO input'!AN48 -> 0 | AO48: ='[2]Capex_FO input'!AO48 -> 0 | AP48: ='[2]Capex_FO input'!AP48 -> 0 | AQ48: ='[2]Capex_FO input'!AQ48 -> 0 | AR48: ='[2]Capex_FO input'!AR48 -> 0 | AS48: ='[2]Capex_FO input'!AS48 -> 0 | AT48: ='[2]Capex_FO input'!AT48 -> 0 | AU48: ='[2]Capex_FO input'!AU48 -> 0 | AV48: ='[2]Capex_FO input'!AV48 -> 0 | AX48: 0.5 | AY48: 1.04616 | AZ48: 1.58792 | BA48: 1.36871 | BB48: 0 | BC48: 0 | BD48: 0 | BE48: 0.6 | BF48: 1.80357 | BG48: 0.6 | BI48: 0 | BJ48: 0 | BK48: 0 | BL48: 0 | BM48: 0.0450279 | BN48: 0.0900558 | BO48: 0.0900558 | BP48: 0.0960558 | BQ48: 0.1200915 | BR48: 0.1441272 | BT48: =+IF($K48="Ongoing",AX48,IF(RIGHT($K48,2)=RIGHT(BT$39,2),SUM($AX48:AX48),0)+IF(RIGHT(BT$39,2)>RIGHT($K48,2),AX48,0)) -> 0 | BU48: =+IF($K48="Ongoing",AY48,IF(RIGHT($K48,2)=RIGHT(BU$39,2),SUM($AX48:AY48),0)+IF(RIGHT(BU$39,2)>RIGHT($K48,2),AY48,0)) -> 0 | BV48: =+IF($K48="Ongoing",AZ48,IF(RIGHT($K48,2)=RIGHT(BV$39,2),SUM($AX48:AZ48),0)+IF(RIGHT(BV$39,2)>RIGHT($K48,2),AZ48,0)) -> 0 | BW48: =+IF($K48="Ongoing",BA48,IF(RIGHT($K48,2)=RIGHT(BW$39,2),SUM($AX48:BA48),0)+IF(RIGHT(BW$39,2)>RIGHT($K48,2),BA48,0)) -> 0 | BX48: =+IF($K48="Ongoing",BB48,IF(RIGHT($K48,2)=RIGHT(BX$39,2),SUM($AX48:BB48),0)+IF(RIGHT(BX$39,2)>RIGHT($K48,2),BB48,0)) -> 4.50279 | BY48: =+IF($K48="Ongoing",BC48,IF(RIGHT($K48,2)=RIGHT(BY$39,2),SUM($AX48:BC48),0)+IF(RIGHT(BY$39,2)>RIGHT($K48,2),BC48,0)) -> 0 | BZ48: =+IF($K48="Ongoing",BD48,IF(RIGHT($K48,2)=RIGHT(BZ$39,2),SUM($AX48:BD48),0)+IF(RIGHT(BZ$39,2)>RIGHT($K48,2),BD48,0)) -> 0 | CA48: =+IF($K48="Ongoing",BE48,IF(RIGHT($K48,2)=RIGHT(CA$39,2),SUM($AX48:BE48),0)+IF(RIGHT(CA$39,2)>RIGHT($K48,2),BE48,0)) -> 0.6 | CB48: =+IF($K48="Ongoing",BF48,IF(RIGHT($K48,2)=RIGHT(CB$39,2),SUM($AX48:BF48),0)+IF(RIGHT(CB$39,2)>RIGHT($K48,2),BF48,0)) -> 1.80357 | CC48: =+IF($K48="Ongoing",BG48,IF(RIGHT($K48,2)=RIGHT(CC$39,2),SUM($AX48:BG48),0)+IF(RIGHT(CC$39,2)>RIGHT($K48,2),BG48,0)) -> 0.6 | CE48: =+Q48*KeyAssumptionsPriceControl_FO!AC$15 -> 0.515 | CF48: =+R48*KeyAssumptionsPriceControl_FO!AD$15 -> 1.109871144 | CG48: =+S48*KeyAssumptionsPriceControl_FO!AE$15 -> 1.735163058 | CH48: =+T48*KeyAssumptionsPriceControl_FO!AF$15 -> 1.540495163 | CI48: =+U48*KeyAssumptionsPriceControl_FO!AG$15 -> 0 | CJ48: =+V48*KeyAssumptionsPriceControl_FO!AH$15 -> 0 | CK48: =+W48*KeyAssumptionsPriceControl_FO!AI$15 -> 0 | CL48: =+X48*KeyAssumptionsPriceControl_FO!AJ$15 -> 0.7600620488 | CM48: =+Y48*KeyAssumptionsPriceControl_FO!AK$15 -> 2.353249771 | CN48: =+Z48*KeyAssumptionsPriceControl_FO!AL$15 -> 0.8063498276 | CP48: 0.00321875 | CQ48: 0.01337419465 | CR48: 0.03115565841 | CS48: 0.05162852229 | CT48: 0.06125661706 | CU48: 0.06125661706 | CV48: 0.06125661706 | CW48: 0.06600700487 | CX48: 0.08546520374 | CY48: 0.1052127012
C49: ='[2]Capex_FO input'!C49 -> Toora WTP Pressure Filter Renewal | D49: ='[2]Capex_FO input'!D49 -> 0 | E49: ='[2]Capex_FO input'!E49 -> Water | F49: ='[2]Capex_FO input'!F49 -> Improvements / Compliance | G49: ='[2]Capex_FO input'!G49 -> Treatment | H49: ='[2]Capex_FO input'!H49 -> Top 10 Major Projects | I49: ='[2]Capex_FO input'!I49 -> 0 | J49: Straight line | K49: ='[2]Capex_FO input'!K49 -> 2027-28 | L49: ='[2]Capex_FO input'!L49 -> 50 | M49: ='[2]Capex_FO input'!M49 -> 65 | Q49: ='[2]Capex_FO input'!Q49 -> 0.194 | R49: ='[2]Capex_FO input'!R49 -> 0.284 | S49: ='[2]Capex_FO input'!S49 -> 1.839 | T49: ='[2]Capex_FO input'!T49 -> 2.108 | U49: ='[2]Capex_FO input'!U49 -> 0 | V49: ='[2]Capex_FO input'!V49 -> 0 | W49: ='[2]Capex_FO input'!W49 -> 0 | X49: ='[2]Capex_FO input'!X49 -> 0 | Y49: ='[2]Capex_FO input'!Y49 -> 0 | Z49: ='[2]Capex_FO input'!Z49 -> 0 | AB49: ='[2]Capex_FO input'!AB49 -> 0 | AC49: ='[2]Capex_FO input'!AC49 -> 0 | AD49: ='[2]Capex_FO input'!AD49 -> 0 | AE49: ='[2]Capex_FO input'!AE49 -> 0 | AF49: ='[2]Capex_FO input'!AF49 -> 0 | AG49: ='[2]Capex_FO input'!AG49 -> 0 | AH49: ='[2]Capex_FO input'!AH49 -> 0 | AI49: ='[2]Capex_FO input'!AI49 -> 0 | AJ49: ='[2]Capex_FO input'!AJ49 -> 0 | AK49: ='[2]Capex_FO input'!AK49 -> 0 | AM49: ='[2]Capex_FO input'!AM49 -> 0 | AN49: ='[2]Capex_FO input'!AN49 -> 0 | AO49: ='[2]Capex_FO input'!AO49 -> 0 | AP49: ='[2]Capex_FO input'!AP49 -> 0 | AQ49: ='[2]Capex_FO input'!AQ49 -> 0 | AR49: ='[2]Capex_FO input'!AR49 -> 0 | AS49: ='[2]Capex_FO input'!AS49 -> 0 | AT49: ='[2]Capex_FO input'!AT49 -> 0 | AU49: ='[2]Capex_FO input'!AU49 -> 0 | AV49: ='[2]Capex_FO input'!AV49 -> 0 | AX49: 0.194 | AY49: 0.284 | AZ49: 1.839 | BA49: 2.108 | BB49: 0 | BC49: 0 | BD49: 0 | BE49: 0 | BF49: 0 | BG49: 0 | BI49: 0 | BJ49: 0 | BK49: 0 | BL49: 0 | BM49: 0.04425 | BN49: 0.0885 | BO49: 0.0885 | BP49: 0.0885 | BQ49: 0.0885 | BR49: 0.0885 | BT49: =+IF($K49="Ongoing",AX49,IF(RIGHT($K49,2)=RIGHT(BT$39,2),SUM($AX49:AX49),0)+IF(RIGHT(BT$39,2)>RIGHT($K49,2),AX49,0)) -> 0 | BU49: =+IF($K49="Ongoing",AY49,IF(RIGHT($K49,2)=RIGHT(BU$39,2),SUM($AX49:AY49),0)+IF(RIGHT(BU$39,2)>RIGHT($K49,2),AY49,0)) -> 0 | BV49: =+IF($K49="Ongoing",AZ49,IF(RIGHT($K49,2)=RIGHT(BV$39,2),SUM($AX49:AZ49),0)+IF(RIGHT(BV$39,2)>RIGHT($K49,2),AZ49,0)) -> 0 | BW49: =+IF($K49="Ongoing",BA49,IF(RIGHT($K49,2)=RIGHT(BW$39,2),SUM($AX49:BA49),0)+IF(RIGHT(BW$39,2)>RIGHT($K49,2),BA49,0)) -> 0 | BX49: =+IF($K49="Ongoing",BB49,IF(RIGHT($K49,2)=RIGHT(BX$39,2),SUM($AX49:BB49),0)+IF(RIGHT(BX$39,2)>RIGHT($K49,2),BB49,0)) -> 4.425 | BY49: =+IF($K49="Ongoing",BC49,IF(RIGHT($K49,2)=RIGHT(BY$39,2),SUM($AX49:BC49),0)+IF(RIGHT(BY$39,2)>RIGHT($K49,2),BC49,0)) -> 0 | BZ49: =+IF($K49="Ongoing",BD49,IF(RIGHT($K49,2)=RIGHT(BZ$39,2),SUM($AX49:BD49),0)+IF(RIGHT(BZ$39,2)>RIGHT($K49,2),BD49,0)) -> 0 | CA49: =+IF($K49="Ongoing",BE49,IF(RIGHT($K49,2)=RIGHT(CA$39,2),SUM($AX49:BE49),0)+IF(RIGHT(CA$39,2)>RIGHT($K49,2),BE49,0)) -> 0 | CB49: =+IF($K49="Ongoing",BF49,IF(RIGHT($K49,2)=RIGHT(CB$39,2),SUM($AX49:BF49),0)+IF(RIGHT(CB$39,2)>RIGHT($K49,2),BF49,0)) -> 0 | CC49: =+IF($K49="Ongoing",BG49,IF(RIGHT($K49,2)=RIGHT(CC$39,2),SUM($AX49:BG49),0)+IF(RIGHT(CC$39,2)>RIGHT($K49,2),BG49,0)) -> 0 | CE49: =+Q49*KeyAssumptionsPriceControl_FO!AC$15 -> 0.19982 | CF49: =+R49*KeyAssumptionsPriceControl_FO!AD$15 -> 0.3012956 | CG49: =+S49*KeyAssumptionsPriceControl_FO!AE$15 -> 2.009524953 | CH49: =+T49*KeyAssumptionsPriceControl_FO!AF$15 -> 2.372572571 | CI49: =+U49*KeyAssumptionsPriceControl_FO!AG$15 -> 0 | CJ49: =+V49*KeyAssumptionsPriceControl_FO!AH$15 -> 0 | CK49: =+W49*KeyAssumptionsPriceControl_FO!AI$15 -> 0 | CL49: =+X49*KeyAssumptionsPriceControl_FO!AJ$15 -> 0 | CM49: =+Y49*KeyAssumptionsPriceControl_FO!AK$15 -> 0 | CN49: =+Z49*KeyAssumptionsPriceControl_FO!AL$15 -> 0 | CP49: 0.001537076923 | CQ49: 0.005391812308 | CR49: 0.02316735502 | CS49: 0.05687579752 | CT49: 0.07512635576 | CU49: 0.07512635576 | CV49: 0.07512635576 | CW49: 0.07512635576 | CX49: 0.07512635576 | CY49: 0.07512635576
C50: ='[2]Capex_FO input'!C50 -> Leongatha water supply augmentation | D50: ='[2]Capex_FO input'!D50 -> 0 | E50: ='[2]Capex_FO input'!E50 -> Water | F50: ='[2]Capex_FO input'!F50 -> Growth | G50: ='[2]Capex_FO input'!G50 -> Headworks | H50: ='[2]Capex_FO input'!H50 -> Top 10 Major Projects | I50: ='[2]Capex_FO input'!I50 -> 0 | J50: Straight line | K50: ='[2]Capex_FO input'!K50 -> 2028-29 | L50: ='[2]Capex_FO input'!L50 -> 100 | M50: ='[2]Capex_FO input'!M50 -> 50 | Q50: ='[2]Capex_FO input'!Q50 -> 0.35 | R50: ='[2]Capex_FO input'!R50 -> 2.48 | S50: ='[2]Capex_FO input'!S50 -> 0.14 | T50: ='[2]Capex_FO input'!T50 -> 0.725 | U50: ='[2]Capex_FO input'!U50 -> 0.725 | V50: ='[2]Capex_FO input'!V50 -> 0 | W50: ='[2]Capex_FO input'!W50 -> 0 | X50: ='[2]Capex_FO input'!X50 -> 0 | Y50: ='[2]Capex_FO input'!Y50 -> 0.5 | Z50: ='[2]Capex_FO input'!Z50 -> 7 | AB50: ='[2]Capex_FO input'!AB50 -> 0 | AC50: ='[2]Capex_FO input'!AC50 -> 0 | AD50: ='[2]Capex_FO input'!AD50 -> 0 | AE50: ='[2]Capex_FO input'!AE50 -> 0 | AF50: ='[2]Capex_FO input'!AF50 -> 0 | AG50: ='[2]Capex_FO input'!AG50 -> 0 | AH50: ='[2]Capex_FO input'!AH50 -> 0 | AI50: ='[2]Capex_FO input'!AI50 -> 0 | AJ50: ='[2]Capex_FO input'!AJ50 -> 0 | AK50: ='[2]Capex_FO input'!AK50 -> 0 | AM50: ='[2]Capex_FO input'!AM50 -> 0 | AN50: ='[2]Capex_FO input'!AN50 -> 0 | AO50: ='[2]Capex_FO input'!AO50 -> 0 | AP50: ='[2]Capex_FO input'!AP50 -> 0 | AQ50: ='[2]Capex_FO input'!AQ50 -> 0 | AR50: ='[2]Capex_FO input'!AR50 -> 0 | AS50: ='[2]Capex_FO input'!AS50 -> 0 | AT50: ='[2]Capex_FO input'!AT50 -> 0 | AU50: ='[2]Capex_FO input'!AU50 -> 0 | AV50: ='[2]Capex_FO input'!AV50 -> 0 | AX50: 0.35 | AY50: 2.48 | AZ50: 0.14 | BA50: 0.725 | BB50: 0.725 | BC50: 0 | BD50: 0 | BE50: 0 | BF50: 0.5 | BG50: 7 | BI50: 0 | BJ50: 0 | BK50: 0 | BL50: 0 | BM50: 0 | BN50: 0.0221 | BO50: 0.0442 | BP50: 0.0442 | BQ50: 0.0467 | BR50: 0.0842 | BT50: =+IF($K50="Ongoing",AX50,IF(RIGHT($K50,2)=RIGHT(BT$39,2),SUM($AX50:AX50),0)+IF(RIGHT(BT$39,2)>RIGHT($K50,2),AX50,0)) -> 0 | BU50: =+IF($K50="Ongoing",AY50,IF(RIGHT($K50,2)=RIGHT(BU$39,2),SUM($AX50:AY50),0)+IF(RIGHT(BU$39,2)>RIGHT($K50,2),AY50,0)) -> 0 | BV50: =+IF($K50="Ongoing",AZ50,IF(RIGHT($K50,2)=RIGHT(BV$39,2),SUM($AX50:AZ50),0)+IF(RIGHT(BV$39,2)>RIGHT($K50,2),AZ50,0)) -> 0 | BW50: =+IF($K50="Ongoing",BA50,IF(RIGHT($K50,2)=RIGHT(BW$39,2),SUM($AX50:BA50),0)+IF(RIGHT(BW$39,2)>RIGHT($K50,2),BA50,0)) -> 0 | BX50: =+IF($K50="Ongoing",BB50,IF(RIGHT($K50,2)=RIGHT(BX$39,2),SUM($AX50:BB50),0)+IF(RIGHT(BX$39,2)>RIGHT($K50,2),BB50,0)) -> 0 | BY50: =+IF($K50="Ongoing",BC50,IF(RIGHT($K50,2)=RIGHT(BY$39,2),SUM($AX50:BC50),0)+IF(RIGHT(BY$39,2)>RIGHT($K50,2),BC50,0)) -> 4.42 | BZ50: =+IF($K50="Ongoing",BD50,IF(RIGHT($K50,2)=RIGHT(BZ$39,2),SUM($AX50:BD50),0)+IF(RIGHT(BZ$39,2)>RIGHT($K50,2),BD50,0)) -> 0 | CA50: =+IF($K50="Ongoing",BE50,IF(RIGHT($K50,2)=RIGHT(CA$39,2),SUM($AX50:BE50),0)+IF(RIGHT(CA$39,2)>RIGHT($K50,2),BE50,0)) -> 0 | CB50: =+IF($K50="Ongoing",BF50,IF(RIGHT($K50,2)=RIGHT(CB$39,2),SUM($AX50:BF50),0)+IF(RIGHT(CB$39,2)>RIGHT($K50,2),BF50,0)) -> 0.5 | CC50: =+IF($K50="Ongoing",BG50,IF(RIGHT($K50,2)=RIGHT(CC$39,2),SUM($AX50:BG50),0)+IF(RIGHT(CC$39,2)>RIGHT($K50,2),BG50,0)) -> 7 | CE50: =+Q50*KeyAssumptionsPriceControl_FO!AC$15 -> 0.3605 | CF50: =+R50*KeyAssumptionsPriceControl_FO!AD$15 -> 2.631032 | CG50: =+S50*KeyAssumptionsPriceControl_FO!AE$15 -> 0.15298178 | CH50: =+T50*KeyAssumptionsPriceControl_FO!AF$15 -> 0.8159938873 | CI50: =+U50*KeyAssumptionsPriceControl_FO!AG$15 -> 0.8404737039 | CJ50: =+V50*KeyAssumptionsPriceControl_FO!AH$15 -> 0 | CK50: =+W50*KeyAssumptionsPriceControl_FO!AI$15 -> 0 | CL50: =+X50*KeyAssumptionsPriceControl_FO!AJ$15 -> 0 | CM50: =+Y50*KeyAssumptionsPriceControl_FO!AK$15 -> 0.6523865919 | CN50: =+Z50*KeyAssumptionsPriceControl_FO!AL$15 -> 9.407414655 | CP50: 0.003605 | CQ50: 0.03352032 | CR50: 0.0613604578 | CS50: 0.07105021447 | CT50: 0.08761489038 | CU50: 0.09601962742 | CV50: 0.09601962742 | CW50: 0.09601962742 | CX50: 0.1025434933 | CY50: 0.2031415058
C51: ='[2]Capex_FO input'!C51 -> Inverloch WWTP augmentation | D51: ='[2]Capex_FO input'!D51 -> 0 | E51: ='[2]Capex_FO input'!E51 -> Sewerage | F51: ='[2]Capex_FO input'!F51 -> Growth | G51: ='[2]Capex_FO input'!G51 -> Treatment | H51: ='[2]Capex_FO input'!H51 -> Top 10 Major Projects | I51: ='[2]Capex_FO input'!I51 -> 0 | J51: Straight line | K51: ='[2]Capex_FO input'!K51 -> 2028-29 | L51: ='[2]Capex_FO input'!L51 -> 50 | M51: ='[2]Capex_FO input'!M51 -> 80 | Q51: ='[2]Capex_FO input'!Q51 -> 0 | R51: ='[2]Capex_FO input'!R51 -> 0 | S51: ='[2]Capex_FO input'!S51 -> 0 | T51: ='[2]Capex_FO input'!T51 -> 2.36 | U51: ='[2]Capex_FO input'!U51 -> 1.94 | V51: ='[2]Capex_FO input'!V51 -> 0 | W51: ='[2]Capex_FO input'!W51 -> 0 | X51: ='[2]Capex_FO input'!X51 -> 0 | Y51: ='[2]Capex_FO input'!Y51 -> 0 | Z51: ='[2]Capex_FO input'!Z51 -> 0 | AB51: ='[2]Capex_FO input'!AB51 -> 0 | AC51: ='[2]Capex_FO input'!AC51 -> 0 | AD51: ='[2]Capex_FO input'!AD51 -> 0 | AE51: ='[2]Capex_FO input'!AE51 -> 0 | AF51: ='[2]Capex_FO input'!AF51 -> 0 | AG51: ='[2]Capex_FO input'!AG51 -> 0 | AH51: ='[2]Capex_FO input'!AH51 -> 0 | AI51: ='[2]Capex_FO input'!AI51 -> 0 | AJ51: ='[2]Capex_FO input'!AJ51 -> 0 | AK51: ='[2]Capex_FO input'!AK51 -> 0 | AM51: ='[2]Capex_FO input'!AM51 -> 0 | AN51: ='[2]Capex_FO input'!AN51 -> 0 | AO51: ='[2]Capex_FO input'!AO51 -> 0 | AP51: ='[2]Capex_FO input'!AP51 -> 0 | AQ51: ='[2]Capex_FO input'!AQ51 -> 0 | AR51: ='[2]Capex_FO input'!AR51 -> 0 | AS51: ='[2]Capex_FO input'!AS51 -> 0 | AT51: ='[2]Capex_FO input'!AT51 -> 0 | AU51: ='[2]Capex_FO input'!AU51 -> 0 | AV51: ='[2]Capex_FO input'!AV51 -> 0 | AX51: 0 | AY51: 0 | AZ51: 0 | BA51: 2.36 | BB51: 1.94 | BC51: 0 | BD51: 0 | BE51: 0 | BF51: 0 | BG51: 0 | BI51: 0 | BJ51: 0 | BK51: 0 | BL51: 0 | BM51: 0 | BN51: 0.043 | BO51: 0.086 | BP51: 0.086 | BQ51: 0.086 | BR51: 0.086 | BT51: =+IF($K51="Ongoing",AX51,IF(RIGHT($K51,2)=RIGHT(BT$39,2),SUM($AX51:AX51),0)+IF(RIGHT(BT$39,2)>RIGHT($K51,2),AX51,0)) -> 0 | BU51: =+IF($K51="Ongoing",AY51,IF(RIGHT($K51,2)=RIGHT(BU$39,2),SUM($AX51:AY51),0)+IF(RIGHT(BU$39,2)>RIGHT($K51,2),AY51,0)) -> 0 | BV51: =+IF($K51="Ongoing",AZ51,IF(RIGHT($K51,2)=RIGHT(BV$39,2),SUM($AX51:AZ51),0)+IF(RIGHT(BV$39,2)>RIGHT($K51,2),AZ51,0)) -> 0 | BW51: =+IF($K51="Ongoing",BA51,IF(RIGHT($K51,2)=RIGHT(BW$39,2),SUM($AX51:BA51),0)+IF(RIGHT(BW$39,2)>RIGHT($K51,2),BA51,0)) -> 0 | BX51: =+IF($K51="Ongoing",BB51,IF(RIGHT($K51,2)=RIGHT(BX$39,2),SUM($AX51:BB51),0)+IF(RIGHT(BX$39,2)>RIGHT($K51,2),BB51,0)) -> 0 | BY51: =+IF($K51="Ongoing",BC51,IF(RIGHT($K51,2)=RIGHT(BY$39,2),SUM($AX51:BC51),0)+IF(RIGHT(BY$39,2)>RIGHT($K51,2),BC51,0)) -> 4.3 | BZ51: =+IF($K51="Ongoing",BD51,IF(RIGHT($K51,2)=RIGHT(BZ$39,2),SUM($AX51:BD51),0)+IF(RIGHT(BZ$39,2)>RIGHT($K51,2),BD51,0)) -> 0 | CA51: =+IF($K51="Ongoing",BE51,IF(RIGHT($K51,2)=RIGHT(CA$39,2),SUM($AX51:BE51),0)+IF(RIGHT(CA$39,2)>RIGHT($K51,2),BE51,0)) -> 0 | CB51: =+IF($K51="Ongoing",BF51,IF(RIGHT($K51,2)=RIGHT(CB$39,2),SUM($AX51:BF51),0)+IF(RIGHT(CB$39,2)>RIGHT($K51,2),BF51,0)) -> 0 | CC51: =+IF($K51="Ongoing",BG51,IF(RIGHT($K51,2)=RIGHT(CC$39,2),SUM($AX51:BG51),0)+IF(RIGHT(CC$39,2)>RIGHT($K51,2),BG51,0)) -> 0 | CE51: =+Q51*KeyAssumptionsPriceControl_FO!AC$15 -> 0 | CF51: =+R51*KeyAssumptionsPriceControl_FO!AD$15 -> 0 | CG51: =+S51*KeyAssumptionsPriceControl_FO!AE$15 -> 0 | CH51: =+T51*KeyAssumptionsPriceControl_FO!AF$15 -> 2.656200792 | CI51: =+U51*KeyAssumptionsPriceControl_FO!AG$15 -> 2.248991704 | CJ51: =+V51*KeyAssumptionsPriceControl_FO!AH$15 -> 0 | CK51: =+W51*KeyAssumptionsPriceControl_FO!AI$15 -> 0 | CL51: =+X51*KeyAssumptionsPriceControl_FO!AJ$15 -> 0 | CM51: =+Y51*KeyAssumptionsPriceControl_FO!AK$15 -> 0 | CN51: =+Z51*KeyAssumptionsPriceControl_FO!AL$15 -> 0 | CP51: 0 | CQ51: 0 | CR51: 0 | CS51: 0.01660125495 | CT51: 0.04725870805 | CU51: 0.0613149062 | CV51: 0.0613149062 | CW51: 0.0613149062 | CX51: 0.0613149062 | CY51: 0.0613149062
C53: ='[2]Capex_FO input'!C53 -> Wonthaggi Water Mains Expansion | E53: ='[2]Capex_FO input'!E53 -> Water | F53: ='[2]Capex_FO input'!F53 -> Growth | G53: ='[2]Capex_FO input'!G53 -> Pipelines/network | H53: ='[2]Capex_FO input'!H53 -> Significant projects | I53: ='[2]Capex_FO input'!I53 -> 0 | J53: Straight line | K53: ='[2]Capex_FO input'!K53 -> 2026-27 | L53: ='[2]Capex_FO input'!L53 -> 70 | M53: ='[2]Capex_FO input'!M53 -> 50 | Q53: ='[2]Capex_FO input'!Q53 -> 1.42103 | R53: ='[2]Capex_FO input'!R53 -> 0.84981 | S53: ='[2]Capex_FO input'!S53 -> 0.4249 | T53: ='[2]Capex_FO input'!T53 -> 0 | U53: ='[2]Capex_FO input'!U53 -> 0.69669 | V53: ='[2]Capex_FO input'!V53 -> 0.185 | W53: ='[2]Capex_FO input'!W53 -> 0 | X53: ='[2]Capex_FO input'!X53 -> 0 | Y53: ='[2]Capex_FO input'!Y53 -> 0 | Z53: ='[2]Capex_FO input'!Z53 -> 0 | AB53: ='[2]Capex_FO input'!AB53 -> 0 | AC53: ='[2]Capex_FO input'!AC53 -> 0 | AD53: ='[2]Capex_FO input'!AD53 -> 0 | AE53: ='[2]Capex_FO input'!AE53 -> 0 | AF53: ='[2]Capex_FO input'!AF53 -> 0 | AG53: ='[2]Capex_FO input'!AG53 -> 0 | AH53: ='[2]Capex_FO input'!AH53 -> 0 | AI53: ='[2]Capex_FO input'!AI53 -> 0 | AJ53: ='[2]Capex_FO input'!AJ53 -> 0 | AK53: ='[2]Capex_FO input'!AK53 -> 0 | AM53: ='[2]Capex_FO input'!AM53 -> 0 | AN53: ='[2]Capex_FO input'!AN53 -> 0 | AO53: ='[2]Capex_FO input'!AO53 -> 0 | AP53: ='[2]Capex_FO input'!AP53 -> 0 | AQ53: ='[2]Capex_FO input'!AQ53 -> 0 | AR53: ='[2]Capex_FO input'!AR53 -> 0 | AS53: ='[2]Capex_FO input'!AS53 -> 0 | AT53: ='[2]Capex_FO input'!AT53 -> 0 | AU53: ='[2]Capex_FO input'!AU53 -> 0 | AV53: ='[2]Capex_FO input'!AV53 -> 0 | AX53: =+Q53-AB53-AM53 -> 1.42103 | AY53: =+R53-AC53-AN53 -> 0.84981 | AZ53: =+S53-AD53-AO53 -> 0.4249 | BA53: =+T53-AE53-AP53 -> 0 | BB53: =+U53-AF53-AQ53 -> 0.69669 | BC53: =+V53-AG53-AR53 -> 0.185 | BD53: =+W53-AH53-AS53 -> 0 | BE53: =+X53-AI53-AT53 -> 0 | BF53: =+Y53-AJ53-AU53 -> 0 | BG53: =+Z53-AK53-AV53 -> 0 | BI53: =IF($L53=0,0, IF($L53<=0.5,BT53, IF($J53="straight line", IF((LEFT(BI$39,4)*1)-INT($L53)<LEFT($BI$39,4)*1,0,((OFFSET(BT53,0,-INT($L53+0.5),1,1))/$L53)*(IF($L53-INT($L53)>0.5,$L53-0.5-INT($L53),IF($L53-INT($L53)<=0.5,$L53-0.5-INT($L53)+1,0)))) +BT53/$L53*0.5, IF($J53="Declining Balance",-$BI$38,0)))) -> 0 | BJ53: =IF($L53=0,0, IF($L53<=0.5,BU53, IF(AND($J53="straight line",$L53<1.51),(BT53-((BT53/$L53)*0.5))+BU53/$L53*0.5, IF($J53="straight line", IF((LEFT(BJ$39,4)*1)-INT($L53)<LEFT($BI$39,4)*1,0,((OFFSET(BU53,0,-INT($L53+0.5),1,1))/$L53)*(IF($L53-INT($L53)>0.5,$L53-0.5-INT($L53),IF($L53-INT($L53)<=0.5,$L53-0.5-INT($L53)+1,0)))) +BU53/$L53*0.5 +SUM(OFFSET(BU53,0,MAX(-INT($L53+(0.5-(10^-12))),-BJ$40)+1,1,MIN(INT($L53+(0.5-(10^-12))),BJ$40)-1))*1/$L53, IF($J53="Declining Balance",-$BI$38,0))))) -> 0 | BK53: =IF($L53=0,0, IF($L53<=0.5,BV53, IF(AND($J53="straight line",$L53<1.51),(BU53-((BU53/$L53)*0.5))+BV53/$L53*0.5, IF($J53="straight line", IF((LEFT(BK$39,4)*1)-INT($L53)<LEFT($BI$39,4)*1,0,((OFFSET(BV53,0,-INT($L53+0.5),1,1))/$L53)*(IF($L53-INT($L53)>0.5,$L53-0.5-INT($L53),IF($L53-INT($L53)<=0.5,$L53-0.5-INT($L53)+1,0)))) +BV53/$L53*0.5 +SUM(OFFSET(BV53,0,MAX(-INT($L53+(0.5-(10^-12))),-BK$40)+1,1,MIN(INT($L53+(0.5-(10^-12))),BK$40)-1))*1/$L53, IF($J53="Declining Balance",-$BI$38,0))))) -> 0 | BL53: =IF($L53=0,0, IF($L53<=0.5,BW53, IF(AND($J53="straight line",$L53<1.51),(BV53-((BV53/$L53)*0.5))+BW53/$L53*0.5, IF($J53="straight line", IF((LEFT(BL$39,4)*1)-INT($L53)<LEFT($BI$39,4)*1,0,((OFFSET(BW53,0,-INT($L53+0.5),1,1))/$L53)*(IF($L53-INT($L53)>0.5,$L53-0.5-INT($L53),IF($L53-INT($L53)<=0.5,$L53-0.5-INT($L53)+1,0)))) +BW53/$L53*0.5 +SUM(OFFSET(BW53,0,MAX(-INT($L53+(0.5-(10^-12))),-BL$40)+1,1,MIN(INT($L53+(0.5-(10^-12))),BL$40)-1))*1/$L53, IF($J53="Declining Balance",-$BI$38,0))))) -> 0.01925528571 | BM53: =IF($L53=0,0, IF($L53<=0.5,BX53, IF(AND($J53="straight line",$L53<1.51),(BW53-((BW53/$L53)*0.5))+BX53/$L53*0.5, IF($J53="straight line", IF((LEFT(BM$39,4)*1)-INT($L53)<LEFT($BI$39,4)*1,0,((OFFSET(BX53,0,-INT($L53+0.5),1,1))/$L53)*(IF($L53-INT($L53)>0.5,$L53-0.5-INT($L53),IF($L53-INT($L53)<=0.5,$L53-0.5-INT($L53)+1,0)))) +BX53/$L53*0.5 +SUM(OFFSET(BX53,0,MAX(-INT($L53+(0.5-(10^-12))),-BM$40)+1,1,MIN(INT($L53+(0.5-(10^-12))),BM$40)-1))*1/$L53, IF($J53="Declining Balance",-$BI$38,0))))) -> 0.04348692857 | BN53: =IF($L53=0,0, IF($L53<=0.5,BY53, IF(AND($J53="straight line",$L53<1.51),(BX53-((BX53/$L53)*0.5))+BY53/$L53*0.5, IF($J53="straight line", IF((LEFT(BN$39,4)*1)-INT($L53)<LEFT($BI$39,4)*1,0,((OFFSET(BY53,0,-INT($L53+0.5),1,1))/$L53)*(IF($L53-INT($L53)>0.5,$L53-0.5-INT($L53),IF($L53-INT($L53)<=0.5,$L53-0.5-INT($L53)+1,0)))) +BY53/$L53*0.5 +SUM(OFFSET(BY53,0,MAX(-INT($L53+(0.5-(10^-12))),-BN$40)+1,1,MIN(INT($L53+(0.5-(10^-12))),BN$40)-1))*1/$L53, IF($J53="Declining Balance",-$BI$38,0))))) -> 0.04978471429 | BO53: =IF($L53=0,0, IF($L53<=0.5,BZ53, IF(AND($J53="straight line",$L53<1.51),(BY53-((BY53/$L53)*0.5))+BZ53/$L53*0.5, IF($J53="straight line", IF((LEFT(BO$39,4)*1)-INT($L53)<LEFT($BI$39,4)*1,0,((OFFSET(BZ53,0,-INT($L53+0.5),1,1))/$L53)*(IF($L53-INT($L53)>0.5,$L53-0.5-INT($L53),IF($L53-INT($L53)<=0.5,$L53-0.5-INT($L53)+1,0)))) +BZ53/$L53*0.5 +SUM(OFFSET(BZ53,0,MAX(-INT($L53+(0.5-(10^-12))),-BO$40)+1,1,MIN(INT($L53+(0.5-(10^-12))),BO$40)-1))*1/$L53, IF($J53="Declining Balance",-$BI$38,0))))) -> 0.05110614286 | BP53: =IF($L53=0,0, IF($L53<=0.5,CA53, IF(AND($J53="straight line",$L53<1.51),(BZ53-((BZ53/$L53)*0.5))+CA53/$L53*0.5, IF($J53="straight line", IF((LEFT(BP$39,4)*1)-INT($L53)<LEFT($BI$39,4)*1,0,((OFFSET(CA53,0,-INT($L53+0.5),1,1))/$L53)*(IF($L53-INT($L53)>0.5,$L53-0.5-INT($L53),IF($L53-INT($L53)<=0.5,$L53-0.5-INT($L53)+1,0)))) +CA53/$L53*0.5 +SUM(OFFSET(CA53,0,MAX(-INT($L53+(0.5-(10^-12))),-BP$40)+1,1,MIN(INT($L53+(0.5-(10^-12))),BP$40)-1))*1/$L53, IF($J53="Declining Balance",-$BI$38,0))))) -> 0.05110614286 | BQ53: =IF($L53=0,0, IF($L53<=0.5,CB53, IF(AND($J53="straight line",$L53<1.51),(CA53-((CA53/$L53)*0.5))+CB53/$L53*0.5, IF($J53="straight line", IF((LEFT(BQ$39,4)*1)-INT($L53)<LEFT($BI$39,4)*1,0,((OFFSET(CB53,0,-INT($L53+0.5),1,1))/$L53)*(IF($L53-INT($L53)>0.5,$L53-0.5-INT($L53),IF($L53-INT($L53)<=0.5,$L53-0.5-INT($L53)+1,0)))) +CB53/$L53*0.5 +SUM(OFFSET(CB53,0,MAX(-INT($L53+(0.5-(10^-12))),-BQ$40)+1,1,MIN(INT($L53+(0.5-(10^-12))),BQ$40)-1))*1/$L53, IF($J53="Declining Balance",-$BI$38,0))))) -> 0.05110614286 | BR53: =IF($L53=0,0, IF($L53<=0.5,CC53, IF(AND($J53="straight line",$L53<1.51),(CB53-((CB53/$L53)*0.5))+CC53/$L53*0.5, IF($J53="straight line", IF((LEFT(BR$39,4)*1)-INT($L53)<LEFT($BI$39,4)*1,0,((OFFSET(CC53,0,-INT($L53+0.5),1,1))/$L53)*(IF($L53-INT($L53)>0.5,$L53-0.5-INT($L53),IF($L53-INT($L53)<=0.5,$L53-0.5-INT($L53)+1,0)))) +CC53/$L53*0.5 +SUM(OFFSET(CC53,0,MAX(-INT($L53+(0.5-(10^-12))),-BR$40)+1,1,MIN(INT($L53+(0.5-(10^-12))),BR$40)-1))*1/$L53, IF($J53="Declining Balance",-$BI$38,0))))) -> 0.05110614286 | BT53: =+IF($K53="Ongoing",AX53,IF(RIGHT($K53,2)=RIGHT(BT$39,2),SUM($AX53:AX53),0)+IF(RIGHT(BT$39,2)>RIGHT($K53,2),AX53,0)) -> 0 | BU53: =+IF($K53="Ongoing",AY53,IF(RIGHT($K53,2)=RIGHT(BU$39,2),SUM($AX53:AY53),0)+IF(RIGHT(BU$39,2)>RIGHT($K53,2),AY53,0)) -> 0 | BV53: =+IF($K53="Ongoing",AZ53,IF(RIGHT($K53,2)=RIGHT(BV$39,2),SUM($AX53:AZ53),0)+IF(RIGHT(BV$39,2)>RIGHT($K53,2),AZ53,0)) -> 0 | BW53: =+IF($K53="Ongoing",BA53,IF(RIGHT($K53,2)=RIGHT(BW$39,2),SUM($AX53:BA53),0)+IF(RIGHT(BW$39,2)>RIGHT($K53,2),BA53,0)) -> 2.69574 | BX53: =+IF($K53="Ongoing",BB53,IF(RIGHT($K53,2)=RIGHT(BX$39,2),SUM($AX53:BB53),0)+IF(RIGHT(BX$39,2)>RIGHT($K53,2),BB53,0)) -> 0.69669 | BY53: =+IF($K53="Ongoing",BC53,IF(RIGHT($K53,2)=RIGHT(BY$39,2),SUM($AX53:BC53),0)+IF(RIGHT(BY$39,2)>RIGHT($K53,2),BC53,0)) -> 0.185 | BZ53: =+IF($K53="Ongoing",BD53,IF(RIGHT($K53,2)=RIGHT(BZ$39,2),SUM($AX53:BD53),0)+IF(RIGHT(BZ$39,2)>RIGHT($K53,2),BD53,0)) -> 0 | CA53: =+IF($K53="Ongoing",BE53,IF(RIGHT($K53,2)=RIGHT(CA$39,2),SUM($AX53:BE53),0)+IF(RIGHT(CA$39,2)>RIGHT($K53,2),BE53,0)) -> 0 | CB53: =+IF($K53="Ongoing",BF53,IF(RIGHT($K53,2)=RIGHT(CB$39,2),SUM($AX53:BF53),0)+IF(RIGHT(CB$39,2)>RIGHT($K53,2),BF53,0)) -> 0 | CC53: =+IF($K53="Ongoing",BG53,IF(RIGHT($K53,2)=RIGHT(CC$39,2),SUM($AX53:BG53),0)+IF(RIGHT(CC$39,2)>RIGHT($K53,2),BG53,0)) -> 0 | CE53: =+Q53*KeyAssumptionsPriceControl_FO!AC$15 -> 1.4636609 | CF53: =+R53*KeyAssumptionsPriceControl_FO!AD$15 -> 0.901563429 | CG53: =+S53*KeyAssumptionsPriceControl_FO!AE$15 -> 0.4642997023 | CH53: =+T53*KeyAssumptionsPriceControl_FO!AF$15 -> 0 | CI53: =+U53*KeyAssumptionsPriceControl_FO!AG$15 -> 0.8076546548 | CJ53: =+V53*KeyAssumptionsPriceControl_FO!AH$15 -> 0.2208996749 | CK53: =+W53*KeyAssumptionsPriceControl_FO!AI$15 -> 0 | CL53: =+X53*KeyAssumptionsPriceControl_FO!AJ$15 -> 0 | CM53: =+Y53*KeyAssumptionsPriceControl_FO!AK$15 -> 0 | CN53: =+Z53*KeyAssumptionsPriceControl_FO!AL$15 -> 0 | CP53: =IF($M53=0,0, IF($M53<=0.5,CE53, IF($J53="straight line", IF((LEFT(CP$39,4)*1)-INT($M53)<LEFT($CP$39,4)*1,0,((OFFSET(CE53,0,-INT($M53+0.5),1,1))/$M53)*(IF($M53-INT($M53)>0.5,$M53-0.5-INT($M53),IF($M53-INT($M53)<=0.5,$M53-0.5-INT($M53)+1,0)))) +CE53/$M53*0.5, IF($J53="Declining Balance",-$CP$38,0)))) -> 0.014636609 | CQ53: =IF($M53=0,0, IF($M53<=0.5,CF53, IF(AND($J53="straight line",$M53<1.51),(CE53-((CE53/$M53)*0.5))+CF53/$M53*0.5, IF($J53="straight line", IF((LEFT(CQ$39,4)*1)-INT($M53)<LEFT($CP$39,4)*1,0,((OFFSET(CF53,0,-INT($M53+0.5),1,1))/$M53)*(IF($M53-INT($M53)>0.5,$M53-0.5-INT($M53),IF($M53-INT($M53)<=0.5,$M53-0.5-INT($M53)+1,0)))) +CF53/$M53*0.5 +SUM(OFFSET(CF53,0,MAX(-INT($M53+(0.5-(10^-12))),-CQ$40)+1,1,MIN(INT($M53+(0.5-(10^-12))),CQ$40)-1))*1/$M53, IF($J53="Declining Balance",-$CP$38,0))))) -> 0.03828885229 | CR53: =IF($M53=0,0, IF($M53<=0.5,CG53, IF(AND($J53="straight line",$M53<1.51),(CF53-((CF53/$M53)*0.5))+CG53/$M53*0.5, IF($J53="straight line", IF((LEFT(CR$39,4)*1)-INT($M53)<LEFT($CP$39,4)*1,0,((OFFSET(CG53,0,-INT($M53+0.5),1,1))/$M53)*(IF($M53-INT($M53)>0.5,$M53-0.5-INT($M53),IF($M53-INT($M53)<=0.5,$M53-0.5-INT($M53)+1,0)))) +CG53/$M53*0.5 +SUM(OFFSET(CG53,0,MAX(-INT($M53+(0.5-(10^-12))),-CR$40)+1,1,MIN(INT($M53+(0.5-(10^-12))),CR$40)-1))*1/$M53, IF($J53="Declining Balance",-$CP$38,0))))) -> 0.0519474836 | CS53: =IF($M53=0,0, IF($M53<=0.5,CH53, IF(AND($J53="straight line",$M53<1.51),(CG53-((CG53/$M53)*0.5))+CH53/$M53*0.5, IF($J53="straight line", IF((LEFT(CS$39,4)*1)-INT($M53)<LEFT($CP$39,4)*1,0,((OFFSET(CH53,0,-INT($M53+0.5),1,1))/$M53)*(IF($M53-INT($M53)>0.5,$M53-0.5-INT($M53),IF($M53-INT($M53)<=0.5,$M53-0.5-INT($M53)+1,0)))) +CH53/$M53*0.5 +SUM(OFFSET(CH53,0,MAX(-INT($M53+(0.5-(10^-12))),-CS$40)+1,1,MIN(INT($M53+(0.5-(10^-12))),CS$40)-1))*1/$M53, IF($J53="Declining Balance",-$CP$38,0))))) -> 0.05659048063 | CT53: =IF($M53=0,0, IF($M53<=0.5,CI53, IF(AND($J53="straight line",$M53<1.51),(CH53-((CH53/$M53)*0.5))+CI53/$M53*0.5, IF($J53="straight line", IF((LEFT(CT$39,4)*1)-INT($M53)<LEFT($CP$39,4)*1,0,((OFFSET(CI53,0,-INT($M53+0.5),1,1))/$M53)*(IF($M53-INT($M53)>0.5,$M53-0.5-INT($M53),IF($M53-INT($M53)<=0.5,$M53-0.5-INT($M53)+1,0)))) +CI53/$M53*0.5 +SUM(OFFSET(CI53,0,MAX(-INT($M53+(0.5-(10^-12))),-CT$40)+1,1,MIN(INT($M53+(0.5-(10^-12))),CT$40)-1))*1/$M53, IF($J53="Declining Balance",-$CP$38,0))))) -> 0.06466702717 | CU53: =IF($M53=0,0, IF($M53<=0.5,CJ53, IF(AND($J53="straight line",$M53<1.51),(CI53-((CI53/$M53)*0.5))+CJ53/$M53*0.5, IF($J53="straight line", IF((LEFT(CU$39,4)*1)-INT($M53)<LEFT($CP$39,4)*1,0,((OFFSET(CJ53,0,-INT($M53+0.5),1,1))/$M53)*(IF($M53-INT($M53)>0.5,$M53-0.5-INT($M53),IF($M53-INT($M53)<=0.5,$M53-0.5-INT($M53)+1,0)))) +CJ53/$M53*0.5 +SUM(OFFSET(CJ53,0,MAX(-INT($M53+(0.5-(10^-12))),-CU$40)+1,1,MIN(INT($M53+(0.5-(10^-12))),CU$40)-1))*1/$M53, IF($J53="Declining Balance",-$CP$38,0))))) -> 0.07495257047 | CV53: =IF($M53=0,0, IF($M53<=0.5,CK53, IF(AND($J53="straight line",$M53<1.51),(CJ53-((CJ53/$M53)*0.5))+CK53/$M53*0.5, IF($J53="straight line", IF((LEFT(CV$39,4)*1)-INT($M53)<LEFT($CP$39,4)*1,0,((OFFSET(CK53,0,-INT($M53+0.5),1,1))/$M53)*(IF($M53-INT($M53)>0.5,$M53-0.5-INT($M53),IF($M53-INT($M53)<=0.5,$M53-0.5-INT($M53)+1,0)))) +CK53/$M53*0.5 +SUM(OFFSET(CK53,0,MAX(-INT($M53+(0.5-(10^-12))),-CV$40)+1,1,MIN(INT($M53+(0.5-(10^-12))),CV$40)-1))*1/$M53, IF($J53="Declining Balance",-$CP$38,0))))) -> 0.07716156722 | CW53: =IF($M53=0,0, IF($M53<=0.5,CL53, IF(AND($J53="straight line",$M53<1.51),(CK53-((CK53/$M53)*0.5))+CL53/$M53*0.5, IF($J53="straight line", IF((LEFT(CW$39,4)*1)-INT($M53)<LEFT($CP$39,4)*1,0,((OFFSET(CL53,0,-INT($M53+0.5),1,1))/$M53)*(IF($M53-INT($M53)>0.5,$M53-0.5-INT($M53),IF($M53-INT($M53)<=0.5,$M53-0.5-INT($M53)+1,0)))) +CL53/$M53*0.5 +SUM(OFFSET(CL53,0,MAX(-INT($M53+(0.5-(10^-12))),-CW$40)+1,1,MIN(INT($M53+(0.5-(10^-12))),CW$40)-1))*1/$M53, IF($J53="Declining Balance",-$CP$38,0))))) -> 0.07716156722 | CX53: =IF($M53=0,0, IF($M53<=0.5,CM53, IF(AND($J53="straight line",$M53<1.51),(CL53-((CL53/$M53)*0.5))+CM53/$M53*0.5, IF($J53="straight line", IF((LEFT(CX$39,4)*1)-INT($M53)<LEFT($CP$39,4)*1,0,((OFFSET(CM53,0,-INT($M53+0.5),1,1))/$M53)*(IF($M53-INT($M53)>0.5,$M53-0.5-INT($M53),IF($M53-INT($M53)<=0.5,$M53-0.5-INT($M53)+1,0)))) +CM53/$M53*0.5 +SUM(OFFSET(CM53,0,MAX(-INT($M53+(0.5-(10^-12))),-CX$40)+1,1,MIN(INT($M53+(0.5-(10^-12))),CX$40)-1))*1/$M53, IF($J53="Declining Balance",-$CP$38,0))))) -> 0.07716156722 | CY53: =IF($M53=0,0, IF($M53<=0.5,CN53, IF(AND($J53="straight line",$M53<1.51),(CM53-((CM53/$M53)*0.5))+CN53/$M53*0.5, IF($J53="straight line", IF((LEFT(CY$39,4)*1)-INT($M53)<LEFT($CP$39,4)*1,0,((OFFSET(CN53,0,-INT($M53+0.5),1,1))/$M53)*(IF($M53-INT($M53)>0.5,$M53-0.5-INT($M53),IF($M53-INT($M53)<=0.5,$M53-0.5-INT($M53)+1,0)))) +CN53/$M53*0.5 +SUM(OFFSET(CN53,0,MAX(-INT($M53+(0.5-(10^-12))),-CY$40)+1,1,MIN(INT($M53+(0.5-(10^-12))),CY$40)-1))*1/$M53, IF($J53="Declining Balance",-$CP$38,0))))) -> 0.07716156722
C54: ='[2]Capex_FO input'!C54 -> Sewer System Expansion (Inverloch) | E54: ='[2]Capex_FO input'!E54 -> Sewerage | F54: ='[2]Capex_FO input'!F54 -> Growth | G54: ='[2]Capex_FO input'!G54 -> Pipelines/network | H54: ='[2]Capex_FO input'!H54 -> Significant projects | I54: ='[2]Capex_FO input'!I54 -> 0 | J54: Straight line | K54: ='[2]Capex_FO input'!K54 -> 2029-30 | L54: ='[2]Capex_FO input'!L54 -> 70 | M54: ='[2]Capex_FO input'!M54 -> 50 | Q54: ='[2]Capex_FO input'!Q54 -> 0 | R54: ='[2]Capex_FO input'!R54 -> 0 | S54: ='[2]Capex_FO input'!S54 -> 0.36875 | T54: ='[2]Capex_FO input'!T54 -> 0 | U54: ='[2]Capex_FO input'!U54 -> 2.81186 | V54: ='[2]Capex_FO input'!V54 -> 1.24117 | W54: ='[2]Capex_FO input'!W54 -> 0 | X54: ='[2]Capex_FO input'!X54 -> 0 | Y54: ='[2]Capex_FO input'!Y54 -> 0 | Z54: ='[2]Capex_FO input'!Z54 -> 0 | AB54: ='[2]Capex_FO input'!AB54 -> 0 | AC54: ='[2]Capex_FO input'!AC54 -> 0 | AD54: ='[2]Capex_FO input'!AD54 -> 0 | AE54: ='[2]Capex_FO input'!AE54 -> 0 | AF54: ='[2]Capex_FO input'!AF54 -> 0 | AG54: ='[2]Capex_FO input'!AG54 -> 0 | AH54: ='[2]Capex_FO input'!AH54 -> 0 | AI54: ='[2]Capex_FO input'!AI54 -> 0 | AJ54: ='[2]Capex_FO input'!AJ54 -> 0 | AK54: ='[2]Capex_FO input'!AK54 -> 0 | AM54: ='[2]Capex_FO input'!AM54 -> 0 | AN54: ='[2]Capex_FO input'!AN54 -> 0 | AO54: ='[2]Capex_FO input'!AO54 -> 0 | AP54: ='[2]Capex_FO input'!AP54 -> 0 | AQ54: ='[2]Capex_FO input'!AQ54 -> 0 | AR54: ='[2]Capex_FO input'!AR54 -> 0 | AS54: ='[2]Capex_FO input'!AS54 -> 0 | AT54: ='[2]Capex_FO input'!AT54 -> 0 | AU54: ='[2]Capex_FO input'!AU54 -> 0 | AV54: ='[2]Capex_FO input'!AV54 -> 0 | AX54: 0 | AY54: 0 | AZ54: 0.36875 | BA54: 0 | BB54: 2.81186 | BC54: 1.24117 | BD54: 0 | BE54: 0 | BF54: 0 | BG54: 0 | BI54: 0 | BJ54: 0 | BK54: 0 | BL54: 0 | BM54: 0 | BN54: 0 | BO54: 0.03158414286 | BP54: 0.06316828571 | BQ54: 0.06316828571 | BR54: 0.06316828571 | BT54: =+IF($K54="Ongoing",AX54,IF(RIGHT($K54,2)=RIGHT(BT$39,2),SUM($AX54:AX54),0)+IF(RIGHT(BT$39,2)>RIGHT($K54,2),AX54,0)) -> 0 | BU54: =+IF($K54="Ongoing",AY54,IF(RIGHT($K54,2)=RIGHT(BU$39,2),SUM($AX54:AY54),0)+IF(RIGHT(BU$39,2)>RIGHT($K54,2),AY54,0)) -> 0 | BV54: =+IF($K54="Ongoing",AZ54,IF(RIGHT($K54,2)=RIGHT(BV$39,2),SUM($AX54:AZ54),0)+IF(RIGHT(BV$39,2)>RIGHT($K54,2),AZ54,0)) -> 0 | BW54: =+IF($K54="Ongoing",BA54,IF(RIGHT($K54,2)=RIGHT(BW$39,2),SUM($AX54:BA54),0)+IF(RIGHT(BW$39,2)>RIGHT($K54,2),BA54,0)) -> 0 | BX54: =+IF($K54="Ongoing",BB54,IF(RIGHT($K54,2)=RIGHT(BX$39,2),SUM($AX54:BB54),0)+IF(RIGHT(BX$39,2)>RIGHT($K54,2),BB54,0)) -> 0 | BY54: =+IF($K54="Ongoing",BC54,IF(RIGHT($K54,2)=RIGHT(BY$39,2),SUM($AX54:BC54),0)+IF(RIGHT(BY$39,2)>RIGHT($K54,2),BC54,0)) -> 0 | BZ54: =+IF($K54="Ongoing",BD54,IF(RIGHT($K54,2)=RIGHT(BZ$39,2),SUM($AX54:BD54),0)+IF(RIGHT(BZ$39,2)>RIGHT($K54,2),BD54,0)) -> 4.42178 | CA54: =+IF($K54="Ongoing",BE54,IF(RIGHT($K54,2)=RIGHT(CA$39,2),SUM($AX54:BE54),0)+IF(RIGHT(CA$39,2)>RIGHT($K54,2),BE54,0)) -> 0 | CB54: =+IF($K54="Ongoing",BF54,IF(RIGHT($K54,2)=RIGHT(CB$39,2),SUM($AX54:BF54),0)+IF(RIGHT(CB$39,2)>RIGHT($K54,2),BF54,0)) -> 0 | CC54: =+IF($K54="Ongoing",BG54,IF(RIGHT($K54,2)=RIGHT(CC$39,2),SUM($AX54:BG54),0)+IF(RIGHT(CC$39,2)>RIGHT($K54,2),BG54,0)) -> 0 | CE54: =+Q54*KeyAssumptionsPriceControl_FO!AC$15 -> 0 | CF54: =+R54*KeyAssumptionsPriceControl_FO!AD$15 -> 0 | CG54: =+S54*KeyAssumptionsPriceControl_FO!AE$15 -> 0.4029430813 | CH54: =+T54*KeyAssumptionsPriceControl_FO!AF$15 -> 0 | CI54: =+U54*KeyAssumptionsPriceControl_FO!AG$15 -> 3.259716399 | CJ54: =+V54*KeyAssumptionsPriceControl_FO!AH$15 -> 1.482021889 | CK54: =+W54*KeyAssumptionsPriceControl_FO!AI$15 -> 0 | CL54: =+X54*KeyAssumptionsPriceControl_FO!AJ$15 -> 0 | CM54: =+Y54*KeyAssumptionsPriceControl_FO!AK$15 -> 0 | CN54: =+Z54*KeyAssumptionsPriceControl_FO!AL$15 -> 0 | CP54: 0 | CQ54: 0 | CR54: 0.004029430813 | CS54: 0.008058861625 | CT54: 0.04065602561 | CU54: 0.08807340849 | CV54: 0.1028936274 | CW54: 0.1028936274 | CX54: 0.1028936274 | CY54: 0.1028936274
C55: ='[2]Capex_FO input'!C55 -> Foster WTP Filter Renewal | E55: ='[2]Capex_FO input'!E55 -> Water | F55: ='[2]Capex_FO input'!F55 -> Improvements / Compliance | G55: ='[2]Capex_FO input'!G55 -> Treatment | H55: ='[2]Capex_FO input'!H55 -> Significant projects | I55: ='[2]Capex_FO input'!I55 -> 0 | J55: Straight line | K55: ='[2]Capex_FO input'!K55 -> 2027-28 | L55: ='[2]Capex_FO input'!L55 -> 50 | M55: ='[2]Capex_FO input'!M55 -> 65 | Q55: ='[2]Capex_FO input'!Q55 -> 0.133 | R55: ='[2]Capex_FO input'!R55 -> 0.184 | S55: ='[2]Capex_FO input'!S55 -> 1.075 | T55: ='[2]Capex_FO input'!T55 -> 1.353 | U55: ='[2]Capex_FO input'!U55 -> 0 | V55: ='[2]Capex_FO input'!V55 -> 0 | W55: ='[2]Capex_FO input'!W55 -> 0 | X55: ='[2]Capex_FO input'!X55 -> 0 | Y55: ='[2]Capex_FO input'!Y55 -> 0 | Z55: ='[2]Capex_FO input'!Z55 -> 0 | AB55: ='[2]Capex_FO input'!AB55 -> 0 | AC55: ='[2]Capex_FO input'!AC55 -> 0 | AD55: ='[2]Capex_FO input'!AD55 -> 0 | AE55: ='[2]Capex_FO input'!AE55 -> 0 | AF55: ='[2]Capex_FO input'!AF55 -> 0 | AG55: ='[2]Capex_FO input'!AG55 -> 0 | AH55: ='[2]Capex_FO input'!AH55 -> 0 | AI55: ='[2]Capex_FO input'!AI55 -> 0 | AJ55: ='[2]Capex_FO input'!AJ55 -> 0 | AK55: ='[2]Capex_FO input'!AK55 -> 0 | AM55: ='[2]Capex_FO input'!AM55 -> 0 | AN55: ='[2]Capex_FO input'!AN55 -> 0 | AO55: ='[2]Capex_FO input'!AO55 -> 0 | AP55: ='[2]Capex_FO input'!AP55 -> 0 | AQ55: ='[2]Capex_FO input'!AQ55 -> 0 | AR55: ='[2]Capex_FO input'!AR55 -> 0 | AS55: ='[2]Capex_FO input'!AS55 -> 0 | AT55: ='[2]Capex_FO input'!AT55 -> 0 | AU55: ='[2]Capex_FO input'!AU55 -> 0 | AV55: ='[2]Capex_FO input'!AV55 -> 0 | AX55: 0.133 | AY55: 0.184 | AZ55: 1.075 | BA55: 1.353 | BB55: 0 | BC55: 0 | BD55: 0 | BE55: 0 | BF55: 0 | BG55: 0 | BI55: 0 | BJ55: 0 | BK55: 0 | BL55: 0 | BM55: 0.02745 | BN55: 0.0549 | BO55: 0.0549 | BP55: 0.0549 | BQ55: 0.0549 | BR55: 0.0549 | BT55: =+IF($K55="Ongoing",AX55,IF(RIGHT($K55,2)=RIGHT(BT$39,2),SUM($AX55:AX55),0)+IF(RIGHT(BT$39,2)>RIGHT($K55,2),AX55,0)) -> 0 | BU55: =+IF($K55="Ongoing",AY55,IF(RIGHT($K55,2)=RIGHT(BU$39,2),SUM($AX55:AY55),0)+IF(RIGHT(BU$39,2)>RIGHT($K55,2),AY55,0)) -> 0 | BV55: =+IF($K55="Ongoing",AZ55,IF(RIGHT($K55,2)=RIGHT(BV$39,2),SUM($AX55:AZ55),0)+IF(RIGHT(BV$39,2)>RIGHT($K55,2),AZ55,0)) -> 0 | BW55: =+IF($K55="Ongoing",BA55,IF(RIGHT($K55,2)=RIGHT(BW$39,2),SUM($AX55:BA55),0)+IF(RIGHT(BW$39,2)>RIGHT($K55,2),BA55,0)) -> 0 | BX55: =+IF($K55="Ongoing",BB55,IF(RIGHT($K55,2)=RIGHT(BX$39,2),SUM($AX55:BB55),0)+IF(RIGHT(BX$39,2)>RIGHT($K55,2),BB55,0)) -> 2.745 | BY55: =+IF($K55="Ongoing",BC55,IF(RIGHT($K55,2)=RIGHT(BY$39,2),SUM($AX55:BC55),0)+IF(RIGHT(BY$39,2)>RIGHT($K55,2),BC55,0)) -> 0 | BZ55: =+IF($K55="Ongoing",BD55,IF(RIGHT($K55,2)=RIGHT(BZ$39,2),SUM($AX55:BD55),0)+IF(RIGHT(BZ$39,2)>RIGHT($K55,2),BD55,0)) -> 0 | CA55: =+IF($K55="Ongoing",BE55,IF(RIGHT($K55,2)=RIGHT(CA$39,2),SUM($AX55:BE55),0)+IF(RIGHT(CA$39,2)>RIGHT($K55,2),BE55,0)) -> 0 | CB55: =+IF($K55="Ongoing",BF55,IF(RIGHT($K55,2)=RIGHT(CB$39,2),SUM($AX55:BF55),0)+IF(RIGHT(CB$39,2)>RIGHT($K55,2),BF55,0)) -> 0 | CC55: =+IF($K55="Ongoing",BG55,IF(RIGHT($K55,2)=RIGHT(CC$39,2),SUM($AX55:BG55),0)+IF(RIGHT(CC$39,2)>RIGHT($K55,2),BG55,0)) -> 0 | CE55: =+Q55*KeyAssumptionsPriceControl_FO!AC$15 -> 0.13699 | CF55: =+R55*KeyAssumptionsPriceControl_FO!AD$15 -> 0.1952056 | CG55: =+S55*KeyAssumptionsPriceControl_FO!AE$15 -> 1.174681525 | CH55: =+T55*KeyAssumptionsPriceControl_FO!AF$15 -> 1.52281342 | CI55: =+U55*KeyAssumptionsPriceControl_FO!AG$15 -> 0 | CJ55: =+V55*KeyAssumptionsPriceControl_FO!AH$15 -> 0 | CK55: =+W55*KeyAssumptionsPriceControl_FO!AI$15 -> 0 | CL55: =+X55*KeyAssumptionsPriceControl_FO!AJ$15 -> 0 | CM55: =+Y55*KeyAssumptionsPriceControl_FO!AK$15 -> 0 | CN55: =+Z55*KeyAssumptionsPriceControl_FO!AL$15 -> 0 | CP55: 0.001053769231 | CQ55: 0.00360912 | CR55: 0.01414671327 | CS55: 0.03489667438 | CT55: 0.04661062377 | CU55: 0.04661062377 | CV55: 0.04661062377 | CW55: 0.04661062377 | CX55: 0.04661062377 | CY55: 0.04661062377
C56: ='[2]Capex_FO input'!C56 -> Cape Paterson WWTP augmentation | E56: ='[2]Capex_FO input'!E56 -> Sewerage | F56: ='[2]Capex_FO input'!F56 -> Growth | G56: ='[2]Capex_FO input'!G56 -> Treatment | H56: ='[2]Capex_FO input'!H56 -> Significant projects | I56: ='[2]Capex_FO input'!I56 -> 0 | J56: Straight line | K56: ='[2]Capex_FO input'!K56 -> 2028-29 | L56: ='[2]Capex_FO input'!L56 -> 50 | M56: ='[2]Capex_FO input'!M56 -> 80 | Q56: ='[2]Capex_FO input'!Q56 -> 0 | R56: ='[2]Capex_FO input'!R56 -> 0 | S56: ='[2]Capex_FO input'!S56 -> 0 | T56: ='[2]Capex_FO input'!T56 -> 0.63 | U56: ='[2]Capex_FO input'!U56 -> 1.56 | V56: ='[2]Capex_FO input'!V56 -> 0 | W56: ='[2]Capex_FO input'!W56 -> 0 | X56: ='[2]Capex_FO input'!X56 -> 0 | Y56: ='[2]Capex_FO input'!Y56 -> 0 | Z56: ='[2]Capex_FO input'!Z56 -> 0 | AB56: ='[2]Capex_FO input'!AB56 -> 0 | AC56: ='[2]Capex_FO input'!AC56 -> 0 | AD56: ='[2]Capex_FO input'!AD56 -> 0 | AE56: ='[2]Capex_FO input'!AE56 -> 0 | AF56: ='[2]Capex_FO input'!AF56 -> 0 | AG56: ='[2]Capex_FO input'!AG56 -> 0 | AH56: ='[2]Capex_FO input'!AH56 -> 0 | AI56: ='[2]Capex_FO input'!AI56 -> 0 | AJ56: ='[2]Capex_FO input'!AJ56 -> 0 | AK56: ='[2]Capex_FO input'!AK56 -> 0 | AM56: ='[2]Capex_FO input'!AM56 -> 0 | AN56: ='[2]Capex_FO input'!AN56 -> 0 | AO56: ='[2]Capex_FO input'!AO56 -> 0 | AP56: ='[2]Capex_FO input'!AP56 -> 0 | AQ56: ='[2]Capex_FO input'!AQ56 -> 0 | AR56: ='[2]Capex_FO input'!AR56 -> 0 | AS56: ='[2]Capex_FO input'!AS56 -> 0 | AT56: ='[2]Capex_FO input'!AT56 -> 0 | AU56: ='[2]Capex_FO input'!AU56 -> 0 | AV56: ='[2]Capex_FO input'!AV56 -> 0 | AX56: 0 | AY56: 0 | AZ56: 0 | BA56: 0.63 | BB56: 1.56 | BC56: 0 | BD56: 0 | BE56: 0 | BF56: 0 | BG56: 0 | BI56: 0 | BJ56: 0 | BK56: 0 | BL56: 0 | BM56: 0 | BN56: 0.0219 | BO56: 0.0438 | BP56: 0.0438 | BQ56: 0.0438 | BR56: 0.0438 | BT56: =+IF($K56="Ongoing",AX56,IF(RIGHT($K56,2)=RIGHT(BT$39,2),SUM($AX56:AX56),0)+IF(RIGHT(BT$39,2)>RIGHT($K56,2),AX56,0)) -> 0 | BU56: =+IF($K56="Ongoing",AY56,IF(RIGHT($K56,2)=RIGHT(BU$39,2),SUM($AX56:AY56),0)+IF(RIGHT(BU$39,2)>RIGHT($K56,2),AY56,0)) -> 0 | BV56: =+IF($K56="Ongoing",AZ56,IF(RIGHT($K56,2)=RIGHT(BV$39,2),SUM($AX56:AZ56),0)+IF(RIGHT(BV$39,2)>RIGHT($K56,2),AZ56,0)) -> 0 | BW56: =+IF($K56="Ongoing",BA56,IF(RIGHT($K56,2)=RIGHT(BW$39,2),SUM($AX56:BA56),0)+IF(RIGHT(BW$39,2)>RIGHT($K56,2),BA56,0)) -> 0 | BX56: =+IF($K56="Ongoing",BB56,IF(RIGHT($K56,2)=RIGHT(BX$39,2),SUM($AX56:BB56),0)+IF(RIGHT(BX$39,2)>RIGHT($K56,2),BB56,0)) -> 0 | BY56: =+IF($K56="Ongoing",BC56,IF(RIGHT($K56,2)=RIGHT(BY$39,2),SUM($AX56:BC56),0)+IF(RIGHT(BY$39,2)>RIGHT($K56,2),BC56,0)) -> 2.19 | BZ56: =+IF($K56="Ongoing",BD56,IF(RIGHT($K56,2)=RIGHT(BZ$39,2),SUM($AX56:BD56),0)+IF(RIGHT(BZ$39,2)>RIGHT($K56,2),BD56,0)) -> 0 | CA56: =+IF($K56="Ongoing",BE56,IF(RIGHT($K56,2)=RIGHT(CA$39,2),SUM($AX56:BE56),0)+IF(RIGHT(CA$39,2)>RIGHT($K56,2),BE56,0)) -> 0 | CB56: =+IF($K56="Ongoing",BF56,IF(RIGHT($K56,2)=RIGHT(CB$39,2),SUM($AX56:BF56),0)+IF(RIGHT(CB$39,2)>RIGHT($K56,2),BF56,0)) -> 0 | CC56: =+IF($K56="Ongoing",BG56,IF(RIGHT($K56,2)=RIGHT(CC$39,2),SUM($AX56:BG56),0)+IF(RIGHT(CC$39,2)>RIGHT($K56,2),BG56,0)) -> 0 | CE56: =+Q56*KeyAssumptionsPriceControl_FO!AC$15 -> 0 | CF56: =+R56*KeyAssumptionsPriceControl_FO!AD$15 -> 0 | CG56: =+S56*KeyAssumptionsPriceControl_FO!AE$15 -> 0 | CH56: =+T56*KeyAssumptionsPriceControl_FO!AF$15 -> 0.7090705503 | CI56: =+U56*KeyAssumptionsPriceControl_FO!AG$15 -> 1.808467556 | CJ56: =+V56*KeyAssumptionsPriceControl_FO!AH$15 -> 0 | CK56: =+W56*KeyAssumptionsPriceControl_FO!AI$15 -> 0 | CL56: =+X56*KeyAssumptionsPriceControl_FO!AJ$15 -> 0 | CM56: =+Y56*KeyAssumptionsPriceControl_FO!AK$15 -> 0 | CN56: =+Z56*KeyAssumptionsPriceControl_FO!AL$15 -> 0 | CP56: 0 | CQ56: 0 | CR56: 0 | CS56: 0.004431690939 | CT56: 0.0201663041 | CU56: 0.03146922633 | CV56: 0.03146922633 | CW56: 0.03146922633 | CX56: 0.03146922633 | CY56: 0.03146922633
C57: ='[2]Capex_FO input'!C57 -> Sewer System Expansion (Korumburra) | E57: ='[2]Capex_FO input'!E57 -> Sewerage | F57: ='[2]Capex_FO input'!F57 -> Growth | G57: ='[2]Capex_FO input'!G57 -> Pipelines/network | H57: ='[2]Capex_FO input'!H57 -> Significant projects | I57: ='[2]Capex_FO input'!I57 -> 0 | J57: Straight line | K57: ='[2]Capex_FO input'!K57 -> 2026-27 | L57: ='[2]Capex_FO input'!L57 -> 70 | M57: ='[2]Capex_FO input'!M57 -> 50 | Q57: ='[2]Capex_FO input'!Q57 -> 0 | R57: ='[2]Capex_FO input'!R57 -> 0 | S57: ='[2]Capex_FO input'!S57 -> 1.67031 | T57: ='[2]Capex_FO input'!T57 -> 0 | U57: ='[2]Capex_FO input'!U57 -> 0 | V57: ='[2]Capex_FO input'!V57 -> 0 | W57: ='[2]Capex_FO input'!W57 -> 0 | X57: ='[2]Capex_FO input'!X57 -> 2.13152 | Y57: ='[2]Capex_FO input'!Y57 -> 0 | Z57: ='[2]Capex_FO input'!Z57 -> 1.43559 | AB57: ='[2]Capex_FO input'!AB57 -> 0 | AC57: ='[2]Capex_FO input'!AC57 -> 0 | AD57: ='[2]Capex_FO input'!AD57 -> 0 | AE57: ='[2]Capex_FO input'!AE57 -> 0 | AF57: ='[2]Capex_FO input'!AF57 -> 0 | AG57: ='[2]Capex_FO input'!AG57 -> 0 | AH57: ='[2]Capex_FO input'!AH57 -> 0 | AI57: ='[2]Capex_FO input'!AI57 -> 0 | AJ57: ='[2]Capex_FO input'!AJ57 -> 0 | AK57: ='[2]Capex_FO input'!AK57 -> 0 | AM57: ='[2]Capex_FO input'!AM57 -> 0 | AN57: ='[2]Capex_FO input'!AN57 -> 0 | AO57: ='[2]Capex_FO input'!AO57 -> 0 | AP57: ='[2]Capex_FO input'!AP57 -> 0 | AQ57: ='[2]Capex_FO input'!AQ57 -> 0 | AR57: ='[2]Capex_FO input'!AR57 -> 0 | AS57: ='[2]Capex_FO input'!AS57 -> 0 | AT57: ='[2]Capex_FO input'!AT57 -> 0 | AU57: ='[2]Capex_FO input'!AU57 -> 0 | AV57: ='[2]Capex_FO input'!AV57 -> 0 | AX57: 0 | AY57: 0 | AZ57: 1.67031 | BA57: 0 | BB57: 0 | BC57: 0 | BD57: 0 | BE57: 2.13152 | BF57: 0 | BG57: 1.43559 | BI57: 0 | BJ57: 0 | BK57: 0 | BL57: 0.01193078571 | BM57: 0.02386157143 | BN57: 0.02386157143 | BO57: 0.02386157143 | BP57: 0.03908671429 | BQ57: 0.05431185714 | BR57: 0.06456607143 | BT57: =+IF($K57="Ongoing",AX57,IF(RIGHT($K57,2)=RIGHT(BT$39,2),SUM($AX57:AX57),0)+IF(RIGHT(BT$39,2)>RIGHT($K57,2),AX57,0)) -> 0 | BU57: =+IF($K57="Ongoing",AY57,IF(RIGHT($K57,2)=RIGHT(BU$39,2),SUM($AX57:AY57),0)+IF(RIGHT(BU$39,2)>RIGHT($K57,2),AY57,0)) -> 0 | BV57: =+IF($K57="Ongoing",AZ57,IF(RIGHT($K57,2)=RIGHT(BV$39,2),SUM($AX57:AZ57),0)+IF(RIGHT(BV$39,2)>RIGHT($K57,2),AZ57,0)) -> 0 | BW57: =+IF($K57="Ongoing",BA57,IF(RIGHT($K57,2)=RIGHT(BW$39,2),SUM($AX57:BA57),0)+IF(RIGHT(BW$39,2)>RIGHT($K57,2),BA57,0)) -> 1.67031 | BX57: =+IF($K57="Ongoing",BB57,IF(RIGHT($K57,2)=RIGHT(BX$39,2),SUM($AX57:BB57),0)+IF(RIGHT(BX$39,2)>RIGHT($K57,2),BB57,0)) -> 0 | BY57: =+IF($K57="Ongoing",BC57,IF(RIGHT($K57,2)=RIGHT(BY$39,2),SUM($AX57:BC57),0)+IF(RIGHT(BY$39,2)>RIGHT($K57,2),BC57,0)) -> 0 | BZ57: =+IF($K57="Ongoing",BD57,IF(RIGHT($K57,2)=RIGHT(BZ$39,2),SUM($AX57:BD57),0)+IF(RIGHT(BZ$39,2)>RIGHT($K57,2),BD57,0)) -> 0 | CA57: =+IF($K57="Ongoing",BE57,IF(RIGHT($K57,2)=RIGHT(CA$39,2),SUM($AX57:BE57),0)+IF(RIGHT(CA$39,2)>RIGHT($K57,2),BE57,0)) -> 2.13152 | CB57: =+IF($K57="Ongoing",BF57,IF(RIGHT($K57,2)=RIGHT(CB$39,2),SUM($AX57:BF57),0)+IF(RIGHT(CB$39,2)>RIGHT($K57,2),BF57,0)) -> 0 | CC57: =+IF($K57="Ongoing",BG57,IF(RIGHT($K57,2)=RIGHT(CC$39,2),SUM($AX57:BG57),0)+IF(RIGHT(CC$39,2)>RIGHT($K57,2),BG57,0)) -> 1.43559 | CE57: =+Q57*KeyAssumptionsPriceControl_FO!AC$15 -> 0 | CF57: =+R57*KeyAssumptionsPriceControl_FO!AD$15 -> 0 | CG57: =+S57*KeyAssumptionsPriceControl_FO!AE$15 -> 1.825192835 | CH57: =+T57*KeyAssumptionsPriceControl_FO!AF$15 -> 0 | CI57: =+U57*KeyAssumptionsPriceControl_FO!AG$15 -> 0 | CJ57: =+V57*KeyAssumptionsPriceControl_FO!AH$15 -> 0 | CK57: =+W57*KeyAssumptionsPriceControl_FO!AI$15 -> 0 | CL57: =+X57*KeyAssumptionsPriceControl_FO!AJ$15 -> 2.700145764 | CM57: =+Y57*KeyAssumptionsPriceControl_FO!AK$15 -> 0 | CN57: =+Z57*KeyAssumptionsPriceControl_FO!AL$15 -> 1.929312915 | CP57: 0 | CQ57: 0 | CR57: 0.01825192835 | CS57: 0.03650385671 | CT57: 0.03650385671 | CU57: 0.03650385671 | CV57: 0.03650385671 | CW57: 0.06350531435 | CX57: 0.09050677198 | CY57: 0.1097999011
C58: ='[2]Capex_FO input'!C58 -> Service Basin cover and liner replacements | E58: ='[2]Capex_FO input'!E58 -> Water | F58: ='[2]Capex_FO input'!F58 -> Renewals | G58: ='[2]Capex_FO input'!G58 -> Pipelines/network | H58: ='[2]Capex_FO input'!H58 -> Significant projects | J58: Straight line | K58: ='[2]Capex_FO input'!K58 -> 2025-26 | L58: ='[2]Capex_FO input'!L58 -> 100 | M58: ='[2]Capex_FO input'!M58 -> 50 | Q58: ='[2]Capex_FO input'!Q58 -> 0.682 | R58: ='[2]Capex_FO input'!R58 -> 0.9 | S58: ='[2]Capex_FO input'!S58 -> 0 | T58: ='[2]Capex_FO input'!T58 -> 0 | U58: ='[2]Capex_FO input'!U58 -> 0 | V58: ='[2]Capex_FO input'!V58 -> 0 | W58: ='[2]Capex_FO input'!W58 -> 0 | X58: ='[2]Capex_FO input'!X58 -> 0 | Y58: ='[2]Capex_FO input'!Y58 -> 0 | Z58: ='[2]Capex_FO input'!Z58 -> 0 | AB58: ='[2]Capex_FO input'!AB58 -> 0 | AC58: ='[2]Capex_FO input'!AC58 -> 0 | AD58: ='[2]Capex_FO input'!AD58 -> 0 | AE58: ='[2]Capex_FO input'!AE58 -> 0 | AF58: ='[2]Capex_FO input'!AF58 -> 0 | AG58: ='[2]Capex_FO input'!AG58 -> 0 | AH58: ='[2]Capex_FO input'!AH58 -> 0 | AI58: ='[2]Capex_FO input'!AI58 -> 0 | AJ58: ='[2]Capex_FO input'!AJ58 -> 0 | AK58: ='[2]Capex_FO input'!AK58 -> 0 | AM58: ='[2]Capex_FO input'!AM58 -> 0 | AN58: ='[2]Capex_FO input'!AN58 -> 0 | AO58: ='[2]Capex_FO input'!AO58 -> 0 | AP58: ='[2]Capex_FO input'!AP58 -> 0 | AQ58: ='[2]Capex_FO input'!AQ58 -> 0 | AR58: ='[2]Capex_FO input'!AR58 -> 0 | AS58: ='[2]Capex_FO input'!AS58 -> 0 | AT58: ='[2]Capex_FO input'!AT58 -> 0 | AU58: ='[2]Capex_FO input'!AU58 -> 0 | AV58: ='[2]Capex_FO input'!AV58 -> 0 | AX58: 0.682 | AY58: 0.9 | AZ58: 0 | BA58: 0 | BB58: 0 | BC58: 0 | BD58: 0 | BE58: 0 | BF58: 0 | BG58: 0 | BI58: 0 | BJ58: 0 | BK58: 0.00791 | BL58: 0.01582 | BM58: 0.01582 | BN58: 0.01582 | BO58: 0.01582 | BP58: 0.01582 | BQ58: 0.01582 | BR58: 0.01582 | BT58: =+IF($K58="Ongoing",AX58,IF(RIGHT($K58,2)=RIGHT(BT$39,2),SUM($AX58:AX58),0)+IF(RIGHT(BT$39,2)>RIGHT($K58,2),AX58,0)) -> 0 | BU58: =+IF($K58="Ongoing",AY58,IF(RIGHT($K58,2)=RIGHT(BU$39,2),SUM($AX58:AY58),0)+IF(RIGHT(BU$39,2)>RIGHT($K58,2),AY58,0)) -> 0 | BV58: =+IF($K58="Ongoing",AZ58,IF(RIGHT($K58,2)=RIGHT(BV$39,2),SUM($AX58:AZ58),0)+IF(RIGHT(BV$39,2)>RIGHT($K58,2),AZ58,0)) -> 1.582 | BW58: =+IF($K58="Ongoing",BA58,IF(RIGHT($K58,2)=RIGHT(BW$39,2),SUM($AX58:BA58),0)+IF(RIGHT(BW$39,2)>RIGHT($K58,2),BA58,0)) -> 0 | BX58: =+IF($K58="Ongoing",BB58,IF(RIGHT($K58,2)=RIGHT(BX$39,2),SUM($AX58:BB58),0)+IF(RIGHT(BX$39,2)>RIGHT($K58,2),BB58,0)) -> 0 | BY58: =+IF($K58="Ongoing",BC58,IF(RIGHT($K58,2)=RIGHT(BY$39,2),SUM($AX58:BC58),0)+IF(RIGHT(BY$39,2)>RIGHT($K58,2),BC58,0)) -> 0 | BZ58: =+IF($K58="Ongoing",BD58,IF(RIGHT($K58,2)=RIGHT(BZ$39,2),SUM($AX58:BD58),0)+IF(RIGHT(BZ$39,2)>RIGHT($K58,2),BD58,0)) -> 0 | CA58: =+IF($K58="Ongoing",BE58,IF(RIGHT($K58,2)=RIGHT(CA$39,2),SUM($AX58:BE58),0)+IF(RIGHT(CA$39,2)>RIGHT($K58,2),BE58,0)) -> 0 | CB58: =+IF($K58="Ongoing",BF58,IF(RIGHT($K58,2)=RIGHT(CB$39,2),SUM($AX58:BF58),0)+IF(RIGHT(CB$39,2)>RIGHT($K58,2),BF58,0)) -> 0 | CC58: =+IF($K58="Ongoing",BG58,IF(RIGHT($K58,2)=RIGHT(CC$39,2),SUM($AX58:BG58),0)+IF(RIGHT(CC$39,2)>RIGHT($K58,2),BG58,0)) -> 0 | CE58: =+Q58*KeyAssumptionsPriceControl_FO!AC$15 -> 0.70246 | CF58: =+R58*KeyAssumptionsPriceControl_FO!AD$15 -> 0.95481 | CG58: =+S58*KeyAssumptionsPriceControl_FO!AE$15 -> 0 | CH58: =+T58*KeyAssumptionsPriceControl_FO!AF$15 -> 0 | CI58: =+U58*KeyAssumptionsPriceControl_FO!AG$15 -> 0 | CJ58: =+V58*KeyAssumptionsPriceControl_FO!AH$15 -> 0 | CK58: =+W58*KeyAssumptionsPriceControl_FO!AI$15 -> 0 | CL58: =+X58*KeyAssumptionsPriceControl_FO!AJ$15 -> 0 | CM58: =+Y58*KeyAssumptionsPriceControl_FO!AK$15 -> 0 | CN58: =+Z58*KeyAssumptionsPriceControl_FO!AL$15 -> 0 | CP58: 0.0070246 | CQ58: 0.0235973 | CR58: 0.0331454 | CS58: 0.0331454 | CT58: 0.0331454 | CU58: 0.0331454 | CV58: 0.0331454 | CW58: 0.0331454 | CX58: 0.0331454 | CY58: 0.0331454
C59: ='[2]Capex_FO input'!C59 -> Water Reticulation Renewal Allocation | E59: ='[2]Capex_FO input'!E59 -> Water | F59: ='[2]Capex_FO input'!F59 -> Renewals | G59: ='[2]Capex_FO input'!G59 -> Pipelines/network | H59: ='[2]Capex_FO input'!H59 -> Capital Programs / Allocation | J59: Straight line | K59: ='[2]Capex_FO input'!K59 -> Ongoing | L59: ='[2]Capex_FO input'!L59 -> 70 | M59: ='[2]Capex_FO input'!M59 -> 50 | Q59: ='[2]Capex_FO input'!Q59 -> 1.2 | R59: ='[2]Capex_FO input'!R59 -> 1.2 | S59: ='[2]Capex_FO input'!S59 -> 1.2 | T59: ='[2]Capex_FO input'!T59 -> 1.2 | U59: ='[2]Capex_FO input'!U59 -> 1.2 | V59: ='[2]Capex_FO input'!V59 -> 1.2 | W59: ='[2]Capex_FO input'!W59 -> 1.2 | X59: ='[2]Capex_FO input'!X59 -> 1.2 | Y59: ='[2]Capex_FO input'!Y59 -> 1.2 | Z59: ='[2]Capex_FO input'!Z59 -> 1.2 | AB59: ='[2]Capex_FO input'!AB59 -> 0 | AC59: ='[2]Capex_FO input'!AC59 -> 0 | AD59: ='[2]Capex_FO input'!AD59 -> 0 | AE59: ='[2]Capex_FO input'!AE59 -> 0 | AF59: ='[2]Capex_FO input'!AF59 -> 0 | AG59: ='[2]Capex_FO input'!AG59 -> 0 | AH59: ='[2]Capex_FO input'!AH59 -> 0 | AI59: ='[2]Capex_FO input'!AI59 -> 0 | AJ59: ='[2]Capex_FO input'!AJ59 -> 0 | AK59: ='[2]Capex_FO input'!AK59 -> 0 | AM59: ='[2]Capex_FO input'!AM59 -> 0 | AN59: ='[2]Capex_FO input'!AN59 -> 0 | AO59: ='[2]Capex_FO input'!AO59 -> 0 | AP59: ='[2]Capex_FO input'!AP59 -> 0 | AQ59: ='[2]Capex_FO input'!AQ59 -> 0 | AR59: ='[2]Capex_FO input'!AR59 -> 0 | AS59: ='[2]Capex_FO input'!AS59 -> 0 | AT59: ='[2]Capex_FO input'!AT59 -> 0 | AU59: ='[2]Capex_FO input'!AU59 -> 0 | AV59: ='[2]Capex_FO input'!AV59 -> 0 | AX59: 1.2 | AY59: 1.2 | AZ59: 1.2 | BA59: 1.2 | BB59: 1.2 | BC59: 1.2 | BD59: 1.2 | BE59: 1.2 | BF59: 1.2 | BG59: 1.2 | BI59: 0.008571428571 | BJ59: 0.02571428571 | BK59: 0.04285714286 | BL59: 0.06 | BM59: 0.07714285714 | BN59: 0.09428571429 | BO59: 0.1114285714 | BP59: 0.1285714286 | BQ59: 0.1457142857 | BR59: 0.1628571429 | BT59: =+IF($K59="Ongoing",AX59,IF(RIGHT($K59,2)=RIGHT(BT$39,2),SUM($AX59:AX59),0)+IF(RIGHT(BT$39,2)>RIGHT($K59,2),AX59,0)) -> 1.2 | BU59: =+IF($K59="Ongoing",AY59,IF(RIGHT($K59,2)=RIGHT(BU$39,2),SUM($AX59:AY59),0)+IF(RIGHT(BU$39,2)>RIGHT($K59,2),AY59,0)) -> 1.2 | BV59: =+IF($K59="Ongoing",AZ59,IF(RIGHT($K59,2)=RIGHT(BV$39,2),SUM($AX59:AZ59),0)+IF(RIGHT(BV$39,2)>RIGHT($K59,2),AZ59,0)) -> 1.2 | BW59: =+IF($K59="Ongoing",BA59,IF(RIGHT($K59,2)=RIGHT(BW$39,2),SUM($AX59:BA59),0)+IF(RIGHT(BW$39,2)>RIGHT($K59,2),BA59,0)) -> 1.2 | BX59: =+IF($K59="Ongoing",BB59,IF(RIGHT($K59,2)=RIGHT(BX$39,2),SUM($AX59:BB59),0)+IF(RIGHT(BX$39,2)>RIGHT($K59,2),BB59,0)) -> 1.2 | BY59: =+IF($K59="Ongoing",BC59,IF(RIGHT($K59,2)=RIGHT(BY$39,2),SUM($AX59:BC59),0)+IF(RIGHT(BY$39,2)>RIGHT($K59,2),BC59,0)) -> 1.2 | BZ59: =+IF($K59="Ongoing",BD59,IF(RIGHT($K59,2)=RIGHT(BZ$39,2),SUM($AX59:BD59),0)+IF(RIGHT(BZ$39,2)>RIGHT($K59,2),BD59,0)) -> 1.2 | CA59: =+IF($K59="Ongoing",BE59,IF(RIGHT($K59,2)=RIGHT(CA$39,2),SUM($AX59:BE59),0)+IF(RIGHT(CA$39,2)>RIGHT($K59,2),BE59,0)) -> 1.2 | CB59: =+IF($K59="Ongoing",BF59,IF(RIGHT($K59,2)=RIGHT(CB$39,2),SUM($AX59:BF59),0)+IF(RIGHT(CB$39,2)>RIGHT($K59,2),BF59,0)) -> 1.2 | CC59: =+IF($K59="Ongoing",BG59,IF(RIGHT($K59,2)=RIGHT(CC$39,2),SUM($AX59:BG59),0)+IF(RIGHT(CC$39,2)>RIGHT($K59,2),BG59,0)) -> 1.2 | CE59: =+Q59*KeyAssumptionsPriceControl_FO!AC$15 -> 1.236 | CF59: =+R59*KeyAssumptionsPriceControl_FO!AD$15 -> 1.27308 | CG59: =+S59*KeyAssumptionsPriceControl_FO!AE$15 -> 1.3112724 | CH59: =+T59*KeyAssumptionsPriceControl_FO!AF$15 -> 1.350610572 | CI59: =+U59*KeyAssumptionsPriceControl_FO!AG$15 -> 1.391128889 | CJ59: =+V59*KeyAssumptionsPriceControl_FO!AH$15 -> 1.432862756 | CK59: =+W59*KeyAssumptionsPriceControl_FO!AI$15 -> 1.475848639 | CL59: =+X59*KeyAssumptionsPriceControl_FO!AJ$15 -> 1.520124098 | CM59: =+Y59*KeyAssumptionsPriceControl_FO!AK$15 -> 1.565727821 | CN59: =+Z59*KeyAssumptionsPriceControl_FO!AL$15 -> 1.612699655 | CP59: 0.01236 | CQ59: 0.0374508 | CR59: 0.063294324 | CS59: 0.08991315372 | CT59: 0.1173305483 | CU59: 0.1455704648 | CV59: 0.1746575787 | CW59: 0.2046173061 | CX59: 0.2354758253 | CY59: 0.2672601
C60: ='[2]Capex_FO input'!C60 -> Reticulation Sewer Replacement / Rehabilitation Allocation | E60: ='[2]Capex_FO input'!E60 -> Sewerage | F60: ='[2]Capex_FO input'!F60 -> Renewals | G60: ='[2]Capex_FO input'!G60 -> Pipelines/network | H60: ='[2]Capex_FO input'!H60 -> Capital Programs / Allocation | J60: Straight line | K60: ='[2]Capex_FO input'!K60 -> Ongoing | L60: ='[2]Capex_FO input'!L60 -> 70 | M60: ='[2]Capex_FO input'!M60 -> 50 | Q60: ='[2]Capex_FO input'!Q60 -> 0.823 | R60: ='[2]Capex_FO input'!R60 -> 0.823 | S60: ='[2]Capex_FO input'!S60 -> 0.823 | T60: ='[2]Capex_FO input'!T60 -> 0.823 | U60: ='[2]Capex_FO input'!U60 -> 0.823 | V60: ='[2]Capex_FO input'!V60 -> 0.868 | W60: ='[2]Capex_FO input'!W60 -> 0.868 | X60: ='[2]Capex_FO input'!X60 -> 0.868 | Y60: ='[2]Capex_FO input'!Y60 -> 0.868 | Z60: ='[2]Capex_FO input'!Z60 -> 0.868 | AB60: ='[2]Capex_FO input'!AB60 -> 0 | AC60: ='[2]Capex_FO input'!AC60 -> 0 | AD60: ='[2]Capex_FO input'!AD60 -> 0 | AE60: ='[2]Capex_FO input'!AE60 -> 0 | AF60: ='[2]Capex_FO input'!AF60 -> 0 | AG60: ='[2]Capex_FO input'!AG60 -> 0 | AH60: ='[2]Capex_FO input'!AH60 -> 0 | AI60: ='[2]Capex_FO input'!AI60 -> 0 | AJ60: ='[2]Capex_FO input'!AJ60 -> 0 | AK60: ='[2]Capex_FO input'!AK60 -> 0 | AM60: ='[2]Capex_FO input'!AM60 -> 0 | AN60: ='[2]Capex_FO input'!AN60 -> 0 | AO60: ='[2]Capex_FO input'!AO60 -> 0 | AP60: ='[2]Capex_FO input'!AP60 -> 0 | AQ60: ='[2]Capex_FO input'!AQ60 -> 0 | AR60: ='[2]Capex_FO input'!AR60 -> 0 | AS60: ='[2]Capex_FO input'!AS60 -> 0 | AT60: ='[2]Capex_FO input'!AT60 -> 0 | AU60: ='[2]Capex_FO input'!AU60 -> 0 | AV60: ='[2]Capex_FO input'!AV60 -> 0 | AX60: 0.823 | AY60: 0.823 | AZ60: 0.823 | BA60: 0.823 | BB60: 0.823 | BC60: 0.868 | BD60: 0.868 | BE60: 0.868 | BF60: 0.868 | BG60: 0.868 | BI60: 0.005878571429 | BJ60: 0.01763571429 | BK60: 0.02939285714 | BL60: 0.04115 | BM60: 0.05290714286 | BN60: 0.06498571429 | BO60: 0.07738571429 | BP60: 0.08978571429 | BQ60: 0.1021857143 | BR60: 0.1145857143 | BT60: =+IF($K60="Ongoing",AX60,IF(RIGHT($K60,2)=RIGHT(BT$39,2),SUM($AX60:AX60),0)+IF(RIGHT(BT$39,2)>RIGHT($K60,2),AX60,0)) -> 0.823 | BU60: =+IF($K60="Ongoing",AY60,IF(RIGHT($K60,2)=RIGHT(BU$39,2),SUM($AX60:AY60),0)+IF(RIGHT(BU$39,2)>RIGHT($K60,2),AY60,0)) -> 0.823 | BV60: =+IF($K60="Ongoing",AZ60,IF(RIGHT($K60,2)=RIGHT(BV$39,2),SUM($AX60:AZ60),0)+IF(RIGHT(BV$39,2)>RIGHT($K60,2),AZ60,0)) -> 0.823 | BW60: =+IF($K60="Ongoing",BA60,IF(RIGHT($K60,2)=RIGHT(BW$39,2),SUM($AX60:BA60),0)+IF(RIGHT(BW$39,2)>RIGHT($K60,2),BA60,0)) -> 0.823 | BX60: =+IF($K60="Ongoing",BB60,IF(RIGHT($K60,2)=RIGHT(BX$39,2),SUM($AX60:BB60),0)+IF(RIGHT(BX$39,2)>RIGHT($K60,2),BB60,0)) -> 0.823 | BY60: =+IF($K60="Ongoing",BC60,IF(RIGHT($K60,2)=RIGHT(BY$39,2),SUM($AX60:BC60),0)+IF(RIGHT(BY$39,2)>RIGHT($K60,2),BC60,0)) -> 0.868 | BZ60: =+IF($K60="Ongoing",BD60,IF(RIGHT($K60,2)=RIGHT(BZ$39,2),SUM($AX60:BD60),0)+IF(RIGHT(BZ$39,2)>RIGHT($K60,2),BD60,0)) -> 0.868 | CA60: =+IF($K60="Ongoing",BE60,IF(RIGHT($K60,2)=RIGHT(CA$39,2),SUM($AX60:BE60),0)+IF(RIGHT(CA$39,2)>RIGHT($K60,2),BE60,0)) -> 0.868 | CB60: =+IF($K60="Ongoing",BF60,IF(RIGHT($K60,2)=RIGHT(CB$39,2),SUM($AX60:BF60),0)+IF(RIGHT(CB$39,2)>RIGHT($K60,2),BF60,0)) -> 0.868 | CC60: =+IF($K60="Ongoing",BG60,IF(RIGHT($K60,2)=RIGHT(CC$39,2),SUM($AX60:BG60),0)+IF(RIGHT(CC$39,2)>RIGHT($K60,2),BG60,0)) -> 0.868 | CE60: =+Q60*KeyAssumptionsPriceControl_FO!AC$15 -> 0.84769 | CF60: =+R60*KeyAssumptionsPriceControl_FO!AD$15 -> 0.8731207 | CG60: =+S60*KeyAssumptionsPriceControl_FO!AE$15 -> 0.899314321 | CH60: =+T60*KeyAssumptionsPriceControl_FO!AF$15 -> 0.9262937506 | CI60: =+U60*KeyAssumptionsPriceControl_FO!AG$15 -> 0.9540825631 | CJ60: =+V60*KeyAssumptionsPriceControl_FO!AH$15 -> 1.036437393 | CK60: =+W60*KeyAssumptionsPriceControl_FO!AI$15 -> 1.067530515 | CL60: =+X60*KeyAssumptionsPriceControl_FO!AJ$15 -> 1.099556431 | CM60: =+Y60*KeyAssumptionsPriceControl_FO!AK$15 -> 1.132543124 | CN60: =+Z60*KeyAssumptionsPriceControl_FO!AL$15 -> 1.166519417 | CP60: 0.0084769 | CQ60: 0.025685007 | CR60: 0.04340935721 | CS60: 0.06166543793 | CT60: 0.08046920106 | CU60: 0.1003744006 | CV60: 0.1214140797 | CW60: 0.1430849492 | CX60: 0.1654059447 | CY60: 0.1883965701
C61: ='[2]Capex_FO input'!C61 -> Minor Renewal Works T&D Mains | E61: ='[2]Capex_FO input'!E61 -> Water | F61: ='[2]Capex_FO input'!F61 -> Renewals | G61: ='[2]Capex_FO input'!G61 -> Pipelines/network | H61: ='[2]Capex_FO input'!H61 -> Capital Programs / Allocation | J61: Straight line | K61: ='[2]Capex_FO input'!K61 -> Ongoing | L61: ='[2]Capex_FO input'!L61 -> 80 | M61: ='[2]Capex_FO input'!M61 -> 50 | Q61: ='[2]Capex_FO input'!Q61 -> 0.761 | R61: ='[2]Capex_FO input'!R61 -> 0.761 | S61: ='[2]Capex_FO input'!S61 -> 0.761 | T61: ='[2]Capex_FO input'!T61 -> 0.761 | U61: ='[2]Capex_FO input'!U61 -> 0.761 | V61: ='[2]Capex_FO input'!V61 -> 0.761 | W61: ='[2]Capex_FO input'!W61 -> 0.761 | X61: ='[2]Capex_FO input'!X61 -> 0.761 | Y61: ='[2]Capex_FO input'!Y61 -> 0.761 | Z61: ='[2]Capex_FO input'!Z61 -> 0.761 | AB61: ='[2]Capex_FO input'!AB61 -> 0 | AC61: ='[2]Capex_FO input'!AC61 -> 0 | AD61: ='[2]Capex_FO input'!AD61 -> 0 | AE61: ='[2]Capex_FO input'!AE61 -> 0 | AF61: ='[2]Capex_FO input'!AF61 -> 0 | AG61: ='[2]Capex_FO input'!AG61 -> 0 | AH61: ='[2]Capex_FO input'!AH61 -> 0 | AI61: ='[2]Capex_FO input'!AI61 -> 0 | AJ61: ='[2]Capex_FO input'!AJ61 -> 0 | AK61: ='[2]Capex_FO input'!AK61 -> 0 | AM61: ='[2]Capex_FO input'!AM61 -> 0 | AN61: ='[2]Capex_FO input'!AN61 -> 0 | AO61: ='[2]Capex_FO input'!AO61 -> 0 | AP61: ='[2]Capex_FO input'!AP61 -> 0 | AQ61: ='[2]Capex_FO input'!AQ61 -> 0 | AR61: ='[2]Capex_FO input'!AR61 -> 0 | AS61: ='[2]Capex_FO input'!AS61 -> 0 | AT61: ='[2]Capex_FO input'!AT61 -> 0 | AU61: ='[2]Capex_FO input'!AU61 -> 0 | AV61: ='[2]Capex_FO input'!AV61 -> 0 | AX61: 0.761 | AY61: 0.761 | AZ61: 0.761 | BA61: 0.761 | BB61: 0.761 | BC61: 0.761 | BD61: 0.761 | BE61: 0.761 | BF61: 0.761 | BG61: 0.761 | BI61: 0.00475625 | BJ61: 0.01426875 | BK61: 0.02378125 | BL61: 0.03329375 | BM61: 0.04280625 | BN61: 0.05231875 | BO61: 0.06183125 | BP61: 0.07134375 | BQ61: 0.08085625 | BR61: 0.09036875 | BT61: =+IF($K61="Ongoing",AX61,IF(RIGHT($K61,2)=RIGHT(BT$39,2),SUM($AX61:AX61),0)+IF(RIGHT(BT$39,2)>RIGHT($K61,2),AX61,0)) -> 0.761 | BU61: =+IF($K61="Ongoing",AY61,IF(RIGHT($K61,2)=RIGHT(BU$39,2),SUM($AX61:AY61),0)+IF(RIGHT(BU$39,2)>RIGHT($K61,2),AY61,0)) -> 0.761 | BV61: =+IF($K61="Ongoing",AZ61,IF(RIGHT($K61,2)=RIGHT(BV$39,2),SUM($AX61:AZ61),0)+IF(RIGHT(BV$39,2)>RIGHT($K61,2),AZ61,0)) -> 0.761 | BW61: =+IF($K61="Ongoing",BA61,IF(RIGHT($K61,2)=RIGHT(BW$39,2),SUM($AX61:BA61),0)+IF(RIGHT(BW$39,2)>RIGHT($K61,2),BA61,0)) -> 0.761 | BX61: =+IF($K61="Ongoing",BB61,IF(RIGHT($K61,2)=RIGHT(BX$39,2),SUM($AX61:BB61),0)+IF(RIGHT(BX$39,2)>RIGHT($K61,2),BB61,0)) -> 0.761 | BY61: =+IF($K61="Ongoing",BC61,IF(RIGHT($K61,2)=RIGHT(BY$39,2),SUM($AX61:BC61),0)+IF(RIGHT(BY$39,2)>RIGHT($K61,2),BC61,0)) -> 0.761 | BZ61: =+IF($K61="Ongoing",BD61,IF(RIGHT($K61,2)=RIGHT(BZ$39,2),SUM($AX61:BD61),0)+IF(RIGHT(BZ$39,2)>RIGHT($K61,2),BD61,0)) -> 0.761 | CA61: =+IF($K61="Ongoing",BE61,IF(RIGHT($K61,2)=RIGHT(CA$39,2),SUM($AX61:BE61),0)+IF(RIGHT(CA$39,2)>RIGHT($K61,2),BE61,0)) -> 0.761 | CB61: =+IF($K61="Ongoing",BF61,IF(RIGHT($K61,2)=RIGHT(CB$39,2),SUM($AX61:BF61),0)+IF(RIGHT(CB$39,2)>RIGHT($K61,2),BF61,0)) -> 0.761 | CC61: =+IF($K61="Ongoing",BG61,IF(RIGHT($K61,2)=RIGHT(CC$39,2),SUM($AX61:BG61),0)+IF(RIGHT(CC$39,2)>RIGHT($K61,2),BG61,0)) -> 0.761 | CE61: =+Q61*KeyAssumptionsPriceControl_FO!AC$15 -> 0.78383 | CF61: =+R61*KeyAssumptionsPriceControl_FO!AD$15 -> 0.8073449 | CG61: =+S61*KeyAssumptionsPriceControl_FO!AE$15 -> 0.831565247 | CH61: =+T61*KeyAssumptionsPriceControl_FO!AF$15 -> 0.8565122044 | CI61: =+U61*KeyAssumptionsPriceControl_FO!AG$15 -> 0.8822075705 | CJ61: =+V61*KeyAssumptionsPriceControl_FO!AH$15 -> 0.9086737977 | CK61: =+W61*KeyAssumptionsPriceControl_FO!AI$15 -> 0.9359340116 | CL61: =+X61*KeyAssumptionsPriceControl_FO!AJ$15 -> 0.9640120319 | CM61: =+Y61*KeyAssumptionsPriceControl_FO!AK$15 -> 0.9929323929 | CN61: =+Z61*KeyAssumptionsPriceControl_FO!AL$15 -> 1.022720365 | CP61: 0.0078383 | CQ61: 0.023750049 | CR61: 0.04013915047 | CS61: 0.05701992498 | CT61: 0.07440712273 | CU61: 0.09231593642 | CV61: 0.1107620145 | CW61: 0.1297614749 | CX61: 0.1493309192 | CY61: 0.1694874468
C62: ='[2]Capex_FO input'!C62 -> Water Treatment Plant Asset Renewal Allocation | E62: ='[2]Capex_FO input'!E62 -> Water | F62: ='[2]Capex_FO input'!F62 -> Renewals | G62: ='[2]Capex_FO input'!G62 -> Treatment | H62: ='[2]Capex_FO input'!H62 -> Capital Programs / Allocation | J62: Straight line | K62: ='[2]Capex_FO input'!K62 -> Ongoing | L62: ='[2]Capex_FO input'!L62 -> 50 | M62: ='[2]Capex_FO input'!M62 -> 65 | Q62: ='[2]Capex_FO input'!Q62 -> 0.585 | R62: ='[2]Capex_FO input'!R62 -> 0.585 | S62: ='[2]Capex_FO input'!S62 -> 0.585 | T62: ='[2]Capex_FO input'!T62 -> 0.585 | U62: ='[2]Capex_FO input'!U62 -> 0.585 | V62: ='[2]Capex_FO input'!V62 -> 0.585 | W62: ='[2]Capex_FO input'!W62 -> 0.585 | X62: ='[2]Capex_FO input'!X62 -> 0.585 | Y62: ='[2]Capex_FO input'!Y62 -> 0.585 | Z62: ='[2]Capex_FO input'!Z62 -> 0.585 | AB62: ='[2]Capex_FO input'!AB62 -> 0 | AC62: ='[2]Capex_FO input'!AC62 -> 0 | AD62: ='[2]Capex_FO input'!AD62 -> 0 | AE62: ='[2]Capex_FO input'!AE62 -> 0 | AF62: ='[2]Capex_FO input'!AF62 -> 0 | AG62: ='[2]Capex_FO input'!AG62 -> 0 | AH62: ='[2]Capex_FO input'!AH62 -> 0 | AI62: ='[2]Capex_FO input'!AI62 -> 0 | AJ62: ='[2]Capex_FO input'!AJ62 -> 0 | AK62: ='[2]Capex_FO input'!AK62 -> 0 | AM62: ='[2]Capex_FO input'!AM62 -> 0 | AN62: ='[2]Capex_FO input'!AN62 -> 0 | AO62: ='[2]Capex_FO input'!AO62 -> 0 | AP62: ='[2]Capex_FO input'!AP62 -> 0 | AQ62: ='[2]Capex_FO input'!AQ62 -> 0 | AR62: ='[2]Capex_FO input'!AR62 -> 0 | AS62: ='[2]Capex_FO input'!AS62 -> 0 | AT62: ='[2]Capex_FO input'!AT62 -> 0 | AU62: ='[2]Capex_FO input'!AU62 -> 0 | AV62: ='[2]Capex_FO input'!AV62 -> 0 | AX62: 0.585 | AY62: 0.585 | AZ62: 0.585 | BA62: 0.585 | BB62: 0.585 | BC62: 0.585 | BD62: 0.585 | BE62: 0.585 | BF62: 0.585 | BG62: 0.585 | BI62: 0.00585 | BJ62: 0.01755 | BK62: 0.02925 | BL62: 0.04095 | BM62: 0.05265 | BN62: 0.06435 | BO62: 0.07605 | BP62: 0.08775 | BQ62: 0.09945 | BR62: 0.11115 | BT62: =+IF($K62="Ongoing",AX62,IF(RIGHT($K62,2)=RIGHT(BT$39,2),SUM($AX62:AX62),0)+IF(RIGHT(BT$39,2)>RIGHT($K62,2),AX62,0)) -> 0.585 | BU62: =+IF($K62="Ongoing",AY62,IF(RIGHT($K62,2)=RIGHT(BU$39,2),SUM($AX62:AY62),0)+IF(RIGHT(BU$39,2)>RIGHT($K62,2),AY62,0)) -> 0.585 | BV62: =+IF($K62="Ongoing",AZ62,IF(RIGHT($K62,2)=RIGHT(BV$39,2),SUM($AX62:AZ62),0)+IF(RIGHT(BV$39,2)>RIGHT($K62,2),AZ62,0)) -> 0.585 | BW62: =+IF($K62="Ongoing",BA62,IF(RIGHT($K62,2)=RIGHT(BW$39,2),SUM($AX62:BA62),0)+IF(RIGHT(BW$39,2)>RIGHT($K62,2),BA62,0)) -> 0.585 | BX62: =+IF($K62="Ongoing",BB62,IF(RIGHT($K62,2)=RIGHT(BX$39,2),SUM($AX62:BB62),0)+IF(RIGHT(BX$39,2)>RIGHT($K62,2),BB62,0)) -> 0.585 | BY62: =+IF($K62="Ongoing",BC62,IF(RIGHT($K62,2)=RIGHT(BY$39,2),SUM($AX62:BC62),0)+IF(RIGHT(BY$39,2)>RIGHT($K62,2),BC62,0)) -> 0.585 | BZ62: =+IF($K62="Ongoing",BD62,IF(RIGHT($K62,2)=RIGHT(BZ$39,2),SUM($AX62:BD62),0)+IF(RIGHT(BZ$39,2)>RIGHT($K62,2),BD62,0)) -> 0.585 | CA62: =+IF($K62="Ongoing",BE62,IF(RIGHT($K62,2)=RIGHT(CA$39,2),SUM($AX62:BE62),0)+IF(RIGHT(CA$39,2)>RIGHT($K62,2),BE62,0)) -> 0.585 | CB62: =+IF($K62="Ongoing",BF62,IF(RIGHT($K62,2)=RIGHT(CB$39,2),SUM($AX62:BF62),0)+IF(RIGHT(CB$39,2)>RIGHT($K62,2),BF62,0)) -> 0.585 | CC62: =+IF($K62="Ongoing",BG62,IF(RIGHT($K62,2)=RIGHT(CC$39,2),SUM($AX62:BG62),0)+IF(RIGHT(CC$39,2)>RIGHT($K62,2),BG62,0)) -> 0.585 | CE62: =+Q62*KeyAssumptionsPriceControl_FO!AC$15 -> 0.60255 | CF62: =+R62*KeyAssumptionsPriceControl_FO!AD$15 -> 0.6206265 | CG62: =+S62*KeyAssumptionsPriceControl_FO!AE$15 -> 0.639245295 | CH62: =+T62*KeyAssumptionsPriceControl_FO!AF$15 -> 0.6584226539 | CI62: =+U62*KeyAssumptionsPriceControl_FO!AG$15 -> 0.6781753335 | CJ62: =+V62*KeyAssumptionsPriceControl_FO!AH$15 -> 0.6985205935 | CK62: =+W62*KeyAssumptionsPriceControl_FO!AI$15 -> 0.7194762113 | CL62: =+X62*KeyAssumptionsPriceControl_FO!AJ$15 -> 0.7410604976 | CM62: =+Y62*KeyAssumptionsPriceControl_FO!AK$15 -> 0.7632923125 | CN62: =+Z62*KeyAssumptionsPriceControl_FO!AL$15 -> 0.7861910819 | CP62: 0.004635 | CQ62: 0.01404405 | CR62: 0.0237353715 | CS62: 0.03371743264 | CT62: 0.04399895562 | CU62: 0.05458892429 | CV62: 0.06549659202 | CW62: 0.07673148978 | CX62: 0.08830343448 | CY62: 0.1002225375
C63: ='[2]Capex_FO input'!C63 -> Waste Water Treatment Plant Asset Renewal Allocation | E63: ='[2]Capex_FO input'!E63 -> Sewerage | F63: ='[2]Capex_FO input'!F63 -> Renewals | G63: ='[2]Capex_FO input'!G63 -> Treatment | H63: ='[2]Capex_FO input'!H63 -> Capital Programs / Allocation | J63: Straight line | K63: ='[2]Capex_FO input'!K63 -> Ongoing | L63: ='[2]Capex_FO input'!L63 -> 50 | M63: ='[2]Capex_FO input'!M63 -> 80 | Q63: ='[2]Capex_FO input'!Q63 -> 0.534 | R63: ='[2]Capex_FO input'!R63 -> 0.534 | S63: ='[2]Capex_FO input'!S63 -> 0.534 | T63: ='[2]Capex_FO input'!T63 -> 0.534 | U63: ='[2]Capex_FO input'!U63 -> 0.534 | V63: ='[2]Capex_FO input'!V63 -> 0.534 | W63: ='[2]Capex_FO input'!W63 -> 0.534 | X63: ='[2]Capex_FO input'!X63 -> 0.534 | Y63: ='[2]Capex_FO input'!Y63 -> 0.534 | Z63: ='[2]Capex_FO input'!Z63 -> 0.534 | AB63: ='[2]Capex_FO input'!AB63 -> 0 | AC63: ='[2]Capex_FO input'!AC63 -> 0 | AD63: ='[2]Capex_FO input'!AD63 -> 0 | AE63: ='[2]Capex_FO input'!AE63 -> 0 | AF63: ='[2]Capex_FO input'!AF63 -> 0 | AG63: ='[2]Capex_FO input'!AG63 -> 0 | AH63: ='[2]Capex_FO input'!AH63 -> 0 | AI63: ='[2]Capex_FO input'!AI63 -> 0 | AJ63: ='[2]Capex_FO input'!AJ63 -> 0 | AK63: ='[2]Capex_FO input'!AK63 -> 0 | AM63: ='[2]Capex_FO input'!AM63 -> 0 | AN63: ='[2]Capex_FO input'!AN63 -> 0 | AO63: ='[2]Capex_FO input'!AO63 -> 0 | AP63: ='[2]Capex_FO input'!AP63 -> 0 | AQ63: ='[2]Capex_FO input'!AQ63 -> 0 | AR63: ='[2]Capex_FO input'!AR63 -> 0 | AS63: ='[2]Capex_FO input'!AS63 -> 0 | AT63: ='[2]Capex_FO input'!AT63 -> 0 | AU63: ='[2]Capex_FO input'!AU63 -> 0 | AV63: ='[2]Capex_FO input'!AV63 -> 0 | AX63: 0.534 | AY63: 0.534 | AZ63: 0.534 | BA63: 0.534 | BB63: 0.534 | BC63: 0.534 | BD63: 0.534 | BE63: 0.534 | BF63: 0.534 | BG63: 0.534 | BI63: 0.00534 | BJ63: 0.01602 | BK63: 0.0267 | BL63: 0.03738 | BM63: 0.04806 | BN63: 0.05874 | BO63: 0.06942 | BP63: 0.0801 | BQ63: 0.09078 | BR63: 0.10146 | BT63: =+IF($K63="Ongoing",AX63,IF(RIGHT($K63,2)=RIGHT(BT$39,2),SUM($AX63:AX63),0)+IF(RIGHT(BT$39,2)>RIGHT($K63,2),AX63,0)) -> 0.534 | BU63: =+IF($K63="Ongoing",AY63,IF(RIGHT($K63,2)=RIGHT(BU$39,2),SUM($AX63:AY63),0)+IF(RIGHT(BU$39,2)>RIGHT($K63,2),AY63,0)) -> 0.534 | BV63: =+IF($K63="Ongoing",AZ63,IF(RIGHT($K63,2)=RIGHT(BV$39,2),SUM($AX63:AZ63),0)+IF(RIGHT(BV$39,2)>RIGHT($K63,2),AZ63,0)) -> 0.534 | BW63: =+IF($K63="Ongoing",BA63,IF(RIGHT($K63,2)=RIGHT(BW$39,2),SUM($AX63:BA63),0)+IF(RIGHT(BW$39,2)>RIGHT($K63,2),BA63,0)) -> 0.534 | BX63: =+IF($K63="Ongoing",BB63,IF(RIGHT($K63,2)=RIGHT(BX$39,2),SUM($AX63:BB63),0)+IF(RIGHT(BX$39,2)>RIGHT($K63,2),BB63,0)) -> 0.534 | BY63: =+IF($K63="Ongoing",BC63,IF(RIGHT($K63,2)=RIGHT(BY$39,2),SUM($AX63:BC63),0)+IF(RIGHT(BY$39,2)>RIGHT($K63,2),BC63,0)) -> 0.534 | BZ63: =+IF($K63="Ongoing",BD63,IF(RIGHT($K63,2)=RIGHT(BZ$39,2),SUM($AX63:BD63),0)+IF(RIGHT(BZ$39,2)>RIGHT($K63,2),BD63,0)) -> 0.534 | CA63: =+IF($K63="Ongoing",BE63,IF(RIGHT($K63,2)=RIGHT(CA$39,2),SUM($AX63:BE63),0)+IF(RIGHT(CA$39,2)>RIGHT($K63,2),BE63,0)) -> 0.534 | CB63: =+IF($K63="Ongoing",BF63,IF(RIGHT($K63,2)=RIGHT(CB$39,2),SUM($AX63:BF63),0)+IF(RIGHT(CB$39,2)>RIGHT($K63,2),BF63,0)) -> 0.534 | CC63: =+IF($K63="Ongoing",BG63,IF(RIGHT($K63,2)=RIGHT(CC$39,2),SUM($AX63:BG63),0)+IF(RIGHT(CC$39,2)>RIGHT($K63,2),BG63,0)) -> 0.534 | CE63: =+Q63*KeyAssumptionsPriceControl_FO!AC$15 -> 0.55002 | CF63: =+R63*KeyAssumptionsPriceControl_FO!AD$15 -> 0.5665206 | CG63: =+S63*KeyAssumptionsPriceControl_FO!AE$15 -> 0.583516218 | CH63: =+T63*KeyAssumptionsPriceControl_FO!AF$15 -> 0.6010217045 | CI63: =+U63*KeyAssumptionsPriceControl_FO!AG$15 -> 0.6190523557 | CJ63: =+V63*KeyAssumptionsPriceControl_FO!AH$15 -> 0.6376239263 | CK63: =+W63*KeyAssumptionsPriceControl_FO!AI$15 -> 0.6567526441 | CL63: =+X63*KeyAssumptionsPriceControl_FO!AJ$15 -> 0.6764552235 | CM63: =+Y63*KeyAssumptionsPriceControl_FO!AK$15 -> 0.6967488802 | CN63: =+Z63*KeyAssumptionsPriceControl_FO!AL$15 -> 0.7176513466 | CP63: 0.003437625 | CQ63: 0.01041600375 | CR63: 0.01760373386 | CS63: 0.02500709588 | CT63: 0.03263255875 | CU63: 0.04048678552 | CV63: 0.04857663908 | CW63: 0.05690918826 | CX63: 0.0654917139 | CY63: 0.07433171532
C64: ='[2]Capex_FO input'!C64 -> Vehicle Replacement Renewal | E64: ='[2]Capex_FO input'!E64 -> Water | F64: ='[2]Capex_FO input'!F64 -> Renewals | G64: ='[2]Capex_FO input'!G64 -> Corporate | H64: ='[2]Capex_FO input'!H64 -> Capital Programs / Allocation | J64: Straight line | K64: ='[2]Capex_FO input'!K64 -> Ongoing | L64: ='[2]Capex_FO input'!L64 -> 4 | M64: ='[2]Capex_FO input'!M64 -> 5 | Q64: ='[2]Capex_FO input'!Q64 -> 0.6466 | R64: ='[2]Capex_FO input'!R64 -> 1.7692 | S64: ='[2]Capex_FO input'!S64 -> 0.1905 | T64: ='[2]Capex_FO input'!T64 -> 0.1905 | U64: ='[2]Capex_FO input'!U64 -> 0.2466 | V64: ='[2]Capex_FO input'!V64 -> 2.1692 | W64: ='[2]Capex_FO input'!W64 -> 0.1905 | X64: ='[2]Capex_FO input'!X64 -> 0.1905 | Y64: ='[2]Capex_FO input'!Y64 -> 0.4546 | Z64: ='[2]Capex_FO input'!Z64 -> 1.9772 | AB64: ='[2]Capex_FO input'!AB64 -> 0 | AC64: ='[2]Capex_FO input'!AC64 -> 0 | AD64: ='[2]Capex_FO input'!AD64 -> 0 | AE64: ='[2]Capex_FO input'!AE64 -> 0 | AF64: ='[2]Capex_FO input'!AF64 -> 0 | AG64: ='[2]Capex_FO input'!AG64 -> 0 | AH64: ='[2]Capex_FO input'!AH64 -> 0 | AI64: ='[2]Capex_FO input'!AI64 -> 0 | AJ64: ='[2]Capex_FO input'!AJ64 -> 0 | AK64: ='[2]Capex_FO input'!AK64 -> 0 | AM64: ='[2]Capex_FO input'!AM64 -> 0 | AN64: ='[2]Capex_FO input'!AN64 -> 0 | AO64: ='[2]Capex_FO input'!AO64 -> 0 | AP64: ='[2]Capex_FO input'!AP64 -> 0 | AQ64: ='[2]Capex_FO input'!AQ64 -> 0 | AR64: ='[2]Capex_FO input'!AR64 -> 0 | AS64: ='[2]Capex_FO input'!AS64 -> 0 | AT64: ='[2]Capex_FO input'!AT64 -> 0 | AU64: ='[2]Capex_FO input'!AU64 -> 0 | AV64: ='[2]Capex_FO input'!AV64 -> 0 | AX64: 0.6466 | AY64: 1.7692 | AZ64: 0.1905 | BA64: 0.1905 | BB64: 0.2466 | BC64: 2.1692 | BD64: 0.1905 | BE64: 0.1905 | BF64: 0.4546 | BG64: 1.9772 | BI64: 0.080825 | BJ64: 0.3828 | BK64: 0.6277625 | BL64: 0.6753875 | BM64: 0.6492 | BN64: 0.6492 | BO64: 0.6992 | BP64: 0.6992 | BQ64: 0.7252 | BR64: 0.7272 | BT64: =+IF($K64="Ongoing",AX64,IF(RIGHT($K64,2)=RIGHT(BT$39,2),SUM($AX64:AX64),0)+IF(RIGHT(BT$39,2)>RIGHT($K64,2),AX64,0)) -> 0.6466 | BU64: =+IF($K64="Ongoing",AY64,IF(RIGHT($K64,2)=RIGHT(BU$39,2),SUM($AX64:AY64),0)+IF(RIGHT(BU$39,2)>RIGHT($K64,2),AY64,0)) -> 1.7692 | BV64: =+IF($K64="Ongoing",AZ64,IF(RIGHT($K64,2)=RIGHT(BV$39,2),SUM($AX64:AZ64),0)+IF(RIGHT(BV$39,2)>RIGHT($K64,2),AZ64,0)) -> 0.1905 | BW64: =+IF($K64="Ongoing",BA64,IF(RIGHT($K64,2)=RIGHT(BW$39,2),SUM($AX64:BA64),0)+IF(RIGHT(BW$39,2)>RIGHT($K64,2),BA64,0)) -> 0.1905 | BX64: =+IF($K64="Ongoing",BB64,IF(RIGHT($K64,2)=RIGHT(BX$39,2),SUM($AX64:BB64),0)+IF(RIGHT(BX$39,2)>RIGHT($K64,2),BB64,0)) -> 0.2466 | BY64: =+IF($K64="Ongoing",BC64,IF(RIGHT($K64,2)=RIGHT(BY$39,2),SUM($AX64:BC64),0)+IF(RIGHT(BY$39,2)>RIGHT($K64,2),BC64,0)) -> 2.1692 | BZ64: =+IF($K64="Ongoing",BD64,IF(RIGHT($K64,2)=RIGHT(BZ$39,2),SUM($AX64:BD64),0)+IF(RIGHT(BZ$39,2)>RIGHT($K64,2),BD64,0)) -> 0.1905 | CA64: =+IF($K64="Ongoing",BE64,IF(RIGHT($K64,2)=RIGHT(CA$39,2),SUM($AX64:BE64),0)+IF(RIGHT(CA$39,2)>RIGHT($K64,2),BE64,0)) -> 0.1905 | CB64: =+IF($K64="Ongoing",BF64,IF(RIGHT($K64,2)=RIGHT(CB$39,2),SUM($AX64:BF64),0)+IF(RIGHT(CB$39,2)>RIGHT($K64,2),BF64,0)) -> 0.4546 | CC64: =+IF($K64="Ongoing",BG64,IF(RIGHT($K64,2)=RIGHT(CC$39,2),SUM($AX64:BG64),0)+IF(RIGHT(CC$39,2)>RIGHT($K64,2),BG64,0)) -> 1.9772 | CE64: =+Q64*KeyAssumptionsPriceControl_FO!AC$15 -> 0.665998 | CF64: =+R64*KeyAssumptionsPriceControl_FO!AD$15 -> 1.87694428 | CG64: =+S64*KeyAssumptionsPriceControl_FO!AE$15 -> 0.2081644935 | CH64: =+T64*KeyAssumptionsPriceControl_FO!AF$15 -> 0.2144094283 | CI64: =+U64*KeyAssumptionsPriceControl_FO!AG$15 -> 0.2858769867 | CJ64: =+V64*KeyAssumptionsPriceControl_FO!AH$15 -> 2.590138242 | CK64: =+W64*KeyAssumptionsPriceControl_FO!AI$15 -> 0.2342909714 | CL64: =+X64*KeyAssumptionsPriceControl_FO!AJ$15 -> 0.2413197005 | CM64: =+Y64*KeyAssumptionsPriceControl_FO!AK$15 -> 0.5931498894 | CN64: =+Z64*KeyAssumptionsPriceControl_FO!AL$15 -> 2.657191465 | CP64: 0.0665998 | CQ64: 0.320894028 | CR64: 0.5294049054 | CS64: 0.5716622975 | CT64: 0.621690939 | CU64: 0.8426926619 | CV64: 0.8708413552 | CW64: 0.709891545 | CX64: 0.7510811118 | CY64: 1.026086606
C65: ='[2]Capex_FO input'!C65 -> IT Hardware Renewal | E65: ='[2]Capex_FO input'!E65 -> Water | F65: ='[2]Capex_FO input'!F65 -> Renewals | G65: ='[2]Capex_FO input'!G65 -> Corporate | H65: ='[2]Capex_FO input'!H65 -> Capital Programs / Allocation | J65: Straight line | K65: ='[2]Capex_FO input'!K65 -> Ongoing | L65: ='[2]Capex_FO input'!L65 -> 7 | M65: ='[2]Capex_FO input'!M65 -> 3 | Q65: ='[2]Capex_FO input'!Q65 -> 0.411 | R65: ='[2]Capex_FO input'!R65 -> 0.361 | S65: ='[2]Capex_FO input'!S65 -> 0.361 | T65: ='[2]Capex_FO input'!T65 -> 0.361 | U65: ='[2]Capex_FO input'!U65 -> 0.686 | V65: ='[2]Capex_FO input'!V65 -> 0.361 | W65: ='[2]Capex_FO input'!W65 -> 0.361 | X65: ='[2]Capex_FO input'!X65 -> 0.361 | Y65: ='[2]Capex_FO input'!Y65 -> 0.361 | Z65: ='[2]Capex_FO input'!Z65 -> 0.361 | AB65: ='[2]Capex_FO input'!AB65 -> 0 | AC65: ='[2]Capex_FO input'!AC65 -> 0 | AD65: ='[2]Capex_FO input'!AD65 -> 0 | AE65: ='[2]Capex_FO input'!AE65 -> 0 | AF65: ='[2]Capex_FO input'!AF65 -> 0 | AG65: ='[2]Capex_FO input'!AG65 -> 0 | AH65: ='[2]Capex_FO input'!AH65 -> 0 | AI65: ='[2]Capex_FO input'!AI65 -> 0 | AJ65: ='[2]Capex_FO input'!AJ65 -> 0 | AK65: ='[2]Capex_FO input'!AK65 -> 0 | AM65: ='[2]Capex_FO input'!AM65 -> 0 | AN65: ='[2]Capex_FO input'!AN65 -> 0 | AO65: ='[2]Capex_FO input'!AO65 -> 0 | AP65: ='[2]Capex_FO input'!AP65 -> 0 | AQ65: ='[2]Capex_FO input'!AQ65 -> 0 | AR65: ='[2]Capex_FO input'!AR65 -> 0 | AS65: ='[2]Capex_FO input'!AS65 -> 0 | AT65: ='[2]Capex_FO input'!AT65 -> 0 | AU65: ='[2]Capex_FO input'!AU65 -> 0 | AV65: ='[2]Capex_FO input'!AV65 -> 0 | AX65: 0.411 | AY65: 0.361 | AZ65: 0.361 | BA65: 0.361 | BB65: 0.686 | BC65: 0.361 | BD65: 0.361 | BE65: 0.361 | BF65: 0.361 | BG65: 0.361 | BI65: 0.02935714286 | BJ65: 0.0845 | BK65: 0.1360714286 | BL65: 0.1876428571 | BM65: 0.2624285714 | BN65: 0.3372142857 | BO65: 0.3887857143 | BP65: 0.411 | BQ65: 0.4074285714 | BR65: 0.4074285714 | BT65: =+IF($K65="Ongoing",AX65,IF(RIGHT($K65,2)=RIGHT(BT$39,2),SUM($AX65:AX65),0)+IF(RIGHT(BT$39,2)>RIGHT($K65,2),AX65,0)) -> 0.411 | BU65: =+IF($K65="Ongoing",AY65,IF(RIGHT($K65,2)=RIGHT(BU$39,2),SUM($AX65:AY65),0)+IF(RIGHT(BU$39,2)>RIGHT($K65,2),AY65,0)) -> 0.361 | BV65: =+IF($K65="Ongoing",AZ65,IF(RIGHT($K65,2)=RIGHT(BV$39,2),SUM($AX65:AZ65),0)+IF(RIGHT(BV$39,2)>RIGHT($K65,2),AZ65,0)) -> 0.361 | BW65: =+IF($K65="Ongoing",BA65,IF(RIGHT($K65,2)=RIGHT(BW$39,2),SUM($AX65:BA65),0)+IF(RIGHT(BW$39,2)>RIGHT($K65,2),BA65,0)) -> 0.361 | BX65: =+IF($K65="Ongoing",BB65,IF(RIGHT($K65,2)=RIGHT(BX$39,2),SUM($AX65:BB65),0)+IF(RIGHT(BX$39,2)>RIGHT($K65,2),BB65,0)) -> 0.686 | BY65: =+IF($K65="Ongoing",BC65,IF(RIGHT($K65,2)=RIGHT(BY$39,2),SUM($AX65:BC65),0)+IF(RIGHT(BY$39,2)>RIGHT($K65,2),BC65,0)) -> 0.361 | BZ65: =+IF($K65="Ongoing",BD65,IF(RIGHT($K65,2)=RIGHT(BZ$39,2),SUM($AX65:BD65),0)+IF(RIGHT(BZ$39,2)>RIGHT($K65,2),BD65,0)) -> 0.361 | CA65: =+IF($K65="Ongoing",BE65,IF(RIGHT($K65,2)=RIGHT(CA$39,2),SUM($AX65:BE65),0)+IF(RIGHT(CA$39,2)>RIGHT($K65,2),BE65,0)) -> 0.361 | CB65: =+IF($K65="Ongoing",BF65,IF(RIGHT($K65,2)=RIGHT(CB$39,2),SUM($AX65:BF65),0)+IF(RIGHT(CB$39,2)>RIGHT($K65,2),BF65,0)) -> 0.361 | CC65: =+IF($K65="Ongoing",BG65,IF(RIGHT($K65,2)=RIGHT(CC$39,2),SUM($AX65:BG65),0)+IF(RIGHT(CC$39,2)>RIGHT($K65,2),BG65,0)) -> 0.361 | CE65: =+Q65*KeyAssumptionsPriceControl_FO!AC$15 -> 0.42333 | CF65: =+R65*KeyAssumptionsPriceControl_FO!AD$15 -> 0.3829849 | CG65: =+S65*KeyAssumptionsPriceControl_FO!AE$15 -> 0.394474447 | CH65: =+T65*KeyAssumptionsPriceControl_FO!AF$15 -> 0.4063086804 | CI65: =+U65*KeyAssumptionsPriceControl_FO!AG$15 -> 0.795262015 | CJ65: =+V65*KeyAssumptionsPriceControl_FO!AH$15 -> 0.431052879 | CK65: =+W65*KeyAssumptionsPriceControl_FO!AI$15 -> 0.4439844654 | CL65: =+X65*KeyAssumptionsPriceControl_FO!AJ$15 -> 0.4573039994 | CM65: =+Y65*KeyAssumptionsPriceControl_FO!AK$15 -> 0.4710231194 | CN65: =+Z65*KeyAssumptionsPriceControl_FO!AL$15 -> 0.4851538129 | CP65: 0.070555 | CQ65: 0.2049408167 | CR65: 0.3345173745 | CS65: 0.3974262291 | CT65: 0.463302195 | CU65: 0.5381114528 | CV65: 0.5504871556 | CW65: 0.5004401172 | CX65: 0.450775488 | CY65: 0.4642987526
C66: ='[2]Capex_FO input'!C66 -> Property Pressure Sewer Infrastructure (PPSI) Installation | E66: ='[2]Capex_FO input'!E66 -> Sewerage | F66: ='[2]Capex_FO input'!F66 -> Growth | G66: ='[2]Capex_FO input'!G66 -> Pipelines/network | H66: ='[2]Capex_FO input'!H66 -> Capital Programs / Allocation | J66: Straight line | K66: ='[2]Capex_FO input'!K66 -> Ongoing | L66: ='[2]Capex_FO input'!L66 -> 70 | M66: ='[2]Capex_FO input'!M66 -> 50 | Q66: ='[2]Capex_FO input'!Q66 -> 0.3 | R66: ='[2]Capex_FO input'!R66 -> 0.3 | S66: ='[2]Capex_FO input'!S66 -> 0.3 | T66: ='[2]Capex_FO input'!T66 -> 0.3 | U66: ='[2]Capex_FO input'!U66 -> 0.3 | V66: ='[2]Capex_FO input'!V66 -> 0.3 | W66: ='[2]Capex_FO input'!W66 -> 0.3 | X66: ='[2]Capex_FO input'!X66 -> 0.3 | Y66: ='[2]Capex_FO input'!Y66 -> 0.3 | Z66: ='[2]Capex_FO input'!Z66 -> 0.3 | AB66: ='[2]Capex_FO input'!AB66 -> 0 | AC66: ='[2]Capex_FO input'!AC66 -> 0 | AD66: ='[2]Capex_FO input'!AD66 -> 0 | AE66: ='[2]Capex_FO input'!AE66 -> 0 | AF66: ='[2]Capex_FO input'!AF66 -> 0 | AG66: ='[2]Capex_FO input'!AG66 -> 0 | AH66: ='[2]Capex_FO input'!AH66 -> 0 | AI66: ='[2]Capex_FO input'!AI66 -> 0 | AJ66: ='[2]Capex_FO input'!AJ66 -> 0 | AK66: ='[2]Capex_FO input'!AK66 -> 0 | AM66: ='[2]Capex_FO input'!AM66 -> 0 | AN66: ='[2]Capex_FO input'!AN66 -> 0 | AO66: ='[2]Capex_FO input'!AO66 -> 0 | AP66: ='[2]Capex_FO input'!AP66 -> 0 | AQ66: ='[2]Capex_FO input'!AQ66 -> 0 | AR66: ='[2]Capex_FO input'!AR66 -> 0 | AS66: ='[2]Capex_FO input'!AS66 -> 0 | AT66: ='[2]Capex_FO input'!AT66 -> 0 | AU66: ='[2]Capex_FO input'!AU66 -> 0 | AV66: ='[2]Capex_FO input'!AV66 -> 0 | AX66: 0.3 | AY66: 0.3 | AZ66: 0.3 | BA66: 0.3 | BB66: 0.3 | BC66: 0.3 | BD66: 0.3 | BE66: 0.3 | BF66: 0.3 | BG66: 0.3 | BI66: 0.002142857143 | BJ66: 0.006428571429 | BK66: 0.01071428571 | BL66: 0.015 | BM66: 0.01928571429 | BN66: 0.02357142857 | BO66: 0.02785714286 | BP66: 0.03214285714 | BQ66: 0.03642857143 | BR66: 0.04071428571 | BT66: =+IF($K66="Ongoing",AX66,IF(RIGHT($K66,2)=RIGHT(BT$39,2),SUM($AX66:AX66),0)+IF(RIGHT(BT$39,2)>RIGHT($K66,2),AX66,0)) -> 0.3 | BU66: =+IF($K66="Ongoing",AY66,IF(RIGHT($K66,2)=RIGHT(BU$39,2),SUM($AX66:AY66),0)+IF(RIGHT(BU$39,2)>RIGHT($K66,2),AY66,0)) -> 0.3 | BV66: =+IF($K66="Ongoing",AZ66,IF(RIGHT($K66,2)=RIGHT(BV$39,2),SUM($AX66:AZ66),0)+IF(RIGHT(BV$39,2)>RIGHT($K66,2),AZ66,0)) -> 0.3 | BW66: =+IF($K66="Ongoing",BA66,IF(RIGHT($K66,2)=RIGHT(BW$39,2),SUM($AX66:BA66),0)+IF(RIGHT(BW$39,2)>RIGHT($K66,2),BA66,0)) -> 0.3 | BX66: =+IF($K66="Ongoing",BB66,IF(RIGHT($K66,2)=RIGHT(BX$39,2),SUM($AX66:BB66),0)+IF(RIGHT(BX$39,2)>RIGHT($K66,2),BB66,0)) -> 0.3 | BY66: =+IF($K66="Ongoing",BC66,IF(RIGHT($K66,2)=RIGHT(BY$39,2),SUM($AX66:BC66),0)+IF(RIGHT(BY$39,2)>RIGHT($K66,2),BC66,0)) -> 0.3 | BZ66: =+IF($K66="Ongoing",BD66,IF(RIGHT($K66,2)=RIGHT(BZ$39,2),SUM($AX66:BD66),0)+IF(RIGHT(BZ$39,2)>RIGHT($K66,2),BD66,0)) -> 0.3 | CA66: =+IF($K66="Ongoing",BE66,IF(RIGHT($K66,2)=RIGHT(CA$39,2),SUM($AX66:BE66),0)+IF(RIGHT(CA$39,2)>RIGHT($K66,2),BE66,0)) -> 0.3 | CB66: =+IF($K66="Ongoing",BF66,IF(RIGHT($K66,2)=RIGHT(CB$39,2),SUM($AX66:BF66),0)+IF(RIGHT(CB$39,2)>RIGHT($K66,2),BF66,0)) -> 0.3 | CC66: =+IF($K66="Ongoing",BG66,IF(RIGHT($K66,2)=RIGHT(CC$39,2),SUM($AX66:BG66),0)+IF(RIGHT(CC$39,2)>RIGHT($K66,2),BG66,0)) -> 0.3 | CE66: =+Q66*KeyAssumptionsPriceControl_FO!AC$15 -> 0.309 | CF66: =+R66*KeyAssumptionsPriceControl_FO!AD$15 -> 0.31827 | CG66: =+S66*KeyAssumptionsPriceControl_FO!AE$15 -> 0.3278181 | CH66: =+T66*KeyAssumptionsPriceControl_FO!AF$15 -> 0.337652643 | CI66: =+U66*KeyAssumptionsPriceControl_FO!AG$15 -> 0.3477822223 | CJ66: =+V66*KeyAssumptionsPriceControl_FO!AH$15 -> 0.358215689 | CK66: =+W66*KeyAssumptionsPriceControl_FO!AI$15 -> 0.3689621596 | CL66: =+X66*KeyAssumptionsPriceControl_FO!AJ$15 -> 0.3800310244 | CM66: =+Y66*KeyAssumptionsPriceControl_FO!AK$15 -> 0.3914319551 | CN66: =+Z66*KeyAssumptionsPriceControl_FO!AL$15 -> 0.4031749138 | CP66: 0.00309 | CQ66: 0.0093627 | CR66: 0.015823581 | CS66: 0.02247828843 | CT66: 0.02933263708 | CU66: 0.0363926162 | CV66: 0.04366439468 | CW66: 0.05115432652 | CX66: 0.05886895632 | CY66: 0.06681502501
C67: ='[2]Capex_FO input'!C67 -> Sewer Pump Stations Renewal Allocation | E67: ='[2]Capex_FO input'!E67 -> Sewerage | F67: ='[2]Capex_FO input'!F67 -> Renewals | G67: ='[2]Capex_FO input'!G67 -> Pipelines/network | H67: ='[2]Capex_FO input'!H67 -> Capital Programs / Allocation | J67: Straight line | K67: ='[2]Capex_FO input'!K67 -> Ongoing | L67: ='[2]Capex_FO input'!L67 -> 25 | M67: ='[2]Capex_FO input'!M67 -> 25 | Q67: ='[2]Capex_FO input'!Q67 -> 0.299 | R67: ='[2]Capex_FO input'!R67 -> 0.299 | S67: ='[2]Capex_FO input'!S67 -> 0.299 | T67: ='[2]Capex_FO input'!T67 -> 0.299 | U67: ='[2]Capex_FO input'!U67 -> 0.299 | V67: ='[2]Capex_FO input'!V67 -> 0.371 | W67: ='[2]Capex_FO input'!W67 -> 0.371 | X67: ='[2]Capex_FO input'!X67 -> 0.371 | Y67: ='[2]Capex_FO input'!Y67 -> 0.371 | Z67: ='[2]Capex_FO input'!Z67 -> 0.371 | AB67: ='[2]Capex_FO input'!AB67 -> 0 | AC67: ='[2]Capex_FO input'!AC67 -> 0 | AD67: ='[2]Capex_FO input'!AD67 -> 0 | AE67: ='[2]Capex_FO input'!AE67 -> 0 | AF67: ='[2]Capex_FO input'!AF67 -> 0 | AG67: ='[2]Capex_FO input'!AG67 -> 0 | AH67: ='[2]Capex_FO input'!AH67 -> 0 | AI67: ='[2]Capex_FO input'!AI67 -> 0 | AJ67: ='[2]Capex_FO input'!AJ67 -> 0 | AK67: ='[2]Capex_FO input'!AK67 -> 0 | AM67: ='[2]Capex_FO input'!AM67 -> 0 | AN67: ='[2]Capex_FO input'!AN67 -> 0 | AO67: ='[2]Capex_FO input'!AO67 -> 0 | AP67: ='[2]Capex_FO input'!AP67 -> 0 | AQ67: ='[2]Capex_FO input'!AQ67 -> 0 | AR67: ='[2]Capex_FO input'!AR67 -> 0 | AS67: ='[2]Capex_FO input'!AS67 -> 0 | AT67: ='[2]Capex_FO input'!AT67 -> 0 | AU67: ='[2]Capex_FO input'!AU67 -> 0 | AV67: ='[2]Capex_FO input'!AV67 -> 0 | AX67: 0.299 | AY67: 0.299 | AZ67: 0.299 | BA67: 0.299 | BB67: 0.299 | BC67: 0.371 | BD67: 0.371 | BE67: 0.371 | BF67: 0.371 | BG67: 0.371 | BI67: 0.00598 | BJ67: 0.01794 | BK67: 0.0299 | BL67: 0.04186 | BM67: 0.05382 | BN67: 0.06722 | BO67: 0.08206 | BP67: 0.0969 | BQ67: 0.11174 | BR67: 0.12658 | BT67: =+IF($K67="Ongoing",AX67,IF(RIGHT($K67,2)=RIGHT(BT$39,2),SUM($AX67:AX67),0)+IF(RIGHT(BT$39,2)>RIGHT($K67,2),AX67,0)) -> 0.299 | BU67: =+IF($K67="Ongoing",AY67,IF(RIGHT($K67,2)=RIGHT(BU$39,2),SUM($AX67:AY67),0)+IF(RIGHT(BU$39,2)>RIGHT($K67,2),AY67,0)) -> 0.299 | BV67: =+IF($K67="Ongoing",AZ67,IF(RIGHT($K67,2)=RIGHT(BV$39,2),SUM($AX67:AZ67),0)+IF(RIGHT(BV$39,2)>RIGHT($K67,2),AZ67,0)) -> 0.299 | BW67: =+IF($K67="Ongoing",BA67,IF(RIGHT($K67,2)=RIGHT(BW$39,2),SUM($AX67:BA67),0)+IF(RIGHT(BW$39,2)>RIGHT($K67,2),BA67,0)) -> 0.299 | BX67: =+IF($K67="Ongoing",BB67,IF(RIGHT($K67,2)=RIGHT(BX$39,2),SUM($AX67:BB67),0)+IF(RIGHT(BX$39,2)>RIGHT($K67,2),BB67,0)) -> 0.299 | BY67: =+IF($K67="Ongoing",BC67,IF(RIGHT($K67,2)=RIGHT(BY$39,2),SUM($AX67:BC67),0)+IF(RIGHT(BY$39,2)>RIGHT($K67,2),BC67,0)) -> 0.371 | BZ67: =+IF($K67="Ongoing",BD67,IF(RIGHT($K67,2)=RIGHT(BZ$39,2),SUM($AX67:BD67),0)+IF(RIGHT(BZ$39,2)>RIGHT($K67,2),BD67,0)) -> 0.371 | CA67: =+IF($K67="Ongoing",BE67,IF(RIGHT($K67,2)=RIGHT(CA$39,2),SUM($AX67:BE67),0)+IF(RIGHT(CA$39,2)>RIGHT($K67,2),BE67,0)) -> 0.371 | CB67: =+IF($K67="Ongoing",BF67,IF(RIGHT($K67,2)=RIGHT(CB$39,2),SUM($AX67:BF67),0)+IF(RIGHT(CB$39,2)>RIGHT($K67,2),BF67,0)) -> 0.371 | CC67: =+IF($K67="Ongoing",BG67,IF(RIGHT($K67,2)=RIGHT(CC$39,2),SUM($AX67:BG67),0)+IF(RIGHT(CC$39,2)>RIGHT($K67,2),BG67,0)) -> 0.371 | CE67: =+Q67*KeyAssumptionsPriceControl_FO!AC$15 -> 0.30797 | CF67: =+R67*KeyAssumptionsPriceControl_FO!AD$15 -> 0.3172091 | CG67: =+S67*KeyAssumptionsPriceControl_FO!AE$15 -> 0.326725373 | CH67: =+T67*KeyAssumptionsPriceControl_FO!AF$15 -> 0.3365271342 | CI67: =+U67*KeyAssumptionsPriceControl_FO!AG$15 -> 0.3466229482 | CJ67: =+V67*KeyAssumptionsPriceControl_FO!AH$15 -> 0.442993402 | CK67: =+W67*KeyAssumptionsPriceControl_FO!AI$15 -> 0.4562832041 | CL67: =+X67*KeyAssumptionsPriceControl_FO!AJ$15 -> 0.4699717002 | CM67: =+Y67*KeyAssumptionsPriceControl_FO!AK$15 -> 0.4840708512 | CN67: =+Z67*KeyAssumptionsPriceControl_FO!AL$15 -> 0.4985929767 | CP67: 0.0061594 | CQ67: 0.018662982 | CR67: 0.03154167146 | CS67: 0.0448067216 | CT67: 0.05846972325 | CU67: 0.07426205026 | CV67: 0.09224758238 | CW67: 0.1107726805 | CX67: 0.1298535315 | CY67: 0.1495068081
C68: ='[2]Capex_FO input'!C68 -> SCADA Renewal (programming) | E68: ='[2]Capex_FO input'!E68 -> Water | F68: ='[2]Capex_FO input'!F68 -> Renewals | G68: ='[2]Capex_FO input'!G68 -> Corporate | H68: ='[2]Capex_FO input'!H68 -> Capital Programs / Allocation | J68: Straight line | K68: ='[2]Capex_FO input'!K68 -> Ongoing | L68: ='[2]Capex_FO input'!L68 -> 7 | M68: ='[2]Capex_FO input'!M68 -> 3 | Q68: ='[2]Capex_FO input'!Q68 -> 0.292 | R68: ='[2]Capex_FO input'!R68 -> 0.292 | S68: ='[2]Capex_FO input'!S68 -> 0.292 | T68: ='[2]Capex_FO input'!T68 -> 0.292 | U68: ='[2]Capex_FO input'!U68 -> 0.293 | V68: ='[2]Capex_FO input'!V68 -> 0.292 | W68: ='[2]Capex_FO input'!W68 -> 0.292 | X68: ='[2]Capex_FO input'!X68 -> 0.292 | Y68: ='[2]Capex_FO input'!Y68 -> 0.292 | Z68: ='[2]Capex_FO input'!Z68 -> 0.292 | AB68: ='[2]Capex_FO input'!AB68 -> 0 | AC68: ='[2]Capex_FO input'!AC68 -> 0 | AD68: ='[2]Capex_FO input'!AD68 -> 0 | AE68: ='[2]Capex_FO input'!AE68 -> 0 | AF68: ='[2]Capex_FO input'!AF68 -> 0 | AG68: ='[2]Capex_FO input'!AG68 -> 0 | AH68: ='[2]Capex_FO input'!AH68 -> 0 | AI68: ='[2]Capex_FO input'!AI68 -> 0 | AJ68: ='[2]Capex_FO input'!AJ68 -> 0 | AK68: ='[2]Capex_FO input'!AK68 -> 0 | AM68: ='[2]Capex_FO input'!AM68 -> 0 | AN68: ='[2]Capex_FO input'!AN68 -> 0 | AO68: ='[2]Capex_FO input'!AO68 -> 0 | AP68: ='[2]Capex_FO input'!AP68 -> 0 | AQ68: ='[2]Capex_FO input'!AQ68 -> 0 | AR68: ='[2]Capex_FO input'!AR68 -> 0 | AS68: ='[2]Capex_FO input'!AS68 -> 0 | AT68: ='[2]Capex_FO input'!AT68 -> 0 | AU68: ='[2]Capex_FO input'!AU68 -> 0 | AV68: ='[2]Capex_FO input'!AV68 -> 0 | AX68: 0.292 | AY68: 0.292 | AZ68: 0.292 | BA68: 0.292 | BB68: 0.293 | BC68: 0.292 | BD68: 0.292 | BE68: 0.292 | BF68: 0.292 | BG68: 0.292 | BI68: 0.02085714286 | BJ68: 0.06257142857 | BK68: 0.1042857143 | BL68: 0.146 | BM68: 0.1877857143 | BN68: 0.2295714286 | BO68: 0.2712857143 | BP68: 0.2921428571 | BQ68: 0.2921428571 | BR68: 0.2921428571 | BT68: =+IF($K68="Ongoing",AX68,IF(RIGHT($K68,2)=RIGHT(BT$39,2),SUM($AX68:AX68),0)+IF(RIGHT(BT$39,2)>RIGHT($K68,2),AX68,0)) -> 0.292 | BU68: =+IF($K68="Ongoing",AY68,IF(RIGHT($K68,2)=RIGHT(BU$39,2),SUM($AX68:AY68),0)+IF(RIGHT(BU$39,2)>RIGHT($K68,2),AY68,0)) -> 0.292 | BV68: =+IF($K68="Ongoing",AZ68,IF(RIGHT($K68,2)=RIGHT(BV$39,2),SUM($AX68:AZ68),0)+IF(RIGHT(BV$39,2)>RIGHT($K68,2),AZ68,0)) -> 0.292 | BW68: =+IF($K68="Ongoing",BA68,IF(RIGHT($K68,2)=RIGHT(BW$39,2),SUM($AX68:BA68),0)+IF(RIGHT(BW$39,2)>RIGHT($K68,2),BA68,0)) -> 0.292 | BX68: =+IF($K68="Ongoing",BB68,IF(RIGHT($K68,2)=RIGHT(BX$39,2),SUM($AX68:BB68),0)+IF(RIGHT(BX$39,2)>RIGHT($K68,2),BB68,0)) -> 0.293 | BY68: =+IF($K68="Ongoing",BC68,IF(RIGHT($K68,2)=RIGHT(BY$39,2),SUM($AX68:BC68),0)+IF(RIGHT(BY$39,2)>RIGHT($K68,2),BC68,0)) -> 0.292 | BZ68: =+IF($K68="Ongoing",BD68,IF(RIGHT($K68,2)=RIGHT(BZ$39,2),SUM($AX68:BD68),0)+IF(RIGHT(BZ$39,2)>RIGHT($K68,2),BD68,0)) -> 0.292 | CA68: =+IF($K68="Ongoing",BE68,IF(RIGHT($K68,2)=RIGHT(CA$39,2),SUM($AX68:BE68),0)+IF(RIGHT(CA$39,2)>RIGHT($K68,2),BE68,0)) -> 0.292 | CB68: =+IF($K68="Ongoing",BF68,IF(RIGHT($K68,2)=RIGHT(CB$39,2),SUM($AX68:BF68),0)+IF(RIGHT(CB$39,2)>RIGHT($K68,2),BF68,0)) -> 0.292 | CC68: =+IF($K68="Ongoing",BG68,IF(RIGHT($K68,2)=RIGHT(CC$39,2),SUM($AX68:BG68),0)+IF(RIGHT(CC$39,2)>RIGHT($K68,2),BG68,0)) -> 0.292 | CE68: =+Q68*KeyAssumptionsPriceControl_FO!AC$15 -> 0.30076 | CF68: =+R68*KeyAssumptionsPriceControl_FO!AD$15 -> 0.3097828 | CG68: =+S68*KeyAssumptionsPriceControl_FO!AE$15 -> 0.319076284 | CH68: =+T68*KeyAssumptionsPriceControl_FO!AF$15 -> 0.3286485725 | CI68: =+U68*KeyAssumptionsPriceControl_FO!AG$15 -> 0.3396673038 | CJ68: =+V68*KeyAssumptionsPriceControl_FO!AH$15 -> 0.3486632706 | CK68: =+W68*KeyAssumptionsPriceControl_FO!AI$15 -> 0.3591231687 | CL68: =+X68*KeyAssumptionsPriceControl_FO!AJ$15 -> 0.3698968638 | CM68: =+Y68*KeyAssumptionsPriceControl_FO!AK$15 -> 0.3809937697 | CN68: =+Z68*KeyAssumptionsPriceControl_FO!AL$15 -> 0.3924235828 | CP68: 0.05012666667 | CQ68: 0.1518838 | CR68: 0.2566936473 | CS68: 0.3145211234 | CT68: 0.3241499695 | CU68: 0.3340618845 | CV68: 0.3440721483 | CW68: 0.3541895077 | CX68: 0.3646161842 | CY68: 0.3755546697
C69: ='[2]Capex_FO input'!C69 -> SCADA Renewal (equipment) | E69: ='[2]Capex_FO input'!E69 -> Water | F69: ='[2]Capex_FO input'!F69 -> Renewals | G69: ='[2]Capex_FO input'!G69 -> Corporate | H69: ='[2]Capex_FO input'!H69 -> Capital Programs / Allocation | J69: Straight line | K69: ='[2]Capex_FO input'!K69 -> Ongoing | L69: ='[2]Capex_FO input'!L69 -> 7 | M69: ='[2]Capex_FO input'!M69 -> 3 | Q69: ='[2]Capex_FO input'!Q69 -> 0.292 | R69: ='[2]Capex_FO input'!R69 -> 0.292 | S69: ='[2]Capex_FO input'!S69 -> 0.292 | T69: ='[2]Capex_FO input'!T69 -> 0.292 | U69: ='[2]Capex_FO input'!U69 -> 0.292 | V69: ='[2]Capex_FO input'!V69 -> 0.292 | W69: ='[2]Capex_FO input'!W69 -> 0.292 | X69: ='[2]Capex_FO input'!X69 -> 0.292 | Y69: ='[2]Capex_FO input'!Y69 -> 0.292 | Z69: ='[2]Capex_FO input'!Z69 -> 0.292 | AB69: ='[2]Capex_FO input'!AB69 -> 0 | AC69: ='[2]Capex_FO input'!AC69 -> 0 | AD69: ='[2]Capex_FO input'!AD69 -> 0 | AE69: ='[2]Capex_FO input'!AE69 -> 0 | AF69: ='[2]Capex_FO input'!AF69 -> 0 | AG69: ='[2]Capex_FO input'!AG69 -> 0 | AH69: ='[2]Capex_FO input'!AH69 -> 0 | AI69: ='[2]Capex_FO input'!AI69 -> 0 | AJ69: ='[2]Capex_FO input'!AJ69 -> 0 | AK69: ='[2]Capex_FO input'!AK69 -> 0 | AM69: ='[2]Capex_FO input'!AM69 -> 0 | AN69: ='[2]Capex_FO input'!AN69 -> 0 | AO69: ='[2]Capex_FO input'!AO69 -> 0 | AP69: ='[2]Capex_FO input'!AP69 -> 0 | AQ69: ='[2]Capex_FO input'!AQ69 -> 0 | AR69: ='[2]Capex_FO input'!AR69 -> 0 | AS69: ='[2]Capex_FO input'!AS69 -> 0 | AT69: ='[2]Capex_FO input'!AT69 -> 0 | AU69: ='[2]Capex_FO input'!AU69 -> 0 | AV69: ='[2]Capex_FO input'!AV69 -> 0 | AX69: 0.292 | AY69: 0.292 | AZ69: 0.292 | BA69: 0.292 | BB69: 0.292 | BC69: 0.292 | BD69: 0.292 | BE69: 0.292 | BF69: 0.292 | BG69: 0.292 | BI69: 0.02085714286 | BJ69: 0.06257142857 | BK69: 0.1042857143 | BL69: 0.146 | BM69: 0.1877142857 | BN69: 0.2294285714 | BO69: 0.2711428571 | BP69: 0.292 | BQ69: 0.292 | BR69: 0.292 | BT69: =+IF($K69="Ongoing",AX69,IF(RIGHT($K69,2)=RIGHT(BT$39,2),SUM($AX69:AX69),0)+IF(RIGHT(BT$39,2)>RIGHT($K69,2),AX69,0)) -> 0.292 | BU69: =+IF($K69="Ongoing",AY69,IF(RIGHT($K69,2)=RIGHT(BU$39,2),SUM($AX69:AY69),0)+IF(RIGHT(BU$39,2)>RIGHT($K69,2),AY69,0)) -> 0.292 | BV69: =+IF($K69="Ongoing",AZ69,IF(RIGHT($K69,2)=RIGHT(BV$39,2),SUM($AX69:AZ69),0)+IF(RIGHT(BV$39,2)>RIGHT($K69,2),AZ69,0)) -> 0.292 | BW69: =+IF($K69="Ongoing",BA69,IF(RIGHT($K69,2)=RIGHT(BW$39,2),SUM($AX69:BA69),0)+IF(RIGHT(BW$39,2)>RIGHT($K69,2),BA69,0)) -> 0.292 | BX69: =+IF($K69="Ongoing",BB69,IF(RIGHT($K69,2)=RIGHT(BX$39,2),SUM($AX69:BB69),0)+IF(RIGHT(BX$39,2)>RIGHT($K69,2),BB69,0)) -> 0.292 | BY69: =+IF($K69="Ongoing",BC69,IF(RIGHT($K69,2)=RIGHT(BY$39,2),SUM($AX69:BC69),0)+IF(RIGHT(BY$39,2)>RIGHT($K69,2),BC69,0)) -> 0.292 | BZ69: =+IF($K69="Ongoing",BD69,IF(RIGHT($K69,2)=RIGHT(BZ$39,2),SUM($AX69:BD69),0)+IF(RIGHT(BZ$39,2)>RIGHT($K69,2),BD69,0)) -> 0.292 | CA69: =+IF($K69="Ongoing",BE69,IF(RIGHT($K69,2)=RIGHT(CA$39,2),SUM($AX69:BE69),0)+IF(RIGHT(CA$39,2)>RIGHT($K69,2),BE69,0)) -> 0.292 | CB69: =+IF($K69="Ongoing",BF69,IF(RIGHT($K69,2)=RIGHT(CB$39,2),SUM($AX69:BF69),0)+IF(RIGHT(CB$39,2)>RIGHT($K69,2),BF69,0)) -> 0.292 | CC69: =+IF($K69="Ongoing",BG69,IF(RIGHT($K69,2)=RIGHT(CC$39,2),SUM($AX69:BG69),0)+IF(RIGHT(CC$39,2)>RIGHT($K69,2),BG69,0)) -> 0.292 | CE69: =+Q69*KeyAssumptionsPriceControl_FO!AC$15 -> 0.30076 | CF69: =+R69*KeyAssumptionsPriceControl_FO!AD$15 -> 0.3097828 | CG69: =+S69*KeyAssumptionsPriceControl_FO!AE$15 -> 0.319076284 | CH69: =+T69*KeyAssumptionsPriceControl_FO!AF$15 -> 0.3286485725 | CI69: =+U69*KeyAssumptionsPriceControl_FO!AG$15 -> 0.3385080297 | CJ69: =+V69*KeyAssumptionsPriceControl_FO!AH$15 -> 0.3486632706 | CK69: =+W69*KeyAssumptionsPriceControl_FO!AI$15 -> 0.3591231687 | CL69: =+X69*KeyAssumptionsPriceControl_FO!AJ$15 -> 0.3698968638 | CM69: =+Y69*KeyAssumptionsPriceControl_FO!AK$15 -> 0.3809937697 | CN69: =+Z69*KeyAssumptionsPriceControl_FO!AL$15 -> 0.3924235828 | CP69: 0.05012666667 | CQ69: 0.1518838 | CR69: 0.2566936473 | CS69: 0.3145211234 | CT69: 0.3239567571 | CU69: 0.3336754598 | CV69: 0.3436857236 | CW69: 0.3539962953 | CX69: 0.3646161842 | CY69: 0.3755546697
C70: ='[2]Capex_FO input'!C70 -> Sewer Sidelines Renewal Allocation | E70: ='[2]Capex_FO input'!E70 -> Sewerage | F70: ='[2]Capex_FO input'!F70 -> Renewals | G70: ='[2]Capex_FO input'!G70 -> Pipelines/network | H70: ='[2]Capex_FO input'!H70 -> Capital Programs / Allocation | J70: Straight line | K70: ='[2]Capex_FO input'!K70 -> Ongoing | L70: ='[2]Capex_FO input'!L70 -> 70 | M70: ='[2]Capex_FO input'!M70 -> 50 | Q70: ='[2]Capex_FO input'!Q70 -> 0.266 | R70: ='[2]Capex_FO input'!R70 -> 0.266 | S70: ='[2]Capex_FO input'!S70 -> 0.266 | T70: ='[2]Capex_FO input'!T70 -> 0.266 | U70: ='[2]Capex_FO input'!U70 -> 0.266 | V70: ='[2]Capex_FO input'!V70 -> 0.266 | W70: ='[2]Capex_FO input'!W70 -> 0.266 | X70: ='[2]Capex_FO input'!X70 -> 0.266 | Y70: ='[2]Capex_FO input'!Y70 -> 0.266 | Z70: ='[2]Capex_FO input'!Z70 -> 0.266 | AB70: ='[2]Capex_FO input'!AB70 -> 0 | AC70: ='[2]Capex_FO input'!AC70 -> 0 | AD70: ='[2]Capex_FO input'!AD70 -> 0 | AE70: ='[2]Capex_FO input'!AE70 -> 0 | AF70: ='[2]Capex_FO input'!AF70 -> 0 | AG70: ='[2]Capex_FO input'!AG70 -> 0 | AH70: ='[2]Capex_FO input'!AH70 -> 0 | AI70: ='[2]Capex_FO input'!AI70 -> 0 | AJ70: ='[2]Capex_FO input'!AJ70 -> 0 | AK70: ='[2]Capex_FO input'!AK70 -> 0 | AM70: ='[2]Capex_FO input'!AM70 -> 0 | AN70: ='[2]Capex_FO input'!AN70 -> 0 | AO70: ='[2]Capex_FO input'!AO70 -> 0 | AP70: ='[2]Capex_FO input'!AP70 -> 0 | AQ70: ='[2]Capex_FO input'!AQ70 -> 0 | AR70: ='[2]Capex_FO input'!AR70 -> 0 | AS70: ='[2]Capex_FO input'!AS70 -> 0 | AT70: ='[2]Capex_FO input'!AT70 -> 0 | AU70: ='[2]Capex_FO input'!AU70 -> 0 | AV70: ='[2]Capex_FO input'!AV70 -> 0 | AX70: 0.266 | AY70: 0.266 | AZ70: 0.266 | BA70: 0.266 | BB70: 0.266 | BC70: 0.266 | BD70: 0.266 | BE70: 0.266 | BF70: 0.266 | BG70: 0.266 | BI70: 0.0019 | BJ70: 0.0057 | BK70: 0.0095 | BL70: 0.0133 | BM70: 0.0171 | BN70: 0.0209 | BO70: 0.0247 | BP70: 0.0285 | BQ70: 0.0323 | BR70: 0.0361 | BT70: =+IF($K70="Ongoing",AX70,IF(RIGHT($K70,2)=RIGHT(BT$39,2),SUM($AX70:AX70),0)+IF(RIGHT(BT$39,2)>RIGHT($K70,2),AX70,0)) -> 0.266 | BU70: =+IF($K70="Ongoing",AY70,IF(RIGHT($K70,2)=RIGHT(BU$39,2),SUM($AX70:AY70),0)+IF(RIGHT(BU$39,2)>RIGHT($K70,2),AY70,0)) -> 0.266 | BV70: =+IF($K70="Ongoing",AZ70,IF(RIGHT($K70,2)=RIGHT(BV$39,2),SUM($AX70:AZ70),0)+IF(RIGHT(BV$39,2)>RIGHT($K70,2),AZ70,0)) -> 0.266 | BW70: =+IF($K70="Ongoing",BA70,IF(RIGHT($K70,2)=RIGHT(BW$39,2),SUM($AX70:BA70),0)+IF(RIGHT(BW$39,2)>RIGHT($K70,2),BA70,0)) -> 0.266 | BX70: =+IF($K70="Ongoing",BB70,IF(RIGHT($K70,2)=RIGHT(BX$39,2),SUM($AX70:BB70),0)+IF(RIGHT(BX$39,2)>RIGHT($K70,2),BB70,0)) -> 0.266 | BY70: =+IF($K70="Ongoing",BC70,IF(RIGHT($K70,2)=RIGHT(BY$39,2),SUM($AX70:BC70),0)+IF(RIGHT(BY$39,2)>RIGHT($K70,2),BC70,0)) -> 0.266 | BZ70: =+IF($K70="Ongoing",BD70,IF(RIGHT($K70,2)=RIGHT(BZ$39,2),SUM($AX70:BD70),0)+IF(RIGHT(BZ$39,2)>RIGHT($K70,2),BD70,0)) -> 0.266 | CA70: =+IF($K70="Ongoing",BE70,IF(RIGHT($K70,2)=RIGHT(CA$39,2),SUM($AX70:BE70),0)+IF(RIGHT(CA$39,2)>RIGHT($K70,2),BE70,0)) -> 0.266 | CB70: =+IF($K70="Ongoing",BF70,IF(RIGHT($K70,2)=RIGHT(CB$39,2),SUM($AX70:BF70),0)+IF(RIGHT(CB$39,2)>RIGHT($K70,2),BF70,0)) -> 0.266 | CC70: =+IF($K70="Ongoing",BG70,IF(RIGHT($K70,2)=RIGHT(CC$39,2),SUM($AX70:BG70),0)+IF(RIGHT(CC$39,2)>RIGHT($K70,2),BG70,0)) -> 0.266 | CE70: =+Q70*KeyAssumptionsPriceControl_FO!AC$15 -> 0.27398 | CF70: =+R70*KeyAssumptionsPriceControl_FO!AD$15 -> 0.2821994 | CG70: =+S70*KeyAssumptionsPriceControl_FO!AE$15 -> 0.290665382 | CH70: =+T70*KeyAssumptionsPriceControl_FO!AF$15 -> 0.2993853435 | CI70: =+U70*KeyAssumptionsPriceControl_FO!AG$15 -> 0.3083669038 | CJ70: =+V70*KeyAssumptionsPriceControl_FO!AH$15 -> 0.3176179109 | CK70: =+W70*KeyAssumptionsPriceControl_FO!AI$15 -> 0.3271464482 | CL70: =+X70*KeyAssumptionsPriceControl_FO!AJ$15 -> 0.3369608416 | CM70: =+Y70*KeyAssumptionsPriceControl_FO!AK$15 -> 0.3470696669 | CN70: =+Z70*KeyAssumptionsPriceControl_FO!AL$15 -> 0.3574817569 | CP70: 0.0027398 | CQ70: 0.008301594 | CR70: 0.01403024182 | CS70: 0.01993074907 | CT70: 0.02600827155 | CU70: 0.03226811969 | CV70: 0.03871576328 | CW70: 0.04535683618 | CX70: 0.05219714127 | CY70: 0.05924265551
C71: ='[2]Capex_FO input'!C71 -> Plant & Equipment Renewal | E71: ='[2]Capex_FO input'!E71 -> Water | F71: ='[2]Capex_FO input'!F71 -> Renewals | G71: ='[2]Capex_FO input'!G71 -> Corporate | H71: ='[2]Capex_FO input'!H71 -> Capital Programs / Allocation | J71: Straight line | K71: ='[2]Capex_FO input'!K71 -> Ongoing | L71: ='[2]Capex_FO input'!L71 -> 25 | M71: ='[2]Capex_FO input'!M71 -> 50 | Q71: ='[2]Capex_FO input'!Q71 -> 0.259 | R71: ='[2]Capex_FO input'!R71 -> 0.259 | S71: ='[2]Capex_FO input'!S71 -> 0.259 | T71: ='[2]Capex_FO input'!T71 -> 0.259 | U71: ='[2]Capex_FO input'!U71 -> 0.259 | V71: ='[2]Capex_FO input'!V71 -> 0.259 | W71: ='[2]Capex_FO input'!W71 -> 0.259 | X71: ='[2]Capex_FO input'!X71 -> 0.259 | Y71: ='[2]Capex_FO input'!Y71 -> 0.259 | Z71: ='[2]Capex_FO input'!Z71 -> 0.259 | AB71: ='[2]Capex_FO input'!AB71 -> 0 | AC71: ='[2]Capex_FO input'!AC71 -> 0 | AD71: ='[2]Capex_FO input'!AD71 -> 0 | AE71: ='[2]Capex_FO input'!AE71 -> 0 | AF71: ='[2]Capex_FO input'!AF71 -> 0 | AG71: ='[2]Capex_FO input'!AG71 -> 0 | AH71: ='[2]Capex_FO input'!AH71 -> 0 | AI71: ='[2]Capex_FO input'!AI71 -> 0 | AJ71: ='[2]Capex_FO input'!AJ71 -> 0 | AK71: ='[2]Capex_FO input'!AK71 -> 0 | AM71: ='[2]Capex_FO input'!AM71 -> 0 | AN71: ='[2]Capex_FO input'!AN71 -> 0 | AO71: ='[2]Capex_FO input'!AO71 -> 0 | AP71: ='[2]Capex_FO input'!AP71 -> 0 | AQ71: ='[2]Capex_FO input'!AQ71 -> 0 | AR71: ='[2]Capex_FO input'!AR71 -> 0 | AS71: ='[2]Capex_FO input'!AS71 -> 0 | AT71: ='[2]Capex_FO input'!AT71 -> 0 | AU71: ='[2]Capex_FO input'!AU71 -> 0 | AV71: ='[2]Capex_FO input'!AV71 -> 0 | AX71: 0.259 | AY71: 0.259 | AZ71: 0.259 | BA71: 0.259 | BB71: 0.259 | BC71: 0.259 | BD71: 0.259 | BE71: 0.259 | BF71: 0.259 | BG71: 0.259 | BI71: 0.00518 | BJ71: 0.01554 | BK71: 0.0259 | BL71: 0.03626 | BM71: 0.04662 | BN71: 0.05698 | BO71: 0.06734 | BP71: 0.0777 | BQ71: 0.08806 | BR71: 0.09842 | BT71: =+IF($K71="Ongoing",AX71,IF(RIGHT($K71,2)=RIGHT(BT$39,2),SUM($AX71:AX71),0)+IF(RIGHT(BT$39,2)>RIGHT($K71,2),AX71,0)) -> 0.259 | BU71: =+IF($K71="Ongoing",AY71,IF(RIGHT($K71,2)=RIGHT(BU$39,2),SUM($AX71:AY71),0)+IF(RIGHT(BU$39,2)>RIGHT($K71,2),AY71,0)) -> 0.259 | BV71: =+IF($K71="Ongoing",AZ71,IF(RIGHT($K71,2)=RIGHT(BV$39,2),SUM($AX71:AZ71),0)+IF(RIGHT(BV$39,2)>RIGHT($K71,2),AZ71,0)) -> 0.259 | BW71: =+IF($K71="Ongoing",BA71,IF(RIGHT($K71,2)=RIGHT(BW$39,2),SUM($AX71:BA71),0)+IF(RIGHT(BW$39,2)>RIGHT($K71,2),BA71,0)) -> 0.259 | BX71: =+IF($K71="Ongoing",BB71,IF(RIGHT($K71,2)=RIGHT(BX$39,2),SUM($AX71:BB71),0)+IF(RIGHT(BX$39,2)>RIGHT($K71,2),BB71,0)) -> 0.259 | BY71: =+IF($K71="Ongoing",BC71,IF(RIGHT($K71,2)=RIGHT(BY$39,2),SUM($AX71:BC71),0)+IF(RIGHT(BY$39,2)>RIGHT($K71,2),BC71,0)) -> 0.259 | BZ71: =+IF($K71="Ongoing",BD71,IF(RIGHT($K71,2)=RIGHT(BZ$39,2),SUM($AX71:BD71),0)+IF(RIGHT(BZ$39,2)>RIGHT($K71,2),BD71,0)) -> 0.259 | CA71: =+IF($K71="Ongoing",BE71,IF(RIGHT($K71,2)=RIGHT(CA$39,2),SUM($AX71:BE71),0)+IF(RIGHT(CA$39,2)>RIGHT($K71,2),BE71,0)) -> 0.259 | CB71: =+IF($K71="Ongoing",BF71,IF(RIGHT($K71,2)=RIGHT(CB$39,2),SUM($AX71:BF71),0)+IF(RIGHT(CB$39,2)>RIGHT($K71,2),BF71,0)) -> 0.259 | CC71: =+IF($K71="Ongoing",BG71,IF(RIGHT($K71,2)=RIGHT(CC$39,2),SUM($AX71:BG71),0)+IF(RIGHT(CC$39,2)>RIGHT($K71,2),BG71,0)) -> 0.259 | CE71: =+Q71*KeyAssumptionsPriceControl_FO!AC$15 -> 0.26677 | CF71: =+R71*KeyAssumptionsPriceControl_FO!AD$15 -> 0.2747731 | CG71: =+S71*KeyAssumptionsPriceControl_FO!AE$15 -> 0.283016293 | CH71: =+T71*KeyAssumptionsPriceControl_FO!AF$15 -> 0.2915067818 | CI71: =+U71*KeyAssumptionsPriceControl_FO!AG$15 -> 0.3002519852 | CJ71: =+V71*KeyAssumptionsPriceControl_FO!AH$15 -> 0.3092595448 | CK71: =+W71*KeyAssumptionsPriceControl_FO!AI$15 -> 0.3185373311 | CL71: =+X71*KeyAssumptionsPriceControl_FO!AJ$15 -> 0.3280934511 | CM71: =+Y71*KeyAssumptionsPriceControl_FO!AK$15 -> 0.3379362546 | CN71: =+Z71*KeyAssumptionsPriceControl_FO!AL$15 -> 0.3480743423 | CP71: 0.0026677 | CQ71: 0.008083131 | CR71: 0.01366102493 | CS71: 0.01940625568 | CT71: 0.02532384335 | CU71: 0.03141895865 | CV71: 0.03769692741 | CW71: 0.04416323523 | CX71: 0.05082353229 | CY71: 0.05768363826
C72: ='[2]Capex_FO input'!C72 -> Minor Operations System Improvement (Quality & Network) Allocations | E72: ='[2]Capex_FO input'!E72 -> Water | F72: ='[2]Capex_FO input'!F72 -> Improvements / Compliance | G72: ='[2]Capex_FO input'!G72 -> Treatment | H72: ='[2]Capex_FO input'!H72 -> Capital Programs / Allocation | J72: Straight line | K72: ='[2]Capex_FO input'!K72 -> Ongoing | L72: ='[2]Capex_FO input'!L72 -> 50 | M72: ='[2]Capex_FO input'!M72 -> 65 | Q72: ='[2]Capex_FO input'!Q72 -> 0.208 | R72: ='[2]Capex_FO input'!R72 -> 0.208 | S72: ='[2]Capex_FO input'!S72 -> 0.208 | T72: ='[2]Capex_FO input'!T72 -> 0.208 | U72: ='[2]Capex_FO input'!U72 -> 0.208 | V72: ='[2]Capex_FO input'!V72 -> 0.208 | W72: ='[2]Capex_FO input'!W72 -> 0.208 | X72: ='[2]Capex_FO input'!X72 -> 0.208 | Y72: ='[2]Capex_FO input'!Y72 -> 0.208 | Z72: ='[2]Capex_FO input'!Z72 -> 0.208 | AB72: ='[2]Capex_FO input'!AB72 -> 0 | AC72: ='[2]Capex_FO input'!AC72 -> 0 | AD72: ='[2]Capex_FO input'!AD72 -> 0 | AE72: ='[2]Capex_FO input'!AE72 -> 0 | AF72: ='[2]Capex_FO input'!AF72 -> 0 | AG72: ='[2]Capex_FO input'!AG72 -> 0 | AH72: ='[2]Capex_FO input'!AH72 -> 0 | AI72: ='[2]Capex_FO input'!AI72 -> 0 | AJ72: ='[2]Capex_FO input'!AJ72 -> 0 | AK72: ='[2]Capex_FO input'!AK72 -> 0 | AM72: ='[2]Capex_FO input'!AM72 -> 0 | AN72: ='[2]Capex_FO input'!AN72 -> 0 | AO72: ='[2]Capex_FO input'!AO72 -> 0 | AP72: ='[2]Capex_FO input'!AP72 -> 0 | AQ72: ='[2]Capex_FO input'!AQ72 -> 0 | AR72: ='[2]Capex_FO input'!AR72 -> 0 | AS72: ='[2]Capex_FO input'!AS72 -> 0 | AT72: ='[2]Capex_FO input'!AT72 -> 0 | AU72: ='[2]Capex_FO input'!AU72 -> 0 | AV72: ='[2]Capex_FO input'!AV72 -> 0 | AX72: 0.208 | AY72: 0.208 | AZ72: 0.208 | BA72: 0.208 | BB72: 0.208 | BC72: 0.208 | BD72: 0.208 | BE72: 0.208 | BF72: 0.208 | BG72: 0.208 | BI72: 0.00208 | BJ72: 0.00624 | BK72: 0.0104 | BL72: 0.01456 | BM72: 0.01872 | BN72: 0.02288 | BO72: 0.02704 | BP72: 0.0312 | BQ72: 0.03536 | BR72: 0.03952 | BT72: =+IF($K72="Ongoing",AX72,IF(RIGHT($K72,2)=RIGHT(BT$39,2),SUM($AX72:AX72),0)+IF(RIGHT(BT$39,2)>RIGHT($K72,2),AX72,0)) -> 0.208 | BU72: =+IF($K72="Ongoing",AY72,IF(RIGHT($K72,2)=RIGHT(BU$39,2),SUM($AX72:AY72),0)+IF(RIGHT(BU$39,2)>RIGHT($K72,2),AY72,0)) -> 0.208 | BV72: =+IF($K72="Ongoing",AZ72,IF(RIGHT($K72,2)=RIGHT(BV$39,2),SUM($AX72:AZ72),0)+IF(RIGHT(BV$39,2)>RIGHT($K72,2),AZ72,0)) -> 0.208 | BW72: =+IF($K72="Ongoing",BA72,IF(RIGHT($K72,2)=RIGHT(BW$39,2),SUM($AX72:BA72),0)+IF(RIGHT(BW$39,2)>RIGHT($K72,2),BA72,0)) -> 0.208 | BX72: =+IF($K72="Ongoing",BB72,IF(RIGHT($K72,2)=RIGHT(BX$39,2),SUM($AX72:BB72),0)+IF(RIGHT(BX$39,2)>RIGHT($K72,2),BB72,0)) -> 0.208 | BY72: =+IF($K72="Ongoing",BC72,IF(RIGHT($K72,2)=RIGHT(BY$39,2),SUM($AX72:BC72),0)+IF(RIGHT(BY$39,2)>RIGHT($K72,2),BC72,0)) -> 0.208 | BZ72: =+IF($K72="Ongoing",BD72,IF(RIGHT($K72,2)=RIGHT(BZ$39,2),SUM($AX72:BD72),0)+IF(RIGHT(BZ$39,2)>RIGHT($K72,2),BD72,0)) -> 0.208 | CA72: =+IF($K72="Ongoing",BE72,IF(RIGHT($K72,2)=RIGHT(CA$39,2),SUM($AX72:BE72),0)+IF(RIGHT(CA$39,2)>RIGHT($K72,2),BE72,0)) -> 0.208 | CB72: =+IF($K72="Ongoing",BF72,IF(RIGHT($K72,2)=RIGHT(CB$39,2),SUM($AX72:BF72),0)+IF(RIGHT(CB$39,2)>RIGHT($K72,2),BF72,0)) -> 0.208 | CC72: =+IF($K72="Ongoing",BG72,IF(RIGHT($K72,2)=RIGHT(CC$39,2),SUM($AX72:BG72),0)+IF(RIGHT(CC$39,2)>RIGHT($K72,2),BG72,0)) -> 0.208 | CE72: =+Q72*KeyAssumptionsPriceControl_FO!AC$15 -> 0.21424 | CF72: =+R72*KeyAssumptionsPriceControl_FO!AD$15 -> 0.2206672 | CG72: =+S72*KeyAssumptionsPriceControl_FO!AE$15 -> 0.227287216 | CH72: =+T72*KeyAssumptionsPriceControl_FO!AF$15 -> 0.2341058325 | CI72: =+U72*KeyAssumptionsPriceControl_FO!AG$15 -> 0.2411290075 | CJ72: =+V72*KeyAssumptionsPriceControl_FO!AH$15 -> 0.2483628777 | CK72: =+W72*KeyAssumptionsPriceControl_FO!AI$15 -> 0.255813764 | CL72: =+X72*KeyAssumptionsPriceControl_FO!AJ$15 -> 0.2634881769 | CM72: =+Y72*KeyAssumptionsPriceControl_FO!AK$15 -> 0.2713928222 | CN72: =+Z72*KeyAssumptionsPriceControl_FO!AL$15 -> 0.2795346069 | CP72: 0.001648 | CQ72: 0.00499344 | CR72: 0.0084392432 | CS72: 0.0119884205 | CT72: 0.01564407311 | CU72: 0.0194093953 | CV72: 0.02328767716 | CW72: 0.02728230748 | CX72: 0.0313967767 | CY72: 0.03563468
C73: ='[2]Capex_FO input'!C73 -> IT Systems Renewal (software) | E73: ='[2]Capex_FO input'!E73 -> Water | F73: ='[2]Capex_FO input'!F73 -> Renewals | G73: ='[2]Capex_FO input'!G73 -> Corporate | H73: ='[2]Capex_FO input'!H73 -> Capital Programs / Allocation | J73: Straight line | K73: ='[2]Capex_FO input'!K73 -> Ongoing | L73: ='[2]Capex_FO input'!L73 -> 7 | M73: ='[2]Capex_FO input'!M73 -> 3 | Q73: ='[2]Capex_FO input'!Q73 -> 0.227 | R73: ='[2]Capex_FO input'!R73 -> 0.287 | S73: ='[2]Capex_FO input'!S73 -> 0.207 | T73: ='[2]Capex_FO input'!T73 -> 0.207 | U73: ='[2]Capex_FO input'!U73 -> 0.207 | V73: ='[2]Capex_FO input'!V73 -> 0.207 | W73: ='[2]Capex_FO input'!W73 -> 0.207 | X73: ='[2]Capex_FO input'!X73 -> 0.207 | Y73: ='[2]Capex_FO input'!Y73 -> 0.207 | Z73: ='[2]Capex_FO input'!Z73 -> 0.207 | AB73: ='[2]Capex_FO input'!AB73 -> 0 | AC73: ='[2]Capex_FO input'!AC73 -> 0 | AD73: ='[2]Capex_FO input'!AD73 -> 0 | AE73: ='[2]Capex_FO input'!AE73 -> 0 | AF73: ='[2]Capex_FO input'!AF73 -> 0 | AG73: ='[2]Capex_FO input'!AG73 -> 0 | AH73: ='[2]Capex_FO input'!AH73 -> 0 | AI73: ='[2]Capex_FO input'!AI73 -> 0 | AJ73: ='[2]Capex_FO input'!AJ73 -> 0 | AK73: ='[2]Capex_FO input'!AK73 -> 0 | AM73: ='[2]Capex_FO input'!AM73 -> 0 | AN73: ='[2]Capex_FO input'!AN73 -> 0 | AO73: ='[2]Capex_FO input'!AO73 -> 0 | AP73: ='[2]Capex_FO input'!AP73 -> 0 | AQ73: ='[2]Capex_FO input'!AQ73 -> 0 | AR73: ='[2]Capex_FO input'!AR73 -> 0 | AS73: ='[2]Capex_FO input'!AS73 -> 0 | AT73: ='[2]Capex_FO input'!AT73 -> 0 | AU73: ='[2]Capex_FO input'!AU73 -> 0 | AV73: ='[2]Capex_FO input'!AV73 -> 0 | AX73: 0.227 | AY73: 0.287 | AZ73: 0.207 | BA73: 0.207 | BB73: 0.207 | BC73: 0.207 | BD73: 0.207 | BE73: 0.207 | BF73: 0.207 | BG73: 0.207 | BI73: 0.01621428571 | BJ73: 0.05292857143 | BK73: 0.08821428571 | BL73: 0.1177857143 | BM73: 0.1473571429 | BN73: 0.1769285714 | BO73: 0.2065 | BP73: 0.2198571429 | BQ73: 0.2127142857 | BR73: 0.207 | BT73: =+IF($K73="Ongoing",AX73,IF(RIGHT($K73,2)=RIGHT(BT$39,2),SUM($AX73:AX73),0)+IF(RIGHT(BT$39,2)>RIGHT($K73,2),AX73,0)) -> 0.227 | BU73: =+IF($K73="Ongoing",AY73,IF(RIGHT($K73,2)=RIGHT(BU$39,2),SUM($AX73:AY73),0)+IF(RIGHT(BU$39,2)>RIGHT($K73,2),AY73,0)) -> 0.287 | BV73: =+IF($K73="Ongoing",AZ73,IF(RIGHT($K73,2)=RIGHT(BV$39,2),SUM($AX73:AZ73),0)+IF(RIGHT(BV$39,2)>RIGHT($K73,2),AZ73,0)) -> 0.207 | BW73: =+IF($K73="Ongoing",BA73,IF(RIGHT($K73,2)=RIGHT(BW$39,2),SUM($AX73:BA73),0)+IF(RIGHT(BW$39,2)>RIGHT($K73,2),BA73,0)) -> 0.207 | BX73: =+IF($K73="Ongoing",BB73,IF(RIGHT($K73,2)=RIGHT(BX$39,2),SUM($AX73:BB73),0)+IF(RIGHT(BX$39,2)>RIGHT($K73,2),BB73,0)) -> 0.207 | BY73: =+IF($K73="Ongoing",BC73,IF(RIGHT($K73,2)=RIGHT(BY$39,2),SUM($AX73:BC73),0)+IF(RIGHT(BY$39,2)>RIGHT($K73,2),BC73,0)) -> 0.207 | BZ73: =+IF($K73="Ongoing",BD73,IF(RIGHT($K73,2)=RIGHT(BZ$39,2),SUM($AX73:BD73),0)+IF(RIGHT(BZ$39,2)>RIGHT($K73,2),BD73,0)) -> 0.207 | CA73: =+IF($K73="Ongoing",BE73,IF(RIGHT($K73,2)=RIGHT(CA$39,2),SUM($AX73:BE73),0)+IF(RIGHT(CA$39,2)>RIGHT($K73,2),BE73,0)) -> 0.207 | CB73: =+IF($K73="Ongoing",BF73,IF(RIGHT($K73,2)=RIGHT(CB$39,2),SUM($AX73:BF73),0)+IF(RIGHT(CB$39,2)>RIGHT($K73,2),BF73,0)) -> 0.207 | CC73: =+IF($K73="Ongoing",BG73,IF(RIGHT($K73,2)=RIGHT(CC$39,2),SUM($AX73:BG73),0)+IF(RIGHT(CC$39,2)>RIGHT($K73,2),BG73,0)) -> 0.207 | CE73: =+Q73*KeyAssumptionsPriceControl_FO!AC$15 -> 0.23381 | CF73: =+R73*KeyAssumptionsPriceControl_FO!AD$15 -> 0.3044783 | CG73: =+S73*KeyAssumptionsPriceControl_FO!AE$15 -> 0.226194489 | CH73: =+T73*KeyAssumptionsPriceControl_FO!AF$15 -> 0.2329803237 | CI73: =+U73*KeyAssumptionsPriceControl_FO!AG$15 -> 0.2399697334 | CJ73: =+V73*KeyAssumptionsPriceControl_FO!AH$15 -> 0.2471688254 | CK73: =+W73*KeyAssumptionsPriceControl_FO!AI$15 -> 0.2545838901 | CL73: =+X73*KeyAssumptionsPriceControl_FO!AJ$15 -> 0.2622214068 | CM73: =+Y73*KeyAssumptionsPriceControl_FO!AK$15 -> 0.2700880491 | CN73: =+Z73*KeyAssumptionsPriceControl_FO!AL$15 -> 0.2781906905 | CP73: 0.03896833333 | CQ73: 0.12868305 | CR73: 0.2171285148 | CS73: 0.2546893169 | CT73: 0.2437996098 | CU73: 0.2365439047 | CV73: 0.2436402219 | CW73: 0.2509494285 | CX73: 0.2584779114 | CY73: 0.2662322487
C74: ='[2]Capex_FO input'!C74 -> Sewer Manholes Renewal Alllocation | E74: ='[2]Capex_FO input'!E74 -> Sewerage | F74: ='[2]Capex_FO input'!F74 -> Renewals | G74: ='[2]Capex_FO input'!G74 -> Pipelines/network | H74: ='[2]Capex_FO input'!H74 -> Capital Programs / Allocation | J74: Straight line | K74: ='[2]Capex_FO input'!K74 -> Ongoing | L74: ='[2]Capex_FO input'!L74 -> 70 | M74: ='[2]Capex_FO input'!M74 -> 50 | Q74: ='[2]Capex_FO input'!Q74 -> 0.203 | R74: ='[2]Capex_FO input'!R74 -> 0.203 | S74: ='[2]Capex_FO input'!S74 -> 0.203 | T74: ='[2]Capex_FO input'!T74 -> 0.203 | U74: ='[2]Capex_FO input'!U74 -> 0.203 | V74: ='[2]Capex_FO input'!V74 -> 0.221 | W74: ='[2]Capex_FO input'!W74 -> 0.221 | X74: ='[2]Capex_FO input'!X74 -> 0.221 | Y74: ='[2]Capex_FO input'!Y74 -> 0.221 | Z74: ='[2]Capex_FO input'!Z74 -> 0.221 | AB74: ='[2]Capex_FO input'!AB74 -> 0 | AC74: ='[2]Capex_FO input'!AC74 -> 0 | AD74: ='[2]Capex_FO input'!AD74 -> 0 | AE74: ='[2]Capex_FO input'!AE74 -> 0 | AF74: ='[2]Capex_FO input'!AF74 -> 0 | AG74: ='[2]Capex_FO input'!AG74 -> 0 | AH74: ='[2]Capex_FO input'!AH74 -> 0 | AI74: ='[2]Capex_FO input'!AI74 -> 0 | AJ74: ='[2]Capex_FO input'!AJ74 -> 0 | AK74: ='[2]Capex_FO input'!AK74 -> 0 | AM74: ='[2]Capex_FO input'!AM74 -> 0 | AN74: ='[2]Capex_FO input'!AN74 -> 0 | AO74: ='[2]Capex_FO input'!AO74 -> 0 | AP74: ='[2]Capex_FO input'!AP74 -> 0 | AQ74: ='[2]Capex_FO input'!AQ74 -> 0 | AR74: ='[2]Capex_FO input'!AR74 -> 0 | AS74: ='[2]Capex_FO input'!AS74 -> 0 | AT74: ='[2]Capex_FO input'!AT74 -> 0 | AU74: ='[2]Capex_FO input'!AU74 -> 0 | AV74: ='[2]Capex_FO input'!AV74 -> 0 | AX74: 0.203 | AY74: 0.203 | AZ74: 0.203 | BA74: 0.203 | BB74: 0.203 | BC74: 0.221 | BD74: 0.221 | BE74: 0.221 | BF74: 0.221 | BG74: 0.221 | BI74: 0.00145 | BJ74: 0.00435 | BK74: 0.00725 | BL74: 0.01015 | BM74: 0.01305 | BN74: 0.01607857143 | BO74: 0.01923571429 | BP74: 0.02239285714 | BQ74: 0.02555 | BR74: 0.02870714286 | BT74: =+IF($K74="Ongoing",AX74,IF(RIGHT($K74,2)=RIGHT(BT$39,2),SUM($AX74:AX74),0)+IF(RIGHT(BT$39,2)>RIGHT($K74,2),AX74,0)) -> 0.203 | BU74: =+IF($K74="Ongoing",AY74,IF(RIGHT($K74,2)=RIGHT(BU$39,2),SUM($AX74:AY74),0)+IF(RIGHT(BU$39,2)>RIGHT($K74,2),AY74,0)) -> 0.203 | BV74: =+IF($K74="Ongoing",AZ74,IF(RIGHT($K74,2)=RIGHT(BV$39,2),SUM($AX74:AZ74),0)+IF(RIGHT(BV$39,2)>RIGHT($K74,2),AZ74,0)) -> 0.203 | BW74: =+IF($K74="Ongoing",BA74,IF(RIGHT($K74,2)=RIGHT(BW$39,2),SUM($AX74:BA74),0)+IF(RIGHT(BW$39,2)>RIGHT($K74,2),BA74,0)) -> 0.203 | BX74: =+IF($K74="Ongoing",BB74,IF(RIGHT($K74,2)=RIGHT(BX$39,2),SUM($AX74:BB74),0)+IF(RIGHT(BX$39,2)>RIGHT($K74,2),BB74,0)) -> 0.203 | BY74: =+IF($K74="Ongoing",BC74,IF(RIGHT($K74,2)=RIGHT(BY$39,2),SUM($AX74:BC74),0)+IF(RIGHT(BY$39,2)>RIGHT($K74,2),BC74,0)) -> 0.221 | BZ74: =+IF($K74="Ongoing",BD74,IF(RIGHT($K74,2)=RIGHT(BZ$39,2),SUM($AX74:BD74),0)+IF(RIGHT(BZ$39,2)>RIGHT($K74,2),BD74,0)) -> 0.221 | CA74: =+IF($K74="Ongoing",BE74,IF(RIGHT($K74,2)=RIGHT(CA$39,2),SUM($AX74:BE74),0)+IF(RIGHT(CA$39,2)>RIGHT($K74,2),BE74,0)) -> 0.221 | CB74: =+IF($K74="Ongoing",BF74,IF(RIGHT($K74,2)=RIGHT(CB$39,2),SUM($AX74:BF74),0)+IF(RIGHT(CB$39,2)>RIGHT($K74,2),BF74,0)) -> 0.221 | CC74: =+IF($K74="Ongoing",BG74,IF(RIGHT($K74,2)=RIGHT(CC$39,2),SUM($AX74:BG74),0)+IF(RIGHT(CC$39,2)>RIGHT($K74,2),BG74,0)) -> 0.221 | CE74: =+Q74*KeyAssumptionsPriceControl_FO!AC$15 -> 0.20909 | CF74: =+R74*KeyAssumptionsPriceControl_FO!AD$15 -> 0.2153627 | CG74: =+S74*KeyAssumptionsPriceControl_FO!AE$15 -> 0.221823581 | CH74: =+T74*KeyAssumptionsPriceControl_FO!AF$15 -> 0.2284782884 | CI74: =+U74*KeyAssumptionsPriceControl_FO!AG$15 -> 0.2353326371 | CJ74: =+V74*KeyAssumptionsPriceControl_FO!AH$15 -> 0.2638855575 | CK74: =+W74*KeyAssumptionsPriceControl_FO!AI$15 -> 0.2718021243 | CL74: =+X74*KeyAssumptionsPriceControl_FO!AJ$15 -> 0.279956188 | CM74: =+Y74*KeyAssumptionsPriceControl_FO!AK$15 -> 0.2883548736 | CN74: =+Z74*KeyAssumptionsPriceControl_FO!AL$15 -> 0.2970055198 | CP74: 0.0020909 | CQ74: 0.006335427 | CR74: 0.01070728981 | CS74: 0.0152103085 | CT74: 0.01984841776 | CU74: 0.02484059971 | CV74: 0.03019747652 | CW74: 0.03571505965 | CX74: 0.04139817026 | CY74: 0.0472517742
C75: ='[2]Capex_FO input'!C75 -> Sewer System Renewal (PLN and Alberton) | E75: ='[2]Capex_FO input'!E75 -> Sewerage | F75: ='[2]Capex_FO input'!F75 -> Renewals | G75: ='[2]Capex_FO input'!G75 -> Pipelines/network | H75: ='[2]Capex_FO input'!H75 -> Capital Programs / Allocation | J75: Straight line | K75: ='[2]Capex_FO input'!K75 -> Ongoing | L75: ='[2]Capex_FO input'!L75 -> 25 | M75: ='[2]Capex_FO input'!M75 -> 25 | Q75: ='[2]Capex_FO input'!Q75 -> 0.187 | R75: ='[2]Capex_FO input'!R75 -> 0.187 | S75: ='[2]Capex_FO input'!S75 -> 0.187 | T75: ='[2]Capex_FO input'!T75 -> 0.187 | U75: ='[2]Capex_FO input'!U75 -> 0.187 | V75: ='[2]Capex_FO input'!V75 -> 0.187 | W75: ='[2]Capex_FO input'!W75 -> 0.187 | X75: ='[2]Capex_FO input'!X75 -> 0.187 | Y75: ='[2]Capex_FO input'!Y75 -> 0.187 | Z75: ='[2]Capex_FO input'!Z75 -> 0.187 | AB75: ='[2]Capex_FO input'!AB75 -> 0 | AC75: ='[2]Capex_FO input'!AC75 -> 0 | AD75: ='[2]Capex_FO input'!AD75 -> 0 | AE75: ='[2]Capex_FO input'!AE75 -> 0 | AF75: ='[2]Capex_FO input'!AF75 -> 0 | AG75: ='[2]Capex_FO input'!AG75 -> 0 | AH75: ='[2]Capex_FO input'!AH75 -> 0 | AI75: ='[2]Capex_FO input'!AI75 -> 0 | AJ75: ='[2]Capex_FO input'!AJ75 -> 0 | AK75: ='[2]Capex_FO input'!AK75 -> 0 | AM75: ='[2]Capex_FO input'!AM75 -> 0 | AN75: ='[2]Capex_FO input'!AN75 -> 0 | AO75: ='[2]Capex_FO input'!AO75 -> 0 | AP75: ='[2]Capex_FO input'!AP75 -> 0 | AQ75: ='[2]Capex_FO input'!AQ75 -> 0 | AR75: ='[2]Capex_FO input'!AR75 -> 0 | AS75: ='[2]Capex_FO input'!AS75 -> 0 | AT75: ='[2]Capex_FO input'!AT75 -> 0 | AU75: ='[2]Capex_FO input'!AU75 -> 0 | AV75: ='[2]Capex_FO input'!AV75 -> 0 | AX75: 0.187 | AY75: 0.187 | AZ75: 0.187 | BA75: 0.187 | BB75: 0.187 | BC75: 0.187 | BD75: 0.187 | BE75: 0.187 | BF75: 0.187 | BG75: 0.187 | BI75: 0.00374 | BJ75: 0.01122 | BK75: 0.0187 | BL75: 0.02618 | BM75: 0.03366 | BN75: 0.04114 | BO75: 0.04862 | BP75: 0.0561 | BQ75: 0.06358 | BR75: 0.07106 | BT75: =+IF($K75="Ongoing",AX75,IF(RIGHT($K75,2)=RIGHT(BT$39,2),SUM($AX75:AX75),0)+IF(RIGHT(BT$39,2)>RIGHT($K75,2),AX75,0)) -> 0.187 | BU75: =+IF($K75="Ongoing",AY75,IF(RIGHT($K75,2)=RIGHT(BU$39,2),SUM($AX75:AY75),0)+IF(RIGHT(BU$39,2)>RIGHT($K75,2),AY75,0)) -> 0.187 | BV75: =+IF($K75="Ongoing",AZ75,IF(RIGHT($K75,2)=RIGHT(BV$39,2),SUM($AX75:AZ75),0)+IF(RIGHT(BV$39,2)>RIGHT($K75,2),AZ75,0)) -> 0.187 | BW75: =+IF($K75="Ongoing",BA75,IF(RIGHT($K75,2)=RIGHT(BW$39,2),SUM($AX75:BA75),0)+IF(RIGHT(BW$39,2)>RIGHT($K75,2),BA75,0)) -> 0.187 | BX75: =+IF($K75="Ongoing",BB75,IF(RIGHT($K75,2)=RIGHT(BX$39,2),SUM($AX75:BB75),0)+IF(RIGHT(BX$39,2)>RIGHT($K75,2),BB75,0)) -> 0.187 | BY75: =+IF($K75="Ongoing",BC75,IF(RIGHT($K75,2)=RIGHT(BY$39,2),SUM($AX75:BC75),0)+IF(RIGHT(BY$39,2)>RIGHT($K75,2),BC75,0)) -> 0.187 | BZ75: =+IF($K75="Ongoing",BD75,IF(RIGHT($K75,2)=RIGHT(BZ$39,2),SUM($AX75:BD75),0)+IF(RIGHT(BZ$39,2)>RIGHT($K75,2),BD75,0)) -> 0.187 | CA75: =+IF($K75="Ongoing",BE75,IF(RIGHT($K75,2)=RIGHT(CA$39,2),SUM($AX75:BE75),0)+IF(RIGHT(CA$39,2)>RIGHT($K75,2),BE75,0)) -> 0.187 | CB75: =+IF($K75="Ongoing",BF75,IF(RIGHT($K75,2)=RIGHT(CB$39,2),SUM($AX75:BF75),0)+IF(RIGHT(CB$39,2)>RIGHT($K75,2),BF75,0)) -> 0.187 | CC75: =+IF($K75="Ongoing",BG75,IF(RIGHT($K75,2)=RIGHT(CC$39,2),SUM($AX75:BG75),0)+IF(RIGHT(CC$39,2)>RIGHT($K75,2),BG75,0)) -> 0.187 | CE75: =+Q75*KeyAssumptionsPriceControl_FO!AC$15 -> 0.19261 | CF75: =+R75*KeyAssumptionsPriceControl_FO!AD$15 -> 0.1983883 | CG75: =+S75*KeyAssumptionsPriceControl_FO!AE$15 -> 0.204339949 | CH75: =+T75*KeyAssumptionsPriceControl_FO!AF$15 -> 0.2104701475 | CI75: =+U75*KeyAssumptionsPriceControl_FO!AG$15 -> 0.2167842519 | CJ75: =+V75*KeyAssumptionsPriceControl_FO!AH$15 -> 0.2232877795 | CK75: =+W75*KeyAssumptionsPriceControl_FO!AI$15 -> 0.2299864128 | CL75: =+X75*KeyAssumptionsPriceControl_FO!AJ$15 -> 0.2368860052 | CM75: =+Y75*KeyAssumptionsPriceControl_FO!AK$15 -> 0.2439925854 | CN75: =+Z75*KeyAssumptionsPriceControl_FO!AL$15 -> 0.2513123629 | CP75: 0.0038522 | CQ75: 0.011672166 | CR75: 0.01972673098 | CS75: 0.02802293291 | CT75: 0.0365680209 | CU75: 0.04536946152 | CV75: 0.05443494537 | CW75: 0.06377239373 | CX75: 0.07338996554 | CY75: 0.08329606451
C76: ='[2]Capex_FO input'!C76 -> Facilities Safety Improvements | E76: ='[2]Capex_FO input'!E76 -> Water | F76: ='[2]Capex_FO input'!F76 -> Improvements / Compliance | G76: ='[2]Capex_FO input'!G76 -> Corporate | H76: ='[2]Capex_FO input'!H76 -> Capital Programs / Allocation | J76: Straight line | K76: ='[2]Capex_FO input'!K76 -> Ongoing | L76: ='[2]Capex_FO input'!L76 -> 50 | M76: ='[2]Capex_FO input'!M76 -> 50 | Q76: ='[2]Capex_FO input'!Q76 -> 0.156 | R76: ='[2]Capex_FO input'!R76 -> 0.156 | S76: ='[2]Capex_FO input'!S76 -> 0.156 | T76: ='[2]Capex_FO input'!T76 -> 0.156 | U76: ='[2]Capex_FO input'!U76 -> 0.156 | V76: ='[2]Capex_FO input'!V76 -> 0.156 | W76: ='[2]Capex_FO input'!W76 -> 0.156 | X76: ='[2]Capex_FO input'!X76 -> 0.156 | Y76: ='[2]Capex_FO input'!Y76 -> 0.156 | Z76: ='[2]Capex_FO input'!Z76 -> 0.156 | AB76: ='[2]Capex_FO input'!AB76 -> 0 | AC76: ='[2]Capex_FO input'!AC76 -> 0 | AD76: ='[2]Capex_FO input'!AD76 -> 0 | AE76: ='[2]Capex_FO input'!AE76 -> 0 | AF76: ='[2]Capex_FO input'!AF76 -> 0 | AG76: ='[2]Capex_FO input'!AG76 -> 0 | AH76: ='[2]Capex_FO input'!AH76 -> 0 | AI76: ='[2]Capex_FO input'!AI76 -> 0 | AJ76: ='[2]Capex_FO input'!AJ76 -> 0 | AK76: ='[2]Capex_FO input'!AK76 -> 0 | AM76: ='[2]Capex_FO input'!AM76 -> 0 | AN76: ='[2]Capex_FO input'!AN76 -> 0 | AO76: ='[2]Capex_FO input'!AO76 -> 0 | AP76: ='[2]Capex_FO input'!AP76 -> 0 | AQ76: ='[2]Capex_FO input'!AQ76 -> 0 | AR76: ='[2]Capex_FO input'!AR76 -> 0 | AS76: ='[2]Capex_FO input'!AS76 -> 0 | AT76: ='[2]Capex_FO input'!AT76 -> 0 | AU76: ='[2]Capex_FO input'!AU76 -> 0 | AV76: ='[2]Capex_FO input'!AV76 -> 0 | AX76: 0.156 | AY76: 0.156 | AZ76: 0.156 | BA76: 0.156 | BB76: 0.156 | BC76: 0.156 | BD76: 0.156 | BE76: 0.156 | BF76: 0.156 | BG76: 0.156 | BI76: 0.00156 | BJ76: 0.00468 | BK76: 0.0078 | BL76: 0.01092 | BM76: 0.01404 | BN76: 0.01716 | BO76: 0.02028 | BP76: 0.0234 | BQ76: 0.02652 | BR76: 0.02964 | BT76: =+IF($K76="Ongoing",AX76,IF(RIGHT($K76,2)=RIGHT(BT$39,2),SUM($AX76:AX76),0)+IF(RIGHT(BT$39,2)>RIGHT($K76,2),AX76,0)) -> 0.156 | BU76: =+IF($K76="Ongoing",AY76,IF(RIGHT($K76,2)=RIGHT(BU$39,2),SUM($AX76:AY76),0)+IF(RIGHT(BU$39,2)>RIGHT($K76,2),AY76,0)) -> 0.156 | BV76: =+IF($K76="Ongoing",AZ76,IF(RIGHT($K76,2)=RIGHT(BV$39,2),SUM($AX76:AZ76),0)+IF(RIGHT(BV$39,2)>RIGHT($K76,2),AZ76,0)) -> 0.156 | BW76: =+IF($K76="Ongoing",BA76,IF(RIGHT($K76,2)=RIGHT(BW$39,2),SUM($AX76:BA76),0)+IF(RIGHT(BW$39,2)>RIGHT($K76,2),BA76,0)) -> 0.156 | BX76: =+IF($K76="Ongoing",BB76,IF(RIGHT($K76,2)=RIGHT(BX$39,2),SUM($AX76:BB76),0)+IF(RIGHT(BX$39,2)>RIGHT($K76,2),BB76,0)) -> 0.156 | BY76: =+IF($K76="Ongoing",BC76,IF(RIGHT($K76,2)=RIGHT(BY$39,2),SUM($AX76:BC76),0)+IF(RIGHT(BY$39,2)>RIGHT($K76,2),BC76,0)) -> 0.156 | BZ76: =+IF($K76="Ongoing",BD76,IF(RIGHT($K76,2)=RIGHT(BZ$39,2),SUM($AX76:BD76),0)+IF(RIGHT(BZ$39,2)>RIGHT($K76,2),BD76,0)) -> 0.156 | CA76: =+IF($K76="Ongoing",BE76,IF(RIGHT($K76,2)=RIGHT(CA$39,2),SUM($AX76:BE76),0)+IF(RIGHT(CA$39,2)>RIGHT($K76,2),BE76,0)) -> 0.156 | CB76: =+IF($K76="Ongoing",BF76,IF(RIGHT($K76,2)=RIGHT(CB$39,2),SUM($AX76:BF76),0)+IF(RIGHT(CB$39,2)>RIGHT($K76,2),BF76,0)) -> 0.156 | CC76: =+IF($K76="Ongoing",BG76,IF(RIGHT($K76,2)=RIGHT(CC$39,2),SUM($AX76:BG76),0)+IF(RIGHT(CC$39,2)>RIGHT($K76,2),BG76,0)) -> 0.156 | CE76: =+Q76*KeyAssumptionsPriceControl_FO!AC$15 -> 0.16068 | CF76: =+R76*KeyAssumptionsPriceControl_FO!AD$15 -> 0.1655004 | CG76: =+S76*KeyAssumptionsPriceControl_FO!AE$15 -> 0.170465412 | CH76: =+T76*KeyAssumptionsPriceControl_FO!AF$15 -> 0.1755793744 | CI76: =+U76*KeyAssumptionsPriceControl_FO!AG$15 -> 0.1808467556 | CJ76: =+V76*KeyAssumptionsPriceControl_FO!AH$15 -> 0.1862721583 | CK76: =+W76*KeyAssumptionsPriceControl_FO!AI$15 -> 0.191860323 | CL76: =+X76*KeyAssumptionsPriceControl_FO!AJ$15 -> 0.1976161327 | CM76: =+Y76*KeyAssumptionsPriceControl_FO!AK$15 -> 0.2035446167 | CN76: =+Z76*KeyAssumptionsPriceControl_FO!AL$15 -> 0.2096509552 | CP76: 0.0016068 | CQ76: 0.004868604 | CR76: 0.00822826212 | CS76: 0.01168870998 | CT76: 0.01525297128 | CU76: 0.01892416042 | CV76: 0.02270548523 | CW76: 0.02660024979 | CX76: 0.03061185729 | CY76: 0.034743813
C77: ='[2]Capex_FO input'!C77 -> Treated water storage renewal allocation | E77: ='[2]Capex_FO input'!E77 -> Water | F77: ='[2]Capex_FO input'!F77 -> Renewals | G77: ='[2]Capex_FO input'!G77 -> Pipelines/network | H77: ='[2]Capex_FO input'!H77 -> Capital Programs / Allocation | J77: Straight line | K77: ='[2]Capex_FO input'!K77 -> Ongoing | L77: ='[2]Capex_FO input'!L77 -> 100 | M77: ='[2]Capex_FO input'!M77 -> 50 | Q77: ='[2]Capex_FO input'!Q77 -> 0.139 | R77: ='[2]Capex_FO input'!R77 -> 0.139 | S77: ='[2]Capex_FO input'!S77 -> 0.139 | T77: ='[2]Capex_FO input'!T77 -> 0.139 | U77: ='[2]Capex_FO input'!U77 -> 0.139 | V77: ='[2]Capex_FO input'!V77 -> 0.102 | W77: ='[2]Capex_FO input'!W77 -> 0.102 | X77: ='[2]Capex_FO input'!X77 -> 0.102 | Y77: ='[2]Capex_FO input'!Y77 -> 0.102 | Z77: ='[2]Capex_FO input'!Z77 -> 0.102 | AB77: ='[2]Capex_FO input'!AB77 -> 0 | AC77: ='[2]Capex_FO input'!AC77 -> 0 | AD77: ='[2]Capex_FO input'!AD77 -> 0 | AE77: ='[2]Capex_FO input'!AE77 -> 0 | AF77: ='[2]Capex_FO input'!AF77 -> 0 | AG77: ='[2]Capex_FO input'!AG77 -> 0 | AH77: ='[2]Capex_FO input'!AH77 -> 0 | AI77: ='[2]Capex_FO input'!AI77 -> 0 | AJ77: ='[2]Capex_FO input'!AJ77 -> 0 | AK77: ='[2]Capex_FO input'!AK77 -> 0 | AM77: ='[2]Capex_FO input'!AM77 -> 0 | AN77: ='[2]Capex_FO input'!AN77 -> 0 | AO77: ='[2]Capex_FO input'!AO77 -> 0 | AP77: ='[2]Capex_FO input'!AP77 -> 0 | AQ77: ='[2]Capex_FO input'!AQ77 -> 0 | AR77: ='[2]Capex_FO input'!AR77 -> 0 | AS77: ='[2]Capex_FO input'!AS77 -> 0 | AT77: ='[2]Capex_FO input'!AT77 -> 0 | AU77: ='[2]Capex_FO input'!AU77 -> 0 | AV77: ='[2]Capex_FO input'!AV77 -> 0 | AX77: 0.139 | AY77: 0.139 | AZ77: 0.139 | BA77: 0.139 | BB77: 0.139 | BC77: 0.102 | BD77: 0.102 | BE77: 0.102 | BF77: 0.102 | BG77: 0.102 | BI77: 0.000695 | BJ77: 0.002085 | BK77: 0.003475 | BL77: 0.004865 | BM77: 0.006255 | BN77: 0.00746 | BO77: 0.00848 | BP77: 0.0095 | BQ77: 0.01052 | BR77: 0.01154 | BT77: =+IF($K77="Ongoing",AX77,IF(RIGHT($K77,2)=RIGHT(BT$39,2),SUM($AX77:AX77),0)+IF(RIGHT(BT$39,2)>RIGHT($K77,2),AX77,0)) -> 0.139 | BU77: =+IF($K77="Ongoing",AY77,IF(RIGHT($K77,2)=RIGHT(BU$39,2),SUM($AX77:AY77),0)+IF(RIGHT(BU$39,2)>RIGHT($K77,2),AY77,0)) -> 0.139 | BV77: =+IF($K77="Ongoing",AZ77,IF(RIGHT($K77,2)=RIGHT(BV$39,2),SUM($AX77:AZ77),0)+IF(RIGHT(BV$39,2)>RIGHT($K77,2),AZ77,0)) -> 0.139 | BW77: =+IF($K77="Ongoing",BA77,IF(RIGHT($K77,2)=RIGHT(BW$39,2),SUM($AX77:BA77),0)+IF(RIGHT(BW$39,2)>RIGHT($K77,2),BA77,0)) -> 0.139 | BX77: =+IF($K77="Ongoing",BB77,IF(RIGHT($K77,2)=RIGHT(BX$39,2),SUM($AX77:BB77),0)+IF(RIGHT(BX$39,2)>RIGHT($K77,2),BB77,0)) -> 0.139 | BY77: =+IF($K77="Ongoing",BC77,IF(RIGHT($K77,2)=RIGHT(BY$39,2),SUM($AX77:BC77),0)+IF(RIGHT(BY$39,2)>RIGHT($K77,2),BC77,0)) -> 0.102 | BZ77: =+IF($K77="Ongoing",BD77,IF(RIGHT($K77,2)=RIGHT(BZ$39,2),SUM($AX77:BD77),0)+IF(RIGHT(BZ$39,2)>RIGHT($K77,2),BD77,0)) -> 0.102 | CA77: =+IF($K77="Ongoing",BE77,IF(RIGHT($K77,2)=RIGHT(CA$39,2),SUM($AX77:BE77),0)+IF(RIGHT(CA$39,2)>RIGHT($K77,2),BE77,0)) -> 0.102 | CB77: =+IF($K77="Ongoing",BF77,IF(RIGHT($K77,2)=RIGHT(CB$39,2),SUM($AX77:BF77),0)+IF(RIGHT(CB$39,2)>RIGHT($K77,2),BF77,0)) -> 0.102 | CC77: =+IF($K77="Ongoing",BG77,IF(RIGHT($K77,2)=RIGHT(CC$39,2),SUM($AX77:BG77),0)+IF(RIGHT(CC$39,2)>RIGHT($K77,2),BG77,0)) -> 0.102 | CE77: =+Q77*KeyAssumptionsPriceControl_FO!AC$15 -> 0.14317 | CF77: =+R77*KeyAssumptionsPriceControl_FO!AD$15 -> 0.1474651 | CG77: =+S77*KeyAssumptionsPriceControl_FO!AE$15 -> 0.151889053 | CH77: =+T77*KeyAssumptionsPriceControl_FO!AF$15 -> 0.1564457246 | CI77: =+U77*KeyAssumptionsPriceControl_FO!AG$15 -> 0.1611390963 | CJ77: =+V77*KeyAssumptionsPriceControl_FO!AH$15 -> 0.1217933342 | CK77: =+W77*KeyAssumptionsPriceControl_FO!AI$15 -> 0.1254471343 | CL77: =+X77*KeyAssumptionsPriceControl_FO!AJ$15 -> 0.1292105483 | CM77: =+Y77*KeyAssumptionsPriceControl_FO!AK$15 -> 0.1330868648 | CN77: =+Z77*KeyAssumptionsPriceControl_FO!AL$15 -> 0.1370794707 | CP77: 0.0014317 | CQ77: 0.004338051 | CR77: 0.00733159253 | CS77: 0.01041494031 | CT77: 0.01359078852 | CU77: 0.01642011282 | CV77: 0.01889251751 | CW77: 0.02143909433 | CX77: 0.02406206846 | CY77: 0.02676373182
